Workbook

Sheet Football Field Diagram
B2: Current Stock Price | E2: 111.19
J4: Shares | L4: 1510000
E5: Low | F5: High | G5: Offer
B6: P/E Multiple - Public | E6: =L6*R6 -> 108.97 | F6: =S6*L6 -> 134.61 | G6: 137 | J6: Current EPS | L6: 6.41 | Q6: PE Range | R6: 17 | S6: 21
B7: EV/EBITDA Multiple - Public | E7: =(R7*$L$7-$N$7)/$L$4 -> 96.46682119 | F7: =(S7*$L$7-$N$7)/$L$4 -> 129.784702 | G7: 137 | J7: EBITDA | L7: 16770000 | M7: Net Debt | N7: 22035100 | Q7: EV/EBITDA | R7: 10 | S7: 13
B8: P/B Multiple - Public | E8: =L8*R8 -> 81.72 | F8: =L8*S8 -> 136.2 | G8: 137 | J8: Book Value/Share | L8: 27.24 | Q8: M/B Range | R8: 3 | S8: 5
B9: DCF - Growth | E9: 84 | F9: 140 | G9: 137
B10: DCF - EV/EBITDA Multiple | E10: 90 | F10: 135 | G10: 137
B11: DCF - Value Driver | E11: 82 | F11: 136 | G11: 137
B12: LBO Implied | E12: 94 | F12: 150 | G12: 137
B13: Accretion | E13: 91 | F13: 140 | G13: 137
B15: Space for Labels | E15: 25
A19: Increment | E19: =E5 -> Low | F19: =F5 -> High
B20: P/E Multiple - Public | E20: =E6 -> 108.97 | F20: =F6-E20 -> 25.64
B21: EV/EBITDA Multiple - Public | E21: 96.46682119 | F21: 33.31788079
B22: P/B Multiple - Public | E22: 81.72 | F22: 54.48
B23: DCF - Growth | E23: 84 | F23: 56
B24: DCF - EV/EBITDA Multiple | E24: 90 | F24: 45
B25: DCF - Value Driver | E25: 82 | F25: 54
B26: LBO Implied | E26: 94 | F26: 56
B27: Accretion | E27: 91 | F27: 49
A32: Include Space
E35: Low | F35: Increment | G35: Hig vs Low | H35: Increment
B36: =B20 -> P/E Multiple - Public | E36: =E20 -> 108.97 | F36: =$E$15 -> 25 | G36: =F6 -> 134.61 | H36: =$E$15 -> 25
B37: EV/EBITDA Multiple - Public | E37: 96.46682119 | F37: 25 | G37: 129.784702 | H37: 25
B38: P/B Multiple - Public | E38: 81.72 | F38: 25 | G38: 136.2 | H38: 25
B39: DCF - Growth | E39: 84 | F39: 25 | G39: 140 | H39: 25
B40: DCF - EV/EBITDA Multiple | E40: 90 | F40: 25 | G40: 135 | H40: 25
B41: DCF - Value Driver | E41: 82 | F41: 25 | G41: 136 | H41: 25
B42: LBO Implied | E42: 94 | F42: 25 | G42: 150 | H42: 25
B43: Accretion | E43: 91 | F43: 25 | G43: 140 | H43: 25
A45: Low versus Increment
E46: Low vs Incrment | F46: =F35 -> Increment | G46: =G35 -> Hig vs Low | H46: =H35 -> Increment | I46: Offer
B47: =B36 -> P/E Multiple - Public | E47: =E36-F36 -> 83.97 | F47: =F36 -> 25 | G47: =F6-E6 -> 25.64 | H47: =H36 -> 25 | I47: =G6 -> 137
B48: =B37 -> EV/EBITDA Multiple - Public | E48: =E37-F37 -> 71.46682119 | F48: =F37 -> 25 | G48: 33.31788079 | H48: 25 | I48: =G7 -> 137
B49: P/B Multiple - Public | E49: 56.72 | F49: 25 | G49: 54.48 | H49: 25 | I49: 137
B50: DCF - Growth | E50: 59 | F50: 25 | G50: 56 | H50: 25 | I50: 137
B51: DCF - EV/EBITDA Multiple | E51: 65 | F51: 25 | G51: 45 | H51: 25 | I51: 137
B52: DCF - Value Driver | E52: 57 | F52: 25 | G52: 54 | H52: 25 | I52: 137
B53: LBO Implied | E53: 69 | F53: 25 | G53: 56 | H53: 25 | I53: 137
B54: Accretion | E54: 66 | F54: 25 | G54: 49 | H54: 25 | I54: 137
D57: Remove Fill from Bottom
D75: Add Data Labels
D92: Remove Fill from Data Labels
D94: Edit one by One
D96: Put = sign in the formula bar
D112: =B6 -> P/E Multiple - Public | F112: =E6 -> 108.97 | G112: =F6 -> 134.61
D113: =B7 -> EV/EBITDA Multiple - Public | F113: =E7 -> 96.46682119 | G113: 129.784702
D114: P/B Multiple - Public | F114: 81.72 | G114: 136.2
D115: DCF - Growth | F115: 84 | G115: 140
D116: DCF - EV/EBITDA Multiple | F116: 90 | G116: 135
D117: DCF - Value Driver | F117: 82 | G117: 136
D118: LBO Implied | F118: 94 | G118: 150
D119: Accretion | F119: 91 | G119: 140

Sheet Synergy Value and Premium
A4: Assumptions from Presentation
D6: Operation and Maintenance | E6: 4289
D7: Maintenance and Other | E7: 950
D8: General and Administrative | E8: 309
D9: Other Costs | E9: 454
D10: Total Combined | E10: =SUM(E6:E9) -> 6002
D12: Low Estimate | E12: =E10*G12 -> 180.06 | G12: 0.03
D13: High Estimate | E13: =G13*E10 -> 300.1 | G13: 0.05
D15: Discount Rate | E15: 0.12
D16: Growth Rate | E16: 0
D18: PV of Synergies - Low | E18: =E12*(1+E16)/(E15-E16) -> 1500.5
D19: PV of Synergies - High | E19: =E13*(1+E16)/(E15-E16) -> 2500.833333
D22: Price | E22: 22
D23: Shares | E23: 264
D24: Premium | E24: 0.37
D26: Premium Value | E26: =E22*E23*E24 -> 2148.96
K27: INDEX
D28: Tax Rate | E28: 0.4 | K28: LOOKUP
D30: After-tax Synergies
D31: PV of Synergies - Low | E31: =E18*(1-$E$28) -> 900.3
D32: PV of Synergies - High | E32: =E19*(1-$E$28) -> 1500.5
A35: Assumptions with Different Timing of Synergies
E37: Code Number | G37: 3
G39: 1 | H39: 3 | I39: 5 | J39: 9 | K39: 15
B40: Timing of Synergies | E40: Base Penetration | G40: 0.25 | H40: 0.35 | I40: 0.6 | J40: 0.8 | K40: 1
E41: Full Penetration | G41: 1 | H41: 1 | I41: 1 | J41: 1 | K41: 1
E42: Low Penetration | G42: 0.1 | H42: 0.15 | I42: 0.5 | J42: 0.75 | K42: 1
B46: Inflation Rate | E46: 0.02
B47: Synergy Percent | E47: 0.05 | G47: 4
A49: Analysis of Synergy versus Premium
B50: Time Period
B51: Synergy Timing (LOOKUP)
B52: Synergy Amount - Real
B53: Inflation Index
B54: Synergy Nominal
B55: Tax Rate
B56: Synergy After-Tax
B58: PV of Synergies
B59: Net Cash Flow
B60: After-tax IRR

Sheet Accretion and Dilution
G1: FALSE
A2: Google buys Apple
E3: Target | F3: Acquiror
E4: Apple | F4: Google
B5: Price per Share
B6: Shares
B9: Premium Paid by Google | E9: =F9/100 -> 0.37 | F9: 37
B10: Exchange Ratio without Premium | F10: Target/Acquiror
B11: Exchange Ratio with Premium | F11: Target/Acquiror * (1+Premium)
B12: Synergies | F12: 180
F14: 1 | G14: 2 | H14: 3 | I14: 4 | J14: 5
B15: Apple EPS Estimate
B16: Google EPS Estimate
B17: Synergies per Share
I18: `
B19: Total Earnings | E19: Shares
C20: Apple
C21: Google
C22: Total Without Synergies
C24: Synergies
C25: Total
C28: Combined EPS After Merger
C29: Standalone EPS for Google
A38: Apple Buys Google
E40: Apple | F40: Google
B41: Price per Share
B42: Shares
B44: Premium Paid by Google
B45: Exchange Ratio without Premium
B46: Exchange Ratio with Premium
F48: 1 | G48: 2 | H48: 3 | I48: 4 | J48: 5
B49: Apple EPS Estimate
B50: Google EPS Estimate
B51: Synergies per Share

Sheet Simple PE Formula
A2: Drivers | H2: If no net debt, ROIC and ROE are the same
B3: Rate of Return | E3: 0.15 | F3: ROE | H3: If no net debt, k and WACC are the same | M3: value = cf1/(k-g) | R3: g = ROE * (1-dpo)
B4: Cost of Capital | E4: 0.08 | F4: K | M4: value = cf0 * (1+g)/(k-g) | R4: g/roe = 1- dpo
B5: Growth | E5: 0.05 | F5: G | H5: Value Formula | M5: Compute P/E | R5: dpo = 1- g/roe
B6: Payout | E6: =1-G/ROE -> 0.6666666667 | F6: Payout | H6: Earnings Multiple (P/E or EV/NOPAT) | Q6: Value = E x (1-g/ROE)/(k-g)
B7: Investment Balance (Book Value) | E7: 27.24 | H7: Value to Investment (P/B or EV/Invested Capital) | N7: Value = Div1/(k-g) | P7: or | Q7: P/E = (1-g/ROE)/(k-g)
B9: P/E Ratio - Formula | E9: =P3 -> 0
B10: P/E Ratio - Formula | E10: =P5 -> 0
A12: Long-term Model
B13: Period | G13: 1 | H13: =G13+1 -> 2 | I13: =H13+1 -> 3 | J13: =I13+1 -> 4 | K13: 5 | L13: 6 | M13: 7 | N13: 8 | O13: 9 | P13: 10 | Q13: 11 | R13: 12 | S13: 13 | T13: 14 | U13: 15 | V13: 16 | W13: 17 | X13: 18 | Y13: 19 | Z13: 20 | AA13: 21 | AB13: 22 | AC13: 23 | AD13: 24 | AE13: 25 | AF13: 26 | AG13: 27 | AH13: 28 | AI13: 29 | AJ13: 30 | AK13: 31 | AL13: 32 | AM13: 33 | AN13: 34 | AO13: 35 | AP13: 36 | AQ13: 37 | AR13: 38 | AS13: 39 | AT13: 40 | AU13: 41 | AV13: 42 | AW13: 43 | AX13: 44 | AY13: 45 | AZ13: 46 | BA13: 47 | BB13: 48 | BC13: 49 | BD13: 50 | BE13: 51 | BF13: 52 | BG13: 53 | BH13: 54 | BI13: 55 | BJ13: 56 | BK13: 57 | BL13: 58 | BM13: 59 | BN13: 60 | BO13: 61 | BP13: 62 | BQ13: 63 | BR13: 64 | BS13: 65 | BT13: 66 | BU13: =BT13+1 -> 67 | BV13: 68 | BW13: 69 | BX13: 70 | BY13: 71 | BZ13: 72 | CA13: 73 | CB13: 74 | CC13: 75 | CD13: 76 | CE13: 77 | CF13: 78 | CG13: 79 | CH13: 80 | CI13: 81 | CJ13: 82 | CK13: 83 | CL13: 84 | CM13: 85 | CN13: 86 | CO13: 87 | CP13: 88 | CQ13: 89 | CR13: 90 | CS13: 91 | CT13: 92 | CU13: 93 | CV13: 94 | CW13: 95 | CX13: 96 | CY13: 97 | CZ13: 98 | DA13: 99 | DB13: 100 | DC13: 101 | DD13: 102 | DE13: 103 | DF13: 104 | DG13: 105 | DH13: 106 | DI13: 107 | DJ13: 108 | DK13: 109 | DL13: 110 | DM13: 111 | DN13: 112 | DO13: 113 | DP13: 114 | DQ13: 115 | DR13: 116 | DS13: 117 | DT13: 118 | DU13: 119 | DV13: 120 | DW13: 121 | DX13: 122 | DY13: 123 | DZ13: 124 | EA13: 125 | EB13: 126 | EC13: 127 | ED13: 128 | EE13: 129 | EF13: 130 | EG13: =EF13+1 -> 131 | EH13: 132 | EI13: 133 | EJ13: 134 | EK13: 135 | EL13: 136 | EM13: 137 | EN13: 138 | EO13: 139 | EP13: 140 | EQ13: 141 | ER13: 142 | ES13: 143 | ET13: 144 | EU13: 145 | EV13: 146 | EW13: 147 | EX13: 148 | EY13: 149 | EZ13: 150 | FA13: 151 | FB13: 152 | FC13: 153 | FD13: 154 | FE13: 155 | FF13: 156 | FG13: 157 | FH13: 158 | FI13: 159 | FJ13: 160 | FK13: 161 | FL13: 162 | FM13: 163 | FN13: 164 | FO13: 165 | FP13: 166 | FQ13: 167 | FR13: 168 | FS13: 169 | FT13: 170 | FU13: 171 | FV13: 172 | FW13: 173 | FX13: 174 | FY13: 175 | FZ13: 176 | GA13: 177 | GB13: 178 | GC13: 179 | GD13: 180 | GE13: 181 | GF13: 182 | GG13: 183 | GH13: 184 | GI13: 185 | GJ13: 186 | GK13: 187 | GL13: 188 | GM13: 189 | GN13: 190 | GO13: 191 | GP13: 192 | GQ13: 193 | GR13: 194 | GS13: =GR13+1 -> 195 | GT13: 196 | GU13: 197 | GV13: 198 | GW13: 199 | GX13: 200 | GY13: 201 | GZ13: 202 | HA13: 203 | HB13: 204 | HC13: 205 | HD13: 206 | HE13: 207 | HF13: 208 | HG13: 209 | HH13: 210 | HI13: 211 | HJ13: 212 | HK13: 213 | HL13: 214 | HM13: 215 | HN13: 216 | HO13: 217 | HP13: 218 | HQ13: 219 | HR13: 220 | HS13: 221 | HT13: 222 | HU13: 223 | HV13: 224 | HW13: 225 | HX13: 226 | HY13: 227 | HZ13: 228 | IA13: 229 | IB13: 230 | IC13: 231 | ID13: 232 | IE13: 233 | IF13: 234 | IG13: 235 | IH13: 236 | II13: 237 | IJ13: 238 | IK13: 239 | IL13: 240 | IM13: 241 | IN13: 242 | IO13: 243 | IP13: 244 | IQ13: 245 | IR13: 246 | IS13: 247 | IT13: 248 | IU13: 249 | IV13: 250 | IW13: 251 | IX13: 252 | IY13: 253 | IZ13: 254 | JA13: 255 | JB13: 256 | JC13: 257 | JD13: 258 | JE13: =JD13+1 -> 259 | JF13: 260 | JG13: 261 | JH13: 262 | JI13: 263 | JJ13: 264 | JK13: 265 | JL13: 266 | JM13: 267 | JN13: 268 | JO13: 269 | JP13: 270 | JQ13: 271 | JR13: 272 | JS13: 273 | JT13: 274 | JU13: 275 | JV13: 276 | JW13: 277 | JX13: 278 | JY13: 279 | JZ13: 280 | KA13: 281 | KB13: 282 | KC13: 283 | KD13: 284 | KE13: 285 | KF13: 286 | KG13: 287 | KH13: 288 | KI13: 289 | KJ13: 290 | KK13: 291 | KL13: 292 | KM13: 293 | KN13: 294 | KO13: 295 | KP13: 296 | KQ13: 297 | KR13: 298 | KS13: 299 | KT13: 300 | KU13: 301 | KV13: 302 | KW13: 303 | KX13: 304 | KY13: 305 | KZ13: 306 | LA13: 307 | LB13: 308 | LC13: 309 | LD13: 310 | LE13: 311 | LF13: 312 | LG13: 313
B15: Investment Balance
C16: Opening Balance
C17: Add: Income
C18: Less: Payouts
C19: Closing Balance
C21: NPV of Payouts
C22: Forward Earnings Multiple
C23: Value to Investment
C24: Cash Flow | F24: =-E21 -> 0 | G24: =G18 -> 0 | H24: =H18 -> 0 | I24: 0 | J24: 0 | K24: 0 | L24: 0 | M24: 0 | N24: 0 | O24: 0 | P24: 0 | Q24: 0 | R24: 0 | S24: 0 | T24: 0 | U24: 0 | V24: 0 | W24: 0 | X24: 0 | Y24: 0 | Z24: 0 | AA24: 0 | AB24: 0 | AC24: 0 | AD24: 0 | AE24: 0 | AF24: 0 | AG24: 0 | AH24: 0 | AI24: 0 | AJ24: 0 | AK24: 0 | AL24: 0 | AM24: 0 | AN24: 0 | AO24: 0 | AP24: 0 | AQ24: 0 | AR24: 0 | AS24: 0 | AT24: 0 | AU24: 0 | AV24: 0 | AW24: 0 | AX24: 0 | AY24: 0 | AZ24: 0 | BA24: 0 | BB24: 0 | BC24: 0 | BD24: 0 | BE24: 0 | BF24: 0 | BG24: 0 | BH24: 0 | BI24: 0 | BJ24: 0 | BK24: 0 | BL24: 0 | BM24: 0 | BN24: 0 | BO24: 0 | BP24: 0 | BQ24: 0 | BR24: 0 | BS24: 0 | BT24: =BT18 -> 0 | BU24: 0 | BV24: 0 | BW24: 0 | BX24: 0 | BY24: 0 | BZ24: 0 | CA24: 0 | CB24: 0 | CC24: 0 | CD24: 0 | CE24: 0 | CF24: 0 | CG24: 0 | CH24: 0 | CI24: 0 | CJ24: 0 | CK24: 0 | CL24: 0 | CM24: 0 | CN24: 0 | CO24: 0 | CP24: 0 | CQ24: 0 | CR24: 0 | CS24: 0 | CT24: 0 | CU24: 0 | CV24: 0 | CW24: 0 | CX24: 0 | CY24: 0 | CZ24: 0 | DA24: 0 | DB24: 0 | DC24: 0 | DD24: 0 | DE24: 0 | DF24: 0 | DG24: 0 | DH24: 0 | DI24: 0 | DJ24: 0 | DK24: 0 | DL24: 0 | DM24: 0 | DN24: 0 | DO24: 0 | DP24: 0 | DQ24: 0 | DR24: 0 | DS24: 0 | DT24: 0 | DU24: 0 | DV24: 0 | DW24: 0 | DX24: 0 | DY24: 0 | DZ24: 0 | EA24: 0 | EB24: 0 | EC24: 0 | ED24: 0 | EE24: 0 | EF24: =EF18 -> 0 | EG24: 0 | EH24: 0 | EI24: 0 | EJ24: 0 | EK24: 0 | EL24: 0 | EM24: 0 | EN24: 0 | EO24: 0 | EP24: 0 | EQ24: 0 | ER24: 0 | ES24: 0 | ET24: 0 | EU24: 0 | EV24: 0 | EW24: 0 | EX24: 0 | EY24: 0 | EZ24: 0 | FA24: 0 | FB24: 0 | FC24: 0 | FD24: 0 | FE24: 0 | FF24: 0 | FG24: 0 | FH24: 0 | FI24: 0 | FJ24: 0 | FK24: 0 | FL24: 0 | FM24: 0 | FN24: 0 | FO24: 0 | FP24: 0 | FQ24: 0 | FR24: 0 | FS24: 0 | FT24: 0 | FU24: 0 | FV24: 0 | FW24: 0 | FX24: 0 | FY24: 0 | FZ24: 0 | GA24: 0 | GB24: 0 | GC24: 0 | GD24: 0 | GE24: 0 | GF24: 0 | GG24: 0 | GH24: 0 | GI24: 0 | GJ24: 0 | GK24: 0 | GL24: 0 | GM24: 0 | GN24: 0 | GO24: 0 | GP24: 0 | GQ24: 0 | GR24: =GR18 -> 0 | GS24: 0 | GT24: 0 | GU24: 0 | GV24: 0 | GW24: 0 | GX24: 0 | GY24: 0 | GZ24: 0 | HA24: 0 | HB24: 0 | HC24: 0 | HD24: 0 | HE24: 0 | HF24: 0 | HG24: 0 | HH24: 0 | HI24: 0 | HJ24: 0 | HK24: 0 | HL24: 0 | HM24: 0 | HN24: 0 | HO24: 0 | HP24: 0 | HQ24: 0 | HR24: 0 | HS24: 0 | HT24: 0 | HU24: 0 | HV24: 0 | HW24: 0 | HX24: 0 | HY24: 0 | HZ24: 0 | IA24: 0 | IB24: 0 | IC24: 0 | ID24: 0 | IE24: 0 | IF24: 0 | IG24: 0 | IH24: 0 | II24: 0 | IJ24: 0 | IK24: 0 | IL24: 0 | IM24: 0 | IN24: 0 | IO24: 0 | IP24: 0 | IQ24: 0 | IR24: 0 | IS24: 0 | IT24: 0 | IU24: 0 | IV24: 0 | IW24: 0 | IX24: 0 | IY24: 0 | IZ24: 0 | JA24: 0 | JB24: 0 | JC24: 0 | JD24: =JD18 -> 0 | JE24: 0 | JF24: 0 | JG24: 0 | JH24: 0 | JI24: 0 | JJ24: 0 | JK24: 0 | JL24: 0 | JM24: 0 | JN24: 0 | JO24: 0 | JP24: 0 | JQ24: 0 | JR24: 0 | JS24: 0 | JT24: 0 | JU24: 0 | JV24: 0 | JW24: 0 | JX24: 0 | JY24: 0 | JZ24: 0 | KA24: 0 | KB24: 0 | KC24: 0 | KD24: 0 | KE24: 0 | KF24: 0 | KG24: 0 | KH24: 0 | KI24: 0 | KJ24: 0 | KK24: 0 | KL24: 0 | KM24: 0 | KN24: 0 | KO24: 0 | KP24: 0 | KQ24: 0 | KR24: 0 | KS24: 0 | KT24: 0 | KU24: 0 | KV24: 0 | KW24: 0 | KX24: 0 | KY24: 0 | KZ24: 0 | LA24: 0 | LB24: 0 | LC24: 0 | LD24: 0 | LE24: 0 | LF24: 0 | LG24: 0
C25: IRR Check | E25: =IRR(24:24) -> 
A27: Goal Seek to Compute Cost of Capital
B28: Input Valuation Ratio | E28: 25
B29: Computed Valuation Ratio | E29: =E22 -> 0
B30: Difference | E30: =E28-E29 -> 25 | F30: difference
A32: Data Table Sensitivity
I34: ROE
I36: 0.1 | J36: 0.12 | K36: 0.14 | L36: 0.16 | M36: 0.18
H37: 0 | I37: 14.28571428 | J37: 14.28571428 | K37: 14.28571428 | L37: 14.28571428 | M37: 14.28571428
H38: 0.01 | I38: 15.55555533 | J38: 15.55555533 | K38: 15.55555533 | L38: 15.55555533 | M38: 15.55555533
G39: g | H39: 0.02 | I39: 17.33332792 | J39: 17.33332792 | K39: 17.33332792 | L39: 17.33332792 | M39: 17.33332792
H40: 0.03 | I40: 19.99986758 | J40: 19.99986758 | K40: 19.99986758 | L40: 19.99986758 | M40: 19.99986758
H41: 0.04 | I41: 24.44111407 | J41: 24.44111407 | K41: 24.44111407 | L41: 24.44111407 | M41: 24.44111407
H42: 0.05 | I42: 33.24254983 | J42: 33.24254983 | K42: 33.24254983 | L42: 33.24254983 | M42: 33.24254983
F45: Start Row | G45: =ROW(H37) -> 37
F46: End Row | G46: =ROW(H42) -> 42
F47: Start Col | G47: =COLUMN(I36) -> 9
F48: End Col | G48: =COLUMN(M36) -> 13

Sheet PE Ratio Changing Drivers
E2: Use INDEX and LOOKUP
E3: Copy INTERPOLATE
A5: Drivers | G5: Earnings Multiple | I5: =F42 -> 0
B6: Rate of Return | F6: 2018 | G6: 2019 | H6: 2020 | I6: 2025 | J6: 2030
C7: Base | F7: 0.22 | G7: 0.24 | H7: 0.25 | I7: 0.23 | J7: 0.2
C8: High | F8: 0.15 | G8: 0.18 | H8: 0.24 | I8: 0.25 | J8: 0.27
C9: Low | F9: 0.25 | G9: 0.22 | H9: 0.17 | I9: 0.15 | J9: 0.13
C10: =INDEX(C7:C9,$E$10) -> High | E10: 2 | F10: =INDEX(F7:F9,$E$10) -> 0.15 | G10: =INDEX(G7:G9,$E$10) -> 0.18 | H10: =INDEX(H7:H9,$E$10) -> 0.24 | I10: =INDEX(I7:I9,$E$10) -> 0.25 | J10: =INDEX(J7:J9,$E$10) -> 0.27
B12: Growth
C13: Base | F13: 0.04 | G13: 0.04 | H13: 0.04 | I13: 0.04 | J13: 0.04
C14: High | F14: 0.08 | G14: 0.09 | H14: 0.1 | I14: 0.07 | J14: 0.06
C15: Low | F15: 0.025 | G15: 0.02 | H15: 0.01 | I15: 0.01 | J15: 0.01
C16: =INDEX(C13:C15,$E$16) -> Low | E16: 3 | F16: =INDEX(F13:F15,$E$16) -> 0.025 | G16: =INDEX(G13:G15,$E$16) -> 0.02 | H16: =INDEX(H13:H15,$E$16) -> 0.01 | I16: =INDEX(I13:I15,$E$16) -> 0.01 | J16: =INDEX(J13:J15,$E$16) -> 0.01
B18: Cost of Capital
C19: Base | F19: 0.075 | G19: 0.075 | H19: 0.075 | I19: 0.075 | J19: 0.075
C20: High | F20: 0.06 | G20: 0.062 | H20: 0.07 | I20: 0.07 | J20: 0.07
C21: Low | F21: 0.08 | G21: 0.082 | H21: 0.085 | I21: 0.085 | J21: 0.085
C22: =INDEX(C19:C21,$E$22) -> High | E22: 2 | F22: =INDEX(F19:F21,$E$22) -> 0.06 | G22: =INDEX(G19:G21,$E$22) -> 0.062 | H22: =INDEX(H19:H21,$E$22) -> 0.07 | I22: =INDEX(I19:I21,$E$22) -> 0.07 | J22: =INDEX(J19:J21,$E$22) -> 0.07
B24: Book Value | E24: 27.54
A26: Simulation
B27: Year | F27: 2017 | G27: 2018 | H27: 2019 | I27: 2020 | J27: 2021 | K27: 2022 | L27: 2023 | M27: 2024 | N27: 2025 | O27: 2026 | P27: 2027 | Q27: 2028 | R27: 2029 | S27: 2030 | T27: 2031 | U27: 2032 | V27: 2033 | W27: 2034 | X27: 2035 | Y27: 2036 | Z27: 2037 | AA27: 2038 | AB27: 2039 | AC27: 2040 | AD27: 2041 | AE27: 2042 | AF27: 2043 | AG27: 2044 | AH27: 2045 | AI27: 2046 | AJ27: 2047 | AK27: 2048 | AL27: 2049 | AM27: 2050 | AN27: 2051 | AO27: 2052 | AP27: 2053 | AQ27: 2054 | AR27: 2055 | AS27: 2056 | AT27: 2057 | AU27: 2058 | AV27: 2059 | AW27: 2060 | AX27: 2061 | AY27: 2062 | AZ27: 2063 | BA27: 2064 | BB27: 2065 | BC27: 2066 | BD27: 2067 | BE27: 2068 | BF27: 2069 | BG27: 2070 | BH27: 2071 | BI27: 2072 | BJ27: 2073 | BK27: 2074 | BL27: 2075 | BM27: 2076 | BN27: 2077 | BO27: 2078 | BP27: 2079 | BQ27: 2080 | BR27: 2081 | BS27: 2082 | BT27: 2083 | BU27: 2084 | BV27: 2085 | BW27: 2086 | BX27: 2087 | BY27: 2088 | BZ27: 2089 | CA27: 2090 | CB27: 2091 | CC27: 2092 | CD27: 2093 | CE27: 2094 | CF27: 2095 | CG27: 2096 | CH27: 2097 | CI27: 2098 | CJ27: 2099 | CK27: 2100
B28: Graph Year | E28: 2030
B29: Return on Investment (LOOKUP, INTERPOLATE)
B30: Growth
B31: Payout Ratio
B32: Cost of Capital
B33: Compound Cost of Capital | F33: 1
B35: Investment Balance
C36: Opening Balance | G36: =F39 -> 27.54 | H36: =G39 -> 27.54 | I36: 27.54 | J36: 27.54 | K36: 27.54 | L36: 27.54 | M36: 27.54 | N36: 27.54 | O36: 27.54 | P36: 27.54 | Q36: 27.54 | R36: 27.54 | S36: 27.54 | T36: 27.54 | U36: 27.54 | V36: 27.54 | W36: 27.54 | X36: 27.54 | Y36: 27.54 | Z36: 27.54 | AA36: 27.54 | AB36: 27.54 | AC36: 27.54 | AD36: 27.54 | AE36: 27.54 | AF36: 27.54 | AG36: 27.54 | AH36: 27.54 | AI36: 27.54 | AJ36: 27.54 | AK36: 27.54 | AL36: 27.54 | AM36: 27.54 | AN36: 27.54 | AO36: 27.54 | AP36: 27.54 | AQ36: 27.54 | AR36: 27.54 | AS36: 27.54 | AT36: 27.54 | AU36: 27.54 | AV36: 27.54 | AW36: 27.54 | AX36: 27.54 | AY36: 27.54 | AZ36: 27.54 | BA36: 27.54 | BB36: 27.54 | BC36: 27.54 | BD36: 27.54 | BE36: 27.54 | BF36: 27.54 | BG36: 27.54 | BH36: 27.54 | BI36: 27.54 | BJ36: 27.54 | BK36: 27.54 | BL36: 27.54 | BM36: 27.54 | BN36: 27.54 | BO36: 27.54 | BP36: 27.54 | BQ36: 27.54 | BR36: 27.54 | BS36: 27.54 | BT36: =BS39 -> 27.54 | BU36: 27.54 | BV36: 27.54 | BW36: 27.54 | BX36: 27.54 | BY36: 27.54 | BZ36: 27.54 | CA36: 27.54 | CB36: 27.54 | CC36: 27.54 | CD36: 27.54 | CE36: 27.54 | CF36: 27.54 | CG36: 27.54 | CH36: 27.54 | CI36: 27.54 | CJ36: 27.54 | CK36: 27.54
C37: Add: Income | G37: =G36*G29 -> 0 | H37: =H36*H29 -> 0 | I37: 0 | J37: 0 | K37: 0 | L37: 0 | M37: 0 | N37: 0 | O37: 0 | P37: 0 | Q37: 0 | R37: 0 | S37: 0 | T37: 0 | U37: 0 | V37: 0 | W37: 0 | X37: 0 | Y37: 0 | Z37: 0 | AA37: 0 | AB37: 0 | AC37: 0 | AD37: 0 | AE37: 0 | AF37: 0 | AG37: 0 | AH37: 0 | AI37: 0 | AJ37: 0 | AK37: 0 | AL37: 0 | AM37: 0 | AN37: 0 | AO37: 0 | AP37: 0 | AQ37: 0 | AR37: 0 | AS37: 0 | AT37: 0 | AU37: 0 | AV37: 0 | AW37: 0 | AX37: 0 | AY37: 0 | AZ37: 0 | BA37: 0 | BB37: 0 | BC37: 0 | BD37: 0 | BE37: 0 | BF37: 0 | BG37: 0 | BH37: 0 | BI37: 0 | BJ37: 0 | BK37: 0 | BL37: 0 | BM37: 0 | BN37: 0 | BO37: 0 | BP37: 0 | BQ37: 0 | BR37: 0 | BS37: 0 | BT37: =BT36*BT29 -> 0 | BU37: 0 | BV37: 0 | BW37: 0 | BX37: 0 | BY37: 0 | BZ37: 0 | CA37: 0 | CB37: 0 | CC37: 0 | CD37: 0 | CE37: 0 | CF37: 0 | CG37: 0 | CH37: 0 | CI37: 0 | CJ37: 0 | CK37: 0
C38: Less: Payouts | G38: =G37*G31 -> 0 | H38: =H37*H31 -> 0 | I38: 0 | J38: 0 | K38: 0 | L38: 0 | M38: 0 | N38: 0 | O38: 0 | P38: 0 | Q38: 0 | R38: 0 | S38: 0 | T38: 0 | U38: 0 | V38: 0 | W38: 0 | X38: 0 | Y38: 0 | Z38: 0 | AA38: 0 | AB38: 0 | AC38: 0 | AD38: 0 | AE38: 0 | AF38: 0 | AG38: 0 | AH38: 0 | AI38: 0 | AJ38: 0 | AK38: 0 | AL38: 0 | AM38: 0 | AN38: 0 | AO38: 0 | AP38: 0 | AQ38: 0 | AR38: 0 | AS38: 0 | AT38: 0 | AU38: 0 | AV38: 0 | AW38: 0 | AX38: 0 | AY38: 0 | AZ38: 0 | BA38: 0 | BB38: 0 | BC38: 0 | BD38: 0 | BE38: 0 | BF38: 0 | BG38: 0 | BH38: 0 | BI38: 0 | BJ38: 0 | BK38: 0 | BL38: 0 | BM38: 0 | BN38: 0 | BO38: 0 | BP38: 0 | BQ38: 0 | BR38: 0 | BS38: 0 | BT38: =BT37*BT31 -> 0 | BU38: 0 | BV38: 0 | BW38: 0 | BX38: 0 | BY38: 0 | BZ38: 0 | CA38: 0 | CB38: 0 | CC38: 0 | CD38: 0 | CE38: 0 | CF38: 0 | CG38: 0 | CH38: 0 | CI38: 0 | CJ38: 0 | CK38: 0
C39: Closing Balance | F39: =E24 -> 27.54 | G39: =G36+G37-G38 -> 27.54 | H39: =H36+H37-H38 -> 27.54 | I39: 27.54 | J39: 27.54 | K39: 27.54 | L39: 27.54 | M39: 27.54 | N39: 27.54 | O39: 27.54 | P39: 27.54 | Q39: 27.54 | R39: 27.54 | S39: 27.54 | T39: 27.54 | U39: 27.54 | V39: 27.54 | W39: 27.54 | X39: 27.54 | Y39: 27.54 | Z39: 27.54 | AA39: 27.54 | AB39: 27.54 | AC39: 27.54 | AD39: 27.54 | AE39: 27.54 | AF39: 27.54 | AG39: 27.54 | AH39: 27.54 | AI39: 27.54 | AJ39: 27.54 | AK39: 27.54 | AL39: 27.54 | AM39: 27.54 | AN39: 27.54 | AO39: 27.54 | AP39: 27.54 | AQ39: 27.54 | AR39: 27.54 | AS39: 27.54 | AT39: 27.54 | AU39: 27.54 | AV39: 27.54 | AW39: 27.54 | AX39: 27.54 | AY39: 27.54 | AZ39: 27.54 | BA39: 27.54 | BB39: 27.54 | BC39: 27.54 | BD39: 27.54 | BE39: 27.54 | BF39: 27.54 | BG39: 27.54 | BH39: 27.54 | BI39: 27.54 | BJ39: 27.54 | BK39: 27.54 | BL39: 27.54 | BM39: 27.54 | BN39: 27.54 | BO39: 27.54 | BP39: 27.54 | BQ39: 27.54 | BR39: 27.54 | BS39: 27.54 | BT39: =BT36+BT37-BT38 -> 27.54 | BU39: 27.54 | BV39: 27.54 | BW39: 27.54 | BX39: 27.54 | BY39: 27.54 | BZ39: 27.54 | CA39: 27.54 | CB39: 27.54 | CC39: 27.54 | CD39: 27.54 | CE39: 27.54 | CF39: 27.54 | CG39: 27.54 | CH39: 27.54 | CI39: 27.54 | CJ39: 27.54 | CK39: 27.54
C41: NPV of Payouts
C42: Forward Earnings Multiple | G42: PE
C43: Value to Investment
L50: ROI
K51: Low | L51: Base | M51: High
D52: Start Row | E52: =ROW(I53) -> 53 | K52: 3 | L52: 1 | M52: 2
D53: End Row | E53: =ROW(I55) -> 55 | I53: Low | J53: 3 | K53: 9.581130141 | L53: 15.97941625 | M53: 27.41416883
D54: Start Col | E54: =COLUMN(K51) -> 11 | H54: Growth | I54: Base | J54: 1 | K54: 12.55601095 | L54: 23.69057984 | M54: 44.71251347
D55: End Col | E55: =COLUMN(M51) -> 13 | I55: High | J55: 2 | K55: 19.39448413 | L55: 42.86473876 | M55: 88.74799174

Sheet EV to EBITDA
A2: EV/EBITDA Ratio Drivers
B3: ROIC | E3: 0.11
B4: Growth | E4: 0.03 | G4: EV/EBITDA | H4: =G37 -> 0
B5: WACC | E5: 0.07 | G5: EV/EBIT | H5: =G38 -> 0
B6: Plant Life | E6: 10 | G6: EV/NOPAT | H6: =G39 -> 0
B7: Gross Depreciation Rate | E7: =1/E6 -> 0.1
B8: Net Depreciation Rate | E8: =LOOKUP(E6+1,41:41,58:58) -> 0 | G8: For same investment, need more cap exp
B9: Cap Exp to Depreciation | E9: =LOOKUP(E6+1,41:41,59:59) -> 0
B10: Working Capital to EBITDA | E10: 0.3
B11: Tax Rate | E11: 0.21
B12: Invested Capital | E12: 174
B13: EBITDA | E13: 50
A15: Investment Balance | H15: 1 | I15: 2 | J15: 3 | K15: 4 | L15: 5 | M15: 6 | N15: 7 | O15: 8 | P15: 9 | Q15: 10 | R15: 11 | S15: 12 | T15: 13 | U15: 14 | V15: 15 | W15: 16 | X15: 17 | Y15: 18 | Z15: 19 | AA15: 20 | AB15: 21 | AC15: 22 | AD15: 23 | AE15: 24 | AF15: 25 | AG15: 26 | AH15: 27 | AI15: 28 | AJ15: 29 | AK15: 30 | AL15: 31 | AM15: 32 | AN15: 33 | AO15: 34 | AP15: 35 | AQ15: 36 | AR15: 37 | AS15: 38 | AT15: 39 | AU15: 40 | AV15: 41 | AW15: 42 | AX15: 43 | AY15: 44 | AZ15: 45 | BA15: 46 | BB15: 47 | BC15: 48 | BD15: 49 | BE15: 50 | BF15: 51 | BG15: 52 | BH15: 53 | BI15: 54 | BJ15: 55 | BK15: 56 | BL15: 57 | BM15: 58 | BN15: 59 | BO15: 60 | BP15: 61 | BQ15: 62 | BR15: 63 | BS15: 64 | BT15: 65 | BU15: 66 | BV15: 67 | BW15: 68 | BX15: 69 | BY15: 70 | BZ15: 71 | CA15: 72 | CB15: 73 | CC15: 74 | CD15: 75 | CE15: 76 | CF15: 77 | CG15: 78 | CH15: 79 | CI15: 80 | CJ15: 81 | CK15: 82 | CL15: 83 | CM15: 84 | CN15: 85 | CO15: 86 | CP15: 87 | CQ15: 88 | CR15: 89 | CS15: 90 | CT15: 91 | CU15: 92 | CV15: 93 | CW15: 94 | CX15: 95 | CY15: 96 | CZ15: 97 | DA15: 98 | DB15: 99 | DC15: 100 | DD15: 101 | DE15: 102 | DF15: 103 | DG15: 104 | DH15: 105 | DI15: 106 | DJ15: 107 | DK15: 108 | DL15: 109 | DM15: 110 | DN15: 111 | DO15: 112 | DP15: 113 | DQ15: 114 | DR15: 115 | DS15: 116 | DT15: 117 | DU15: 118 | DV15: 119 | DW15: 120 | DX15: 121 | DY15: 122 | DZ15: 123 | EA15: 124 | EB15: 125 | EC15: 126 | ED15: 127 | EE15: 128 | EF15: 129 | EG15: 130 | EH15: 131 | EI15: 132 | EJ15: 133 | EK15: 134 | EL15: 135 | EM15: 136 | EN15: 137 | EO15: 138 | EP15: 139 | EQ15: 140 | ER15: 141 | ES15: 142 | ET15: 143 | EU15: 144 | EV15: 145 | EW15: 146 | EX15: 147 | EY15: 148 | EZ15: 149 | FA15: 150 | FB15: 151 | FC15: 152 | FD15: 153 | FE15: 154 | FF15: 155 | FG15: 156 | FH15: 157 | FI15: 158 | FJ15: 159 | FK15: 160 | FL15: 161 | FM15: 162 | FN15: 163 | FO15: 164 | FP15: 165 | FQ15: 166 | FR15: 167 | FS15: 168 | FT15: 169 | FU15: 170 | FV15: 171 | FW15: 172 | FX15: 173 | FY15: 174 | FZ15: 175 | GA15: 176 | GB15: 177 | GC15: 178 | GD15: 179 | GE15: 180 | GF15: 181 | GG15: 182 | GH15: 183 | GI15: 184 | GJ15: 185 | GK15: 186 | GL15: 187 | GM15: 188 | GN15: 189 | GO15: 190 | GP15: 191 | GQ15: 192 | GR15: 193 | GS15: 194 | GT15: 195 | GU15: 196 | GV15: 197 | GW15: 198 | GX15: 199 | GY15: 200
B16: Opening Balance | H16: =G19 -> 159 | I16: =H19 -> 159 | J16: 159 | K16: 159 | L16: 159 | M16: 159 | N16: 159 | O16: 159 | P16: 159 | Q16: 159 | R16: 159 | S16: 159 | T16: 159 | U16: 159 | V16: 159 | W16: 159 | X16: 159 | Y16: 159 | Z16: 159 | AA16: 159 | AB16: 159 | AC16: 159 | AD16: 159 | AE16: 159 | AF16: 159 | AG16: 159 | AH16: 159 | AI16: 159 | AJ16: 159 | AK16: 159 | AL16: 159 | AM16: 159 | AN16: 159 | AO16: 159 | AP16: 159 | AQ16: 159 | AR16: 159 | AS16: 159 | AT16: 159 | AU16: 159 | AV16: 159 | AW16: 159 | AX16: 159 | AY16: 159 | AZ16: 159 | BA16: 159 | BB16: 159 | BC16: 159 | BD16: 159 | BE16: 159 | BF16: 159 | BG16: 159 | BH16: 159 | BI16: 159 | BJ16: 159 | BK16: 159 | BL16: 159 | BM16: 159 | BN16: 159 | BO16: 159 | BP16: 159 | BQ16: 159 | BR16: 159 | BS16: 159 | BT16: 159 | BU16: =BT19 -> 159 | BV16: 159 | BW16: 159 | BX16: 159 | BY16: 159 | BZ16: 159 | CA16: 159 | CB16: 159 | CC16: 159 | CD16: 159 | CE16: 159 | CF16: 159 | CG16: 159 | CH16: 159 | CI16: 159 | CJ16: 159 | CK16: 159 | CL16: 159 | CM16: 159 | CN16: 159 | CO16: 159 | CP16: 159 | CQ16: 159 | CR16: 159 | CS16: 159 | CT16: 159 | CU16: 159 | CV16: 159 | CW16: 159 | CX16: 159 | CY16: 159 | CZ16: 159 | DA16: 159 | DB16: 159 | DC16: 159 | DD16: 159 | DE16: 159 | DF16: 159 | DG16: 159 | DH16: 159 | DI16: 159 | DJ16: 159 | DK16: 159 | DL16: 159 | DM16: 159 | DN16: 159 | DO16: 159 | DP16: 159 | DQ16: 159 | DR16: 159 | DS16: 159 | DT16: 159 | DU16: 159 | DV16: 159 | DW16: 159 | DX16: 159 | DY16: 159 | DZ16: 159 | EA16: 159 | EB16: 159 | EC16: 159 | ED16: 159 | EE16: 159 | EF16: 159 | EG16: =EF19 -> 159 | EH16: 159 | EI16: 159 | EJ16: 159 | EK16: 159 | EL16: 159 | EM16: 159 | EN16: 159 | EO16: 159 | EP16: 159 | EQ16: 159 | ER16: 159 | ES16: 159 | ET16: 159 | EU16: 159 | EV16: 159 | EW16: 159 | EX16: 159 | EY16: 159 | EZ16: 159 | FA16: 159 | FB16: 159 | FC16: 159 | FD16: 159 | FE16: 159 | FF16: 159 | FG16: 159 | FH16: 159 | FI16: 159 | FJ16: 159 | FK16: 159 | FL16: 159 | FM16: 159 | FN16: 159 | FO16: 159 | FP16: 159 | FQ16: 159 | FR16: 159 | FS16: 159 | FT16: 159 | FU16: 159 | FV16: 159 | FW16: 159 | FX16: 159 | FY16: 159 | FZ16: 159 | GA16: 159 | GB16: 159 | GC16: 159 | GD16: 159 | GE16: 159 | GF16: 159 | GG16: 159 | GH16: 159 | GI16: 159 | GJ16: 159 | GK16: 159 | GL16: 159 | GM16: 159 | GN16: 159 | GO16: 159 | GP16: 159 | GQ16: 159 | GR16: 159 | GS16: =GR19 -> 159 | GT16: 159 | GU16: 159 | GV16: 159 | GW16: 159 | GX16: 159 | GY16: 159
B17: Add: Capital Expenditures | E17: =E9 -> 0 | H17: =H18*$E$17 -> 0 | I17: =I18*$E$17 -> 0 | J17: 0 | K17: 0 | L17: 0 | M17: 0 | N17: 0 | O17: 0 | P17: 0 | Q17: 0 | R17: 0 | S17: 0 | T17: 0 | U17: 0 | V17: 0 | W17: 0 | X17: 0 | Y17: 0 | Z17: 0 | AA17: 0 | AB17: 0 | AC17: 0 | AD17: 0 | AE17: 0 | AF17: 0 | AG17: 0 | AH17: 0 | AI17: 0 | AJ17: 0 | AK17: 0 | AL17: 0 | AM17: 0 | AN17: 0 | AO17: 0 | AP17: 0 | AQ17: 0 | AR17: 0 | AS17: 0 | AT17: 0 | AU17: 0 | AV17: 0 | AW17: 0 | AX17: 0 | AY17: 0 | AZ17: 0 | BA17: 0 | BB17: 0 | BC17: 0 | BD17: 0 | BE17: 0 | BF17: 0 | BG17: 0 | BH17: 0 | BI17: 0 | BJ17: 0 | BK17: 0 | BL17: 0 | BM17: 0 | BN17: 0 | BO17: 0 | BP17: 0 | BQ17: 0 | BR17: 0 | BS17: 0 | BT17: 0 | BU17: =BU18*$E$17 -> 0 | BV17: 0 | BW17: 0 | BX17: 0 | BY17: 0 | BZ17: 0 | CA17: 0 | CB17: 0 | CC17: 0 | CD17: 0 | CE17: 0 | CF17: 0 | CG17: 0 | CH17: 0 | CI17: 0 | CJ17: 0 | CK17: 0 | CL17: 0 | CM17: 0 | CN17: 0 | CO17: 0 | CP17: 0 | CQ17: 0 | CR17: 0 | CS17: 0 | CT17: 0 | CU17: 0 | CV17: 0 | CW17: 0 | CX17: 0 | CY17: 0 | CZ17: 0 | DA17: 0 | DB17: 0 | DC17: 0 | DD17: 0 | DE17: 0 | DF17: 0 | DG17: 0 | DH17: 0 | DI17: 0 | DJ17: 0 | DK17: 0 | DL17: 0 | DM17: 0 | DN17: 0 | DO17: 0 | DP17: 0 | DQ17: 0 | DR17: 0 | DS17: 0 | DT17: 0 | DU17: 0 | DV17: 0 | DW17: 0 | DX17: 0 | DY17: 0 | DZ17: 0 | EA17: 0 | EB17: 0 | EC17: 0 | ED17: 0 | EE17: 0 | EF17: 0 | EG17: =EG18*$E$17 -> 0 | EH17: 0 | EI17: 0 | EJ17: 0 | EK17: 0 | EL17: 0 | EM17: 0 | EN17: 0 | EO17: 0 | EP17: 0 | EQ17: 0 | ER17: 0 | ES17: 0 | ET17: 0 | EU17: 0 | EV17: 0 | EW17: 0 | EX17: 0 | EY17: 0 | EZ17: 0 | FA17: 0 | FB17: 0 | FC17: 0 | FD17: 0 | FE17: 0 | FF17: 0 | FG17: 0 | FH17: 0 | FI17: 0 | FJ17: 0 | FK17: 0 | FL17: 0 | FM17: 0 | FN17: 0 | FO17: 0 | FP17: 0 | FQ17: 0 | FR17: 0 | FS17: 0 | FT17: 0 | FU17: 0 | FV17: 0 | FW17: 0 | FX17: 0 | FY17: 0 | FZ17: 0 | GA17: 0 | GB17: 0 | GC17: 0 | GD17: 0 | GE17: 0 | GF17: 0 | GG17: 0 | GH17: 0 | GI17: 0 | GJ17: 0 | GK17: 0 | GL17: 0 | GM17: 0 | GN17: 0 | GO17: 0 | GP17: 0 | GQ17: 0 | GR17: 0 | GS17: =GS18*$E$17 -> 0 | GT17: 0 | GU17: 0 | GV17: 0 | GW17: 0 | GX17: 0 | GY17: 0
B18: Less: Depreciation | E18: =E8 -> 0 | H18: =H16*$E$18 -> 0 | I18: =I16*$E$18 -> 0 | J18: 0 | K18: 0 | L18: 0 | M18: 0 | N18: 0 | O18: 0 | P18: 0 | Q18: 0 | R18: 0 | S18: 0 | T18: 0 | U18: 0 | V18: 0 | W18: 0 | X18: 0 | Y18: 0 | Z18: 0 | AA18: 0 | AB18: 0 | AC18: 0 | AD18: 0 | AE18: 0 | AF18: 0 | AG18: 0 | AH18: 0 | AI18: 0 | AJ18: 0 | AK18: 0 | AL18: 0 | AM18: 0 | AN18: 0 | AO18: 0 | AP18: 0 | AQ18: 0 | AR18: 0 | AS18: 0 | AT18: 0 | AU18: 0 | AV18: 0 | AW18: 0 | AX18: 0 | AY18: 0 | AZ18: 0 | BA18: 0 | BB18: 0 | BC18: 0 | BD18: 0 | BE18: 0 | BF18: 0 | BG18: 0 | BH18: 0 | BI18: 0 | BJ18: 0 | BK18: 0 | BL18: 0 | BM18: 0 | BN18: 0 | BO18: 0 | BP18: 0 | BQ18: 0 | BR18: 0 | BS18: 0 | BT18: 0 | BU18: =BU16*$E$18 -> 0 | BV18: 0 | BW18: 0 | BX18: 0 | BY18: 0 | BZ18: 0 | CA18: 0 | CB18: 0 | CC18: 0 | CD18: 0 | CE18: 0 | CF18: 0 | CG18: 0 | CH18: 0 | CI18: 0 | CJ18: 0 | CK18: 0 | CL18: 0 | CM18: 0 | CN18: 0 | CO18: 0 | CP18: 0 | CQ18: 0 | CR18: 0 | CS18: 0 | CT18: 0 | CU18: 0 | CV18: 0 | CW18: 0 | CX18: 0 | CY18: 0 | CZ18: 0 | DA18: 0 | DB18: 0 | DC18: 0 | DD18: 0 | DE18: 0 | DF18: 0 | DG18: 0 | DH18: 0 | DI18: 0 | DJ18: 0 | DK18: 0 | DL18: 0 | DM18: 0 | DN18: 0 | DO18: 0 | DP18: 0 | DQ18: 0 | DR18: 0 | DS18: 0 | DT18: 0 | DU18: 0 | DV18: 0 | DW18: 0 | DX18: 0 | DY18: 0 | DZ18: 0 | EA18: 0 | EB18: 0 | EC18: 0 | ED18: 0 | EE18: 0 | EF18: 0 | EG18: =EG16*$E$18 -> 0 | EH18: 0 | EI18: 0 | EJ18: 0 | EK18: 0 | EL18: 0 | EM18: 0 | EN18: 0 | EO18: 0 | EP18: 0 | EQ18: 0 | ER18: 0 | ES18: 0 | ET18: 0 | EU18: 0 | EV18: 0 | EW18: 0 | EX18: 0 | EY18: 0 | EZ18: 0 | FA18: 0 | FB18: 0 | FC18: 0 | FD18: 0 | FE18: 0 | FF18: 0 | FG18: 0 | FH18: 0 | FI18: 0 | FJ18: 0 | FK18: 0 | FL18: 0 | FM18: 0 | FN18: 0 | FO18: 0 | FP18: 0 | FQ18: 0 | FR18: 0 | FS18: 0 | FT18: 0 | FU18: 0 | FV18: 0 | FW18: 0 | FX18: 0 | FY18: 0 | FZ18: 0 | GA18: 0 | GB18: 0 | GC18: 0 | GD18: 0 | GE18: 0 | GF18: 0 | GG18: 0 | GH18: 0 | GI18: 0 | GJ18: 0 | GK18: 0 | GL18: 0 | GM18: 0 | GN18: 0 | GO18: 0 | GP18: 0 | GQ18: 0 | GR18: 0 | GS18: =GS16*$E$18 -> 0 | GT18: 0 | GU18: 0 | GV18: 0 | GW18: 0 | GX18: 0 | GY18: 0
B19: Closing Balance | G19: =G21-G20 -> 159 | H19: =H16+H17-H18 -> 159 | I19: =I16+I17-I18 -> 159 | J19: 159 | K19: 159 | L19: 159 | M19: 159 | N19: 159 | O19: 159 | P19: 159 | Q19: 159 | R19: 159 | S19: 159 | T19: 159 | U19: 159 | V19: 159 | W19: 159 | X19: 159 | Y19: 159 | Z19: 159 | AA19: 159 | AB19: 159 | AC19: 159 | AD19: 159 | AE19: 159 | AF19: 159 | AG19: 159 | AH19: 159 | AI19: 159 | AJ19: 159 | AK19: 159 | AL19: 159 | AM19: 159 | AN19: 159 | AO19: 159 | AP19: 159 | AQ19: 159 | AR19: 159 | AS19: 159 | AT19: 159 | AU19: 159 | AV19: 159 | AW19: 159 | AX19: 159 | AY19: 159 | AZ19: 159 | BA19: 159 | BB19: 159 | BC19: 159 | BD19: 159 | BE19: 159 | BF19: 159 | BG19: 159 | BH19: 159 | BI19: 159 | BJ19: 159 | BK19: 159 | BL19: 159 | BM19: 159 | BN19: 159 | BO19: 159 | BP19: 159 | BQ19: 159 | BR19: 159 | BS19: 159 | BT19: 159 | BU19: =BU16+BU17-BU18 -> 159 | BV19: 159 | BW19: 159 | BX19: 159 | BY19: 159 | BZ19: 159 | CA19: 159 | CB19: 159 | CC19: 159 | CD19: 159 | CE19: 159 | CF19: 159 | CG19: 159 | CH19: 159 | CI19: 159 | CJ19: 159 | CK19: 159 | CL19: 159 | CM19: 159 | CN19: 159 | CO19: 159 | CP19: 159 | CQ19: 159 | CR19: 159 | CS19: 159 | CT19: 159 | CU19: 159 | CV19: 159 | CW19: 159 | CX19: 159 | CY19: 159 | CZ19: 159 | DA19: 159 | DB19: 159 | DC19: 159 | DD19: 159 | DE19: 159 | DF19: 159 | DG19: 159 | DH19: 159 | DI19: 159 | DJ19: 159 | DK19: 159 | DL19: 159 | DM19: 159 | DN19: 159 | DO19: 159 | DP19: 159 | DQ19: 159 | DR19: 159 | DS19: 159 | DT19: 159 | DU19: 159 | DV19: 159 | DW19: 159 | DX19: 159 | DY19: 159 | DZ19: 159 | EA19: 159 | EB19: 159 | EC19: 159 | ED19: 159 | EE19: 159 | EF19: 159 | EG19: =EG16+EG17-EG18 -> 159 | EH19: 159 | EI19: 159 | EJ19: 159 | EK19: 159 | EL19: 159 | EM19: 159 | EN19: 159 | EO19: 159 | EP19: 159 | EQ19: 159 | ER19: 159 | ES19: 159 | ET19: 159 | EU19: 159 | EV19: 159 | EW19: 159 | EX19: 159 | EY19: 159 | EZ19: 159 | FA19: 159 | FB19: 159 | FC19: 159 | FD19: 159 | FE19: 159 | FF19: 159 | FG19: 159 | FH19: 159 | FI19: 159 | FJ19: 159 | FK19: 159 | FL19: 159 | FM19: 159 | FN19: 159 | FO19: 159 | FP19: 159 | FQ19: 159 | FR19: 159 | FS19: 159 | FT19: 159 | FU19: 159 | FV19: 159 | FW19: 159 | FX19: 159 | FY19: 159 | FZ19: 159 | GA19: 159 | GB19: 159 | GC19: 159 | GD19: 159 | GE19: 159 | GF19: 159 | GG19: 159 | GH19: 159 | GI19: 159 | GJ19: 159 | GK19: 159 | GL19: 159 | GM19: 159 | GN19: 159 | GO19: 159 | GP19: 159 | GQ19: 159 | GR19: 159 | GS19: =GS16+GS17-GS18 -> 159 | GT19: 159 | GU19: 159 | GV19: 159 | GW19: 159 | GX19: 159 | GY19: 159
B20: Working Capital | E20: =E10 -> 0.3 | G20: =E13*E10 -> 15 | H20: =$E$20*G26 -> 15 | I20: =$E$20*H26 -> 0 | J20: 0 | K20: 0 | L20: 0 | M20: 0 | N20: 0 | O20: 0 | P20: 0 | Q20: 0 | R20: 0 | S20: 0 | T20: 0 | U20: 0 | V20: 0 | W20: 0 | X20: 0 | Y20: 0 | Z20: 0 | AA20: 0 | AB20: 0 | AC20: 0 | AD20: 0 | AE20: 0 | AF20: 0 | AG20: 0 | AH20: 0 | AI20: 0 | AJ20: 0 | AK20: 0 | AL20: 0 | AM20: 0 | AN20: 0 | AO20: 0 | AP20: 0 | AQ20: 0 | AR20: 0 | AS20: 0 | AT20: 0 | AU20: 0 | AV20: 0 | AW20: 0 | AX20: 0 | AY20: 0 | AZ20: 0 | BA20: 0 | BB20: 0 | BC20: 0 | BD20: 0 | BE20: 0 | BF20: 0 | BG20: 0 | BH20: 0 | BI20: 0 | BJ20: 0 | BK20: 0 | BL20: 0 | BM20: 0 | BN20: 0 | BO20: 0 | BP20: 0 | BQ20: 0 | BR20: 0 | BS20: 0 | BT20: 0 | BU20: =$E$20*BT26 -> 0 | BV20: 0 | BW20: 0 | BX20: 0 | BY20: 0 | BZ20: 0 | CA20: 0 | CB20: 0 | CC20: 0 | CD20: 0 | CE20: 0 | CF20: 0 | CG20: 0 | CH20: 0 | CI20: 0 | CJ20: 0 | CK20: 0 | CL20: 0 | CM20: 0 | CN20: 0 | CO20: 0 | CP20: 0 | CQ20: 0 | CR20: 0 | CS20: 0 | CT20: 0 | CU20: 0 | CV20: 0 | CW20: 0 | CX20: 0 | CY20: 0 | CZ20: 0 | DA20: 0 | DB20: 0 | DC20: 0 | DD20: 0 | DE20: 0 | DF20: 0 | DG20: 0 | DH20: 0 | DI20: 0 | DJ20: 0 | DK20: 0 | DL20: 0 | DM20: 0 | DN20: 0 | DO20: 0 | DP20: 0 | DQ20: 0 | DR20: 0 | DS20: 0 | DT20: 0 | DU20: 0 | DV20: 0 | DW20: 0 | DX20: 0 | DY20: 0 | DZ20: 0 | EA20: 0 | EB20: 0 | EC20: 0 | ED20: 0 | EE20: 0 | EF20: 0 | EG20: =$E$20*EF26 -> 0 | EH20: 0 | EI20: 0 | EJ20: 0 | EK20: 0 | EL20: 0 | EM20: 0 | EN20: 0 | EO20: 0 | EP20: 0 | EQ20: 0 | ER20: 0 | ES20: 0 | ET20: 0 | EU20: 0 | EV20: 0 | EW20: 0 | EX20: 0 | EY20: 0 | EZ20: 0 | FA20: 0 | FB20: 0 | FC20: 0 | FD20: 0 | FE20: 0 | FF20: 0 | FG20: 0 | FH20: 0 | FI20: 0 | FJ20: 0 | FK20: 0 | FL20: 0 | FM20: 0 | FN20: 0 | FO20: 0 | FP20: 0 | FQ20: 0 | FR20: 0 | FS20: 0 | FT20: 0 | FU20: 0 | FV20: 0 | FW20: 0 | FX20: 0 | FY20: 0 | FZ20: 0 | GA20: 0 | GB20: 0 | GC20: 0 | GD20: 0 | GE20: 0 | GF20: 0 | GG20: 0 | GH20: 0 | GI20: 0 | GJ20: 0 | GK20: 0 | GL20: 0 | GM20: 0 | GN20: 0 | GO20: 0 | GP20: 0 | GQ20: 0 | GR20: 0 | GS20: =$E$20*GR26 -> 0 | GT20: 0 | GU20: 0 | GV20: 0 | GW20: 0 | GX20: 0 | GY20: 0
B21: Total Invested Capital | G21: =E12 -> 174 | H21: =H19+H20 -> 174 | I21: =I19+I20 -> 159 | J21: 159 | K21: 159 | L21: 159 | M21: 159 | N21: 159 | O21: 159 | P21: 159 | Q21: 159 | R21: 159 | S21: 159 | T21: 159 | U21: 159 | V21: 159 | W21: 159 | X21: 159 | Y21: 159 | Z21: 159 | AA21: 159 | AB21: 159 | AC21: 159 | AD21: 159 | AE21: 159 | AF21: 159 | AG21: 159 | AH21: 159 | AI21: 159 | AJ21: 159 | AK21: 159 | AL21: 159 | AM21: 159 | AN21: 159 | AO21: 159 | AP21: 159 | AQ21: 159 | AR21: 159 | AS21: 159 | AT21: 159 | AU21: 159 | AV21: 159 | AW21: 159 | AX21: 159 | AY21: 159 | AZ21: 159 | BA21: 159 | BB21: 159 | BC21: 159 | BD21: 159 | BE21: 159 | BF21: 159 | BG21: 159 | BH21: 159 | BI21: 159 | BJ21: 159 | BK21: 159 | BL21: 159 | BM21: 159 | BN21: 159 | BO21: 159 | BP21: 159 | BQ21: 159 | BR21: 159 | BS21: 159 | BT21: 159 | BU21: =BU19+BU20 -> 159 | BV21: 159 | BW21: 159 | BX21: 159 | BY21: 159 | BZ21: 159 | CA21: 159 | CB21: 159 | CC21: 159 | CD21: 159 | CE21: 159 | CF21: 159 | CG21: 159 | CH21: 159 | CI21: 159 | CJ21: 159 | CK21: 159 | CL21: 159 | CM21: 159 | CN21: 159 | CO21: 159 | CP21: 159 | CQ21: 159 | CR21: 159 | CS21: 159 | CT21: 159 | CU21: 159 | CV21: 159 | CW21: 159 | CX21: 159 | CY21: 159 | CZ21: 159 | DA21: 159 | DB21: 159 | DC21: 159 | DD21: 159 | DE21: 159 | DF21: 159 | DG21: 159 | DH21: 159 | DI21: 159 | DJ21: 159 | DK21: 159 | DL21: 159 | DM21: 159 | DN21: 159 | DO21: 159 | DP21: 159 | DQ21: 159 | DR21: 159 | DS21: 159 | DT21: 159 | DU21: 159 | DV21: 159 | DW21: 159 | DX21: 159 | DY21: 159 | DZ21: 159 | EA21: 159 | EB21: 159 | EC21: 159 | ED21: 159 | EE21: 159 | EF21: 159 | EG21: =EG19+EG20 -> 159 | EH21: 159 | EI21: 159 | EJ21: 159 | EK21: 159 | EL21: 159 | EM21: 159 | EN21: 159 | EO21: 159 | EP21: 159 | EQ21: 159 | ER21: 159 | ES21: 159 | ET21: 159 | EU21: 159 | EV21: 159 | EW21: 159 | EX21: 159 | EY21: 159 | EZ21: 159 | FA21: 159 | FB21: 159 | FC21: 159 | FD21: 159 | FE21: 159 | FF21: 159 | FG21: 159 | FH21: 159 | FI21: 159 | FJ21: 159 | FK21: 159 | FL21: 159 | FM21: 159 | FN21: 159 | FO21: 159 | FP21: 159 | FQ21: 159 | FR21: 159 | FS21: 159 | FT21: 159 | FU21: 159 | FV21: 159 | FW21: 159 | FX21: 159 | FY21: 159 | FZ21: 159 | GA21: 159 | GB21: 159 | GC21: 159 | GD21: 159 | GE21: 159 | GF21: 159 | GG21: 159 | GH21: 159 | GI21: 159 | GJ21: 159 | GK21: 159 | GL21: 159 | GM21: 159 | GN21: 159 | GO21: 159 | GP21: 159 | GQ21: 159 | GR21: 159 | GS21: =GS19+GS20 -> 159 | GT21: 159 | GU21: 159 | GV21: 159 | GW21: 159 | GX21: 159 | GY21: 159
B23: ROIC | E23: =E3 -> 0.11
B24: NOPAT
B25: EBIT = NOPAT/(1-t) | E25: =E11 -> 0.21
B26: EBITDA = EBIT + Deprecation | G26: =E13 -> 50
A28: Free Cash Flow
B29: EBITDA | H29: =H26 -> 0 | I29: =I26 -> 0 | J29: 0 | K29: 0 | L29: 0 | M29: 0 | N29: 0 | O29: 0 | P29: 0 | Q29: 0 | R29: 0 | S29: 0 | T29: 0 | U29: 0 | V29: 0 | W29: 0 | X29: 0 | Y29: 0 | Z29: 0 | AA29: 0 | AB29: 0 | AC29: 0 | AD29: 0 | AE29: 0 | AF29: 0 | AG29: 0 | AH29: 0 | AI29: 0 | AJ29: 0 | AK29: 0 | AL29: 0 | AM29: 0 | AN29: 0 | AO29: 0 | AP29: 0 | AQ29: 0 | AR29: 0 | AS29: 0 | AT29: 0 | AU29: 0 | AV29: 0 | AW29: 0 | AX29: 0 | AY29: 0 | AZ29: 0 | BA29: 0 | BB29: 0 | BC29: 0 | BD29: 0 | BE29: 0 | BF29: 0 | BG29: 0 | BH29: 0 | BI29: 0 | BJ29: 0 | BK29: 0 | BL29: 0 | BM29: 0 | BN29: 0 | BO29: 0 | BP29: 0 | BQ29: 0 | BR29: 0 | BS29: 0 | BT29: 0 | BU29: =BU26 -> 0 | BV29: 0 | BW29: 0 | BX29: 0 | BY29: 0 | BZ29: 0 | CA29: 0 | CB29: 0 | CC29: 0 | CD29: 0 | CE29: 0 | CF29: 0 | CG29: 0 | CH29: 0 | CI29: 0 | CJ29: 0 | CK29: 0 | CL29: 0 | CM29: 0 | CN29: 0 | CO29: 0 | CP29: 0 | CQ29: 0 | CR29: 0 | CS29: 0 | CT29: 0 | CU29: 0 | CV29: 0 | CW29: 0 | CX29: 0 | CY29: 0 | CZ29: 0 | DA29: 0 | DB29: 0 | DC29: 0 | DD29: 0 | DE29: 0 | DF29: 0 | DG29: 0 | DH29: 0 | DI29: 0 | DJ29: 0 | DK29: 0 | DL29: 0 | DM29: 0 | DN29: 0 | DO29: 0 | DP29: 0 | DQ29: 0 | DR29: 0 | DS29: 0 | DT29: 0 | DU29: 0 | DV29: 0 | DW29: 0 | DX29: 0 | DY29: 0 | DZ29: 0 | EA29: 0 | EB29: 0 | EC29: 0 | ED29: 0 | EE29: 0 | EF29: 0 | EG29: =EG26 -> 0 | EH29: 0 | EI29: 0 | EJ29: 0 | EK29: 0 | EL29: 0 | EM29: 0 | EN29: 0 | EO29: 0 | EP29: 0 | EQ29: 0 | ER29: 0 | ES29: 0 | ET29: 0 | EU29: 0 | EV29: 0 | EW29: 0 | EX29: 0 | EY29: 0 | EZ29: 0 | FA29: 0 | FB29: 0 | FC29: 0 | FD29: 0 | FE29: 0 | FF29: 0 | FG29: 0 | FH29: 0 | FI29: 0 | FJ29: 0 | FK29: 0 | FL29: 0 | FM29: 0 | FN29: 0 | FO29: 0 | FP29: 0 | FQ29: 0 | FR29: 0 | FS29: 0 | FT29: 0 | FU29: 0 | FV29: 0 | FW29: 0 | FX29: 0 | FY29: 0 | FZ29: 0 | GA29: 0 | GB29: 0 | GC29: 0 | GD29: 0 | GE29: 0 | GF29: 0 | GG29: 0 | GH29: 0 | GI29: 0 | GJ29: 0 | GK29: 0 | GL29: 0 | GM29: 0 | GN29: 0 | GO29: 0 | GP29: 0 | GQ29: 0 | GR29: 0 | GS29: =GS26 -> 0 | GT29: 0 | GU29: 0 | GV29: 0 | GW29: 0 | GX29: 0 | GY29: 0
B30: Less: Capital Expenditures | H30: =H17 -> 0 | I30: =I17 -> 0 | J30: 0 | K30: 0 | L30: 0 | M30: 0 | N30: 0 | O30: 0 | P30: 0 | Q30: 0 | R30: 0 | S30: 0 | T30: 0 | U30: 0 | V30: 0 | W30: 0 | X30: 0 | Y30: 0 | Z30: 0 | AA30: 0 | AB30: 0 | AC30: 0 | AD30: 0 | AE30: 0 | AF30: 0 | AG30: 0 | AH30: 0 | AI30: 0 | AJ30: 0 | AK30: 0 | AL30: 0 | AM30: 0 | AN30: 0 | AO30: 0 | AP30: 0 | AQ30: 0 | AR30: 0 | AS30: 0 | AT30: 0 | AU30: 0 | AV30: 0 | AW30: 0 | AX30: 0 | AY30: 0 | AZ30: 0 | BA30: 0 | BB30: 0 | BC30: 0 | BD30: 0 | BE30: 0 | BF30: 0 | BG30: 0 | BH30: 0 | BI30: 0 | BJ30: 0 | BK30: 0 | BL30: 0 | BM30: 0 | BN30: 0 | BO30: 0 | BP30: 0 | BQ30: 0 | BR30: 0 | BS30: 0 | BT30: 0 | BU30: =BU17 -> 0 | BV30: 0 | BW30: 0 | BX30: 0 | BY30: 0 | BZ30: 0 | CA30: 0 | CB30: 0 | CC30: 0 | CD30: 0 | CE30: 0 | CF30: 0 | CG30: 0 | CH30: 0 | CI30: 0 | CJ30: 0 | CK30: 0 | CL30: 0 | CM30: 0 | CN30: 0 | CO30: 0 | CP30: 0 | CQ30: 0 | CR30: 0 | CS30: 0 | CT30: 0 | CU30: 0 | CV30: 0 | CW30: 0 | CX30: 0 | CY30: 0 | CZ30: 0 | DA30: 0 | DB30: 0 | DC30: 0 | DD30: 0 | DE30: 0 | DF30: 0 | DG30: 0 | DH30: 0 | DI30: 0 | DJ30: 0 | DK30: 0 | DL30: 0 | DM30: 0 | DN30: 0 | DO30: 0 | DP30: 0 | DQ30: 0 | DR30: 0 | DS30: 0 | DT30: 0 | DU30: 0 | DV30: 0 | DW30: 0 | DX30: 0 | DY30: 0 | DZ30: 0 | EA30: 0 | EB30: 0 | EC30: 0 | ED30: 0 | EE30: 0 | EF30: 0 | EG30: =EG17 -> 0 | EH30: 0 | EI30: 0 | EJ30: 0 | EK30: 0 | EL30: 0 | EM30: 0 | EN30: 0 | EO30: 0 | EP30: 0 | EQ30: 0 | ER30: 0 | ES30: 0 | ET30: 0 | EU30: 0 | EV30: 0 | EW30: 0 | EX30: 0 | EY30: 0 | EZ30: 0 | FA30: 0 | FB30: 0 | FC30: 0 | FD30: 0 | FE30: 0 | FF30: 0 | FG30: 0 | FH30: 0 | FI30: 0 | FJ30: 0 | FK30: 0 | FL30: 0 | FM30: 0 | FN30: 0 | FO30: 0 | FP30: 0 | FQ30: 0 | FR30: 0 | FS30: 0 | FT30: 0 | FU30: 0 | FV30: 0 | FW30: 0 | FX30: 0 | FY30: 0 | FZ30: 0 | GA30: 0 | GB30: 0 | GC30: 0 | GD30: 0 | GE30: 0 | GF30: 0 | GG30: 0 | GH30: 0 | GI30: 0 | GJ30: 0 | GK30: 0 | GL30: 0 | GM30: 0 | GN30: 0 | GO30: 0 | GP30: 0 | GQ30: 0 | GR30: 0 | GS30: =GS17 -> 0 | GT30: 0 | GU30: 0 | GV30: 0 | GW30: 0 | GX30: 0 | GY30: 0
B31: Less: Taxes | E31: =E11 -> 0.21 | H31: =H25*$E$31 -> 0 | I31: =I25*$E$31 -> 0 | J31: 0 | K31: 0 | L31: 0 | M31: 0 | N31: 0 | O31: 0 | P31: 0 | Q31: 0 | R31: 0 | S31: 0 | T31: 0 | U31: 0 | V31: 0 | W31: 0 | X31: 0 | Y31: 0 | Z31: 0 | AA31: 0 | AB31: 0 | AC31: 0 | AD31: 0 | AE31: 0 | AF31: 0 | AG31: 0 | AH31: 0 | AI31: 0 | AJ31: 0 | AK31: 0 | AL31: 0 | AM31: 0 | AN31: 0 | AO31: 0 | AP31: 0 | AQ31: 0 | AR31: 0 | AS31: 0 | AT31: 0 | AU31: 0 | AV31: 0 | AW31: 0 | AX31: 0 | AY31: 0 | AZ31: 0 | BA31: 0 | BB31: 0 | BC31: 0 | BD31: 0 | BE31: 0 | BF31: 0 | BG31: 0 | BH31: 0 | BI31: 0 | BJ31: 0 | BK31: 0 | BL31: 0 | BM31: 0 | BN31: 0 | BO31: 0 | BP31: 0 | BQ31: 0 | BR31: 0 | BS31: 0 | BT31: 0 | BU31: =BU25*$E$31 -> 0 | BV31: 0 | BW31: 0 | BX31: 0 | BY31: 0 | BZ31: 0 | CA31: 0 | CB31: 0 | CC31: 0 | CD31: 0 | CE31: 0 | CF31: 0 | CG31: 0 | CH31: 0 | CI31: 0 | CJ31: 0 | CK31: 0 | CL31: 0 | CM31: 0 | CN31: 0 | CO31: 0 | CP31: 0 | CQ31: 0 | CR31: 0 | CS31: 0 | CT31: 0 | CU31: 0 | CV31: 0 | CW31: 0 | CX31: 0 | CY31: 0 | CZ31: 0 | DA31: 0 | DB31: 0 | DC31: 0 | DD31: 0 | DE31: 0 | DF31: 0 | DG31: 0 | DH31: 0 | DI31: 0 | DJ31: 0 | DK31: 0 | DL31: 0 | DM31: 0 | DN31: 0 | DO31: 0 | DP31: 0 | DQ31: 0 | DR31: 0 | DS31: 0 | DT31: 0 | DU31: 0 | DV31: 0 | DW31: 0 | DX31: 0 | DY31: 0 | DZ31: 0 | EA31: 0 | EB31: 0 | EC31: 0 | ED31: 0 | EE31: 0 | EF31: 0 | EG31: =EG25*$E$31 -> 0 | EH31: 0 | EI31: 0 | EJ31: 0 | EK31: 0 | EL31: 0 | EM31: 0 | EN31: 0 | EO31: 0 | EP31: 0 | EQ31: 0 | ER31: 0 | ES31: 0 | ET31: 0 | EU31: 0 | EV31: 0 | EW31: 0 | EX31: 0 | EY31: 0 | EZ31: 0 | FA31: 0 | FB31: 0 | FC31: 0 | FD31: 0 | FE31: 0 | FF31: 0 | FG31: 0 | FH31: 0 | FI31: 0 | FJ31: 0 | FK31: 0 | FL31: 0 | FM31: 0 | FN31: 0 | FO31: 0 | FP31: 0 | FQ31: 0 | FR31: 0 | FS31: 0 | FT31: 0 | FU31: 0 | FV31: 0 | FW31: 0 | FX31: 0 | FY31: 0 | FZ31: 0 | GA31: 0 | GB31: 0 | GC31: 0 | GD31: 0 | GE31: 0 | GF31: 0 | GG31: 0 | GH31: 0 | GI31: 0 | GJ31: 0 | GK31: 0 | GL31: 0 | GM31: 0 | GN31: 0 | GO31: 0 | GP31: 0 | GQ31: 0 | GR31: 0 | GS31: =GS25*$E$31 -> 0 | GT31: 0 | GU31: 0 | GV31: 0 | GW31: 0 | GX31: 0 | GY31: 0
B32: Less: WC Change | H32: =H20-G20 -> 0 | I32: =I20-H20 -> -15 | J32: 0 | K32: 0 | L32: 0 | M32: 0 | N32: 0 | O32: 0 | P32: 0 | Q32: 0 | R32: 0 | S32: 0 | T32: 0 | U32: 0 | V32: 0 | W32: 0 | X32: 0 | Y32: 0 | Z32: 0 | AA32: 0 | AB32: 0 | AC32: 0 | AD32: 0 | AE32: 0 | AF32: 0 | AG32: 0 | AH32: 0 | AI32: 0 | AJ32: 0 | AK32: 0 | AL32: 0 | AM32: 0 | AN32: 0 | AO32: 0 | AP32: 0 | AQ32: 0 | AR32: 0 | AS32: 0 | AT32: 0 | AU32: 0 | AV32: 0 | AW32: 0 | AX32: 0 | AY32: 0 | AZ32: 0 | BA32: 0 | BB32: 0 | BC32: 0 | BD32: 0 | BE32: 0 | BF32: 0 | BG32: 0 | BH32: 0 | BI32: 0 | BJ32: 0 | BK32: 0 | BL32: 0 | BM32: 0 | BN32: 0 | BO32: 0 | BP32: 0 | BQ32: 0 | BR32: 0 | BS32: 0 | BT32: 0 | BU32: =BU20-BT20 -> 0 | BV32: 0 | BW32: 0 | BX32: 0 | BY32: 0 | BZ32: 0 | CA32: 0 | CB32: 0 | CC32: 0 | CD32: 0 | CE32: 0 | CF32: 0 | CG32: 0 | CH32: 0 | CI32: 0 | CJ32: 0 | CK32: 0 | CL32: 0 | CM32: 0 | CN32: 0 | CO32: 0 | CP32: 0 | CQ32: 0 | CR32: 0 | CS32: 0 | CT32: 0 | CU32: 0 | CV32: 0 | CW32: 0 | CX32: 0 | CY32: 0 | CZ32: 0 | DA32: 0 | DB32: 0 | DC32: 0 | DD32: 0 | DE32: 0 | DF32: 0 | DG32: 0 | DH32: 0 | DI32: 0 | DJ32: 0 | DK32: 0 | DL32: 0 | DM32: 0 | DN32: 0 | DO32: 0 | DP32: 0 | DQ32: 0 | DR32: 0 | DS32: 0 | DT32: 0 | DU32: 0 | DV32: 0 | DW32: 0 | DX32: 0 | DY32: 0 | DZ32: 0 | EA32: 0 | EB32: 0 | EC32: 0 | ED32: 0 | EE32: 0 | EF32: 0 | EG32: =EG20-EF20 -> 0 | EH32: 0 | EI32: 0 | EJ32: 0 | EK32: 0 | EL32: 0 | EM32: 0 | EN32: 0 | EO32: 0 | EP32: 0 | EQ32: 0 | ER32: 0 | ES32: 0 | ET32: 0 | EU32: 0 | EV32: 0 | EW32: 0 | EX32: 0 | EY32: 0 | EZ32: 0 | FA32: 0 | FB32: 0 | FC32: 0 | FD32: 0 | FE32: 0 | FF32: 0 | FG32: 0 | FH32: 0 | FI32: 0 | FJ32: 0 | FK32: 0 | FL32: 0 | FM32: 0 | FN32: 0 | FO32: 0 | FP32: 0 | FQ32: 0 | FR32: 0 | FS32: 0 | FT32: 0 | FU32: 0 | FV32: 0 | FW32: 0 | FX32: 0 | FY32: 0 | FZ32: 0 | GA32: 0 | GB32: 0 | GC32: 0 | GD32: 0 | GE32: 0 | GF32: 0 | GG32: 0 | GH32: 0 | GI32: 0 | GJ32: 0 | GK32: 0 | GL32: 0 | GM32: 0 | GN32: 0 | GO32: 0 | GP32: 0 | GQ32: 0 | GR32: 0 | GS32: =GS20-GR20 -> 0 | GT32: 0 | GU32: 0 | GV32: 0 | GW32: 0 | GX32: 0 | GY32: 0
C33: Free Cash Flow | H33: =H29-H30-H31-H32 -> 0 | I33: =I29-I30-I31-I32 -> 15 | J33: 0 | K33: 0 | L33: 0 | M33: 0 | N33: 0 | O33: 0 | P33: 0 | Q33: 0 | R33: 0 | S33: 0 | T33: 0 | U33: 0 | V33: 0 | W33: 0 | X33: 0 | Y33: 0 | Z33: 0 | AA33: 0 | AB33: 0 | AC33: 0 | AD33: 0 | AE33: 0 | AF33: 0 | AG33: 0 | AH33: 0 | AI33: 0 | AJ33: 0 | AK33: 0 | AL33: 0 | AM33: 0 | AN33: 0 | AO33: 0 | AP33: 0 | AQ33: 0 | AR33: 0 | AS33: 0 | AT33: 0 | AU33: 0 | AV33: 0 | AW33: 0 | AX33: 0 | AY33: 0 | AZ33: 0 | BA33: 0 | BB33: 0 | BC33: 0 | BD33: 0 | BE33: 0 | BF33: 0 | BG33: 0 | BH33: 0 | BI33: 0 | BJ33: 0 | BK33: 0 | BL33: 0 | BM33: 0 | BN33: 0 | BO33: 0 | BP33: 0 | BQ33: 0 | BR33: 0 | BS33: 0 | BT33: 0 | BU33: =BU29-BU30-BU31-BU32 -> 0 | BV33: 0 | BW33: 0 | BX33: 0 | BY33: 0 | BZ33: 0 | CA33: 0 | CB33: 0 | CC33: 0 | CD33: 0 | CE33: 0 | CF33: 0 | CG33: 0 | CH33: 0 | CI33: 0 | CJ33: 0 | CK33: 0 | CL33: 0 | CM33: 0 | CN33: 0 | CO33: 0 | CP33: 0 | CQ33: 0 | CR33: 0 | CS33: 0 | CT33: 0 | CU33: 0 | CV33: 0 | CW33: 0 | CX33: 0 | CY33: 0 | CZ33: 0 | DA33: 0 | DB33: 0 | DC33: 0 | DD33: 0 | DE33: 0 | DF33: 0 | DG33: 0 | DH33: 0 | DI33: 0 | DJ33: 0 | DK33: 0 | DL33: 0 | DM33: 0 | DN33: 0 | DO33: 0 | DP33: 0 | DQ33: 0 | DR33: 0 | DS33: 0 | DT33: 0 | DU33: 0 | DV33: 0 | DW33: 0 | DX33: 0 | DY33: 0 | DZ33: 0 | EA33: 0 | EB33: 0 | EC33: 0 | ED33: 0 | EE33: 0 | EF33: 0 | EG33: =EG29-EG30-EG31-EG32 -> 0 | EH33: 0 | EI33: 0 | EJ33: 0 | EK33: 0 | EL33: 0 | EM33: 0 | EN33: 0 | EO33: 0 | EP33: 0 | EQ33: 0 | ER33: 0 | ES33: 0 | ET33: 0 | EU33: 0 | EV33: 0 | EW33: 0 | EX33: 0 | EY33: 0 | EZ33: 0 | FA33: 0 | FB33: 0 | FC33: 0 | FD33: 0 | FE33: 0 | FF33: 0 | FG33: 0 | FH33: 0 | FI33: 0 | FJ33: 0 | FK33: 0 | FL33: 0 | FM33: 0 | FN33: 0 | FO33: 0 | FP33: 0 | FQ33: 0 | FR33: 0 | FS33: 0 | FT33: 0 | FU33: 0 | FV33: 0 | FW33: 0 | FX33: 0 | FY33: 0 | FZ33: 0 | GA33: 0 | GB33: 0 | GC33: 0 | GD33: 0 | GE33: 0 | GF33: 0 | GG33: 0 | GH33: 0 | GI33: 0 | GJ33: 0 | GK33: 0 | GL33: 0 | GM33: 0 | GN33: 0 | GO33: 0 | GP33: 0 | GQ33: 0 | GR33: 0 | GS33: =GS29-GS30-GS31-GS32 -> 0 | GT33: 0 | GU33: 0 | GV33: 0 | GW33: 0 | GX33: 0 | GY33: 0
B35: EV - PV of Free Cash Flow | E35: =E5 -> 0.07
B36: EBITDA
B37: EV/EBITDA
B38: EV/EBIT
B39: EV/NOPAT
A41: Plant Analysis | F41: 1 | G41: 2 | H41: 3 | I41: 4 | J41: 5 | K41: 6 | L41: 7 | M41: 8 | N41: 9 | O41: 10 | P41: 11 | Q41: 12 | R41: 13 | S41: 14 | T41: 15 | U41: 16 | V41: 17 | W41: 18 | X41: 19 | Y41: 20 | Z41: 21 | AA41: 22 | AB41: 23 | AC41: 24 | AD41: 25 | AE41: 26 | AF41: 27 | AG41: 28 | AH41: 29 | AI41: 30 | AJ41: 31 | AK41: 32 | AL41: 33 | AM41: 34 | AN41: 35 | AO41: 36 | AP41: 37 | AQ41: 38 | AR41: 39 | AS41: 40 | AT41: 41 | AU41: 42 | AV41: 43 | AW41: 44 | AX41: 45 | AY41: 46 | AZ41: 47 | BA41: 48 | BB41: 49 | BC41: 50
B42: Capital Expenditure | F42: 100 | G42: =F42*(1+$E$4) -> 103 | H42: =G42*(1+$E$4) -> 106.09 | I42: 109.2727 | J42: 112.550881 | K42: 115.9274074 | L42: 119.4052297 | M42: 122.9873865 | N42: 126.6770081 | O42: 130.4773184 | P42: 134.3916379 | Q42: 138.4233871 | R42: 142.5760887 | S42: 146.8533713 | T42: 151.2589725 | U42: 155.7967417 | V42: 160.4706439 | W42: 165.2847632 | X42: 170.2433061 | Y42: 175.3506053 | Z42: 180.6111235 | AA42: 186.0294572 | AB42: 191.6103409 | AC42: 197.3586511 | AD42: 203.2794106 | AE42: 209.377793 | AF42: 215.6591268 | AG42: 222.1289006 | AH42: 228.7927676 | AI42: 235.6565506 | AJ42: 242.7262471 | AK42: 250.0080345 | AL42: 257.5082756 | AM42: 265.2335238 | AN42: 273.1905296 | AO42: 281.3862454 | AP42: 289.8278328 | AQ42: 298.5226678 | AR42: 307.4783478 | AS42: 316.7026983 | AT42: 326.2037792 | AU42: 335.9898926 | AV42: 346.0695894 | AW42: 356.451677 | AX42: 367.1452273 | AY42: 378.1595842 | AZ42: 389.5043717 | BA42: 401.1895028 | BB42: 413.2251879 | BC42: 425.6219436
B44: Gross Plant
C45: Opening Balance | F45: =E48 -> 0 | G45: =F48 -> 100 | H45: 203 | I45: 309.09 | J45: 418.3627 | K45: 530.913581 | L45: 646.8409884 | M45: 766.2462181 | N45: 889.2336046 | O45: 1015.910613 | P45: 1146.387931 | Q45: 1280.779569 | R45: 1419.202956 | S45: 1561.779045 | T45: 1708.632416 | U45: 1859.891389 | V45: 2015.68813 | W45: 2176.158774 | X45: 2341.443537 | Y45: 2511.686844 | Z45: 2687.037449 | AA45: 2867.648572 | AB45: 3053.67803 | AC45: 3245.28837 | AD45: 3442.647022 | AE45: 3645.926432 | AF45: 3855.304225 | AG45: 4070.963352 | AH45: 4293.092252 | AI45: 4521.88502 | AJ45: 4757.541571 | AK45: 5000.267818 | AL45: 5250.275852 | AM45: 5507.784128 | AN45: 5773.017652 | AO45: 6046.208181 | AP45: 6327.594427 | AQ45: 6617.422259 | AR45: 6915.944927 | AS45: 7223.423275 | AT45: 7540.125973 | AU45: 7866.329753 | AV45: 8202.319645 | AW45: 8548.389234 | AX45: 8904.840911 | AY45: 9271.986139 | AZ45: 9650.145723 | BA45: 10039.65009 | BB45: 10440.8396 | BC45: 10854.06479
C46: Add: Capital Expendiure (EOP) | F46: =F42 -> 100 | G46: =G42 -> 103 | H46: 106.09 | I46: 109.2727 | J46: 112.550881 | K46: 115.9274074 | L46: 119.4052297 | M46: 122.9873865 | N46: 126.6770081 | O46: 130.4773184 | P46: 134.3916379 | Q46: 138.4233871 | R46: 142.5760887 | S46: 146.8533713 | T46: 151.2589725 | U46: 155.7967417 | V46: 160.4706439 | W46: 165.2847632 | X46: 170.2433061 | Y46: 175.3506053 | Z46: 180.6111235 | AA46: 186.0294572 | AB46: 191.6103409 | AC46: 197.3586511 | AD46: 203.2794106 | AE46: 209.377793 | AF46: 215.6591268 | AG46: 222.1289006 | AH46: 228.7927676 | AI46: 235.6565506 | AJ46: 242.7262471 | AK46: 250.0080345 | AL46: 257.5082756 | AM46: 265.2335238 | AN46: 273.1905296 | AO46: 281.3862454 | AP46: 289.8278328 | AQ46: 298.5226678 | AR46: 307.4783478 | AS46: 316.7026983 | AT46: 326.2037792 | AU46: 335.9898926 | AV46: 346.0695894 | AW46: 356.451677 | AX46: 367.1452273 | AY46: 378.1595842 | AZ46: 389.5043717 | BA46: 401.1895028 | BB46: 413.2251879 | BC46: 425.6219436
C47: Less: Retirements | E47: =E6 -> 10
C48: Closing Balance | F48: =F45+F46-F47 -> 100 | G48: =G45+G46-G47 -> 203 | H48: 309.09 | I48: 418.3627 | J48: 530.913581 | K48: 646.8409884 | L48: 766.2462181 | M48: 889.2336046 | N48: 1015.910613 | O48: 1146.387931 | P48: 1280.779569 | Q48: 1419.202956 | R48: 1561.779045 | S48: 1708.632416 | T48: 1859.891389 | U48: 2015.68813 | V48: 2176.158774 | W48: 2341.443537 | X48: 2511.686844 | Y48: 2687.037449 | Z48: 2867.648572 | AA48: 3053.67803 | AB48: 3245.28837 | AC48: 3442.647022 | AD48: 3645.926432 | AE48: 3855.304225 | AF48: 4070.963352 | AG48: 4293.092252 | AH48: 4521.88502 | AI48: 4757.541571 | AJ48: 5000.267818 | AK48: 5250.275852 | AL48: 5507.784128 | AM48: 5773.017652 | AN48: 6046.208181 | AO48: 6327.594427 | AP48: 6617.422259 | AQ48: 6915.944927 | AR48: 7223.423275 | AS48: 7540.125973 | AT48: 7866.329753 | AU48: 8202.319645 | AV48: 8548.389234 | AW48: 8904.840911 | AX48: 9271.986139 | AY48: 9650.145723 | AZ48: 10039.65009 | BA48: 10440.8396 | BB48: 10854.06479 | BC48: 11279.68673
C49: Depreciation | E49: =1/E6 -> 0.1 | F49: =$E$49*F45 -> 0 | G49: =$E$49*G45 -> 10 | H49: 20.3 | I49: 30.909 | J49: 41.83627 | K49: 53.0913581 | L49: 64.68409884 | M49: 76.62462181 | N49: 88.92336046 | O49: 101.5910613 | P49: 114.6387931 | Q49: 128.0779569 | R49: 141.9202956 | S49: 156.1779045 | T49: 170.8632416 | U49: 185.9891389 | V49: 201.568813 | W49: 217.6158774 | X49: 234.1443537 | Y49: 251.1686844 | Z49: 268.7037449 | AA49: 286.7648572 | AB49: 305.367803 | AC49: 324.528837 | AD49: 344.2647022 | AE49: 364.5926432 | AF49: 385.5304225 | AG49: 407.0963352 | AH49: 429.3092252 | AI49: 452.188502 | AJ49: 475.7541571 | AK49: 500.0267818 | AL49: 525.0275852 | AM49: 550.7784128 | AN49: 577.3017652 | AO49: 604.6208181 | AP49: 632.7594427 | AQ49: 661.7422259 | AR49: 691.5944927 | AS49: 722.3423275 | AT49: 754.0125973 | AU49: 786.6329753 | AV49: 820.2319645 | AW49: 854.8389234 | AX49: 890.4840911 | AY49: 927.1986139 | AZ49: 965.0145723 | BA49: 1003.965009 | BB49: 1044.08396 | BC49: 1085.406479
B51: Accumulated Depreciation
C52: Opening Balance | F52: =E55 -> 0 | G52: =F55 -> 0 | H52: 10 | I52: 30.3 | J52: 61.209 | K52: 103.04527 | L52: 156.1366281 | M52: 220.8207269 | N52: 297.4453488 | O52: 386.3687092 | P52: 487.9597705 | Q52: 602.5985636 | R52: 730.6765205 | S52: 872.5968161 | T52: 1028.774721 | U52: 1199.637962 | V52: 1385.627101 | W52: 1587.195914 | X52: 1804.811792 | Y52: 2038.956145 | Z52: 2290.12483 | AA52: 2558.828575 | AB52: 2845.593432 | AC52: 3150.961235 | AD52: 3475.490072 | AE52: 3819.754774 | AF52: 4184.347417 | AG52: 4569.87784 | AH52: 4976.974175 | AI52: 5406.2834 | AJ52: 5858.471902 | AK52: 6334.226059 | AL52: 6834.252841 | AM52: 7359.280426 | AN52: 7910.058839 | AO52: 8487.360604 | AP52: 9091.981422 | AQ52: 9724.740865 | AR52: 10386.48309 | AS52: 11078.07758 | AT52: 11800.41991 | AU52: 12554.43251 | AV52: 13341.06548 | AW52: 14161.29745 | AX52: 15016.13637 | AY52: 15906.62046 | AZ52: 16833.81908 | BA52: 17798.83365 | BB52: 18802.79866 | BC52: 19846.88262
C53: Add: Depreciation Expense | F53: =F49 -> 0 | G53: =G49 -> 10 | H53: 20.3 | I53: 30.909 | J53: 41.83627 | K53: 53.0913581 | L53: 64.68409884 | M53: 76.62462181 | N53: 88.92336046 | O53: 101.5910613 | P53: 114.6387931 | Q53: 128.0779569 | R53: 141.9202956 | S53: 156.1779045 | T53: 170.8632416 | U53: 185.9891389 | V53: 201.568813 | W53: 217.6158774 | X53: 234.1443537 | Y53: 251.1686844 | Z53: 268.7037449 | AA53: 286.7648572 | AB53: 305.367803 | AC53: 324.528837 | AD53: 344.2647022 | AE53: 364.5926432 | AF53: 385.5304225 | AG53: 407.0963352 | AH53: 429.3092252 | AI53: 452.188502 | AJ53: 475.7541571 | AK53: 500.0267818 | AL53: 525.0275852 | AM53: 550.7784128 | AN53: 577.3017652 | AO53: 604.6208181 | AP53: 632.7594427 | AQ53: 661.7422259 | AR53: 691.5944927 | AS53: 722.3423275 | AT53: 754.0125973 | AU53: 786.6329753 | AV53: 820.2319645 | AW53: 854.8389234 | AX53: 890.4840911 | AY53: 927.1986139 | AZ53: 965.0145723 | BA53: 1003.965009 | BB53: 1044.08396 | BC53: 1085.406479
C54: Less: Retirement | F54: =F47 -> 0 | G54: =G47 -> 0 | H54: 0 | I54: 0 | J54: 0 | K54: 0 | L54: 0 | M54: 0 | N54: 0 | O54: 0 | P54: 0 | Q54: 0 | R54: 0 | S54: 0 | T54: 0 | U54: 0 | V54: 0 | W54: 0 | X54: 0 | Y54: 0 | Z54: 0 | AA54: 0 | AB54: 0 | AC54: 0 | AD54: 0 | AE54: 0 | AF54: 0 | AG54: 0 | AH54: 0 | AI54: 0 | AJ54: 0 | AK54: 0 | AL54: 0 | AM54: 0 | AN54: 0 | AO54: 0 | AP54: 0 | AQ54: 0 | AR54: 0 | AS54: 0 | AT54: 0 | AU54: 0 | AV54: 0 | AW54: 0 | AX54: 0 | AY54: 0 | AZ54: 0 | BA54: 0 | BB54: 0 | BC54: 0
C55: Closing Balance | F55: =F52+F53-F54 -> 0 | G55: =G52+G53-G54 -> 10 | H55: 30.3 | I55: 61.209 | J55: 103.04527 | K55: 156.1366281 | L55: 220.8207269 | M55: 297.4453488 | N55: 386.3687092 | O55: 487.9597705 | P55: 602.5985636 | Q55: 730.6765205 | R55: 872.5968161 | S55: 1028.774721 | T55: 1199.637962 | U55: 1385.627101 | V55: 1587.195914 | W55: 1804.811792 | X55: 2038.956145 | Y55: 2290.12483 | Z55: 2558.828575 | AA55: 2845.593432 | AB55: 3150.961235 | AC55: 3475.490072 | AD55: 3819.754774 | AE55: 4184.347417 | AF55: 4569.87784 | AG55: 4976.974175 | AH55: 5406.2834 | AI55: 5858.471902 | AJ55: 6334.226059 | AK55: 6834.252841 | AL55: 7359.280426 | AM55: 7910.058839 | AN55: 8487.360604 | AO55: 9091.981422 | AP55: 9724.740865 | AQ55: 10386.48309 | AR55: 11078.07758 | AS55: 11800.41991 | AT55: 12554.43251 | AU55: 13341.06548 | AV55: 14161.29745 | AW55: 15016.13637 | AX55: 15906.62046 | AY55: 16833.81908 | AZ55: 17798.83365 | BA55: 18802.79866 | BB55: 19846.88262 | BC55: 20932.2891
C57: Net Plant | F57: =F45-F52 -> 0 | G57: =G45-G52 -> 100 | H57: 193 | I57: 278.79 | J57: 357.1537 | K57: 427.868311 | L57: 490.7043603 | M57: 545.4254911 | N57: 591.7882559 | O57: 629.5419036 | P57: 658.4281607 | Q57: 678.1810055 | R57: 688.5264356 | S57: 689.1822287 | T57: 679.8576956 | U57: 660.2534264 | V57: 630.0610292 | W57: 588.9628601 | X57: 536.6317459 | Y57: 472.7306983 | Z57: 396.9126192 | AA57: 308.8199978 | AB57: 208.0845977 | AC57: 94.32713568 | AD57: -32.84305025 | AE57: -173.8283418 | AF57: -329.043192 | AG57: -498.9144878 | AH57: -683.8819224 | AI57: -884.3983801 | AJ57: -1100.930331 | AK57: -1333.958241 | AL57: -1583.976989 | AM57: -1851.496298 | AN57: -2137.041187 | AO57: -2441.152423 | AP57: -2764.386996 | AQ57: -3107.318605 | AR57: -3470.538164 | AS57: -3854.654309 | AT57: -4260.293938 | AU57: -4688.102756 | AV57: -5138.745839 | AW57: -5612.908214 | AX57: -6111.29546 | AY57: -6634.634324 | AZ57: -7183.673354 | BA57: -7759.183554 | BB57: -8361.959061 | BC57: -8992.817833
C58: Net Plant Depreciation Rate
C59: Capital Expenditure to Depreciation

Sheet Simple Industrial
F2: 2012 | G2: 2013 | H2: 2014 | I2: 2015 | J2: 2016 | K2: 2017 | L2: 2018 | M2: 2019 | N2: 2020 | O2: 2021
B3: Last Historic Year | E3: 2017 | F3: =F2<=$E$3 -> TRUE | G3: =G2<=$E$3 -> TRUE | H3: TRUE | I3: TRUE | J3: TRUE | K3: TRUE | L3: FALSE | M3: FALSE | N3: FALSE | O3: FALSE
A5: Balance Sheet
B6: Cash | F6: 20 | G6: 60 | H6: 40 | I6: 80 | J6: 90 | K6: 100
B7: PP&E | F7: 1000 | G7: 1100 | H7: 1300 | I7: 1320 | J7: 1370 | K7: 1400
B9: Debt | F9: =F6+F7-F10 -> 40 | G9: =G6+G7-G10 -> 110 | H9: 240 | I9: 250 | J9: 280 | K9: 300
B10: Equity | F10: 980 | G10: 1050 | H10: 1100 | I10: 1150 | J10: 1180 | K10: 1200
A12: Income Statement
B13: EBITDA | F13: 140 | G13: 150 | H13: 165 | I13: 170 | J13: 180 | K13: 200
B14: Depreciation | F14: 50 | G14: 60 | H14: 65 | I14: 75 | J14: 80 | K14: 83
B15: Net Interest | F15: 0.75 | G15: 1 | H15: 2.5 | I15: 10 | J15: 8.5 | K15: 9.5
B16: Net Income | F16: =F13-F14-F15 -> 89.25 | G16: =G13-G14-G15 -> 89 | H16: 97.5 | I16: 85 | J16: 91.5 | K16: 107.5
B18: Dividends | F18: 70 | G18: 70 | H18: 80 | I18: 75 | J18: 75 | K18: 90
A20: Assumptions
B21: EBITDA Growth | E21: 0.12
B22: Capital Expenditures | E22: 150 | K22: 100 | L22: =E22 -> 150 | M22: =L22 -> 150 | N22: =M22 -> 150 | O22: 150
B23: Depreciation Rate
B24: Net Debt
B25: Interest Rate | E25: 0.045 | F25: =IF(F3,F15/F24,$E$25) ->  | G25: =IF(G3,G15/F24,$E$25) ->  | H25: =IF(H3,H15/G24,$E$25) ->  | L25: 0.045 | M25: 0.045 | N25: 0.045 | O25: 0.045
B26: Dividemd Payout | F26: =IF(F3,F18/F16,AVERAGEIF(3:3,TRUE,26:26)) -> 0.7843137255 | G26: =IF(G3,G18/G16,AVERAGEIF(3:3,TRUE,26:26)) -> 0.7865168539 | H26: 0.8205128205 | I26: 0.8823529412 | J26: 0.8196721311 | K26: 0.8372093023 | L26: 0.8217629624 | M26: 0.8217629624 | N26: 0.8217629624 | O26: 0.8217629624
A28: Operating and Financing Analysis
B29: EBITDA
B30: Capital Expenditure | F30: =F22 -> 0 | G30: =G22 -> 0 | H30: 0 | I30: 0 | J30: 0 | K30: 100 | L30: 150 | M30: 150 | N30: 150 | O30: 150
B32: Plant Balance
C33: Opening | F33: =E36 -> 0 | G33: =F36 -> 0 | H33: 0 | I33: 0 | J33: 0 | K33: 0 | L33: 0 | M33: 0 | N33: 0 | O33: 0
C34: Add: Cap Exp | F34: =F22 -> 0 | G34: 0 | H34: 0 | I34: 0 | J34: 0 | K34: 100 | L34: 150 | M34: 150 | N34: 150 | O34: 150
C35: Less: Dep | F35: =IF(F3,F14,F33*F23) -> 50 | G35: 60 | H35: 65 | I35: 75 | J35: 80 | K35: 83 | L35: 0 | M35: 0 | N35: 0 | O35: 0
C36: Closing Balance
B38: Net Cash - Debt
C39: Opening Balance
C40: Add: Cash Flow
C41: Closing Balance
C43: Interest Rate | F43: =F25 ->  | L43: 0.045 | M43: 0.045 | N43: 0.045 | O43: 0.045
C44: Interest Expense | F44: =IF(F3,F15,-E39*F43) -> 0.75 | G44: 1 | H44: 2.5 | I44: 10 | J44: 8.5 | K44: 9.5 | L44: 0 | M44: 0 | N44: 0 | O44: 0
A46: Financial Statements
B47: Income Statement
C48: EBITDA
C49: Depreciation
C50: Net Interest
C51: Net Income
C52: EBIT
B54: Cash Flow
C55: EBITDA | F55: =F29 -> 0 | G55: 0 | H55: 0 | I55: 0 | J55: 0 | K55: 0 | L55: 0 | M55: 0 | N55: 0 | O55: 0
C56: Less CAPEX | F56: =F34 -> 0 | G56: 0 | H56: 0 | I56: 0 | J56: 0 | K56: 100 | L56: 150 | M56: 150 | N56: 150 | O56: 150
C57: Less: Interest | F57: =F50 -> 0 | G57: =G50 -> 0 | H57: 0 | I57: 0 | J57: 0 | K57: 0 | L57: 0 | M57: 0 | N57: 0 | O57: 0
C58: Dividends | F58: =F51*F26 -> 0 | G58: =G51*G26 -> 0 | H58: 0 | I58: 0 | J58: 0 | K58: 0 | L58: 0 | M58: 0 | N58: 0 | O58: 0
C59: Net Cash Flow | F59: =F55-F56-F58-F57 -> 0 | G59: =G55-G56-G58-G57 -> 0 | H59: 0 | I59: 0 | J59: 0 | K59: -100 | L59: -150 | M59: -150 | N59: -150 | O59: -150
B61: Balance Sheet
C62: Equity Balance
D63: Opening Balance | F63: =E66 -> 0 | G63: =F66 -> 980 | H63: 1050 | I63: 1100 | J63: 1150 | K63: 1180 | L63: 1200 | M63: 1200 | N63: 1200 | O63: 1200
D64: Add Net Income | F64: =F51 -> 0 | G64: =G51 -> 0 | H64: 0 | I64: 0 | J64: 0 | K64: 0 | L64: 0 | M64: 0 | N64: 0 | O64: 0
D65: Less Dividends | F65: =F58 -> 0 | G65: =G58 -> 0 | H65: 0 | I65: 0 | J65: 0 | K65: 0 | L65: 0 | M65: 0 | N65: 0 | O65: 0
D66: Closing Balance | F66: =IF(F3,F10,F63+F64-F65) -> 980 | G66: 1050 | H66: 1100 | I66: 1150 | J66: 1180 | K66: 1200 | L66: 1200 | M66: 1200 | N66: 1200 | O66: 1200
C68: Assets
D69: PP&E | F69: =F36 -> 0 | G69: 0 | H69: 0 | I69: 0 | J69: 0 | K69: 0 | L69: 0 | M69: 0 | N69: 0 | O69: 0
C71: Liabilities and Equity Capital
D72: Net Debt | F72: =-F41 -> 0 | G72: =-G41 -> 0 | H72: 0 | I72: 0 | J72: 0 | K72: 0 | L72: 0 | M72: 0 | N72: 0 | O72: 0
D73: Capital | F73: =F66 -> 980 | G73: =G66 -> 1050 | H73: 1100 | I73: 1150 | J73: 1180 | K73: 1200 | L73: 1200 | M73: 1200 | N73: 1200 | O73: 1200
D74: Total | F74: =SUM(F72:F73) -> 980 | G74: =SUM(G72:G73) -> 1050 | H74: 1100 | I74: 1150 | J74: 1180 | K74: 1200 | L74: 1200 | M74: 1200 | N74: 1200 | O74: 1200
D76: Difference | F76: =F74-F69 -> 980 | G76: =G74-G69 -> 1050 | H76: 1100 | I76: 1150 | J76: 1180 | K76: 1200 | L76: 1200 | M76: 1200 | N76: 1200 | O76: 1200
D77: Test
C80: Free Cash Flow
D81: EBITDA | L81: =L48 -> 0 | M81: 0 | N81: 0 | O81: 0
D82: Less: Capital Expenditure | L82: =L56 -> 150 | M82: 150 | N82: 150 | O82: 150
D83: Free Cash | L83: =L81-L82 -> -150 | M83: -150 | N83: -150 | O83: -150
C86: ROE | F86: =F51/F66 -> 0 | G86: =G51/G66 -> 0 | H86: 0 | I86: 0 | J86: 0 | K86: 0 | L86: 0 | M86: 0 | N86: 0 | O86: 0
C87: ROIC | F87: =F52/F74 -> 0 | G87: =G52/G74 -> 0 | H87: 0 | I87: 0 | J87: 0 | K87: 0 | L87: 0 | M87: 0 | N87: 0 | O87: 0

Sheet Simple Bank
F2: 2012 | G2: 2013 | H2: 2014 | I2: 2015 | J2: 2016 | K2: 2017 | L2: 2018 | M2: 2019 | N2: 2020 | O2: 2021
B3: Last Historic Year | E3: 2017 | F3: =F2<=$E$3 -> TRUE | G3: =G2<=$E$3 -> TRUE | H3: TRUE | I3: TRUE | J3: TRUE | K3: TRUE | L3: FALSE | M3: FALSE | N3: FALSE | O3: FALSE
A5: Historic Financial
B6: Balance Sheet
C7: Other Cash Investments | F7: 20 | G7: 40 | H7: 30 | I7: 40 | J7: 40 | K7: 40
C8: Loans | F8: 900 | G8: 1000 | H8: 1050 | I8: 1100 | J8: 1150 | K8: 1200
D9: Total | F9: =SUM(F7:F8) -> 920 | G9: 1040 | H9: 1080 | I9: 1140 | J9: 1190 | K9: 1240
C11: Other Liabilites | F11: 40 | G11: 50 | H11: 40 | I11: 45 | J11: 45 | K11: 45
C12: Deposits | F12: =F9-F11-F13 -> 680 | G12: 770 | H12: 780 | I12: 831 | J12: 871 | K12: 915
C13: Equity | F13: 200 | G13: 220 | H13: 260 | I13: 264 | J13: 274 | K13: 280
D14: Total | F14: =SUM(F11:F13) -> 920 | G14: 1040 | H14: 1080 | I14: 1140 | J14: 1190 | K14: 1240
B16: Income Statement and Cash Flow
C18: Loan Income | F18: 140 | G18: 150 | H18: 165 | I18: 170 | J18: 180 | K18: 200
C19: Interest on Deposits | F19: 120 | G19: 130 | H19: 125 | I19: 130 | J19: 140 | K19: 150
C20: Other Interest | F20: 0.7 | G20: =(F11-F7)*0.04 -> 0.8 | H20: =(G11-G7)*0.04 -> 0.4 | I20: =(H11-H7)*0.04 -> 0.4 | J20: =(I11-I7)*0.04 -> 0.2 | K20: =(J11-J7)*0.04 -> 0.2
C21: Net Income | F21: =F18-F19-F20 -> 19.3 | G21: 19.2 | H21: 39.6 | I21: 39.6 | J21: 39.8 | K21: 49.8
C22: Dividends | F22: 14 | G22: 17 | H22: 30 | I22: 34 | J22: 34 | K22: 40
A25: Assumptions
B26: Interest Income % | F26: =IF(F$3,F18/F8,AVERAGEIF($3:$3,TRUE,26:26)) -> 0.1555555556 | G26: 0.15 | H26: 0.1571428571 | I26: 0.1545454545 | J26: 0.1565217391 | K26: 0.1666666667 | L26: =IF(L3,L18/L8,AVERAGEIF(3:3,TRUE,26:26)) -> 0.1567387122 | M26: =IF(M3,M18/M8,AVERAGEIF(3:3,TRUE,26:26)) -> 0.1567387122 | N26: =IF(N3,N18/N8,AVERAGEIF(3:3,TRUE,26:26)) -> 0.1567387122 | O26: =IF(O3,O18/O8,AVERAGEIF(3:3,TRUE,26:26)) -> 0.1567387122
B27: Deposit Cost | F27: =IF(F$3,F19/F12,AVERAGEIF($3:$3,TRUE,27:27)) -> 0.1764705882 | G27: 0.1688311688 | H27: 0.1602564103 | I27: 0.1564380265 | J27: 0.1607347876 | K27: 0.1639344262 | L27: 0.1644442346 | M27: 0.1644442346 | N27: 0.1644442346 | O27: 0.1644442346
B28: Loan Increase | E28: 350
B29: Deposit to Loan | E29: 0.76 | F29: =IF(F3,F12/F8,$E$29) -> 0.7555555556 | G29: 0.77 | H29: 0.7428571429 | I29: 0.7554545455 | J29: 0.7573913043 | K29: 0.7625 | L29: 0.76 | M29: 0.76 | N29: 0.76 | O29: 0.76
B30: Net Debt | F30: =(F11-F7) -> 20 | G30: 10 | H30: 10 | I30: 5 | J30: 5 | K30: 5
B31: Interest Rate on Net | E31: 0.04 | F31: 0.04 | G31: =IF(G3,G20/F30,$E$31) -> 0.04 | H31: 0.04 | I31: 0.04 | J31: 0.04 | K31: 0.04 | L31: 0.04 | M31: 0.04 | N31: 0.04 | O31: 0.04
B32: Equity to Assets | E32: 0.22 | F32: =IF(F3,F13/F14,$E$32) -> 0.2173913043 | G32: =IF(G3,G13/G14,$E$32) -> 0.2115384615 | H32: 0.2407407407 | I32: 0.2315789474 | J32: 0.2302521008 | K32: 0.2258064516
B33: Dividend Payout | E33: 0.75 | F33: =IF(F3,F22/F21,$E$33) -> 0.725388601 | G33: =IF(G3,G22/G21,$E$33) -> 0.8854166667 | H33: 0.7575757576 | I33: 0.8585858586 | J33: 0.8542713568 | K33: 0.8032128514 | L33: 0.75 | M33: 0.75 | N33: 0.75 | O33: 0.75
A35: Operating Analysis
B36: Loans | F36: =IF(F3,F8,E36+F28) -> 900 | G36: 1000 | H36: 1050 | I36: 1100 | J36: 1150 | K36: 1200 | L36: 1200 | M36: 1200 | N36: 1200 | O36: 1200
B37: Loan Income | F37: =F36*F26 -> 140 | G37: 150 | H37: 165 | I37: 170 | J37: 180 | K37: 200 | L37: 188.0864546 | M37: 188.0864546 | N37: 188.0864546 | O37: 188.0864546
B38: Deposits | F38: =F36*F29 -> 680 | G38: 770 | H38: 780 | I38: 831 | J38: 871 | K38: 915 | L38: 912 | M38: 912 | N38: 912 | O38: 912
B39: Interest Expense on Deposits | F39: =F38*F27 -> 120 | G39: 130 | H39: 125 | I39: 130 | J39: 140 | K39: 150 | L39: 149.973142 | M39: 149.973142 | N39: 149.973142 | O39: 149.973142
B41: Net Cash - Debt
C42: Opening Balance | F42: =E44 -> 0 | G42: =F44 -> -20 | H42: -10 | I42: -10 | J42: -5 | K42: -5 | L42: -5 | M42: -5 | N42: -5 | O42: -5
C43: Add: Cash Flow | F43: =F63 -> 5.3 | G43: =G63 -> 92.2 | H43: 19.6 | I43: 56.6 | J43: 45.8 | K43: 53.8
C44: Closing Balance | F44: =IF(F3,F7-F11,F42+F43) -> -20 | G44: =IF(G3,G7-G11,G42+G43) -> -10 | H44: -10 | I44: -5 | J44: -5 | K44: -5 | L44: -5 | M44: -5 | N44: -5 | O44: -5
C46: Interest Rate | F46: =F31 -> 0.04 | G46: =G31 -> 0.04 | H46: 0.04 | I46: 0.04 | J46: 0.04 | K46: 0.04 | L46: 0.04 | M46: 0.04 | N46: 0.04 | O46: 0.04
C47: Interest Expense | F47: =IF(F3,F20,F46*AVERAGE(F42,F42)) -> 0.7 | G47: =IF(G3,G20,G46*AVERAGE(G42,G42)) -> 0.8 | H47: 0.4 | I47: 0.4 | J47: 0.2 | K47: 0.2 | L47: -0.2 | M47: -0.2 | N47: -0.2 | O47: -0.2
A49: Financial Statements
B50: Income Statement
C51: Loan Income | F51: =F37 -> 140 | G51: 150 | H51: 165 | I51: 170 | J51: 180 | K51: 200 | L51: 188.0864546 | M51: 188.0864546 | N51: 188.0864546 | O51: 188.0864546
C52: Deposit Interest | F52: =F39 -> 120 | G52: 130 | H52: 125 | I52: 130 | J52: 140 | K52: 150 | L52: 149.973142 | M52: 149.973142 | N52: 149.973142 | O52: 149.973142
C53: Other Interest | F53: =F47 -> 0.7 | G53: =G47 -> 0.8 | H53: 0.4 | I53: 0.4 | J53: 0.2 | K53: 0.2 | L53: -0.2 | M53: -0.2 | N53: -0.2 | O53: -0.2
C54: Net Income | F54: =F51-F52-F53 -> 19.3 | G54: =G51-G52-G53 -> 19.2 | H54: 39.6 | I54: 39.6 | J54: 39.8 | K54: 49.8 | L54: 38.31331265 | M54: 38.31331265 | N54: 38.31331265 | O54: 38.31331265
B56: Cash Flow
C57: Net Income | F57: =F54 -> 19.3 | G57: =G54 -> 19.2 | H57: 39.6 | I57: 39.6 | J57: 39.8 | K57: 49.8 | L57: 38.31331265 | M57: 38.31331265 | N57: 38.31331265 | O57: 38.31331265
C58: Less: Increase in loans | F58: =F28 -> 0 | G58: 0 | H58: 0 | I58: 0 | J58: 0 | K58: 0 | L58: 0 | M58: 0 | N58: 0 | O58: 0
C59: Add: Increase in deposits | G59: =G38-F38 -> 90 | H59: 10 | I59: 51 | J59: 40 | K59: 44 | L59: -3 | M59: 0 | N59: 0 | O59: 0
C60: Cash Flow Before Finance | F60: =F57-F58+F59 -> 19.3 | G60: =G57-G58+G59 -> 109.2 | H60: 49.6 | I60: 90.6 | J60: 79.8 | K60: 93.8 | L60: 35.31331265 | M60: 38.31331265 | N60: 38.31331265 | O60: 38.31331265
C61: New equity issuance | F61: =F90 -> 0 | G61: =G90 -> 0 | H61: 0 | I61: 0 | J61: 0 | K61: 0 | L61: 0 | M61: 0 | N61: 0 | O61: 0
C62: Dividends | F62: =F54*F33 -> 14 | G62: 17 | H62: 30 | I62: 34 | J62: 34 | K62: 40 | L62: 28.73498449 | M62: 28.73498449 | N62: 28.73498449 | O62: 28.73498449
C63: Net Cash Flow | F63: =F57-F58+F59+F61-F62 -> 5.3 | G63: =G57-G58+G59+G61-G62 -> 92.2 | H63: 19.6 | I63: 56.6 | J63: 45.8 | K63: 53.8
B65: Balance Sheet
C66: Equity Balance
D67: Opening Balance | F67: =E71 -> 0 | G67: =F71 -> 200 | H67: 220 | I67: 260 | J67: 264 | K67: 274 | L67: 280 | M67: 289.5783282 | N67: 299.1566563 | O67: 308.7349845
D68: Add Net Income | F68: =F54 -> 19.3 | G68: 19.2 | H68: 39.6 | I68: 39.6 | J68: 39.8 | K68: 49.8 | L68: 38.31331265 | M68: 38.31331265 | N68: 38.31331265 | O68: 38.31331265
D69: Less Dividends | F69: =F62 -> 14 | G69: 17 | H69: 30 | I69: 34 | J69: 34 | K69: 40 | L69: 28.73498449 | M69: 28.73498449 | N69: 28.73498449 | O69: 28.73498449
D70: New Equity Issuance | L70: =L61 -> 0 | M70: =M61 -> 0 | N70: =N61 -> 0 | O70: =O61 -> 0
D71: Closing Balance | F71: =IF(F3,F13,F67+F68-F69+F70) -> 200 | G71: 220 | H71: 260 | I71: 264 | J71: 274 | K71: 280 | L71: 289.5783282 | M71: 299.1566563 | N71: 308.7349845 | O71: 318.3133126
C73: Assets
C74: Loans | F74: =F36 -> 900 | G74: 1000 | H74: 1050 | I74: 1100 | J74: 1150 | K74: 1200 | L74: 1200 | M74: 1200 | N74: 1200 | O74: 1200
C76: Net Debt | F76: =-F44 -> 20 | G76: =-G44 -> 10 | H76: 10 | I76: 5 | J76: 5 | K76: 5 | L76: 5 | M76: 5 | N76: 5 | O76: 5
C77: Deposits | F77: =F38 -> 680 | G77: 770 | H77: 780 | I77: 831 | J77: 871 | K77: 915 | L77: 912 | M77: 912 | N77: 912 | O77: 912
C78: Capital | F78: =F71 -> 200 | G78: =G71 -> 220 | H78: 260 | I78: 264 | J78: 274 | K78: 280 | L78: 289.5783282 | M78: 299.1566563 | N78: 308.7349845 | O78: 318.3133126
C79: Total | F79: =F77+F78+F76 -> 900 | G79: =G77+G78+G76 -> 1000 | H79: 1050 | I79: 1100 | J79: 1150 | K79: 1200 | L79: 1206.578328 | M79: 1216.156656 | N79: 1225.734984 | O79: 1235.313313
R80: Equity = Target x Total Assets
C81: Difference | F81: =F74-F79 -> 0 | G81: 0 | H81: 0 | I81: 0 | J81: 0 | K81: 0 | L81: -6.578328162 | M81: -16.15665632 | N81: -25.73498449 | O81: -35.31331265 | R81: Equity = OB + NI - Div + Issues
C82: Test | E82: =AND(F82:O82) -> FALSE | F82: =F81=0 -> TRUE | G82: =G81=0 -> TRUE | H82: TRUE | I82: TRUE | J82: TRUE | K82: TRUE | L82: FALSE | M82: FALSE | N82: FALSE | O82: FALSE | R82: Target x Total Assets = OB + NI - Div + Issues
R83: Target x Total Assets - OB - NI + Div = Issues
C84: Computed Equity to Cap | F84: =F78/F74 -> 0.2222222222 | G84: =G78/G74 -> 0.22 | H84: 0.2476190476 | I84: 0.24 | J84: 0.2382608696 | K84: 0.2333333333 | L84: 0.2413152735 | M84: =M78/M74 -> 0.2492972136 | N84: 0.2572791537 | O84: 0.2652610939
C85: Target Equity to Cap | F85: =F32 -> 0.2173913043 | G85: =G32 -> 0.2115384615 | H85: 0.2407407407 | I85: 0.2315789474 | J85: 0.2302521008 | K85: 0.2258064516 | L85: 0 | M85: 0 | N85: 0 | O85: 0
L86: =L84-L85 -> 0.2413152735 | M86: =M84-M85 -> 0.2492972136 | N86: =N84-N85 -> 0.2572791537 | O86: =O84-O85 -> 0.2652610939
C88: Equity Cash Flow
C90: New Issues
C92: PV of Equity Cash Flow
C93: Terminal Value
C94: Total Equity Value

Sheet Graph of Assumptions and ROE
C2: Start | D2: =ROW('Aflac Financials'!111:111) -> 111
C3: End | D3: =ROW('Aflac Financials'!R141) -> 141
C5: Row | D5: 111
G7: ='Aflac Financials'!H7 -> 2012 | H7: ='Aflac Financials'!I7 -> 2013 | I7: ='Aflac Financials'!J7 -> 2014 | J7: ='Aflac Financials'!K7 -> 2015 | K7: ='Aflac Financials'!L7 -> 2016 | L7: ='Aflac Financials'!M7 -> 2017 | M7: ='Aflac Financials'!N7 -> 2018 | N7: ='Aflac Financials'!O7 -> 2019 | O7: ='Aflac Financials'!P7 -> 2020 | P7: ='Aflac Financials'!Q7 -> 2021 | Q7: ='Aflac Financials'!R7 -> 2022 | R7: ='Aflac Financials'!S7 -> 2023

Sheet MB Regression
D1: P/B Ratio
E2: ROE
B3: L&G | D3: 2.12 | E3: 0.2010655738 | G3: B
B4: Met Life | D4: 0.88 | E4: 0.09109499907 | G4: A
B5: AIG | D5: 0.85 | E5: 0.06995782684
B6: Prudential | D6: 0.97 | E6: 0.1022765599
B7: Genworth | D7: 0.15 | E7: 0.03818251241
B8: Greatwest Lifeco | D8: 1.78 | E8: 0.1536144578
B9: Aflac | D9: 1.38 | E9: 0.1344086022
B10: Dai-ichi Life Holdings Inc | D10: 0.75 | E10: 0.06942082803
B11: Power Financial Corp | D11: 1.42 | E11: 0.139544345
B12: Lincoln National Corp | D12: 1.04 | E12: 0.1139819674
B13: Principal Financial Group | D13: 1.63 | E13: 0.1416546417
B14: Allianz | D14: 1.06 | E14: 0.09472650924
B15: Swiss Life | D15: 0.67 | E15: 0.07088162491
B16: Sun Life | D16: 1.61 | E16: 0.1327239488
B17: AXA SA | D17: 0.88 | E17: 0.1095505618

Sheet Amazon Assumptions
E1: ='Amazon DCF'!E72 -> 
B2: Year | I2: ='Amazon Model'!H13 -> 2012 | J2: ='Amazon Model'!I13 -> 2013 | K2: ='Amazon Model'!J13 -> 2014 | L2: ='Amazon Model'!K13 -> 2015 | M2: ='Amazon Model'!L13 -> 2016 | N2: ='Amazon Model'!M13 -> 2017 | O2: =N2+1 -> 2018 | P2: =O2+1 -> 2019 | Q2: 2020 | R2: 2021 | S2: 2022 | T2: 2023 | U2: 2024 | V2: 2025 | W2: 2026 | X2: 2027 | Y2: 2028 | Z2: 2029 | AA2: 2030 | AB2: 2031 | AC2: 2032
B3: History with Current Year | E3: 2017 | I3: =I2<=$E$3 -> TRUE | J3: =J2<=$E$3 -> TRUE | K3: TRUE | L3: TRUE | M3: TRUE | N3: TRUE | O3: FALSE | P3: FALSE | Q3: FALSE | R3: FALSE | S3: FALSE | T3: FALSE | U3: FALSE | V3: FALSE | W3: FALSE | X3: FALSE | Y3: FALSE | Z3: FALSE | AA3: FALSE | AB3: FALSE | AC3: FALSE
B4: History without Current Year | E4: ='Amazon Model'!F5 -> 2016 | I4: =I2<=$E$4 -> TRUE | J4: =J2<=$E$4 -> TRUE | K4: TRUE | L4: TRUE | M4: TRUE | N4: FALSE | O4: FALSE | P4: FALSE | Q4: FALSE | R4: FALSE | S4: FALSE | T4: FALSE | U4: FALSE | V4: FALSE | W4: FALSE | X4: FALSE | Y4: FALSE | Z4: FALSE | AA4: FALSE | AB4: FALSE | AC4: FALSE
A7: Analysis | E7: Time Series | F7: Code
B8: Operations and EBITDA
C9: Revenue Growth | E9: TRUE | F9: ='Sensitivity and Presentation'!$E$32 -> 0 | G9: =INDEX(C60:C63,F9) ->  | J9: =IF(J3,'Amazon Model'!I15/'Amazon Model'!H15-1,'Amazon Assumptions'!J65) -> 0.2186937306 | K9: =IF(K3,'Amazon Model'!J15/'Amazon Model'!I15-1,'Amazon Assumptions'!K65) -> 0.1952988583 | L9: =IF(L3,'Amazon Model'!K15/'Amazon Model'!J15-1,'Amazon Assumptions'!L65) -> 0.2024946623 | M9: =IF(M3,'Amazon Model'!L15/'Amazon Model'!K15-1,'Amazon Assumptions'!M65) -> 0.2708158116 | N9: =IF(N3,'Amazon Model'!M15/'Amazon Model'!L15-1,'Amazon Assumptions'!N65) -> 0.293472898 | O9: =IF(O3,'Amazon Model'!N15/'Amazon Model'!M15-1,'Amazon Assumptions'!O65) ->  | P9: =IF(P3,'Amazon Model'!O15/'Amazon Model'!N15-1,'Amazon Assumptions'!P65) ->  | Q9: =IF(Q3,'Amazon Model'!P15/'Amazon Model'!O15-1,'Amazon Assumptions'!Q65) ->  | R9: =IF(R3,'Amazon Model'!Q15/'Amazon Model'!P15-1,'Amazon Assumptions'!R65) ->  | S9: =IF(S3,'Amazon Model'!R15/'Amazon Model'!Q15-1,'Amazon Assumptions'!S65) ->  | T9: =IF(T3,'Amazon Model'!S15/'Amazon Model'!R15-1,'Amazon Assumptions'!T65) ->  | U9: =IF(U3,'Amazon Model'!T15/'Amazon Model'!S15-1,'Amazon Assumptions'!U65) ->  | V9: =IF(V3,'Amazon Model'!U15/'Amazon Model'!T15-1,'Amazon Assumptions'!V65) ->  | W9: =IF(W3,'Amazon Model'!V15/'Amazon Model'!U15-1,'Amazon Assumptions'!W65) ->  | X9: =IF(X3,'Amazon Model'!W15/'Amazon Model'!V15-1,'Amazon Assumptions'!X65) ->  | Y9: =IF(Y3,'Amazon Model'!X15/'Amazon Model'!W15-1,'Amazon Assumptions'!Y65) ->  | Z9: =IF(Z3,'Amazon Model'!Y15/'Amazon Model'!X15-1,'Amazon Assumptions'!Z65) ->  | AA9: =IF(AA3,'Amazon Model'!Z15/'Amazon Model'!Y15-1,'Amazon Assumptions'!AA65) ->  | AB9: =IF(AB3,'Amazon Model'!AA15/'Amazon Model'!Z15-1,'Amazon Assumptions'!AB65) ->  | AC9: =IF(AC3,'Amazon Model'!AB15/'Amazon Model'!AA15-1,'Amazon Assumptions'!AC65) -> 
C10: COGS Percent | E10: TRUE | F10: ='Sensitivity and Presentation'!G32 -> 0 | I10: =IF(I3,'Amazon Model'!H16/'Amazon Model'!H15,I73) -> 0.722540514 | J10: =IF(J3,'Amazon Model'!I16/'Amazon Model'!I15,J73) -> 0.6901276024 | K10: =IF(K3,'Amazon Model'!J16/'Amazon Model'!J15,K73) -> 0.6581638386 | L10: =IF(L3,'Amazon Model'!K16/'Amazon Model'!K15,L73) -> 0.6167647883 | M10: =IF(M3,'Amazon Model'!L16/'Amazon Model'!L15,M73) -> 0.5940142658 | N10: =IF(N3,'Amazon Model'!M16/'Amazon Model'!M15,N73) -> 0.5830034635 | O10: =IF(O3,'Amazon Model'!N16/'Amazon Model'!N15,O73) ->  | P10: =IF(P3,'Amazon Model'!O16/'Amazon Model'!O15,P73) ->  | Q10: =IF(Q3,'Amazon Model'!P16/'Amazon Model'!P15,Q73) ->  | R10: =IF(R3,'Amazon Model'!Q16/'Amazon Model'!Q15,R73) ->  | S10: =IF(S3,'Amazon Model'!R16/'Amazon Model'!R15,S73) ->  | T10: =IF(T3,'Amazon Model'!S16/'Amazon Model'!S15,T73) ->  | U10: =IF(U3,'Amazon Model'!T16/'Amazon Model'!T15,U73) ->  | V10: =IF(V3,'Amazon Model'!U16/'Amazon Model'!U15,V73) ->  | W10: =IF(W3,'Amazon Model'!V16/'Amazon Model'!V15,W73) ->  | X10: =IF(X3,'Amazon Model'!W16/'Amazon Model'!W15,X73) ->  | Y10: =IF(Y3,'Amazon Model'!X16/'Amazon Model'!X15,Y73) ->  | Z10: =IF(Z3,'Amazon Model'!Y16/'Amazon Model'!Y15,Z73) ->  | AA10: =IF(AA3,'Amazon Model'!Z16/'Amazon Model'!Z15,AA73) ->  | AB10: =IF(AB3,'Amazon Model'!AA16/'Amazon Model'!AA15,AB73) ->  | AC10: =IF(AC3,'Amazon Model'!AB16/'Amazon Model'!AB15,AC73) -> 
C11: R&D as % of Margin | E11: TRUE | F11: ='Sensitivity and Presentation'!I32 -> 0 | I11: =IF(I4,'Amazon Model'!H18/'Amazon Model'!H15,I81) -> 0.07464396792 | J11: =IF(J4,'Amazon Model'!I18/'Amazon Model'!I15,J81) -> 0.08824714574 | K11: =IF(K4,'Amazon Model'!J18/'Amazon Model'!J15,K81) -> 0.1042813799 | L11: =IF(L4,'Amazon Model'!K18/'Amazon Model'!K15,L81) -> 0.1171853098 | M11: =IF(M4,'Amazon Model'!L18/'Amazon Model'!L15,M81) -> 0.1183175233 | N11: =IF(N4,'Amazon Model'!M18/'Amazon Model'!M15,N81) ->  | O11: =IF(O4,'Amazon Model'!N18/'Amazon Model'!N15,O81) ->  | P11: =IF(P4,'Amazon Model'!O18/'Amazon Model'!O15,P81) ->  | Q11: =IF(Q4,'Amazon Model'!P18/'Amazon Model'!P15,Q81) ->  | R11: =IF(R4,'Amazon Model'!Q18/'Amazon Model'!Q15,R81) ->  | S11: =IF(S4,'Amazon Model'!R18/'Amazon Model'!R15,S81) ->  | T11: =IF(T4,'Amazon Model'!S18/'Amazon Model'!S15,T81) ->  | U11: =IF(U4,'Amazon Model'!T18/'Amazon Model'!T15,U81) ->  | V11: =IF(V4,'Amazon Model'!U18/'Amazon Model'!U15,V81) ->  | W11: =IF(W4,'Amazon Model'!V18/'Amazon Model'!V15,W81) ->  | X11: =IF(X4,'Amazon Model'!W18/'Amazon Model'!W15,X81) ->  | Y11: =IF(Y4,'Amazon Model'!X18/'Amazon Model'!X15,Y81) ->  | Z11: =IF(Z4,'Amazon Model'!Y18/'Amazon Model'!Y15,Z81) ->  | AA11: =IF(AA4,'Amazon Model'!Z18/'Amazon Model'!Z15,AA81) ->  | AB11: =IF(AB4,'Amazon Model'!AA18/'Amazon Model'!AA15,AB81) ->  | AC11: =IF(AC4,'Amazon Model'!AB18/'Amazon Model'!AB15,AC81) -> 
C12: Other SG&A as Percent of Revenue | E12: TRUE | F12: ='Sensitivity and Presentation'!K32 -> 0 | I12: =IF(I4,'Amazon Model'!H19/'Amazon Model'!H15,I89) -> 0.1591095106 | J12: =IF(J4,'Amazon Model'!I19/'Amazon Model'!I15,J89) -> 0.1725990598 | K12: =IF(K4,'Amazon Model'!J19/'Amazon Model'!J15,K89) -> 0.1870996741 | L12: =IF(L4,'Amazon Model'!K19/'Amazon Model'!K15,L89) -> 0.1907298383 | M12: =IF(M4,'Amazon Model'!L19/'Amazon Model'!L15,M89) -> 0.2006029855 | N12: =IF(N4,'Amazon Model'!M19/'Amazon Model'!M15,N89) ->  | O12: =IF(O4,'Amazon Model'!N19/'Amazon Model'!N15,O89) ->  | P12: =IF(P4,'Amazon Model'!O19/'Amazon Model'!O15,P89) ->  | Q12: =IF(Q4,'Amazon Model'!P19/'Amazon Model'!P15,Q89) ->  | R12: =IF(R4,'Amazon Model'!Q19/'Amazon Model'!Q15,R89) ->  | S12: =IF(S4,'Amazon Model'!R19/'Amazon Model'!R15,S89) ->  | T12: =IF(T4,'Amazon Model'!S19/'Amazon Model'!S15,T89) ->  | U12: =IF(U4,'Amazon Model'!T19/'Amazon Model'!T15,U89) ->  | V12: =IF(V4,'Amazon Model'!U19/'Amazon Model'!U15,V89) ->  | W12: =IF(W4,'Amazon Model'!V19/'Amazon Model'!V15,W89) ->  | X12: =IF(X4,'Amazon Model'!W19/'Amazon Model'!W15,X89) ->  | Y12: =IF(Y4,'Amazon Model'!X19/'Amazon Model'!X15,Y89) ->  | Z12: =IF(Z4,'Amazon Model'!Y19/'Amazon Model'!Y15,Z89) ->  | AA12: =IF(AA4,'Amazon Model'!Z19/'Amazon Model'!Z15,AA89) ->  | AB12: =IF(AB4,'Amazon Model'!AA19/'Amazon Model'!AA15,AB89) ->  | AC12: =IF(AC4,'Amazon Model'!AB19/'Amazon Model'!AB15,AC89) -> 
C13: Other Operating Expense | I13: ='Amazon Model'!H20 -> 0 | J13: ='Amazon Model'!I20 -> 0 | K13: ='Amazon Model'!J20 -> 0 | L13: ='Amazon Model'!K20 -> 0 | M13: ='Amazon Model'!L20 -> 0 | N13: ='Amazon Model'!M20 -> 0
B14: Capital Expenditures
C15: Capital Expenditures (Fixed Assets) | I15: =-'Amazon Model'!H62 -> 3790000 | J15: =-'Amazon Model'!I62 -> 3440000 | K15: =-'Amazon Model'!J62 -> 4890000 | L15: =-'Amazon Model'!K62 -> 4590000 | M15: =-'Amazon Model'!L62 -> 6740000 | N15: =-'Amazon Model'!M62 -> 9030000
C16: Capital Expenditures/Sales | E16: TRUE | F16: ='Sensitivity and Presentation'!M32 -> 0 | I16: =IF(I4,I15/'Amazon Model'!H15,'Amazon Assumptions'!I97) -> 0.06203961368 | J16: =IF(J4,J15/'Amazon Model'!I15,'Amazon Assumptions'!J97) -> 0.04620550705 | K16: =IF(K4,K15/'Amazon Model'!J15,'Amazon Assumptions'!K97) -> 0.05494999438 | L16: =IF(L4,L15/'Amazon Model'!K15,'Amazon Assumptions'!L97) -> 0.04289318755 | M16: =IF(M4,M15/'Amazon Model'!L15,'Amazon Assumptions'!M97) -> 0.04956246783 | N16: =IF(N4,N15/'Amazon Model'!M15,'Amazon Assumptions'!N97) ->  | O16: =IF(O4,O15/'Amazon Model'!N15,'Amazon Assumptions'!O97) ->  | P16: =IF(P4,P15/'Amazon Model'!O15,'Amazon Assumptions'!P97) ->  | Q16: =IF(Q4,Q15/'Amazon Model'!P15,'Amazon Assumptions'!Q97) ->  | R16: =IF(R4,R15/'Amazon Model'!Q15,'Amazon Assumptions'!R97) ->  | S16: =IF(S4,S15/'Amazon Model'!R15,'Amazon Assumptions'!S97) ->  | T16: =IF(T4,T15/'Amazon Model'!S15,'Amazon Assumptions'!T97) ->  | U16: =IF(U4,U15/'Amazon Model'!T15,'Amazon Assumptions'!U97) ->  | V16: =IF(V4,V15/'Amazon Model'!U15,'Amazon Assumptions'!V97) ->  | W16: =IF(W4,W15/'Amazon Model'!V15,'Amazon Assumptions'!W97) ->  | X16: =IF(X4,X15/'Amazon Model'!W15,'Amazon Assumptions'!X97) ->  | Y16: =IF(Y4,Y15/'Amazon Model'!X15,'Amazon Assumptions'!Y97) ->  | Z16: =IF(Z4,Z15/'Amazon Model'!Y15,'Amazon Assumptions'!Z97) ->  | AA16: =IF(AA4,AA15/'Amazon Model'!Z15,'Amazon Assumptions'!AA97) ->  | AB16: =IF(AB4,AB15/'Amazon Model'!AA15,'Amazon Assumptions'!AB97) ->  | AC16: =IF(AC4,AC15/'Amazon Model'!AB15,'Amazon Assumptions'!AC97) -> 
C17: Capital Expenditures/Depreciation | I17: =IF('Amazon Model'!H5,I15/'Amazon Model'!H23) -> 2.269461078 | J17: =IF('Amazon Model'!I5,J15/'Amazon Model'!I23) -> 1.307984791 | K17: =IF('Amazon Model'!J5,K15/'Amazon Model'!J23) -> 1.219451296 | L17: =IF('Amazon Model'!K5,L15/'Amazon Model'!K23) -> 0.8531598513 | M17: =IF('Amazon Model'!L5,M15/'Amazon Model'!L23) -> 0.9361111111 | N17: =IF('Amazon Model'!M5,N15/'Amazon Model'!M23) -> FALSE
C18: Capital Expenditures (Other Assets) | I18: =-'Amazon Model'!H63 -> 0 | J18: =-'Amazon Model'!I63 -> 0 | K18: =-'Amazon Model'!J63 -> 0 | L18: =-'Amazon Model'!K63 -> 0 | M18: =-'Amazon Model'!L63 -> 0 | N18: =-'Amazon Model'!M63 -> 0
C19: Net Assets from Acquisitions | I19: =-'Amazon Model'!H64 -> 745000 | J19: =-'Amazon Model'!I64 -> 312000 | K19: =-'Amazon Model'!J64 -> 979000 | L19: =-'Amazon Model'!K64 -> 795000 | M19: =-'Amazon Model'!L64 -> 116000 | N19: =-'Amazon Model'!M64 -> 18517333.33
C20: Percent of Sales | E20: FALSE | F20: =AVERAGEIF($4:$4,TRUE,20:20) -> 0.00713386124 | G20: =LOOKUP($E$4,$2:$2,20:20) -> 0.0008530038973 | H20: 0.008 | I20: =IF(I4,I19/'Amazon Model'!H15,$H$20) -> 0.01219512195 | J20: =IF(J4,J19/'Amazon Model'!I15,$H$20) -> 0.004190732035 | K20: =IF(K4,K19/'Amazon Model'!J15,$H$20) -> 0.01100123609 | L20: =IF(L4,L19/'Amazon Model'!K15,$H$20) -> 0.007429212223 | M20: =IF(M4,M19/'Amazon Model'!L15,$H$20) -> 0.0008530038973 | N20: =IF(N4,N19/'Amazon Model'!M15,$H$20) -> 0.008 | O20: =IF(O4,O19/'Amazon Model'!N15,$H$20) -> 0.008 | P20: =IF(P4,P19/'Amazon Model'!O15,$H$20) -> 0.008 | Q20: =IF(Q4,Q19/'Amazon Model'!P15,$H$20) -> 0.008 | R20: =IF(R4,R19/'Amazon Model'!Q15,$H$20) -> 0.008 | S20: =IF(S4,S19/'Amazon Model'!R15,$H$20) -> 0.008 | T20: =IF(T4,T19/'Amazon Model'!S15,$H$20) -> 0.008 | U20: =IF(U4,U19/'Amazon Model'!T15,$H$20) -> 0.008 | V20: =IF(V4,V19/'Amazon Model'!U15,$H$20) -> 0.008 | W20: =IF(W4,W19/'Amazon Model'!V15,$H$20) -> 0.008 | X20: =IF(X4,X19/'Amazon Model'!W15,$H$20) -> 0.008 | Y20: =IF(Y4,Y19/'Amazon Model'!X15,$H$20) -> 0.008 | Z20: =IF(Z4,Z19/'Amazon Model'!Y15,$H$20) -> 0.008 | AA20: =IF(AA4,AA19/'Amazon Model'!Z15,$H$20) -> 0.008 | AB20: =IF(AB4,AB19/'Amazon Model'!AA15,$H$20) -> 0.008 | AC20: =IF(AC4,AC19/'Amazon Model'!AB15,$H$20) -> 0.008
B21: Working Capital
C22: Total Expenses | F22: Average | G22: Last | I22: ='Amazon Model'!H15-'Amazon Model'!H21 -> 58420000 | J22: ='Amazon Model'!I15-'Amazon Model'!I21 -> 70800000 | K22: ='Amazon Model'!J15-'Amazon Model'!J21 -> 84500000 | L22: ='Amazon Model'!K15-'Amazon Model'!K21 -> 98950000 | M22: ='Amazon Model'!L15-'Amazon Model'!L21 -> 124150000 | N22: ='Amazon Model'!M15-'Amazon Model'!M21 -> 160642214.6
C23: A/R as Percent of Sales | E23: FALSE | F23: =AVERAGEIF(4:4,TRUE,23:23) -> 0.05924765956 | G23: =AVERAGEIF(2:2,E4,23:23) -> 0.06132803883 | H23: 0.05 | I23: =IF(I4,'Amazon Model'!H98/'Amazon Model'!H15,$H$23) -> 0.05500081846 | J23: =IF(J4,'Amazon Model'!I98/'Amazon Model'!I15,$H$23) -> 0.06406984553 | K23: =IF(K4,'Amazon Model'!J98/'Amazon Model'!J15,$H$23) -> 0.0630407911 | L23: =IF(L4,'Amazon Model'!K98/'Amazon Model'!K15,$H$23) -> 0.05279880385 | M23: =IF(M4,'Amazon Model'!L98/'Amazon Model'!L15,$H$23) -> 0.06132803883 | N23: =IF(N4,'Amazon Model'!M98/'Amazon Model'!M15,$H$23) -> 0.05 | O23: =IF(O4,'Amazon Model'!N98/'Amazon Model'!N15,$H$23) -> 0.05 | P23: =IF(P4,'Amazon Model'!O98/'Amazon Model'!O15,$H$23) -> 0.05 | Q23: =IF(Q4,'Amazon Model'!P98/'Amazon Model'!P15,$H$23) -> 0.05 | R23: =IF(R4,'Amazon Model'!Q98/'Amazon Model'!Q15,$H$23) -> 0.05 | S23: =IF(S4,'Amazon Model'!R98/'Amazon Model'!R15,$H$23) -> 0.05 | T23: =IF(T4,'Amazon Model'!S98/'Amazon Model'!S15,$H$23) -> 0.05 | U23: =IF(U4,'Amazon Model'!T98/'Amazon Model'!T15,$H$23) -> 0.05 | V23: =IF(V4,'Amazon Model'!U98/'Amazon Model'!U15,$H$23) -> 0.05 | W23: =IF(W4,'Amazon Model'!V98/'Amazon Model'!V15,$H$23) -> 0.05 | X23: =IF(X4,'Amazon Model'!W98/'Amazon Model'!W15,$H$23) -> 0.05 | Y23: =IF(Y4,'Amazon Model'!X98/'Amazon Model'!X15,$H$23) -> 0.05 | Z23: =IF(Z4,'Amazon Model'!Y98/'Amazon Model'!Y15,$H$23) -> 0.05 | AA23: =IF(AA4,'Amazon Model'!Z98/'Amazon Model'!Z15,$H$23) -> 0.05 | AB23: =IF(AB4,'Amazon Model'!AA98/'Amazon Model'!AA15,$H$23) -> 0.05 | AC23: =IF(AC4,'Amazon Model'!AB98/'Amazon Model'!AB15,$H$23) -> 0.05
C24: Inventory as Percent of COGS | E24: FALSE | F24: =AVERAGEIF($4:$4,TRUE,24:24) -> 0.1439118824 | G24: =LOOKUP($E$4,$2:$2,24:24) -> 0.1418667987 | H24: 0.15 | I24: =IF(I4,'Amazon Model'!H99/'Amazon Model'!H16,$H$24) -> 0.1366107839 | J24: =IF(J4,'Amazon Model'!I99/'Amazon Model'!I16,$H$24) -> 0.1442195407 | K24: =IF(K4,'Amazon Model'!J99/'Amazon Model'!J16,$H$24) -> 0.1417107734 | L24: =IF(L4,'Amazon Model'!K99/'Amazon Model'!K16,$H$24) -> 0.1551515152 | M24: =IF(M4,'Amazon Model'!L99/'Amazon Model'!L16,$H$24) -> 0.1418667987 | N24: =IF(N4,'Amazon Model'!M99/'Amazon Model'!M16,$H$24) -> 0.15 | O24: =IF(O4,'Amazon Model'!N99/'Amazon Model'!N16,$H$24) -> 0.15 | P24: =IF(P4,'Amazon Model'!O99/'Amazon Model'!O16,$H$24) -> 0.15 | Q24: =IF(Q4,'Amazon Model'!P99/'Amazon Model'!P16,$H$24) -> 0.15 | R24: =IF(R4,'Amazon Model'!Q99/'Amazon Model'!Q16,$H$24) -> 0.15 | S24: =IF(S4,'Amazon Model'!R99/'Amazon Model'!R16,$H$24) -> 0.15 | T24: =IF(T4,'Amazon Model'!S99/'Amazon Model'!S16,$H$24) -> 0.15 | U24: =IF(U4,'Amazon Model'!T99/'Amazon Model'!T16,$H$24) -> 0.15 | V24: =IF(V4,'Amazon Model'!U99/'Amazon Model'!U16,$H$24) -> 0.15 | W24: =IF(W4,'Amazon Model'!V99/'Amazon Model'!V16,$H$24) -> 0.15 | X24: =IF(X4,'Amazon Model'!W99/'Amazon Model'!W16,$H$24) -> 0.15 | Y24: =IF(Y4,'Amazon Model'!X99/'Amazon Model'!X16,$H$24) -> 0.15 | Z24: =IF(Z4,'Amazon Model'!Y99/'Amazon Model'!Y16,$H$24) -> 0.15 | AA24: =IF(AA4,'Amazon Model'!Z99/'Amazon Model'!Z16,$H$24) -> 0.15 | AB24: =IF(AB4,'Amazon Model'!AA99/'Amazon Model'!AA16,$H$24) -> 0.15 | AC24: =IF(AC4,'Amazon Model'!AB99/'Amazon Model'!AB16,$H$24) -> 0.15
C25: Other Current Assets as Percent of Revenues | E25: FALSE | F25: =AVERAGEIF($4:$4,TRUE,25:25) -> 0.001483057784 | G25: =LOOKUP($E$4,$2:$2,25:25) -> 0 | H25: 0 | I25: =IF(I4,('Amazon Model'!H100+'Amazon Model'!H101)/'Amazon Model'!H15,$H$25) -> 0.007415288918 | J25: =IF(J4,('Amazon Model'!I100+'Amazon Model'!I101)/'Amazon Model'!I15,$H$25) -> 0 | K25: =IF(K4,('Amazon Model'!J100+'Amazon Model'!J101)/'Amazon Model'!J15,$H$25) -> 0 | L25: =IF(L4,('Amazon Model'!K100+'Amazon Model'!K101)/'Amazon Model'!K15,$H$25) -> 0 | M25: =IF(M4,('Amazon Model'!L100+'Amazon Model'!L101)/'Amazon Model'!L15,$H$25) -> 0 | N25: =IF(N4,('Amazon Model'!M100+'Amazon Model'!M101)/'Amazon Model'!M15,$H$25) -> 0 | O25: =IF(O4,('Amazon Model'!N100+'Amazon Model'!N101)/'Amazon Model'!N15,$H$25) -> 0 | P25: =IF(P4,('Amazon Model'!O100+'Amazon Model'!O101)/'Amazon Model'!O15,$H$25) -> 0 | Q25: =IF(Q4,('Amazon Model'!P100+'Amazon Model'!P101)/'Amazon Model'!P15,$H$25) -> 0 | R25: =IF(R4,('Amazon Model'!Q100+'Amazon Model'!Q101)/'Amazon Model'!Q15,$H$25) -> 0 | S25: =IF(S4,('Amazon Model'!R100+'Amazon Model'!R101)/'Amazon Model'!R15,$H$25) -> 0 | T25: =IF(T4,('Amazon Model'!S100+'Amazon Model'!S101)/'Amazon Model'!S15,$H$25) -> 0 | U25: =IF(U4,('Amazon Model'!T100+'Amazon Model'!T101)/'Amazon Model'!T15,$H$25) -> 0 | V25: =IF(V4,('Amazon Model'!U100+'Amazon Model'!U101)/'Amazon Model'!U15,$H$25) -> 0 | W25: =IF(W4,('Amazon Model'!V100+'Amazon Model'!V101)/'Amazon Model'!V15,$H$25) -> 0 | X25: =IF(X4,('Amazon Model'!W100+'Amazon Model'!W101)/'Amazon Model'!W15,$H$25) -> 0 | Y25: =IF(Y4,('Amazon Model'!X100+'Amazon Model'!X101)/'Amazon Model'!X15,$H$25) -> 0 | Z25: =IF(Z4,('Amazon Model'!Y100+'Amazon Model'!Y101)/'Amazon Model'!Y15,$H$25) -> 0 | AA25: =IF(AA4,('Amazon Model'!Z100+'Amazon Model'!Z101)/'Amazon Model'!Z15,$H$25) -> 0 | AB25: =IF(AB4,('Amazon Model'!AA100+'Amazon Model'!AA101)/'Amazon Model'!AA15,$H$25) -> 0 | AC25: =IF(AC4,('Amazon Model'!AB100+'Amazon Model'!AB101)/'Amazon Model'!AB15,$H$25) -> 0
C26: Accounts Payable as Percent of Expenses | E26: FALSE | F26: =AVERAGEIF($4:$4,TRUE,26:26) -> 0.2093057162 | G26: =LOOKUP($E$4,$2:$2,26:26) -> 0.2038662908 | H26: 0.18 | I26: =IF(I4,'Amazon Model'!H113/I22,$H$26) -> 0.2280041082 | J26: =IF(J4,'Amazon Model'!I113/J22,$H$26) -> 0.213700565 | K26: =IF(K4,'Amazon Model'!J113/K22,$H$26) -> 0.1947928876 | L26: =IF(L4,'Amazon Model'!K113/L22,$H$26) -> 0.2061647297 | M26: =IF(M4,'Amazon Model'!L113/M22,$H$26) -> 0.2038662908 | N26: =IF(N4,'Amazon Model'!M113/N22,$H$26) -> 0.18 | O26: =IF(O4,'Amazon Model'!N113/O22,$H$26) -> 0.18 | P26: =IF(P4,'Amazon Model'!O113/P22,$H$26) -> 0.18 | Q26: =IF(Q4,'Amazon Model'!P113/Q22,$H$26) -> 0.18 | R26: =IF(R4,'Amazon Model'!Q113/R22,$H$26) -> 0.18 | S26: =IF(S4,'Amazon Model'!R113/S22,$H$26) -> 0.18 | T26: =IF(T4,'Amazon Model'!S113/T22,$H$26) -> 0.18 | U26: =IF(U4,'Amazon Model'!T113/U22,$H$26) -> 0.18 | V26: =IF(V4,'Amazon Model'!U113/V22,$H$26) -> 0.18 | W26: =IF(W4,'Amazon Model'!V113/W22,$H$26) -> 0.18 | X26: =IF(X4,'Amazon Model'!W113/X22,$H$26) -> 0.18 | Y26: =IF(Y4,'Amazon Model'!X113/Y22,$H$26) -> 0.18 | Z26: =IF(Z4,'Amazon Model'!Y113/Z22,$H$26) -> 0.18 | AA26: =IF(AA4,'Amazon Model'!Z113/AA22,$H$26) -> 0.18 | AB26: =IF(AB4,'Amazon Model'!AA113/AB22,$H$26) -> 0.18 | AC26: =IF(AC4,'Amazon Model'!AB113/AC22,$H$26) -> 0.18
C27: Taxes Payable as Percent of Taxes | I27: =IF('Amazon Model'!H5,'Amazon Model'!H114/'Amazon Model'!H31) -> 0 | J27: =IF('Amazon Model'!I5,'Amazon Model'!I114/'Amazon Model'!I31) -> 0 | K27: =IF('Amazon Model'!J5,'Amazon Model'!J114/'Amazon Model'!J31) -> 0 | L27: =IF('Amazon Model'!K5,'Amazon Model'!K114/'Amazon Model'!K31) -> 0 | M27: =IF('Amazon Model'!L5,'Amazon Model'!L114/'Amazon Model'!L31) -> 0 | N27: =IF('Amazon Model'!M5,'Amazon Model'!M114/'Amazon Model'!M31) -> FALSE
C28: Other Current Liabilites as Percent of Revenues | E28: FALSE | F28: =AVERAGEIF($4:$4,TRUE,28:28) -> 0.08790188437 | G28: =LOOKUP($E$4,$2:$2,28:28) -> 0.09787484374 | H28: 0.07 | I28: =IF(I$4,'Amazon Model'!H115/'Amazon Model'!H15,$H$28) -> 0.074480275 | J28: =IF(J$4,'Amazon Model'!I115/'Amazon Model'!I15,$H$28) -> 0.08206850235 | K28: =IF(K$4,'Amazon Model'!J115/'Amazon Model'!J15,$H$28) -> 0.09023485223 | L28: =IF(L$4,'Amazon Model'!K115/'Amazon Model'!K15,$H$28) -> 0.09485094851 | M28: =IF(M$4,'Amazon Model'!L115/'Amazon Model'!L15,$H$28) -> 0.09787484374 | N28: =IF(N$4,'Amazon Model'!M115/'Amazon Model'!M15,$H$28) -> 0.07 | O28: =IF(O$4,'Amazon Model'!N115/'Amazon Model'!N15,$H$28) -> 0.07 | P28: =IF(P$4,'Amazon Model'!O115/'Amazon Model'!O15,$H$28) -> 0.07 | Q28: =IF(Q$4,'Amazon Model'!P115/'Amazon Model'!P15,$H$28) -> 0.07 | R28: =IF(R$4,'Amazon Model'!Q115/'Amazon Model'!Q15,$H$28) -> 0.07 | S28: =IF(S$4,'Amazon Model'!R115/'Amazon Model'!R15,$H$28) -> 0.07 | T28: =IF(T$4,'Amazon Model'!S115/'Amazon Model'!S15,$H$28) -> 0.07 | U28: =IF(U$4,'Amazon Model'!T115/'Amazon Model'!T15,$H$28) -> 0.07 | V28: =IF(V$4,'Amazon Model'!U115/'Amazon Model'!U15,$H$28) -> 0.07 | W28: =IF(W$4,'Amazon Model'!V115/'Amazon Model'!V15,$H$28) -> 0.07 | X28: =IF(X$4,'Amazon Model'!W115/'Amazon Model'!W15,$H$28) -> 0.07 | Y28: =IF(Y$4,'Amazon Model'!X115/'Amazon Model'!X15,$H$28) -> 0.07 | Z28: =IF(Z$4,'Amazon Model'!Y115/'Amazon Model'!Y15,$H$28) -> 0.07 | AA28: =IF(AA$4,'Amazon Model'!Z115/'Amazon Model'!Z15,$H$28) -> 0.07 | AB28: =IF(AB$4,'Amazon Model'!AA115/'Amazon Model'!AA15,$H$28) -> 0.07 | AC28: =IF(AC$4,'Amazon Model'!AB115/'Amazon Model'!AB15,$H$28) -> 0.07
C29: Working Capital as Percent of EBITDA
B30: Depreciation
C31: Depreciation Expense as Percent of Gross Assets | I31: =IF('Amazon Model'!H5,'Amazon Model'!H23/'Amazon Model'!H103) -> 0.1743215031 | J31: =IF('Amazon Model'!I5,'Amazon Model'!I23/'Amazon Model'!H103) -> 0.2745302714 | K31: =IF('Amazon Model'!J5,'Amazon Model'!J23/'Amazon Model'!I103) -> 0.2707630149 | L31: =IF('Amazon Model'!K5,'Amazon Model'!K23/'Amazon Model'!J103) -> 0.236691597 | M31: =IF('Amazon Model'!L5,'Amazon Model'!L23/'Amazon Model'!K103) -> 0.2396006656 | N31: =IF('Amazon Model'!M5,'Amazon Model'!M23/'Amazon Model'!L103) -> FALSE
C32: Depreciation Expense as Percent of Net Assets | E32: FALSE | F32: 2 | G32: =AVERAGEIF($4:$4,TRUE,32:32) -> 0.3243951214 | H32: 0.25 | I32: =IF(I4,'Amazon Model'!H23/'Amazon Model'!H105,CHOOSE($F$32,$G$32,$H$32)) -> 0.2365439093 | J32: =IF(J4,'Amazon Model'!I23/'Amazon Model'!H105,CHOOSE($F$32,$G$32,$H$32)) -> 0.3725212465 | K32: =IF(K4,'Amazon Model'!J23/'Amazon Model'!I105,CHOOSE($F$32,$G$32,$H$32)) -> 0.3662100685 | L32: =IF(L4,'Amazon Model'!K23/'Amazon Model'!J105,CHOOSE($F$32,$G$32,$H$32)) -> 0.317030053 | M32: =IF(M4,'Amazon Model'!L23/'Amazon Model'!K105,CHOOSE($F$32,$G$32,$H$32)) -> 0.3296703297 | N32: 0.3 | O32: 0.29 | P32: =IF(P4,'Amazon Model'!O23/'Amazon Model'!N105,CHOOSE($F$32,$G$32,$H$32)) -> 0.25 | Q32: =IF(Q4,'Amazon Model'!P23/'Amazon Model'!O105,CHOOSE($F$32,$G$32,$H$32)) -> 0.25 | R32: =IF(R4,'Amazon Model'!Q23/'Amazon Model'!P105,CHOOSE($F$32,$G$32,$H$32)) -> 0.25 | S32: =IF(S4,'Amazon Model'!R23/'Amazon Model'!Q105,CHOOSE($F$32,$G$32,$H$32)) -> 0.25 | T32: =IF(T4,'Amazon Model'!S23/'Amazon Model'!R105,CHOOSE($F$32,$G$32,$H$32)) -> 0.25 | U32: =IF(U4,'Amazon Model'!T23/'Amazon Model'!S105,CHOOSE($F$32,$G$32,$H$32)) -> 0.25 | V32: =IF(V4,'Amazon Model'!U23/'Amazon Model'!T105,CHOOSE($F$32,$G$32,$H$32)) -> 0.25 | W32: =IF(W4,'Amazon Model'!V23/'Amazon Model'!U105,CHOOSE($F$32,$G$32,$H$32)) -> 0.25 | X32: =IF(X4,'Amazon Model'!W23/'Amazon Model'!V105,CHOOSE($F$32,$G$32,$H$32)) -> 0.25 | Y32: =IF(Y4,'Amazon Model'!X23/'Amazon Model'!W105,CHOOSE($F$32,$G$32,$H$32)) -> 0.25 | Z32: =IF(Z4,'Amazon Model'!Y23/'Amazon Model'!X105,CHOOSE($F$32,$G$32,$H$32)) -> 0.25 | AA32: =IF(AA4,'Amazon Model'!Z23/'Amazon Model'!Y105,CHOOSE($F$32,$G$32,$H$32)) -> 0.25 | AB32: =IF(AB4,'Amazon Model'!AA23/'Amazon Model'!Z105,CHOOSE($F$32,$G$32,$H$32)) -> 0.25 | AC32: =IF(AC4,'Amazon Model'!AB23/'Amazon Model'!AA105,CHOOSE($F$32,$G$32,$H$32)) -> 0.25
C33: Amortisation as Percent of Intangibles | E33: FALSE | F33: 1 | G33: =AVERAGEIF($4:$4,TRUE,33:33) -> 0.05647212844 | H33: =LOOKUP($E$4,$2:$2,33:33) -> 0.06042105263 | I33: =IF(I4,'Amazon Model'!H24/'Amazon Model'!H107,CHOOSE($F$33,$G$33,$H$33)) -> 0.04969512195 | J33: =IF(J4,'Amazon Model'!I24/'Amazon Model'!H107,CHOOSE($F$33,$G$33,$H$33)) -> 0.0512195122 | K33: =IF(K4,'Amazon Model'!J24/'Amazon Model'!I107,CHOOSE($F$33,$G$33,$H$33)) -> 0.05484848485 | L33: =IF(L4,'Amazon Model'!K24/'Amazon Model'!J107,CHOOSE($F$33,$G$33,$H$33)) -> 0.06617647059 | M33: =IF(M4,'Amazon Model'!L24/'Amazon Model'!K107,CHOOSE($F$33,$G$33,$H$33)) -> 0.06042105263 | N33: =IF(N4,'Amazon Model'!M24/'Amazon Model'!L107,CHOOSE($F$33,$G$33,$H$33)) -> 0.05647212844 | O33: =IF(O4,'Amazon Model'!N24/'Amazon Model'!M107,CHOOSE($F$33,$G$33,$H$33)) -> 0.05647212844 | P33: =IF(P4,'Amazon Model'!O24/'Amazon Model'!N107,CHOOSE($F$33,$G$33,$H$33)) -> 0.05647212844 | Q33: =IF(Q4,'Amazon Model'!P24/'Amazon Model'!O107,CHOOSE($F$33,$G$33,$H$33)) -> 0.05647212844 | R33: =IF(R4,'Amazon Model'!Q24/'Amazon Model'!P107,CHOOSE($F$33,$G$33,$H$33)) -> 0.05647212844 | S33: =IF(S4,'Amazon Model'!R24/'Amazon Model'!Q107,CHOOSE($F$33,$G$33,$H$33)) -> 0.05647212844 | T33: =IF(T4,'Amazon Model'!S24/'Amazon Model'!R107,CHOOSE($F$33,$G$33,$H$33)) -> 0.05647212844 | U33: =IF(U4,'Amazon Model'!T24/'Amazon Model'!S107,CHOOSE($F$33,$G$33,$H$33)) -> 0.05647212844 | V33: =IF(V4,'Amazon Model'!U24/'Amazon Model'!T107,CHOOSE($F$33,$G$33,$H$33)) -> 0.05647212844 | W33: =IF(W4,'Amazon Model'!V24/'Amazon Model'!U107,CHOOSE($F$33,$G$33,$H$33)) -> 0.05647212844 | X33: =IF(X4,'Amazon Model'!W24/'Amazon Model'!V107,CHOOSE($F$33,$G$33,$H$33)) -> 0.05647212844 | Y33: =IF(Y4,'Amazon Model'!X24/'Amazon Model'!W107,CHOOSE($F$33,$G$33,$H$33)) -> 0.05647212844 | Z33: =IF(Z4,'Amazon Model'!Y24/'Amazon Model'!X107,CHOOSE($F$33,$G$33,$H$33)) -> 0.05647212844 | AA33: =IF(AA4,'Amazon Model'!Z24/'Amazon Model'!Y107,CHOOSE($F$33,$G$33,$H$33)) -> 0.05647212844 | AB33: =IF(AB4,'Amazon Model'!AA24/'Amazon Model'!Z107,CHOOSE($F$33,$G$33,$H$33)) -> 0.05647212844 | AC33: =IF(AC4,'Amazon Model'!AB24/'Amazon Model'!AA107,CHOOSE($F$33,$G$33,$H$33)) -> 0.05647212844
B34: Other Expenses and Income
C35: Cash and Investments | I35: ='Amazon Model'!H97+'Amazon Model'!H106 -> 11601000 | J35: ='Amazon Model'!I97+'Amazon Model'!I106 -> 12970000 | K35: ='Amazon Model'!J97+'Amazon Model'!J106 -> 18306000 | L35: ='Amazon Model'!K97+'Amazon Model'!K106 -> 20228000 | M35: ='Amazon Model'!L97+'Amazon Model'!L106 -> 26695000 | N35: ='Amazon Model'!M97+'Amazon Model'!M106 -> 0
C36: Non-Operating Income | E36: FALSE | F36: 1 | G36: =AVERAGEIF($4:$4,TRUE,36:36) -> -262200 | H36: =LOOKUP($E$4,$2:$2,36:36) -> -144000 | I36: =IF(I3,'Amazon Model'!H26,CHOOSE($F$36,$G$36,$H$36)) -> -239000 | J36: =IF(J3,'Amazon Model'!I26,CHOOSE($F$36,$G$36,$H$36)) -> -250000 | K36: =IF(K3,'Amazon Model'!J26,CHOOSE($F$36,$G$36,$H$36)) -> -251000 | L36: =IF(L3,'Amazon Model'!K26,CHOOSE($F$36,$G$36,$H$36)) -> -427000 | M36: =IF(M3,'Amazon Model'!L26,CHOOSE($F$36,$G$36,$H$36)) -> -144000 | N36: =IF(N3,'Amazon Model'!M26,CHOOSE($F$36,$G$36,$H$36)) -> 93333.33333 | O36: =IF(O3,'Amazon Model'!N26,CHOOSE($F$36,$G$36,$H$36)) -> -262200 | P36: =IF(P3,'Amazon Model'!O26,CHOOSE($F$36,$G$36,$H$36)) -> -262200 | Q36: =IF(Q3,'Amazon Model'!P26,CHOOSE($F$36,$G$36,$H$36)) -> -262200 | R36: =IF(R3,'Amazon Model'!Q26,CHOOSE($F$36,$G$36,$H$36)) -> -262200 | S36: =IF(S3,'Amazon Model'!R26,CHOOSE($F$36,$G$36,$H$36)) -> -262200 | T36: =IF(T3,'Amazon Model'!S26,CHOOSE($F$36,$G$36,$H$36)) -> -262200 | U36: =IF(U3,'Amazon Model'!T26,CHOOSE($F$36,$G$36,$H$36)) -> -262200 | V36: =IF(V3,'Amazon Model'!U26,CHOOSE($F$36,$G$36,$H$36)) -> -262200 | W36: =IF(W3,'Amazon Model'!V26,CHOOSE($F$36,$G$36,$H$36)) -> -262200 | X36: =IF(X3,'Amazon Model'!W26,CHOOSE($F$36,$G$36,$H$36)) -> -262200 | Y36: =IF(Y3,'Amazon Model'!X26,CHOOSE($F$36,$G$36,$H$36)) -> -262200 | Z36: =IF(Z3,'Amazon Model'!Y26,CHOOSE($F$36,$G$36,$H$36)) -> -262200 | AA36: =IF(AA3,'Amazon Model'!Z26,CHOOSE($F$36,$G$36,$H$36)) -> -262200 | AB36: =IF(AB3,'Amazon Model'!AA26,CHOOSE($F$36,$G$36,$H$36)) -> -262200 | AC36: =IF(AC3,'Amazon Model'!AB26,CHOOSE($F$36,$G$36,$H$36)) -> -262200
C37: Interest and Other Income as Percent of Investments | I37: =IF('Amazon Model'!H5,('Amazon Model'!H26/I35)) -> -0.02060167227 | J37: =IF('Amazon Model'!I5,('Amazon Model'!I26/J35)) -> -0.01927525058 | K37: =IF('Amazon Model'!J5,('Amazon Model'!J26/K35)) -> -0.01371135147 | L37: =IF('Amazon Model'!K5,('Amazon Model'!K26/L35)) -> -0.02110935337 | M37: =IF('Amazon Model'!L5,('Amazon Model'!L26/M35)) -> -0.00539426859 | N37: =IF('Amazon Model'!M5,('Amazon Model'!M26/N35)) -> FALSE
C38: Other Assets | E38: FALSE | F38: 1 | G38: =AVERAGEIF($4:$4,TRUE,38:38) -> 1361400 | H38: =LOOKUP($E$4,$2:$2,38:38) -> 2700000 | I38: =IF(I4,'Amazon Model'!H108,CHOOSE($F$38,$G$38,$H$38)) -> 648000 | J38: =IF(J4,'Amazon Model'!I108,CHOOSE($F$38,$G$38,$H$38)) -> 538000 | K38: =IF(K4,'Amazon Model'!J108,CHOOSE($F$38,$G$38,$H$38)) -> 971000 | L38: =IF(L4,'Amazon Model'!K108,CHOOSE($F$38,$G$38,$H$38)) -> 1950000 | M38: =IF(M4,'Amazon Model'!L108,CHOOSE($F$38,$G$38,$H$38)) -> 2700000 | N38: =IF(N4,'Amazon Model'!M108,CHOOSE($F$38,$G$38,$H$38)) -> 1361400 | O38: =IF(O4,'Amazon Model'!N108,CHOOSE($F$38,$G$38,$H$38)) -> 1361400 | P38: =IF(P4,'Amazon Model'!O108,CHOOSE($F$38,$G$38,$H$38)) -> 1361400 | Q38: =IF(Q4,'Amazon Model'!P108,CHOOSE($F$38,$G$38,$H$38)) -> 1361400 | R38: =IF(R4,'Amazon Model'!Q108,CHOOSE($F$38,$G$38,$H$38)) -> 1361400 | S38: =IF(S4,'Amazon Model'!R108,CHOOSE($F$38,$G$38,$H$38)) -> 1361400 | T38: =IF(T4,'Amazon Model'!S108,CHOOSE($F$38,$G$38,$H$38)) -> 1361400 | U38: =IF(U4,'Amazon Model'!T108,CHOOSE($F$38,$G$38,$H$38)) -> 1361400 | V38: =IF(V4,'Amazon Model'!U108,CHOOSE($F$38,$G$38,$H$38)) -> 1361400 | W38: =IF(W4,'Amazon Model'!V108,CHOOSE($F$38,$G$38,$H$38)) -> 1361400 | X38: =IF(X4,'Amazon Model'!W108,CHOOSE($F$38,$G$38,$H$38)) -> 1361400 | Y38: =IF(Y4,'Amazon Model'!X108,CHOOSE($F$38,$G$38,$H$38)) -> 1361400 | Z38: =IF(Z4,'Amazon Model'!Y108,CHOOSE($F$38,$G$38,$H$38)) -> 1361400 | AA38: =IF(AA4,'Amazon Model'!Z108,CHOOSE($F$38,$G$38,$H$38)) -> 1361400 | AB38: =IF(AB4,'Amazon Model'!AA108,CHOOSE($F$38,$G$38,$H$38)) -> 1361400 | AC38: =IF(AC4,'Amazon Model'!AB108,CHOOSE($F$38,$G$38,$H$38)) -> 1361400
C39: Equity Income After Tax | E39: FALSE | F39: 1 | G39: =AVERAGEIF($4:$4,TRUE,39:39) -> -58399.95 | H39: =LOOKUP($E$4,$2:$2,39:39) -> -92000 | I39: =IF(I4,('Amazon Model'!H28+'Amazon Model'!H32+'Amazon Model'!H33+'Amazon Model'!H35),CHOOSE($F$39,$G$39,$H$39)) -> -157000 | J39: =IF(J4,('Amazon Model'!I28+'Amazon Model'!I32+'Amazon Model'!I33+'Amazon Model'!I35),CHOOSE($F$39,$G$39,$H$39)) -> -64000 | K39: =IF(K4,('Amazon Model'!J28+'Amazon Model'!J32+'Amazon Model'!J33+'Amazon Model'!J35),CHOOSE($F$39,$G$39,$H$39)) -> 49000.25 | L39: =IF(L4,('Amazon Model'!K28+'Amazon Model'!K32+'Amazon Model'!K33+'Amazon Model'!K35),CHOOSE($F$39,$G$39,$H$39)) -> -28000 | M39: =IF(M4,('Amazon Model'!L28+'Amazon Model'!L32+'Amazon Model'!L33+'Amazon Model'!L35),CHOOSE($F$39,$G$39,$H$39)) -> -92000 | N39: =IF(N4,('Amazon Model'!M28+'Amazon Model'!M32+'Amazon Model'!M33+'Amazon Model'!M35),CHOOSE($F$39,$G$39,$H$39)) -> -58399.95 | O39: =IF(O4,('Amazon Model'!N28+'Amazon Model'!N32+'Amazon Model'!N33+'Amazon Model'!N35),CHOOSE($F$39,$G$39,$H$39)) -> -58399.95 | P39: =IF(P4,('Amazon Model'!O28+'Amazon Model'!O32+'Amazon Model'!O33+'Amazon Model'!O35),CHOOSE($F$39,$G$39,$H$39)) -> -58399.95 | Q39: =IF(Q4,('Amazon Model'!P28+'Amazon Model'!P32+'Amazon Model'!P33+'Amazon Model'!P35),CHOOSE($F$39,$G$39,$H$39)) -> -58399.95 | R39: =IF(R4,('Amazon Model'!Q28+'Amazon Model'!Q32+'Amazon Model'!Q33+'Amazon Model'!Q35),CHOOSE($F$39,$G$39,$H$39)) -> -58399.95 | S39: =IF(S4,('Amazon Model'!R28+'Amazon Model'!R32+'Amazon Model'!R33+'Amazon Model'!R35),CHOOSE($F$39,$G$39,$H$39)) -> -58399.95 | T39: =IF(T4,('Amazon Model'!S28+'Amazon Model'!S32+'Amazon Model'!S33+'Amazon Model'!S35),CHOOSE($F$39,$G$39,$H$39)) -> -58399.95 | U39: =IF(U4,('Amazon Model'!T28+'Amazon Model'!T32+'Amazon Model'!T33+'Amazon Model'!T35),CHOOSE($F$39,$G$39,$H$39)) -> -58399.95 | V39: =IF(V4,('Amazon Model'!U28+'Amazon Model'!U32+'Amazon Model'!U33+'Amazon Model'!U35),CHOOSE($F$39,$G$39,$H$39)) -> -58399.95 | W39: =IF(W4,('Amazon Model'!V28+'Amazon Model'!V32+'Amazon Model'!V33+'Amazon Model'!V35),CHOOSE($F$39,$G$39,$H$39)) -> -58399.95 | X39: =IF(X4,('Amazon Model'!W28+'Amazon Model'!W32+'Amazon Model'!W33+'Amazon Model'!W35),CHOOSE($F$39,$G$39,$H$39)) -> -58399.95 | Y39: =IF(Y4,('Amazon Model'!X28+'Amazon Model'!X32+'Amazon Model'!X33+'Amazon Model'!X35),CHOOSE($F$39,$G$39,$H$39)) -> -58399.95 | Z39: =IF(Z4,('Amazon Model'!Y28+'Amazon Model'!Y32+'Amazon Model'!Y33+'Amazon Model'!Y35),CHOOSE($F$39,$G$39,$H$39)) -> -58399.95 | AA39: =IF(AA4,('Amazon Model'!Z28+'Amazon Model'!Z32+'Amazon Model'!Z33+'Amazon Model'!Z35),CHOOSE($F$39,$G$39,$H$39)) -> -58399.95 | AB39: =IF(AB4,('Amazon Model'!AA28+'Amazon Model'!AA32+'Amazon Model'!AA33+'Amazon Model'!AA35),CHOOSE($F$39,$G$39,$H$39)) -> -58399.95 | AC39: =IF(AC4,('Amazon Model'!AB28+'Amazon Model'!AB32+'Amazon Model'!AB33+'Amazon Model'!AB35),CHOOSE($F$39,$G$39,$H$39)) -> -58399.95
C40: Other Income as Percent of Other Assets | I40: =IF('Amazon Model'!H5,I39/I38) -> -0.2422839506 | J40: =IF('Amazon Model'!I5,J39/J38) -> -0.1189591078 | K40: =IF('Amazon Model'!J5,K39/K38) -> 0.05046369722 | L40: =IF('Amazon Model'!K5,L39/L38) -> -0.01435897436 | M40: =IF('Amazon Model'!L5,M39/M38) -> -0.03407407407 | N40: =IF('Amazon Model'!M5,N39/N38) -> FALSE
C41: Total Debt | I41: ='Amazon Model'!H112+'Amazon Model'!H117 -> 4970000 | J41: ='Amazon Model'!I112+'Amazon Model'!I117 -> 6920000 | K41: ='Amazon Model'!J112+'Amazon Model'!J117 -> 16090000 | L41: ='Amazon Model'!K112+'Amazon Model'!K117 -> 17520000 | M41: ='Amazon Model'!L112+'Amazon Model'!L117 -> 20410000 | N41: ='Amazon Model'!M112+'Amazon Model'!M117 -> 0
C42: Interest Expense as Percent of Debt | E42: FALSE | F42: 1 | G42: =AVERAGEIF($4:$4,TRUE,42:42) -> 0.02037017393 | H42: =LOOKUP($E$4,$2:$2,42:42) -> 0.02371386575 | I42: =IF(I4,'Amazon Model'!H29/I41,CHOOSE($F$42,$G$42,$H$42)) -> 0.0185110664 | J42: =IF(J4,'Amazon Model'!I29/J41,CHOOSE($F$42,$G$42,$H$42)) -> 0.02037572254 | K42: =IF(K4,'Amazon Model'!J29/K41,CHOOSE($F$42,$G$42,$H$42)) -> 0.01305158484 | L42: =IF(L4,'Amazon Model'!K29/L41,CHOOSE($F$42,$G$42,$H$42)) -> 0.02619863014 | M42: =IF(M4,'Amazon Model'!L29/M41,CHOOSE($F$42,$G$42,$H$42)) -> 0.02371386575 | N42: =IF(N4,'Amazon Model'!M29/N41,CHOOSE($F$42,$G$42,$H$42)) -> 0.02037017393 | O42: =IF(O4,'Amazon Model'!N29/O41,CHOOSE($F$42,$G$42,$H$42)) -> 0.02037017393 | P42: =IF(P4,'Amazon Model'!O29/P41,CHOOSE($F$42,$G$42,$H$42)) -> 0.02037017393 | Q42: =IF(Q4,'Amazon Model'!P29/Q41,CHOOSE($F$42,$G$42,$H$42)) -> 0.02037017393 | R42: =IF(R4,'Amazon Model'!Q29/R41,CHOOSE($F$42,$G$42,$H$42)) -> 0.02037017393 | S42: =IF(S4,'Amazon Model'!R29/S41,CHOOSE($F$42,$G$42,$H$42)) -> 0.02037017393 | T42: =IF(T4,'Amazon Model'!S29/T41,CHOOSE($F$42,$G$42,$H$42)) -> 0.02037017393 | U42: =IF(U4,'Amazon Model'!T29/U41,CHOOSE($F$42,$G$42,$H$42)) -> 0.02037017393 | V42: =IF(V4,'Amazon Model'!U29/V41,CHOOSE($F$42,$G$42,$H$42)) -> 0.02037017393 | W42: =IF(W4,'Amazon Model'!V29/W41,CHOOSE($F$42,$G$42,$H$42)) -> 0.02037017393 | X42: =IF(X4,'Amazon Model'!W29/X41,CHOOSE($F$42,$G$42,$H$42)) -> 0.02037017393 | Y42: =IF(Y4,'Amazon Model'!X29/Y41,CHOOSE($F$42,$G$42,$H$42)) -> 0.02037017393 | Z42: =IF(Z4,'Amazon Model'!Y29/Z41,CHOOSE($F$42,$G$42,$H$42)) -> 0.02037017393 | AA42: =IF(AA4,'Amazon Model'!Z29/AA41,CHOOSE($F$42,$G$42,$H$42)) -> 0.02037017393 | AB42: =IF(AB4,'Amazon Model'!AA29/AB41,CHOOSE($F$42,$G$42,$H$42)) -> 0.02037017393 | AC42: =IF(AC4,'Amazon Model'!AB29/AC41,CHOOSE($F$42,$G$42,$H$42)) -> 0.02037017393
C43: Interest Income | I43: ='Amazon Model'!H27 -> 40000 | J43: ='Amazon Model'!I27 -> 38000 | K43: ='Amazon Model'!J27 -> 39000 | L43: ='Amazon Model'!K27 -> 50000 | M43: ='Amazon Model'!L27 -> 100000 | N43: ='Amazon Model'!M27 -> 0 | O43: ='Amazon Model'!N27 -> 0 | P43: ='Amazon Model'!O27 -> 0 | Q43: ='Amazon Model'!P27 -> 0 | R43: ='Amazon Model'!Q27 -> 0 | S43: ='Amazon Model'!R27 -> 0 | T43: ='Amazon Model'!S27 -> 0 | U43: ='Amazon Model'!T27 -> 0 | V43: ='Amazon Model'!U27 -> 0 | W43: ='Amazon Model'!V27 -> 0 | X43: ='Amazon Model'!W27 -> 0 | Y43: ='Amazon Model'!X27 -> 0 | Z43: ='Amazon Model'!Y27 -> 0 | AA43: ='Amazon Model'!Z27 -> 0 | AB43: ='Amazon Model'!AA27 -> 0 | AC43: ='Amazon Model'!AB27 -> 0
C44: Cash Balance | I44: ='Amazon Model'!H97+'Amazon Model'!H106 -> 11601000 | J44: ='Amazon Model'!I97+'Amazon Model'!I106 -> 12970000 | K44: ='Amazon Model'!J97+'Amazon Model'!J106 -> 18306000 | L44: ='Amazon Model'!K97+'Amazon Model'!K106 -> 20228000 | M44: ='Amazon Model'!L97+'Amazon Model'!L106 -> 26695000 | N44: ='Amazon Model'!M97+'Amazon Model'!M106 -> 0 | O44: ='Amazon Model'!N97+'Amazon Model'!N106 -> 0 | P44: ='Amazon Model'!O97+'Amazon Model'!O106 -> 0 | Q44: ='Amazon Model'!P97+'Amazon Model'!P106 -> 0 | R44: ='Amazon Model'!Q97+'Amazon Model'!Q106 -> 0 | S44: ='Amazon Model'!R97+'Amazon Model'!R106 -> 0 | T44: ='Amazon Model'!S97+'Amazon Model'!S106 -> 0 | U44: ='Amazon Model'!T97+'Amazon Model'!T106 -> 0 | V44: ='Amazon Model'!U97+'Amazon Model'!U106 -> 0 | W44: ='Amazon Model'!V97+'Amazon Model'!V106 -> 0 | X44: ='Amazon Model'!W97+'Amazon Model'!W106 -> 0 | Y44: ='Amazon Model'!X97+'Amazon Model'!X106 -> 0 | Z44: ='Amazon Model'!Y97+'Amazon Model'!Y106 -> 0 | AA44: ='Amazon Model'!Z97+'Amazon Model'!Z106 -> 0 | AB44: ='Amazon Model'!AA97+'Amazon Model'!AA106 -> 0 | AC44: ='Amazon Model'!AB97+'Amazon Model'!AB106 -> 0
C45: Interest Income Rate | E45: FALSE | F45: 1 | G45: =AVERAGEIF($4:$4,TRUE,45:45) -> 0.002945221367 | H45: =LOOKUP($E$4,$2:$2,45:45) -> 0.003746019854 | I45: =IF(I4,I43/I44,$H$45) -> 0.003447978623 | J45: =IF(J4,J43/J44,$H$45) -> 0.002929838088 | K45: 0.002130449033 | L45: 0.002471821238 | M45: 0.003746019854 | N45: 0.003746019854 | O45: 0.003746019854 | P45: 0.003746019854 | Q45: 0.003746019854 | R45: 0.003746019854 | S45: 0.003746019854 | T45: 0.003746019854 | U45: 0.003746019854 | V45: 0.003746019854 | W45: 0.003746019854 | X45: 0.003746019854 | Y45: 0.003746019854 | Z45: 0.003746019854 | AA45: 0.003746019854 | AB45: 0.003746019854 | AC45: 0.003746019854
B46: Income Tax and Equity
C47: Income Tax Rate | E47: FALSE | F47: 2 | G47: =AVERAGEIF($4:$4,TRUE,47:47) -> 0.1439570841 | H47: =LOOKUP($E$4,$2:$2,47:47) -> 0.3674203494 | I47: =IF(I4,'Amazon Model'!H31/'Amazon Model'!H30,CHOOSE($F$47,$G$47,$H$47)) -> 0.7838827839 | J47: =IF(J4,'Amazon Model'!I31/'Amazon Model'!I30,CHOOSE($F$47,$G$47,$H$47)) -> 0.3226452906 | K47: =IF(K4,'Amazon Model'!J31/'Amazon Model'!J30,CHOOSE($F$47,$G$47,$H$47)) -> -1.357720818 | L47: =IF(L4,'Amazon Model'!K31/'Amazon Model'!K30,CHOOSE($F$47,$G$47,$H$47)) -> 0.6035578145 | M47: =IF(M4,'Amazon Model'!L31/'Amazon Model'!L30,CHOOSE($F$47,$G$47,$H$47)) -> 0.3674203494 | N47: =IF(N4,'Amazon Model'!M31/'Amazon Model'!M30,CHOOSE($F$47,$G$47,$H$47)) -> 0.3674203494 | O47: =IF(O4,'Amazon Model'!N31/'Amazon Model'!N30,CHOOSE($F$47,$G$47,$H$47)) -> 0.3674203494 | P47: =IF(P4,'Amazon Model'!O31/'Amazon Model'!O30,CHOOSE($F$47,$G$47,$H$47)) -> 0.3674203494 | Q47: =IF(Q4,'Amazon Model'!P31/'Amazon Model'!P30,CHOOSE($F$47,$G$47,$H$47)) -> 0.3674203494 | R47: =IF(R4,'Amazon Model'!Q31/'Amazon Model'!Q30,CHOOSE($F$47,$G$47,$H$47)) -> 0.3674203494 | S47: =IF(S4,'Amazon Model'!R31/'Amazon Model'!R30,CHOOSE($F$47,$G$47,$H$47)) -> 0.3674203494 | T47: =IF(T4,'Amazon Model'!S31/'Amazon Model'!S30,CHOOSE($F$47,$G$47,$H$47)) -> 0.3674203494 | U47: =IF(U4,'Amazon Model'!T31/'Amazon Model'!T30,CHOOSE($F$47,$G$47,$H$47)) -> 0.3674203494 | V47: =IF(V4,'Amazon Model'!U31/'Amazon Model'!U30,CHOOSE($F$47,$G$47,$H$47)) -> 0.3674203494 | W47: =IF(W4,'Amazon Model'!V31/'Amazon Model'!V30,CHOOSE($F$47,$G$47,$H$47)) -> 0.3674203494 | X47: =IF(X4,'Amazon Model'!W31/'Amazon Model'!W30,CHOOSE($F$47,$G$47,$H$47)) -> 0.3674203494 | Y47: =IF(Y4,'Amazon Model'!X31/'Amazon Model'!X30,CHOOSE($F$47,$G$47,$H$47)) -> 0.3674203494 | Z47: =IF(Z4,'Amazon Model'!Y31/'Amazon Model'!Y30,CHOOSE($F$47,$G$47,$H$47)) -> 0.3674203494 | AA47: =IF(AA4,'Amazon Model'!Z31/'Amazon Model'!Z30,CHOOSE($F$47,$G$47,$H$47)) -> 0.3674203494 | AB47: =IF(AB4,'Amazon Model'!AA31/'Amazon Model'!AA30,CHOOSE($F$47,$G$47,$H$47)) -> 0.3674203494 | AC47: =IF(AC4,'Amazon Model'!AB31/'Amazon Model'!AB30,CHOOSE($F$47,$G$47,$H$47)) -> 0.3674203494
C48: Minority Income Percent | I48: =IF('Amazon Model'!H5,'Amazon Model'!H37/'Amazon Model'!H36) -> 0 | J48: =IF('Amazon Model'!I5,'Amazon Model'!I37/'Amazon Model'!I36) -> 0 | K48: =IF('Amazon Model'!J5,'Amazon Model'!J37/'Amazon Model'!J36) -> 0 | L48: =IF('Amazon Model'!K5,'Amazon Model'!K37/'Amazon Model'!K36) -> 0 | M48: =IF('Amazon Model'!L5,'Amazon Model'!L37/'Amazon Model'!L36) -> 0 | N48: =IF('Amazon Model'!M5,'Amazon Model'!M37/'Amazon Model'!M36) -> FALSE
C49: Dividend as Percent of Income | I49: =IF('Amazon Model'!H5,-'Amazon Model'!H72/'Amazon Model'!H38) -> 0 | J49: =IF('Amazon Model'!I5,-'Amazon Model'!I72/'Amazon Model'!I38) -> 0 | K49: =IF('Amazon Model'!J5,-'Amazon Model'!J72/'Amazon Model'!J38) -> 0 | L49: =IF('Amazon Model'!K5,-'Amazon Model'!K72/'Amazon Model'!K38) -> 0 | M49: =IF('Amazon Model'!L5,-'Amazon Model'!L72/'Amazon Model'!L38) -> 0 | N49: =IF('Amazon Model'!M5,-'Amazon Model'!M72/'Amazon Model'!M38) -> FALSE
C50: Other Funds | E50: FALSE | F50: 1 | G50: =AVERAGEIF($4:$4,TRUE,50:50) -> 2224000 | H50: =LOOKUP($E$4,$2:$2,50:50) -> 2920000 | I50: =IF(I4,'Amazon Model'!H56,CHOOSE($F$50,$G$50,$H$50)) -> 1130000 | J50: =IF(J4,'Amazon Model'!I56,CHOOSE($F$50,$G$50,$H$50)) -> 1790000 | K50: =IF(K4,'Amazon Model'!J56,CHOOSE($F$50,$G$50,$H$50)) -> 2240000 | L50: =IF(L4,'Amazon Model'!K56,CHOOSE($F$50,$G$50,$H$50)) -> 3040000 | M50: =IF(M4,'Amazon Model'!L56,CHOOSE($F$50,$G$50,$H$50)) -> 2920000 | N50: =IF(N4,'Amazon Model'!M56,CHOOSE($F$50,$G$50,$H$50)) -> 2224000 | O50: =IF(O4,'Amazon Model'!N56,CHOOSE($F$50,$G$50,$H$50)) -> 2224000 | P50: =IF(P4,'Amazon Model'!O56,CHOOSE($F$50,$G$50,$H$50)) -> 2224000 | Q50: =IF(Q4,'Amazon Model'!P56,CHOOSE($F$50,$G$50,$H$50)) -> 2224000 | R50: =IF(R4,'Amazon Model'!Q56,CHOOSE($F$50,$G$50,$H$50)) -> 2224000 | S50: =IF(S4,'Amazon Model'!R56,CHOOSE($F$50,$G$50,$H$50)) -> 2224000 | T50: =IF(T4,'Amazon Model'!S56,CHOOSE($F$50,$G$50,$H$50)) -> 2224000 | U50: =IF(U4,'Amazon Model'!T56,CHOOSE($F$50,$G$50,$H$50)) -> 2224000 | V50: =IF(V4,'Amazon Model'!U56,CHOOSE($F$50,$G$50,$H$50)) -> 2224000 | W50: =IF(W4,'Amazon Model'!V56,CHOOSE($F$50,$G$50,$H$50)) -> 2224000 | X50: =IF(X4,'Amazon Model'!W56,CHOOSE($F$50,$G$50,$H$50)) -> 2224000 | Y50: =IF(Y4,'Amazon Model'!X56,CHOOSE($F$50,$G$50,$H$50)) -> 2224000 | Z50: =IF(Z4,'Amazon Model'!Y56,CHOOSE($F$50,$G$50,$H$50)) -> 2224000 | AA50: =IF(AA4,'Amazon Model'!Z56,CHOOSE($F$50,$G$50,$H$50)) -> 2224000 | AB50: =IF(AB4,'Amazon Model'!AA56,CHOOSE($F$50,$G$50,$H$50)) -> 2224000 | AC50: =IF(AC4,'Amazon Model'!AB56,CHOOSE($F$50,$G$50,$H$50)) -> 2224000
C51: Unsual Expense | I51: ='Amazon Model'!H22 -> 0 | J51: ='Amazon Model'!I22 -> 0 | K51: ='Amazon Model'!J22 -> 0 | L51: ='Amazon Model'!K22 -> 0 | M51: ='Amazon Model'!L22 -> -67000 | N51: ='Amazon Model'!M22 -> -193333.3333
C52: Other Funds as Percent of Unusual Expense | I52: =IFERROR(IF('Amazon Model'!H5,I50/I51),0) -> 0 | J52: =IFERROR(IF('Amazon Model'!I5,J50/J51),0) -> 0 | K52: =IFERROR(IF('Amazon Model'!J5,K50/K51),0) -> 0 | L52: =IFERROR(IF('Amazon Model'!K5,L50/L51),0) -> 0 | M52: =IFERROR(IF('Amazon Model'!L5,M50/M51),0) -> -43.58208955 | N52: =IFERROR(IF('Amazon Model'!M5,N50/N51),0) -> FALSE
C54: Extraordinaries & Discontinued Operations | I54: ='Amazon Model'!H39 -> 0 | J54: ='Amazon Model'!I39 -> 0 | K54: ='Amazon Model'!J39 -> 0 | L54: ='Amazon Model'!K39 -> 0 | M54: ='Amazon Model'!L39 -> 0 | N54: ='Amazon Model'!M39 -> 0
A58: Time Series Variables
B59: Growth | E59: =F9 -> 0 | H59: 2018 | I59: 2019 | J59: =I59+4 -> 2023 | K59: =J59+4 -> 2027
C60: Base Case | H60: 0.29 | I60: 0.2 | J60: 0.15 | K60: 0.05
C61: Case 1 - Higher Growth | H61: 0.32 | I61: 0.2 | J61: 0.18 | K61: 0.07
C62: Case 2 - Lower Growth | H62: 0.25 | I62: 0.1 | J62: 0.08 | K62: 0.03
C63: Case 3 - Varying Growth | H63: 0.29 | I63: 0.12 | J63: 0.15 | K63: 0.04
C65: =INDEX(C60:C63,$F$9) ->  | O65: =INDEX(O60:O63,$F$9) -> 
B67: COGS Margin | E67: =F10 -> 0 | H67: 2017 | I67: 2018 | J67: =I67+4 -> 2022 | K67: =J67+4 -> 2026
C68: Base Case | H68: 0.57 | I68: 0.61 | J68: 0.58 | K68: 0.58 | O68: =interpolate_look_up(O$2,$67:$67,68:68) -> 0.61 | P68: =interpolate_look_up(P$2,$67:$67,68:68) -> 0.6023575728 | Q68: 0.5948108943 | R68: 0.5873587649 | S68: 0.58 | T68: 0.58 | U68: 0.58 | V68: 0.58 | W68: 0.58 | X68: 0.58 | Y68: 0.58 | Z68: 0.58 | AA68: 0.58 | AB68: 0.58 | AC68: 0.58
C69: Case 2 - Lower Cost/High Price | H69: 0.57 | I69: 0.57 | J69: 0.57 | K69: 0.52 | O69: =interpolate_look_up(O$2,$67:$67,69:69) -> 0.57 | P69: 0.57 | Q69: 0.57 | R69: 0.57 | S69: 0.57 | T69: 0.5570664171 | U69: 0.5444263036 | V69: 0.5320730005 | W69: 0.52 | X69: 0.52 | Y69: 0.52 | Z69: 0.52 | AA69: 0.52 | AB69: 0.52 | AC69: 0.52
C70: Case 3 - Higher Cost/Lower Price | H70: 0.57 | I70: 0.61 | J70: 0.61 | K70: 0.61 | O70: 0.61 | P70: 0.61 | Q70: 0.61 | R70: 0.61 | S70: 0.61 | T70: 0.61 | U70: 0.61 | V70: 0.61 | W70: 0.61 | X70: 0.61 | Y70: 0.61 | Z70: 0.61 | AA70: 0.61 | AB70: 0.61 | AC70: 0.61
C71: Case 3 - Varying Cost | H71: 0.57 | I71: 0.65 | J71: 0.6 | K71: 0.63 | O71: 0.65 | P71: 0.6371223351 | Q71: 0.6244997998 | R71: 0.6121273396 | S71: 0.6 | T71: 0.6073633407 | U71: 0.614817046 | V71: 0.6223622249 | W71: 0.63 | X71: 0.63 | Y71: 0.63 | Z71: 0.63 | AA71: 0.63 | AB71: 0.63 | AC71: 0.63
C73: =INDEX(C68:C71,$E$67) ->  | O73: =INDEX(O68:O71,$E$67) -> 
B75: R&D as Perecent of Margin | E75: =F11 -> 0 | H75: 2017 | I75: 2018 | J75: =I75+4 -> 2022 | K75: =J75+4 -> 2026
C76: Base Case | H76: 0.11 | I76: 0.1 | J76: 0.09 | K76: 0.08 | N76: =LOOKUP(N$2,$75:$75,76:76) -> 0.11 | O76: 0.1 | P76: 0.1 | Q76: 0.1 | R76: 0.1 | S76: 0.09 | T76: 0.09 | U76: 0.09 | V76: 0.09 | W76: 0.08 | X76: 0.08 | Y76: 0.08 | Z76: 0.08 | AA76: 0.08 | AB76: 0.08 | AC76: 0.08
C77: Case 2 - Lower Spending | H77: 0.11 | I77: 0.09 | J77: 0.08 | K77: 0.07 | N77: 0.11 | O77: 0.09 | P77: 0.09 | Q77: 0.09 | R77: 0.09 | S77: 0.08 | T77: 0.08 | U77: 0.08 | V77: 0.08 | W77: 0.07 | X77: 0.07 | Y77: 0.07 | Z77: 0.07 | AA77: 0.07 | AB77: 0.07 | AC77: 0.07
C78: Case 3 - Higher Spending | H78: 0.11 | I78: 0.11 | J78: 0.11 | K78: 0.09 | N78: 0.11 | O78: 0.11 | P78: 0.11 | Q78: 0.11 | R78: 0.11 | S78: 0.11 | T78: 0.11 | U78: 0.11 | V78: 0.11 | W78: 0.09 | X78: 0.09 | Y78: 0.09 | Z78: 0.09 | AA78: 0.09 | AB78: 0.09 | AC78: 0.09
C79: Case 3 - Varying Cost | H79: 0.11 | I79: 0.11 | J79: 0.11 | K79: 0.11 | N79: 0.11 | O79: 0.11 | P79: 0.11 | Q79: 0.11 | R79: 0.11 | S79: 0.11 | T79: 0.11 | U79: 0.11 | V79: 0.11 | W79: 0.11 | X79: 0.11 | Y79: 0.11 | Z79: 0.11 | AA79: 0.11 | AB79: 0.11 | AC79: 0.11
C81: =INDEX(C76:C79,$E$75) ->  | N81: =INDEX(N76:N79,$E$75) ->  | O81: =INDEX(O76:O79,$E$75) ->  | P81: =INDEX(P76:P79,$E$75) -> 
B83: Other SG&A as Percent of Revenue | E83: =F12 -> 0 | H83: 2017 | I83: 2018 | J83: =I83+4 -> 2022 | K83: =J83+4 -> 2026
C84: Base Case | H84: 0.2147 | I84: 0.2 | J84: 0.2 | K84: 0.2 | N84: =LOOKUP(N$2,$83:$83,84:84) -> 0.2147 | O84: =LOOKUP(O$2,$83:$83,84:84) -> 0.2 | P84: =LOOKUP(P$2,$67:$67,84:84) -> 0.2 | Q84: 0.2 | R84: 0.2 | S84: 0.2 | T84: 0.2 | U84: 0.2 | V84: 0.2 | W84: 0.2 | X84: 0.2 | Y84: 0.2 | Z84: 0.2 | AA84: 0.2 | AB84: 0.2 | AC84: 0.2
C85: Case 2 - Lower Cost | H85: 0.2147 | I85: 0.17 | J85: 0.17 | K85: 0.17 | N85: =LOOKUP(N$2,$83:$83,85:85) -> 0.2147 | O85: =LOOKUP(O$2,$67:$67,85:85) -> 0.17 | P85: 0.17 | Q85: 0.17 | R85: 0.17 | S85: 0.17 | T85: 0.17 | U85: 0.17 | V85: 0.17 | W85: 0.17 | X85: 0.17 | Y85: 0.17 | Z85: 0.17 | AA85: 0.17 | AB85: 0.17 | AC85: 0.17
C86: Case 3 - Higher Cost | H86: 0.2147 | I86: 0.2147 | J86: 0.2147 | K86: 0.2147 | N86: =LOOKUP(N$2,$83:$83,86:86) -> 0.2147 | O86: =LOOKUP(O$2,$67:$67,86:86) -> 0.2147 | P86: 0.2147 | Q86: 0.2147 | R86: 0.2147 | S86: 0.2147 | T86: 0.2147 | U86: 0.2147 | V86: 0.2147 | W86: 0.2147 | X86: 0.2147 | Y86: 0.2147 | Z86: 0.2147 | AA86: 0.2147 | AB86: 0.2147 | AC86: 0.2147
C87: Case 3 - Varying Cost | H87: 0.2147 | I87: 0.2 | J87: 0.2 | K87: 0.2 | N87: =LOOKUP(N$2,$83:$83,87:87) -> 0.2147 | O87: =LOOKUP(O$2,$67:$67,87:87) -> 0.2 | P87: 0.2 | Q87: 0.2 | R87: 0.2 | S87: 0.2 | T87: 0.2 | U87: 0.2 | V87: 0.2 | W87: 0.2 | X87: 0.2 | Y87: 0.2 | Z87: 0.2 | AA87: 0.2 | AB87: 0.2 | AC87: 0.2
C89: =INDEX(C84:C87,$E$83) ->  | N89: =INDEX(N84:N87,$E$83) ->  | O89: =INDEX(O84:O87,$E$83) -> 
B91: Capital Expenditures/Sales | E91: =F16 -> 0 | H91: 2017 | I91: 2018 | J91: =I91+4 -> 2022 | K91: =J91+4 -> 2026
C92: Base Case | H92: 0.05 | I92: 0.06 | J92: 0.08 | K92: 0.07 | N92: =LOOKUP(N$2,$91:$91,92:92) -> 0.05 | O92: =LOOKUP(O$2,$91:$91,92:92) -> 0.06 | P92: 0.06 | Q92: 0.06 | R92: 0.06 | S92: 0.08 | T92: 0.08 | U92: 0.08 | V92: 0.08 | W92: 0.07 | X92: 0.07 | Y92: 0.07 | Z92: 0.07 | AA92: 0.07 | AB92: 0.07 | AC92: 0.07
C93: Case 2 - Lower Cap Exp | H93: 0.05 | I93: 0.07 | J93: 0.04 | K93: 0.03 | N93: =LOOKUP(N$2,$91:$91,93:93) -> 0.05 | O93: 0.07 | P93: 0.07 | Q93: 0.07 | R93: 0.07 | S93: 0.04 | T93: 0.04 | U93: 0.04 | V93: 0.04 | W93: 0.03 | X93: 0.03 | Y93: 0.03 | Z93: 0.03 | AA93: 0.03 | AB93: 0.03 | AC93: 0.03
C94: Case 3 - Lower Cap Exp | H94: 0.06 | I94: 0.08 | J94: 0.08 | K94: 0.08 | N94: 0.06 | O94: 0.08 | P94: 0.08 | Q94: 0.08 | R94: 0.08 | S94: 0.08 | T94: 0.08 | U94: 0.08 | V94: 0.08 | W94: 0.08 | X94: 0.08 | Y94: 0.08 | Z94: 0.08 | AA94: 0.08 | AB94: 0.08 | AC94: 0.08
C95: Case 3 - Varying Cap Exp | H95: 0.05 | I95: 0.07 | J95: 0.04 | K95: 0.03 | N95: 0.05 | O95: 0.07 | P95: 0.07 | Q95: 0.07 | R95: 0.07 | S95: 0.04 | T95: 0.04 | U95: 0.04 | V95: 0.04 | W95: 0.03 | X95: 0.03 | Y95: 0.03 | Z95: 0.03 | AA95: 0.03 | AB95: 0.03 | AC95: 0.03
C97: =INDEX(C92:C95,$E$91) ->  | N97: =INDEX(N92:N95,$E$91) ->  | O97: =INDEX(O92:O95,$E$91) -> 

Sheet Amazon Model
D1: 2 | E1: Jan Start | F1: =F2=1 -> TRUE
B2: =INDEX(INDIRECT(#REF!&"A:A"),MATCH(C10,INDIRECT(#REF!&"A:A"),0)+1) ->  | E2: First Month | F2: 1 | H2: =DATE(F3,$F$2,1) -> 2012-01-01 | I2: =H3+1 -> 2013-01-01 | J2: =I3+1 -> 2014-01-01 | K2: =J3+1 -> 2015-01-01 | L2: =K3+1 -> 2016-01-01 | M2: =L3+1 -> 2017-01-01 | N2: =M3+1 -> 2018-01-01 | O2: 2019-01-01 | P2: 2020-01-01 | Q2: 2021-01-01 | R2: 2022-01-01 | S2: 2023-01-01 | T2: 2024-01-01 | U2: 2025-01-01 | V2: 2026-01-01 | W2: 2027-01-01 | X2: 2028-01-01 | Y2: 2029-01-01 | Z2: 2030-01-01 | AA2: 2031-01-01 | AB2: 2032-01-01
B3: Last Annual Date | E3: First Year | F3: =IF(F1,H13,H13-1) -> 2012 | H3: =EOMONTH(H2,11) -> 2012-12-31 | I3: 2013-12-31 | J3: 2014-12-31 | K3: 2015-12-31 | L3: 2016-12-31 | M3: 2017-12-31 | N3: 2018-12-31 | O3: 2019-12-31 | P3: 2020-12-31 | Q3: 2021-12-31 | R3: 2022-12-31 | S3: 2023-12-31 | T3: 2024-12-31 | U3: 2025-12-31 | V3: 2026-12-31 | W3: 2027-12-31 | X3: 2028-12-31 | Y3: 2029-12-31 | Z3: 2030-12-31 | AA3: 2031-12-31 | AB3: 2032-12-31
H4: =YEAR(H3) -> 2012 | I4: =YEAR(I3) -> 2013 | J4: 2014 | K4: 2015 | L4: 2016 | M4: 2017 | N4: 2018 | O4: 2019 | P4: 2020 | Q4: 2021 | R4: 2022 | S4: 2023 | T4: 2024 | U4: 2025 | V4: 2026 | W4: 2027 | X4: 2028 | Y4: 2029 | Z4: 2030 | AA4: 2031 | AB4: 2032
C5: Histoic Year | E5: Last Year | F5: =IF(F1,L13,L13-1) -> 2016 | H5: =H3<=$F$6 -> TRUE | I5: TRUE | J5: TRUE | K5: TRUE | L5: TRUE | M5: FALSE | N5: FALSE | O5: FALSE | P5: FALSE | Q5: FALSE | R5: FALSE | S5: FALSE | T5: FALSE | U5: FALSE | V5: FALSE | W5: FALSE | X5: FALSE | Y5: FALSE | Z5: FALSE | AA5: FALSE | AB5: FALSE
C6: Partial Historic Year | F6: =DATE(F5+1,F2,1)-1 -> 2016-12-31 | H6: =YEAR(H3)=$F$7 -> FALSE | I6: FALSE | J6: FALSE | K6: FALSE | L6: FALSE | M6: TRUE | N6: FALSE | O6: FALSE | P6: FALSE | Q6: FALSE | R6: FALSE | S6: FALSE | T6: FALSE | U6: FALSE | V6: FALSE | W6: FALSE | X6: FALSE | Y6: FALSE | Z6: FALSE | AA6: FALSE | AB6: FALSE
C7: Assumption Year | E7: Annual Row | F7: =F5+1 -> 2017 | H7: =OR(H5:H6) -> TRUE | I7: TRUE | J7: TRUE | K7: TRUE | L7: TRUE | M7: TRUE | N7: FALSE | O7: FALSE | P7: FALSE | Q7: FALSE | R7: FALSE | S7: FALSE | T7: FALSE | U7: FALSE | V7: FALSE | W7: FALSE | X7: FALSE | Y7: FALSE | Z7: FALSE | AA7: FALSE | AB7: FALSE
A9: Profit and Loss
C10: View Ratios
C11: All values USD millions.
C13: Fiscal Year | H13: 2012 | I13: 2013 | J13: 2014 | K13: 2015 | L13: 2016 | M13: 2017
C14: Income Statement
D15: Sales/Revenue | H15: 61090000 | I15: 74450000 | J15: 88990000 | K15: 107010000 | L15: 135990000 | M15: 175899379.4
D16: COGS excluding D&A | H16: 44140000 | I16: 51380000 | J16: 58570000 | K16: 66000000 | L16: 80780000 | M16: 102549947.4
D17: Cash Gross Margin | H17: 16950000 | I17: 23070000 | J17: 30420000 | K17: 41010000 | L17: 55210000 | M17: 75672062.95
D18: Research & Development | H18: 4560000 | I18: 6570000 | J18: 9280000 | K18: 12540000 | L18: 16090000 | M18: 22828261.26
D19: Other SG&A | H19: 9720000 | I19: 12850000 | J19: 16650000 | K19: 20410000 | L19: 27280000 | M19: 37768214.45
D20: Other Operating Expense | H20: 0 | I20: 0 | J20: 0 | K20: 0 | L20: 0 | M20: 0
D21: EBITDA Calculated | H21: 2670000 | I21: 3650000 | J21: 4490000 | K21: 8060000 | L21: 11840000 | M21: 15257164.79
D22: Unusual Expense | H22: 0 | I22: 0 | J22: 0 | K22: 0 | L22: -67000 | M22: -193333.3333
D23: Depreciation | H23: 1670000 | I23: 2630000 | J23: 4010000.25 | K23: 5380000 | L23: 7200000 | M23: 0
D24: Amortization of Intangibles | H24: 163000 | I24: 168000 | J24: 181000 | K24: 270000 | L24: 287000 | M24: 0
D25: EBIT Computed | H25: 837000 | I25: 852000 | J25: 298999.75 | K25: 2410000 | L25: 4420000 | M25: 15450498.12
D26: Non Operating Income/Expense | H26: -239000 | I26: -250000 | J26: -251000 | K26: -427000 | L26: -144000 | M26: 93333.33333
D27: Non-Operating Interest Income | H27: 40000 | I27: 38000 | J27: 39000 | K27: 50000 | L27: 100000 | M27: 0
D28: Equity in Affiliates (Pretax) | H28: 0 | I28: 0 | J28: 0 | K28: 0 | L28: 0 | M28: 0
D29: Interest Expense | H29: 92000 | I29: 141000 | J29: 210000 | K29: 459000 | L29: 484000 | M29: 766983.0508
D30: Pretax Income Computed | H30: 546000 | I30: 499000 | J30: -123000.25 | K30: 1574000 | L30: 3892000 | M30: 14776848.41
D31: Income Tax | H31: 428000 | I31: 161000 | J31: 167000 | K31: 950000 | L31: 1430000 | M31: 858855.8952
D32: Equity in Affiliates | H32: -155000 | I32: -71000 | J32: 37000 | K32: -22000 | L32: -96000 | M32: -4600
D33: Other After Tax Income (Expense) | H33: 0 | I33: 0 | J33: 0 | K33: 0 | L33: 0 | M33: 0
D34: Consolidated Net Income | H34: -39000 | I34: 274000 | J34: -241000 | K34: 596000 | L34: 2370000
D35: Other Reconciling Item (Income) | H35: -2000 | I35: 7000 | J35: 12000.25 | K35: -6000 | L35: 4000
D36: Net Income Computed | H36: -39000 | I36: 274000 | J36: -241000 | K36: 596000 | L36: 2370000
D37: Minority Interest Expense | H37: 0 | I37: 0 | J37: 0 | K37: 0 | L37: 0
D38: Net Income | H38: -39000 | I38: 274000 | J38: -241000 | K38: 596000 | L38: 2370000
D39: Extraordinaries & Discontinued Operations | H39: 0 | I39: 0 | J39: 0 | K39: 0 | L39: 0
D40: Net Income After Extraordinaries | H40: -39000 | I40: 274000 | J40: -241000 | K40: 596000 | L40: 2370000
D41: Preferred Dividends | H41: 0 | I41: 0 | J41: 0 | K41: 0 | L41: 0
D42: Net Income Available to Common | H42: -39000 | I42: 274000 | J42: -241000 | K42: 596000 | L42: 2370000
D44: EPS (Basic) | H44: -0.09 | I44: 0.6 | J44: -0.52 | K44: 1.28 | L44: 5
D45: Basic Shares Outstanding | H45: 453000 | I45: 457000 | J45: 462000 | K45: 467000 | L45: 474000
D46: EPS (Diluted) | H46: -0.09 | I46: 0.59 | J46: -0.52 | K46: 1.25 | L46: 4.9
D47: Diluted Shares Outstanding | H47: 453000 | I47: 465000 | J47: 462000 | K47: 477000 | L47: 484000
A49: Cash Flow
B50: View Ratios
B51: All values USD millions.
B52: Fiscal Year | H52: =H13 -> 2012 | I52: 2013 | J52: 2014 | K52: 2015 | L52: 2016 | M52: 2017
D53: Net Income before Extraordinaries | H53: -39000 | I53: 274000 | J53: -241000 | K53: 596000 | L53: 2370000
D54: Depreciation, Depletion & Amortization | H54: 1830000 | I54: 2800000 | J54: 4190000 | K54: 5650000 | L54: 7480000 | M54: 10080000
D55: Deferred Taxes & Investment Tax Credit | H55: -265000 | I55: -156000 | J55: -316000 | K55: 81000 | L55: -246000 | M55: 0
D56: Other Funds | H56: 1130000 | I56: 1790000 | J56: 2240000 | K56: 3040000 | L56: 2920000 | M56: 4081000
D57: Funds from Operations | H57: 2656000 | I57: 4708000 | J57: 5873000 | K57: 9367000 | L57: 12524000
D58: Extraordinaries | H58: 0 | I58: 0 | J58: 0 | K58: 0 | L58: 0 | M58: 0
D59: Changes in Working Capital | H59: 1520000 | I59: 767000 | J59: 974000 | K59: 2560000 | L59: 3920000 | M59: 1042000
D60: Net Operating Cash Flow | H60: 4176000 | I60: 5475000 | J60: 6847000 | K60: 11927000 | L60: 16444000
D61: Investing Activities
D62: Capital Expenditures (Fixed Assets) | H62: -3790000 | I62: -3440000 | J62: -4890000 | K62: -4590000 | L62: -6740000 | M62: -9030000
D63: Capital Expenditures (Other Assets) | H63: 0 | I63: 0 | J63: 0 | K63: 0 | L63: 0 | M63: 0
D64: Net Assets from Acquisitions | H64: -745000 | I64: -312000 | J64: -979000 | K64: -795000 | L64: -116000 | M64: -18517333.33
D65: Sale of Fixed Assets & Businesses | H65: 0 | I65: 0 | J65: 0 | K65: 0 | L65: 0 | M65: 0
D67: Purchase/Sale of Investments | H67: 935000 | I67: -520000 | J67: 807000 | K67: -1070000 | L67: -3020000
D68: Other Uses | H68: 0 | I68: 0 | J68: 0 | K68: 0 | L68: 0
D69: Other Sources | H69: 0 | I69: 0 | J69: 0 | K69: 0 | L69: 0
D70: Net Investing Cash Flow | H70: -3600000 | I70: -4272000 | J70: -5062000 | K70: -6455000 | L70: -9876000
D71: Financing Activities
D72: Common Dividends | H72: 0 | I72: 0 | J72: 0 | K72: 0 | L72: 0
D73: Preferred Dividends | H73: 0 | I73: 0 | J73: 0 | K73: 0 | L73: 0
D74: Change in Capital Stock | H74: -960000 | I74: 0 | J74: 0 | K74: 0 | L74: 0
D75: Repurchase of Common & Preferred Stk. | H75: -960000 | I75: 0 | J75: 0 | K75: 0 | L75: 0
D76: Sale of Common & Preferred Stock | H76: 0 | I76: 0 | J76: 0 | K76: 0 | L76: 0
D77: Issuance/Reduction of Debt, Net | H77: 2790000 | I77: -617000 | J77: 4430000 | K77: -3880000 | L77: -3740000
D78: Change in Current Debt | H78: 0 | I78: 0 | J78: 0 | K78: 0 | L78: 0
D79: Change in Long-Term Debt | H79: 2790000 | I79: -617000 | J79: 4430000 | K79: -3880000 | L79: -3740000
D80: Issuance of Long-Term Debt | H80: 3380000 | I80: 394000 | J80: 6360000 | K80: 353000 | L80: 621000
D81: Reduction in Long-Term Debt | H81: -588000 | I81: -1010000 | J81: -1930000 | K81: -4240000 | L81: -4360000
D82: Other Funds | H82: 1130000 | I82: 1790000 | J82: 2240000 | K82: 3040000 | L82: 2920000
D83: Other Uses | H83: 0 | I83: 0 | J83: 0 | K83: 0 | L83: 0
D84: Other Sources | H84: 0 | I84: 0 | J84: 0 | K84: 0 | L84: 0
D85: Net Financing Cash Flow | H85: 2260000 | I85: -539000 | J85: 4430000 | K85: -3760000 | L85: -2910000
D87: Exchange Rate Effect | H87: -29000 | I87: -86000 | J87: -310000 | K87: -374000 | L87: -212000
D88: Miscellaneous Funds | H88: 0 | I88: 0 | J88: 0 | K88: 0 | L88: 0
D89: Net Change in Cash | H89: 2820000 | I89: 574000 | J89: 5900000 | K89: 1330000 | L89: 3440000
D90: Free Cash Flow | H90: 395000 | I90: 2030000 | J90: 1950000 | K90: 7330000 | L90: 9710000
A92: Balance Sheet
B93: View Ratios
B94: All values USD millions.
B95: Fiscal Year | H95: =H13 -> 2012 | I95: 2013 | J95: 2014 | K95: 2015 | L95: 2016 | M95: 2017
C96: Assets
D97: Cash & Short Term Investments | H97: 11450000 | I97: 12450000 | J97: 17420000 | K97: 19810000 | L97: 25980000
D98: Total Accounts Receivable | H98: 3360000 | I98: 4770000 | J98: 5610000 | K98: 5650000 | L98: 8340000
D99: Inventories | H99: 6030000 | I99: 7410000 | J99: 8300000 | K99: 10240000 | L99: 11460000
D100: Progress Payments & Other | H100: 0 | I100: 0 | J100: 0 | K100: 0 | L100: 0
D101: Other Current Assets | H101: 453000 | I101: 0 | J101: 0 | K101: 0 | L101: 0
D102: Total Current Assets | H102: 21293000 | I102: 24630000 | J102: 31330000 | K102: 35700000 | L102: 45780000
D103: Property, Plant & Equipment - Gross | H103: 9580000 | I103: 14810000 | J103: 22730000 | K103: 30050000 | L103: 42440000
D104: Accumulated Depreciation | H104: 2520000 | I104: 3860000 | J104: 5760000 | K104: 8220000.5 | L104: 13330000
D105: Net Property, Plant & Equipment | H105: 7060000 | I105: 10950000 | J105: 16970000 | K105: 21840000 | L105: 29110000
D106: Total Investments and Advances | H106: 151000 | I106: 520000 | J106: 886000 | K106: 418000 | L106: 715000
D107: Intangible Assets | H107: 3280000 | I107: 3300000 | J107: 4080000 | K107: 4750000 | L107: 4640000
D108: Other Assets | H108: 648000 | I108: 538000 | J108: 971000 | K108: 1950000 | L108: 2700000
D109: Total Assets | H109: 32432000 | I109: 39938000 | J109: 54237000 | K109: 64658000 | L109: 82945000
C111: Liabilities & Shareholders' Equity
D112: ST Debt & Current Portion LT Debt | H112: 1140000 | I112: 1740000 | J112: 3600000 | K112: 3340000 | L112: 5200000
D113: Accounts Payable | H113: 13320000 | I113: 15130000 | J113: 16459999 | K113: 20400000 | L113: 25310000
D114: Income Tax Payable | H114: 0 | I114: 0 | J114: 0 | K114: 0 | L114: 0
D115: Other Current Liabilities | H115: 4550000 | I115: 6110000 | J115: 8029999.5 | K115: 10150000 | L115: 13310000
D116: Total Current Liabilities | H116: 19010000 | I116: 22980000 | J116: 28089998.5 | K116: 33890000 | L116: 43820000
D117: Long-Term Debt | H117: 3830000 | I117: 5180000 | J117: 12490000 | K117: 14180000 | L117: 15210000
D118: Provision for Risks & Charges | H118: 336000 | I118: 457000 | J118: 510000 | K118: 932000 | L118: 1400000
D119: Deferred Taxes | H119: -123000 | I119: 344000 | J119: 750000 | K119: 325000 | L119: -62000
D120: Other Liabilities | H120: 1200000 | I120: 1220000 | J120: 1660000 | K120: 1960000 | L120: 3300000
D121: Reconciling Liabilities | H121: -10999.5 | I121: 7000 | J121: -2998.5 | K121: -9000 | L121: -13000
D122: Total Liabilities | H122: 24242000.5 | I122: 30188000 | J122: 43497000 | K122: 51278000 | L122: 63655000
D123: Total Shareholders' Equity | H123: 8189999.5 | I123: 9750000 | J123: 10740000 | K123: 13380000 | L123: 19290000
D124: Accumulated Minority Interest | H124: 0 | I124: 0 | J124: 0 | K124: 0 | L124: 0
D125: Total Equity | H125: 8189999.5 | I125: 9750000 | J125: 10740000 | K125: 13380000 | L125: 19290000
D126: Liabilities & Shareholders' Equity | H126: 32432000 | I126: 39938000 | J126: 54237000 | K126: 64658000 | L126: 82945000
H127: 0 | I127: 0 | J127: 0 | K127: 0 | L127: 0
A128: Other Data
B129: Ending Stock Price | H129: 250.869995 | I129: 398.790009 | J129: 310.350006 | K129: 675.890015 | L129: 768.659973 | M129: 1169.469971
B130: Average Stock Price | H130: 226.7916678 | I130: 304.0200017 | J130: 327.2950007 | K130: 493.2841747 | L130: 708.7908326 | M130: 985.3249918
B132: Revenue Forecast | G132: 228710000
B133: Revenue Growth | G133: 0.2903244006
B134: Five Year Revenue Growth | G134: 0.2037
B135: Enterprise Value | G135: 642900032
B136: Current Stock Price | G136: 1294.5
A138: EBITDA and Capital Expenditure Calculations
B139: Revenues
C140: Growth
C141: Forecast
B143: COGS excluding D&A
C144: COGS Percent | H144: ='Amazon Assumptions'!I10 -> 0.722540514 | I144: ='Amazon Assumptions'!J10 -> 0.6901276024 | J144: ='Amazon Assumptions'!K10 -> 0.6581638386 | K144: ='Amazon Assumptions'!L10 -> 0.6167647883 | L144: ='Amazon Assumptions'!M10 -> 0.5940142658 | M144: ='Amazon Assumptions'!N10 -> 0.5830034635 | N144: ='Amazon Assumptions'!O10 ->  | O144: ='Amazon Assumptions'!P10 ->  | P144: ='Amazon Assumptions'!Q10 ->  | Q144: ='Amazon Assumptions'!R10 ->  | R144: ='Amazon Assumptions'!S10 ->  | S144: ='Amazon Assumptions'!T10 ->  | T144: ='Amazon Assumptions'!U10 ->  | U144: ='Amazon Assumptions'!V10 ->  | V144: ='Amazon Assumptions'!W10 ->  | W144: ='Amazon Assumptions'!X10 ->  | X144: ='Amazon Assumptions'!Y10 ->  | Y144: ='Amazon Assumptions'!Z10 ->  | Z144: ='Amazon Assumptions'!AA10 ->  | AA144: ='Amazon Assumptions'!AB10 ->  | AB144: ='Amazon Assumptions'!AC10 -> 
C145: COGS Amount | H145: =IF(H5,H16,H144*H141) -> 44140000 | I145: =IF(I5,I16,I144*I141) -> 51380000 | J145: 58570000 | K145: 66000000 | L145: 80780000 | M145: 0
B147: Research & Development
C148: R&D as Percent of Margin | H148: ='Amazon Assumptions'!I11 -> 0.07464396792 | I148: ='Amazon Assumptions'!J11 -> 0.08824714574 | J148: ='Amazon Assumptions'!K11 -> 0.1042813799 | K148: ='Amazon Assumptions'!L11 -> 0.1171853098 | L148: ='Amazon Assumptions'!M11 -> 0.1183175233 | M148: ='Amazon Assumptions'!N11 ->  | N148: ='Amazon Assumptions'!O11 ->  | O148: ='Amazon Assumptions'!P11 ->  | P148: ='Amazon Assumptions'!Q11 ->  | Q148: ='Amazon Assumptions'!R11 ->  | R148: ='Amazon Assumptions'!S11 ->  | S148: ='Amazon Assumptions'!T11 ->  | T148: ='Amazon Assumptions'!U11 ->  | U148: ='Amazon Assumptions'!V11 ->  | V148: ='Amazon Assumptions'!W11 ->  | W148: ='Amazon Assumptions'!X11 ->  | X148: ='Amazon Assumptions'!Y11 ->  | Y148: ='Amazon Assumptions'!Z11 ->  | Z148: ='Amazon Assumptions'!AA11 ->  | AA148: ='Amazon Assumptions'!AB11 ->  | AB148: ='Amazon Assumptions'!AC11 -> 
C149: R&D Amount | H149: =H148*H141 -> 0 | I149: =I148*I141 -> 0 | J149: 0 | K149: 0 | L149: 0
B151: Other SG&A
C152: SG&A as Pecent of Revenues | H152: ='Amazon Assumptions'!I12 -> 0.1591095106 | I152: ='Amazon Assumptions'!J12 -> 0.1725990598 | J152: ='Amazon Assumptions'!K12 -> 0.1870996741 | K152: ='Amazon Assumptions'!L12 -> 0.1907298383 | L152: ='Amazon Assumptions'!M12 -> 0.2006029855 | M152: ='Amazon Assumptions'!N12 ->  | N152: ='Amazon Assumptions'!O12 ->  | O152: ='Amazon Assumptions'!P12 ->  | P152: ='Amazon Assumptions'!Q12 ->  | Q152: ='Amazon Assumptions'!R12 ->  | R152: ='Amazon Assumptions'!S12 ->  | S152: ='Amazon Assumptions'!T12 ->  | T152: ='Amazon Assumptions'!U12 ->  | U152: ='Amazon Assumptions'!V12 ->  | V152: ='Amazon Assumptions'!W12 ->  | W152: ='Amazon Assumptions'!X12 ->  | X152: ='Amazon Assumptions'!Y12 ->  | Y152: ='Amazon Assumptions'!Z12 ->  | Z152: ='Amazon Assumptions'!AA12 ->  | AA152: ='Amazon Assumptions'!AB12 ->  | AB152: ='Amazon Assumptions'!AC12 -> 
C153: SG&A Amount | H153: =IF(H5,H19,H141*H152) -> 9720000 | I153: =IF(I5,I19,I141*I152) -> 12850000 | J153: 16650000 | K153: 20410000 | L153: 27280000
B155: Capital Expenditure
C156: Capital Expenditure as Percent of Sales | H156: ='Amazon Assumptions'!I16 -> 0.06203961368 | I156: ='Amazon Assumptions'!J16 -> 0.04620550705 | J156: ='Amazon Assumptions'!K16 -> 0.05494999438 | K156: ='Amazon Assumptions'!L16 -> 0.04289318755 | L156: ='Amazon Assumptions'!M16 -> 0.04956246783 | M156: ='Amazon Assumptions'!N16 ->  | N156: ='Amazon Assumptions'!O16 ->  | O156: ='Amazon Assumptions'!P16 ->  | P156: ='Amazon Assumptions'!Q16 ->  | Q156: ='Amazon Assumptions'!R16 ->  | R156: ='Amazon Assumptions'!S16 ->  | S156: ='Amazon Assumptions'!T16 ->  | T156: ='Amazon Assumptions'!U16 ->  | U156: ='Amazon Assumptions'!V16 ->  | V156: ='Amazon Assumptions'!W16 ->  | W156: ='Amazon Assumptions'!X16 ->  | X156: ='Amazon Assumptions'!Y16 ->  | Y156: ='Amazon Assumptions'!Z16 ->  | Z156: ='Amazon Assumptions'!AA16 ->  | AA156: ='Amazon Assumptions'!AB16 ->  | AB156: ='Amazon Assumptions'!AC16 -> 
C157: Capital Expenditues | H157: =IF(H5,-H62,H156*H141) -> 3790000 | I157: =IF(I5,-I62,I156*I141) -> 3440000 | J157: 4890000 | K157: 4590000 | L157: 6740000
B159: Acquisition Premium
C160: Premium as Percent of Sales | H160: ='Amazon Assumptions'!I20 -> 0.01219512195 | I160: ='Amazon Assumptions'!J20 -> 0.004190732035 | J160: ='Amazon Assumptions'!K20 -> 0.01100123609 | K160: ='Amazon Assumptions'!L20 -> 0.007429212223 | L160: ='Amazon Assumptions'!M20 -> 0.0008530038973 | M160: ='Amazon Assumptions'!N20 -> 0.008 | N160: ='Amazon Assumptions'!O20 -> 0.008 | O160: ='Amazon Assumptions'!P20 -> 0.008 | P160: ='Amazon Assumptions'!Q20 -> 0.008 | Q160: ='Amazon Assumptions'!R20 -> 0.008 | R160: ='Amazon Assumptions'!S20 -> 0.008 | S160: ='Amazon Assumptions'!T20 -> 0.008 | T160: ='Amazon Assumptions'!U20 -> 0.008 | U160: ='Amazon Assumptions'!V20 -> 0.008 | V160: ='Amazon Assumptions'!W20 -> 0.008 | W160: ='Amazon Assumptions'!X20 -> 0.008 | X160: ='Amazon Assumptions'!Y20 -> 0.008 | Y160: ='Amazon Assumptions'!Z20 -> 0.008 | Z160: ='Amazon Assumptions'!AA20 -> 0.008 | AA160: ='Amazon Assumptions'!AB20 -> 0.008 | AB160: ='Amazon Assumptions'!AC20 -> 0.008
C161: Acquisition Premium | H161: =H160*H141 -> 0 | I161: =I160*I141 -> 0 | J161: 0 | K161: 0 | L161: 0 | M161: 0 | N161: 0 | O161: 0 | P161: 0 | Q161: 0 | R161: 0 | S161: 0 | T161: 0 | U161: 0 | V161: 0 | W161: 0 | X161: 0 | Y161: 0 | Z161: 0 | AA161: 0 | AB161: 0
A163: Working Capital
B164: Current Assets
C165: A/R as Percent of Sales | H165: ='Amazon Assumptions'!I23 -> 0.05500081846 | I165: ='Amazon Assumptions'!J23 -> 0.06406984553 | J165: ='Amazon Assumptions'!K23 -> 0.0630407911 | K165: ='Amazon Assumptions'!L23 -> 0.05279880385 | L165: ='Amazon Assumptions'!M23 -> 0.06132803883 | M165: ='Amazon Assumptions'!N23 -> 0.05 | N165: ='Amazon Assumptions'!O23 -> 0.05 | O165: ='Amazon Assumptions'!P23 -> 0.05 | P165: ='Amazon Assumptions'!Q23 -> 0.05 | Q165: ='Amazon Assumptions'!R23 -> 0.05 | R165: ='Amazon Assumptions'!S23 -> 0.05 | S165: ='Amazon Assumptions'!T23 -> 0.05 | T165: ='Amazon Assumptions'!U23 -> 0.05 | U165: ='Amazon Assumptions'!V23 -> 0.05 | V165: ='Amazon Assumptions'!W23 -> 0.05 | W165: ='Amazon Assumptions'!X23 -> 0.05 | X165: ='Amazon Assumptions'!Y23 -> 0.05 | Y165: ='Amazon Assumptions'!Z23 -> 0.05 | Z165: ='Amazon Assumptions'!AA23 -> 0.05 | AA165: ='Amazon Assumptions'!AB23 -> 0.05 | AB165: ='Amazon Assumptions'!AC23 -> 0.05
C166: Accounts Receivable | H166: =H165*H141 -> 0 | I166: =I165*I141 -> 0 | J166: 0 | K166: 0 | L166: 0 | M166: 0 | N166: 0 | O166: 0 | P166: 0 | Q166: 0 | R166: 0 | S166: 0 | T166: 0 | U166: 0 | V166: 0 | W166: 0 | X166: 0 | Y166: 0 | Z166: 0 | AA166: 0 | AB166: 0
C168: Inventory as Percent of COGS | H168: ='Amazon Assumptions'!I24 -> 0.1366107839 | I168: ='Amazon Assumptions'!J24 -> 0.1442195407 | J168: ='Amazon Assumptions'!K24 -> 0.1417107734 | K168: ='Amazon Assumptions'!L24 -> 0.1551515152 | L168: ='Amazon Assumptions'!M24 -> 0.1418667987 | M168: ='Amazon Assumptions'!N24 -> 0.15 | N168: ='Amazon Assumptions'!O24 -> 0.15 | O168: ='Amazon Assumptions'!P24 -> 0.15 | P168: ='Amazon Assumptions'!Q24 -> 0.15 | Q168: ='Amazon Assumptions'!R24 -> 0.15 | R168: ='Amazon Assumptions'!S24 -> 0.15 | S168: ='Amazon Assumptions'!T24 -> 0.15 | T168: ='Amazon Assumptions'!U24 -> 0.15 | U168: ='Amazon Assumptions'!V24 -> 0.15 | V168: ='Amazon Assumptions'!W24 -> 0.15 | W168: ='Amazon Assumptions'!X24 -> 0.15 | X168: ='Amazon Assumptions'!Y24 -> 0.15 | Y168: ='Amazon Assumptions'!Z24 -> 0.15 | Z168: ='Amazon Assumptions'!AA24 -> 0.15 | AA168: ='Amazon Assumptions'!AB24 -> 0.15 | AB168: ='Amazon Assumptions'!AC24 -> 0.15
C169: Inventory | H169: =H168*H145 -> 6030000 | I169: =I168*I145 -> 7410000 | J169: 8300000 | K169: 10240000 | L169: 11460000 | M169: 0
C171: Other Current Assets as Percent of Revenues | H171: ='Amazon Assumptions'!I25 -> 0.007415288918 | I171: ='Amazon Assumptions'!J25 -> 0 | J171: ='Amazon Assumptions'!K25 -> 0 | K171: ='Amazon Assumptions'!L25 -> 0 | L171: ='Amazon Assumptions'!M25 -> 0 | M171: ='Amazon Assumptions'!N25 -> 0 | N171: ='Amazon Assumptions'!O25 -> 0 | O171: ='Amazon Assumptions'!P25 -> 0 | P171: ='Amazon Assumptions'!Q25 -> 0 | Q171: ='Amazon Assumptions'!R25 -> 0 | R171: ='Amazon Assumptions'!S25 -> 0 | S171: ='Amazon Assumptions'!T25 -> 0 | T171: ='Amazon Assumptions'!U25 -> 0 | U171: ='Amazon Assumptions'!V25 -> 0 | V171: ='Amazon Assumptions'!W25 -> 0 | W171: ='Amazon Assumptions'!X25 -> 0 | X171: ='Amazon Assumptions'!Y25 -> 0 | Y171: ='Amazon Assumptions'!Z25 -> 0 | Z171: ='Amazon Assumptions'!AA25 -> 0 | AA171: ='Amazon Assumptions'!AB25 -> 0 | AB171: ='Amazon Assumptions'!AC25 -> 0
C172: Other Current Assets | H172: =H171*H141 -> 0 | I172: =I171*I141 -> 0 | J172: 0 | K172: 0 | L172: 0 | M172: 0 | N172: 0 | O172: 0 | P172: 0 | Q172: 0 | R172: 0 | S172: 0 | T172: 0 | U172: 0 | V172: 0 | W172: 0 | X172: 0 | Y172: 0 | Z172: 0 | AA172: 0 | AB172: 0
B174: Current Liabilities
C175: Total Expenses | H175: =H145+H149+H153 -> 53860000 | I175: =I145+I149+I153 -> 64230000 | J175: 75220000 | K175: 86410000 | L175: 108060000
C176: Accounts Payable as Percent of Expenses | H176: ='Amazon Assumptions'!I26 -> 0.2280041082 | I176: ='Amazon Assumptions'!J26 -> 0.213700565 | J176: ='Amazon Assumptions'!K26 -> 0.1947928876 | K176: ='Amazon Assumptions'!L26 -> 0.2061647297 | L176: ='Amazon Assumptions'!M26 -> 0.2038662908 | M176: ='Amazon Assumptions'!N26 -> 0.18 | N176: ='Amazon Assumptions'!O26 -> 0.18 | O176: ='Amazon Assumptions'!P26 -> 0.18 | P176: ='Amazon Assumptions'!Q26 -> 0.18 | Q176: ='Amazon Assumptions'!R26 -> 0.18 | R176: ='Amazon Assumptions'!S26 -> 0.18 | S176: ='Amazon Assumptions'!T26 -> 0.18 | T176: ='Amazon Assumptions'!U26 -> 0.18 | U176: ='Amazon Assumptions'!V26 -> 0.18 | V176: ='Amazon Assumptions'!W26 -> 0.18 | W176: ='Amazon Assumptions'!X26 -> 0.18 | X176: ='Amazon Assumptions'!Y26 -> 0.18 | Y176: ='Amazon Assumptions'!Z26 -> 0.18 | Z176: ='Amazon Assumptions'!AA26 -> 0.18 | AA176: ='Amazon Assumptions'!AB26 -> 0.18 | AB176: ='Amazon Assumptions'!AC26 -> 0.18
C177: Accounts Payable | H177: =H175*H176 -> 12280301.27 | I177: =I175*I176 -> 13725987.29 | J177: 14652321 | K177: 17814694.29 | L177: 22029791.38
C179: Other Current Liabilites as Percent of Revenues | H179: ='Amazon Assumptions'!I28 -> 0.074480275 | I179: ='Amazon Assumptions'!J28 -> 0.08206850235 | J179: ='Amazon Assumptions'!K28 -> 0.09023485223 | K179: ='Amazon Assumptions'!L28 -> 0.09485094851 | L179: ='Amazon Assumptions'!M28 -> 0.09787484374 | M179: ='Amazon Assumptions'!N28 -> 0.07 | N179: ='Amazon Assumptions'!O28 -> 0.07 | O179: ='Amazon Assumptions'!P28 -> 0.07 | P179: ='Amazon Assumptions'!Q28 -> 0.07 | Q179: ='Amazon Assumptions'!R28 -> 0.07 | R179: ='Amazon Assumptions'!S28 -> 0.07 | S179: ='Amazon Assumptions'!T28 -> 0.07 | T179: ='Amazon Assumptions'!U28 -> 0.07 | U179: ='Amazon Assumptions'!V28 -> 0.07 | V179: ='Amazon Assumptions'!W28 -> 0.07 | W179: ='Amazon Assumptions'!X28 -> 0.07 | X179: ='Amazon Assumptions'!Y28 -> 0.07 | Y179: ='Amazon Assumptions'!Z28 -> 0.07 | Z179: ='Amazon Assumptions'!AA28 -> 0.07 | AA179: ='Amazon Assumptions'!AB28 -> 0.07 | AB179: ='Amazon Assumptions'!AC28 -> 0.07
C180: Other Current Liabilities | H180: =H179*H141 -> 0 | I180: =I179*I141 -> 0 | J180: 0 | K180: 0 | L180: 0 | M180: 0 | N180: 0 | O180: 0 | P180: 0 | Q180: 0 | R180: 0 | S180: 0 | T180: 0 | U180: 0 | V180: 0 | W180: 0 | X180: 0 | Y180: 0 | Z180: 0 | AA180: 0 | AB180: 0
C182: Total Working Capital | H182: =H166+H169+H172-H177-H180 -> -6250301.267 | I182: =I166+I169+I172-I177-I180 -> -6315987.288 | J182: -6352321.003 | K182: -7574694.29 | L182: -10569791.38
C183: Change in Working Capital | I183: =I182-H182 -> -65686.02145 | J183: =J182-I182 -> -36333.71518 | K183: -1222373.287 | L183: -2995097.091
A185: Depreciaiton and Amoritsation
B186: Plant Balance
C187: Opening Balance
C188: Add: Capital Expenditures | H188: =H157 -> 3790000 | I188: =I157 -> 3440000 | J188: 4890000 | K188: 4590000 | L188: 6740000
C189: Less: Depreciation on Opening Balance
C190: Closing Balance
C192: Depreciation Rate | H192: ='Amazon Assumptions'!I32 -> 0.2365439093 | I192: ='Amazon Assumptions'!J32 -> 0.3725212465 | J192: ='Amazon Assumptions'!K32 -> 0.3662100685 | K192: ='Amazon Assumptions'!L32 -> 0.317030053 | L192: ='Amazon Assumptions'!M32 -> 0.3296703297 | M192: ='Amazon Assumptions'!N32 -> 0.3 | N192: ='Amazon Assumptions'!O32 -> 0.29 | O192: ='Amazon Assumptions'!P32 -> 0.25 | P192: ='Amazon Assumptions'!Q32 -> 0.25 | Q192: ='Amazon Assumptions'!R32 -> 0.25 | R192: ='Amazon Assumptions'!S32 -> 0.25 | S192: ='Amazon Assumptions'!T32 -> 0.25 | T192: ='Amazon Assumptions'!U32 -> 0.25 | U192: ='Amazon Assumptions'!V32 -> 0.25 | V192: ='Amazon Assumptions'!W32 -> 0.25 | W192: ='Amazon Assumptions'!X32 -> 0.25 | X192: ='Amazon Assumptions'!Y32 -> 0.25 | Y192: ='Amazon Assumptions'!Z32 -> 0.25 | Z192: ='Amazon Assumptions'!AA32 -> 0.25 | AA192: ='Amazon Assumptions'!AB32 -> 0.25 | AB192: ='Amazon Assumptions'!AC32 -> 0.25
C193: Depreciation Expense
B195: Intangible Balance
C196: Opening Balance | H196: =G199 -> 0 | I196: =H199 -> 3280000 | J196: 3300000 | K196: 4080000 | L196: 4750000 | M196: 4640000 | N196: 4377969.324 | O196: 4130736.078 | P196: 3897464.62 | Q196: 3677366.497 | R196: 3469697.784 | S196: 3273756.565 | T196: 3088880.564 | U196: 2914444.904 | V196: 2749859.997 | W196: 2594569.55 | X196: 2448048.685 | Y196: 2309802.165 | Z196: 2179362.721 | AA196: 2056289.469 | AB196: 1940166.426
C197: Add: New Premiums | H197: =H161 -> 0 | I197: =I161 -> 0 | J197: 0 | K197: 0 | L197: 0 | M197: 0 | N197: 0 | O197: 0 | P197: 0 | Q197: 0 | R197: 0 | S197: 0 | T197: 0 | U197: 0 | V197: 0 | W197: 0 | X197: 0 | Y197: 0 | Z197: 0 | AA197: 0 | AB197: 0
C198: Less: Amortisation | H198: =H202 -> 163000 | I198: =I202 -> 168000 | J198: 181000 | K198: 270000 | L198: 287000 | M198: 262030.676 | N198: 247233.246 | O198: 233271.4584 | P198: 220098.1226 | Q198: 207668.7132 | R198: 195941.2189 | S198: 184876.0012 | T198: 174435.6599 | U198: 164584.9069 | V198: 155290.4469 | W198: 146520.8649 | X198: 138246.5198 | Y198: 130439.4446 | Z198: 123073.2515 | AA198: 116123.043 | AB198: 109565.3276
C199: Closing Balance | H199: =IF(H5,H107,H196+H197-H198) -> 3280000 | I199: =IF(I5,I107,I196+I197-I198) -> 3300000 | J199: 4080000 | K199: 4750000 | L199: 4640000 | M199: 4377969.324 | N199: 4130736.078 | O199: 3897464.62 | P199: 3677366.497 | Q199: 3469697.784 | R199: 3273756.565 | S199: 3088880.564 | T199: 2914444.904 | U199: 2749859.997 | V199: 2594569.55 | W199: 2448048.685 | X199: 2309802.165 | Y199: 2179362.721 | Z199: 2056289.469 | AA199: 1940166.426 | AB199: 1830601.099
C201: Amortisation Rate | H201: ='Amazon Assumptions'!I33 -> 0.04969512195 | I201: ='Amazon Assumptions'!J33 -> 0.0512195122 | J201: ='Amazon Assumptions'!K33 -> 0.05484848485 | K201: ='Amazon Assumptions'!L33 -> 0.06617647059 | L201: ='Amazon Assumptions'!M33 -> 0.06042105263 | M201: ='Amazon Assumptions'!N33 -> 0.05647212844 | N201: ='Amazon Assumptions'!O33 -> 0.05647212844 | O201: ='Amazon Assumptions'!P33 -> 0.05647212844 | P201: ='Amazon Assumptions'!Q33 -> 0.05647212844 | Q201: ='Amazon Assumptions'!R33 -> 0.05647212844 | R201: ='Amazon Assumptions'!S33 -> 0.05647212844 | S201: ='Amazon Assumptions'!T33 -> 0.05647212844 | T201: ='Amazon Assumptions'!U33 -> 0.05647212844 | U201: ='Amazon Assumptions'!V33 -> 0.05647212844 | V201: ='Amazon Assumptions'!W33 -> 0.05647212844 | W201: ='Amazon Assumptions'!X33 -> 0.05647212844 | X201: ='Amazon Assumptions'!Y33 -> 0.05647212844 | Y201: ='Amazon Assumptions'!Z33 -> 0.05647212844 | Z201: ='Amazon Assumptions'!AA33 -> 0.05647212844 | AA201: ='Amazon Assumptions'!AB33 -> 0.05647212844 | AB201: ='Amazon Assumptions'!AC33 -> 0.05647212844
C202: Amortisation Expense | H202: =IF(H5,H24,H201*H196) -> 163000 | I202: =IF(I5,I24,I201*I196) -> 168000 | J202: 181000 | K202: 270000 | L202: 287000 | M202: 262030.676 | N202: 247233.246 | O202: 233271.4584 | P202: 220098.1226 | Q202: 207668.7132 | R202: 195941.2189 | S202: 184876.0012 | T202: 174435.6599 | U202: 164584.9069 | V202: 155290.4469 | W202: 146520.8649 | X202: 138246.5198 | Y202: 130439.4446 | Z202: 123073.2515 | AA202: 116123.043 | AB202: 109565.3276
C204: Other Assets | H204: =IF(H5,H108,G204) -> 648000 | I204: =IF(I5,I108,H204) -> 538000 | J204: 971000 | K204: 1950000 | L204: 2700000 | M204: 2700000 | N204: 2700000 | O204: 2700000 | P204: 2700000 | Q204: 2700000 | R204: 2700000 | S204: 2700000 | T204: 2700000 | U204: 2700000 | V204: 2700000 | W204: 2700000 | X204: 2700000 | Y204: 2700000 | Z204: 2700000 | AA204: 2700000 | AB204: 2700000
C205: Non Operating Income | H205: ='Amazon Assumptions'!I36 -> -239000 | I205: ='Amazon Assumptions'!J36 -> -250000 | J205: ='Amazon Assumptions'!K36 -> -251000 | K205: ='Amazon Assumptions'!L36 -> -427000 | L205: ='Amazon Assumptions'!M36 -> -144000 | M205: ='Amazon Assumptions'!N36 -> 93333.33333 | N205: ='Amazon Assumptions'!O36 -> -262200 | O205: ='Amazon Assumptions'!P36 -> -262200 | P205: ='Amazon Assumptions'!Q36 -> -262200 | Q205: ='Amazon Assumptions'!R36 -> -262200 | R205: ='Amazon Assumptions'!S36 -> -262200 | S205: ='Amazon Assumptions'!T36 -> -262200 | T205: ='Amazon Assumptions'!U36 -> -262200 | U205: ='Amazon Assumptions'!V36 -> -262200 | V205: ='Amazon Assumptions'!W36 -> -262200 | W205: ='Amazon Assumptions'!X36 -> -262200 | X205: ='Amazon Assumptions'!Y36 -> -262200 | Y205: ='Amazon Assumptions'!Z36 -> -262200 | Z205: ='Amazon Assumptions'!AA36 -> -262200 | AA205: ='Amazon Assumptions'!AB36 -> -262200 | AB205: ='Amazon Assumptions'!AC36 -> -262200
C207: Unusual Expense | H207: ='Amazon Assumptions'!I51 -> 0 | I207: ='Amazon Assumptions'!J51 -> 0 | J207: ='Amazon Assumptions'!K51 -> 0 | K207: ='Amazon Assumptions'!L51 -> 0 | L207: ='Amazon Assumptions'!M51 -> -67000 | M207: ='Amazon Assumptions'!N51 -> -193333.3333 | N207: ='Amazon Assumptions'!O51 -> 0 | O207: ='Amazon Assumptions'!P51 -> 0 | P207: ='Amazon Assumptions'!Q51 -> 0 | Q207: ='Amazon Assumptions'!R51 -> 0 | R207: ='Amazon Assumptions'!S51 -> 0 | S207: ='Amazon Assumptions'!T51 -> 0 | T207: ='Amazon Assumptions'!U51 -> 0 | U207: ='Amazon Assumptions'!V51 -> 0 | V207: ='Amazon Assumptions'!W51 -> 0 | W207: ='Amazon Assumptions'!X51 -> 0 | X207: ='Amazon Assumptions'!Y51 -> 0 | Y207: ='Amazon Assumptions'!Z51 -> 0 | Z207: ='Amazon Assumptions'!AA51 -> 0 | AA207: ='Amazon Assumptions'!AB51 -> 0 | AB207: ='Amazon Assumptions'!AC51 -> 0
C208: Other Equity Income | H208: ='Amazon Assumptions'!I39 -> -157000 | I208: ='Amazon Assumptions'!J39 -> -64000 | J208: ='Amazon Assumptions'!K39 -> 49000.25 | K208: ='Amazon Assumptions'!L39 -> -28000 | L208: ='Amazon Assumptions'!M39 -> -92000 | M208: ='Amazon Assumptions'!N39 -> -58399.95 | N208: ='Amazon Assumptions'!O39 -> -58399.95 | O208: ='Amazon Assumptions'!P39 -> -58399.95 | P208: ='Amazon Assumptions'!Q39 -> -58399.95 | Q208: ='Amazon Assumptions'!R39 -> -58399.95 | R208: ='Amazon Assumptions'!S39 -> -58399.95 | S208: ='Amazon Assumptions'!T39 -> -58399.95 | T208: ='Amazon Assumptions'!U39 -> -58399.95 | U208: ='Amazon Assumptions'!V39 -> -58399.95 | V208: ='Amazon Assumptions'!W39 -> -58399.95 | W208: ='Amazon Assumptions'!X39 -> -58399.95 | X208: ='Amazon Assumptions'!Y39 -> -58399.95 | Y208: ='Amazon Assumptions'!Z39 -> -58399.95 | Z208: ='Amazon Assumptions'!AA39 -> -58399.95 | AA208: ='Amazon Assumptions'!AB39 -> -58399.95 | AB208: ='Amazon Assumptions'!AC39 -> -58399.95
C210: Provision for Risks & Charges | H210: =IF(H5,H118,G210) -> 336000 | I210: =IF(I5,I118,H210) -> 457000 | J210: 510000 | K210: 932000 | L210: 1400000 | M210: 1400000 | N210: 1400000 | O210: 1400000 | P210: 1400000 | Q210: 1400000 | R210: 1400000 | S210: 1400000 | T210: 1400000 | U210: 1400000 | V210: 1400000 | W210: 1400000 | X210: 1400000 | Y210: 1400000 | Z210: 1400000 | AA210: 1400000 | AB210: 1400000
C211: Deferred Taxes | H211: =IF(H5,H119,G211) -> -123000 | I211: =IF(I5,I119,H211) -> 344000 | J211: 750000 | K211: 325000 | L211: -62000 | M211: -62000 | N211: -62000 | O211: -62000 | P211: -62000 | Q211: -62000 | R211: -62000 | S211: -62000 | T211: -62000 | U211: -62000 | V211: -62000 | W211: -62000 | X211: -62000 | Y211: -62000 | Z211: -62000 | AA211: -62000 | AB211: -62000
C212: Other Liabilities | H212: =IF(H5,H120,G212) -> 1200000 | I212: =IF(I5,I120,H212) -> 1220000 | J212: 1660000 | K212: 1960000 | L212: 3300000 | M212: 3300000 | N212: 3300000 | O212: 3300000 | P212: 3300000 | Q212: 3300000 | R212: 3300000 | S212: 3300000 | T212: 3300000 | U212: 3300000 | V212: 3300000 | W212: 3300000 | X212: 3300000 | Y212: 3300000 | Z212: 3300000 | AA212: 3300000 | AB212: 3300000
C213: Reconciling Liabilities | H213: =IF(H5,H121,G213) -> -10999.5 | I213: =IF(I5,I121,H213) -> 7000 | J213: -2998.5 | K213: -9000 | L213: -13000 | M213: -13000 | N213: -13000 | O213: -13000 | P213: -13000 | Q213: -13000 | R213: -13000 | S213: -13000 | T213: -13000 | U213: -13000 | V213: -13000 | W213: -13000 | X213: -13000 | Y213: -13000 | Z213: -13000 | AA213: -13000 | AB213: -13000
A215: Debt and Cash
C216: Cash Balance | H216: =IF(H5,H97+H106) -> 11601000 | I216: =IF(I5,I97+I106) -> 12970000 | J216: 18306000 | K216: 20228000 | L216: 26695000 | M216: FALSE | N216: FALSE | O216: FALSE | P216: FALSE | Q216: FALSE | R216: FALSE | S216: FALSE | T216: FALSE | U216: FALSE | V216: FALSE | W216: FALSE | X216: FALSE | Y216: FALSE | Z216: FALSE | AA216: FALSE | AB216: FALSE
C217: Debt Balance | H217: =IF(H5,H117+H112) -> 4970000 | I217: =IF(I5,I117+I112) -> 6920000 | J217: 16090000 | K217: 17520000 | L217: 20410000 | M217: FALSE | N217: FALSE | O217: FALSE | P217: FALSE | Q217: FALSE | R217: FALSE | S217: FALSE | T217: FALSE | U217: FALSE | V217: FALSE | W217: FALSE | X217: FALSE | Y217: FALSE | Z217: FALSE | AA217: FALSE | AB217: FALSE
C218: Net Cash Balance | H218: =H216-H217 -> 6631000 | I218: =I216-I217 -> 6050000 | J218: 2216000 | K218: 2708000 | L218: 6285000 | M218: 0 | N218: 0 | O218: 0 | P218: 0 | Q218: 0 | R218: 0 | S218: 0 | T218: 0 | U218: 0 | V218: 0 | W218: 0 | X218: 0 | Y218: 0 | Z218: 0 | AA218: 0 | AB218: 0
C220: Opening Net Cash | H220: =G222 -> 0 | I220: =H222 -> 6631000 | J220: 6050000 | K220: 2216000 | L220: 2708000 | M220: 6285000
C221: Add: Cash Flow | H221: =H279 -> -54736000 | I221: =I279 -> -64742313.98 | J221: -75723666.03 | K221: -87001626.71 | L221: -107047902.9
C222: Closing Balance | H222: =IF(H5,H218,H220+H221) -> 6631000 | I222: =IF(I5,I218,I220+I221) -> 6050000 | J222: 2216000 | K222: 2708000 | L222: 6285000
C224: Cash Balance | H224: =IF(H5,H216,MAX(H222,0)) -> 11601000 | I224: =IF(I5,I216,MAX(I222,0)) -> 12970000 | J224: 18306000 | K224: 20228000 | L224: 26695000
C225: Debt Balance | H225: =IF(H5,H217,MAX(-H222,0)) -> 4970000 | I225: =IF(I5,I217,MAX(-I222,0)) -> 6920000 | J225: 16090000 | K225: 17520000 | L225: 20410000
C227: Minimum Cash Balance Percent | H227: =IF(H5,H97/H15,G227) -> 0.1874283844 | I227: =IF(I5,I97/I15,H227) -> 0.1672263264 | J227: 0.1957523317 | K227: 0.1851228857 | L227: 0.1910434591 | M227: 0.1910434591 | N227: 0.1910434591 | O227: 0.1910434591 | P227: 0.1910434591 | Q227: 0.1910434591 | R227: 0.1910434591 | S227: 0.1910434591 | T227: 0.1910434591 | U227: 0.1910434591 | V227: 0.1910434591 | W227: 0.1910434591 | X227: 0.1910434591 | Y227: 0.1910434591 | Z227: 0.1910434591 | AA227: 0.1910434591 | AB227: 0.1910434591
C229: Debt Balance | H229: =H225 -> 4970000 | I229: =I225 -> 6920000 | J229: 16090000 | K229: 17520000 | L229: 20410000
C230: Interest Rate | H230: ='Amazon Assumptions'!I42 -> 0.0185110664 | I230: ='Amazon Assumptions'!J42 -> 0.02037572254 | J230: ='Amazon Assumptions'!K42 -> 0.01305158484 | K230: ='Amazon Assumptions'!L42 -> 0.02619863014 | L230: ='Amazon Assumptions'!M42 -> 0.02371386575 | M230: ='Amazon Assumptions'!N42 -> 0.02037017393 | N230: ='Amazon Assumptions'!O42 -> 0.02037017393 | O230: ='Amazon Assumptions'!P42 -> 0.02037017393 | P230: ='Amazon Assumptions'!Q42 -> 0.02037017393 | Q230: ='Amazon Assumptions'!R42 -> 0.02037017393 | R230: ='Amazon Assumptions'!S42 -> 0.02037017393 | S230: ='Amazon Assumptions'!T42 -> 0.02037017393 | T230: ='Amazon Assumptions'!U42 -> 0.02037017393 | U230: ='Amazon Assumptions'!V42 -> 0.02037017393 | V230: ='Amazon Assumptions'!W42 -> 0.02037017393 | W230: ='Amazon Assumptions'!X42 -> 0.02037017393 | X230: ='Amazon Assumptions'!Y42 -> 0.02037017393 | Y230: ='Amazon Assumptions'!Z42 -> 0.02037017393 | Z230: ='Amazon Assumptions'!AA42 -> 0.02037017393 | AA230: ='Amazon Assumptions'!AB42 -> 0.02037017393 | AB230: ='Amazon Assumptions'!AC42 -> 0.02037017393
C231: Interest Expense | H231: =IF(H5,H29,G229*H230) -> 92000 | I231: =IF(I5,I29,H229*I230) -> 141000 | J231: 210000 | K231: 459000 | L231: 484000 | M231: 415755.25
C233: Cash Balance | H233: =H224 -> 11601000 | I233: =I224 -> 12970000 | J233: 18306000 | K233: 20228000 | L233: 26695000
C234: Interest Income Rate | H234: ='Amazon Assumptions'!I45 -> 0.003447978623 | I234: ='Amazon Assumptions'!J45 -> 0.002929838088 | J234: ='Amazon Assumptions'!K45 -> 0.002130449033 | K234: ='Amazon Assumptions'!L45 -> 0.002471821238 | L234: ='Amazon Assumptions'!M45 -> 0.003746019854 | M234: ='Amazon Assumptions'!N45 -> 0.003746019854 | N234: ='Amazon Assumptions'!O45 -> 0.003746019854 | O234: ='Amazon Assumptions'!P45 -> 0.003746019854 | P234: ='Amazon Assumptions'!Q45 -> 0.003746019854 | Q234: ='Amazon Assumptions'!R45 -> 0.003746019854 | R234: ='Amazon Assumptions'!S45 -> 0.003746019854 | S234: ='Amazon Assumptions'!T45 -> 0.003746019854 | T234: ='Amazon Assumptions'!U45 -> 0.003746019854 | U234: ='Amazon Assumptions'!V45 -> 0.003746019854 | V234: ='Amazon Assumptions'!W45 -> 0.003746019854 | W234: ='Amazon Assumptions'!X45 -> 0.003746019854 | X234: ='Amazon Assumptions'!Y45 -> 0.003746019854 | Y234: ='Amazon Assumptions'!Z45 -> 0.003746019854 | Z234: ='Amazon Assumptions'!AA45 -> 0.003746019854 | AA234: ='Amazon Assumptions'!AB45 -> 0.003746019854 | AB234: ='Amazon Assumptions'!AC45 -> 0.003746019854
... 95 more rows

Sheet Amazon Summary
C2: WACC
C3: Terminal Growth
C4: Terminal EV/EBITDA

Sheet Amazon DCF
A1: Timing
B2: Period | E2: =E72 ->  | H2: 1 | I2: 2 | J2: 3 | K2: 4 | L2: 5 | M2: 6 | N2: 7 | O2: 8 | P2: 9 | Q2: 10 | R2: 11 | S2: 12 | T2: 13 | U2: 14 | V2: 15 | W2: 16 | X2: 17 | Y2: 18 | Z2: 19 | AA2: 20
B3: Year | H3: =E9 -> 2018 | I3: =H3+1 -> 2019 | J3: =I3+1 -> 2020 | K3: 2021 | L3: 2022 | M3: 2023 | N3: 2024 | O3: 2025 | P3: 2026 | Q3: 2027 | R3: 2028 | S3: 2029 | T3: 2030 | U3: 2031 | V3: 2032 | W3: 2033 | X3: 2034 | Y3: 2035 | Z3: 2036 | AA3: 2037
B4: Holding Period | F4: =E9 -> 2018 | G4: =E10 -> 2030
B5: Exit Period | G5: =E10 -> 2030
G6: Growth Method | I6: =E2 -> 
G7: EV/EBITDA Method | I7: =E82 -> 
A8: Value Assumptions
B9: Valuation Start | E9: 2018
B10: Holding Period | E10: 2030
B12: WACC - Required Return | E12: 0.09
B13: Terminal Growth | E13: 0.04
B14: Terminal EV/EBITDA | E14: 14
B15: Terminal ROIC | E15: 0.15
B17: Depreciation Rate | E17: =LOOKUP(F17,'Amazon Assumptions'!2:2,'Amazon Assumptions'!31:31) -> 0.2396006656 | F17: 2016
B18: Depreciation Life | E18: =1/E17 -> 4.173611111
B19: Stable Cap Exp to Revenues | E19: ='EV to EBITDA'!E9 -> 0
B20: Working Capital to EBITDA | E20: -1.6
B21: Working Capital growth Factor | E21: =(E13/(1+E13)) -> 0.03846153846
A23: Holding Period Free Cash Flow
B24: EBITDA
B25: Less: Depreciation Expense
B26: EBIT | H26: =H24-H25 -> 0 | I26: =I24-I25 -> 0 | J26: 0 | K26: 0 | L26: 0 | M26: 0 | N26: 0 | O26: 0 | P26: 0 | Q26: 0 | R26: 0 | S26: 0 | T26: 0 | U26: 0 | V26: 0 | W26: 0 | X26: 0 | Y26: 0 | Z26: 0 | AA26: 0
B27: Tax Rate | H27: =LOOKUP(H3,'Amazon Assumptions'!2:2,'Amazon Assumptions'!47:47) -> 0.3674203494 | I27: =LOOKUP(I3,'Amazon Assumptions'!2:2,'Amazon Assumptions'!47:47) -> 0.3674203494 | J27: =LOOKUP(J3,'Amazon Assumptions'!2:2,'Amazon Assumptions'!47:47) -> 0.3674203494 | K27: =LOOKUP(K3,'Amazon Assumptions'!2:2,'Amazon Assumptions'!47:47) -> 0.3674203494 | L27: =LOOKUP(L3,'Amazon Assumptions'!2:2,'Amazon Assumptions'!47:47) -> 0.3674203494 | M27: =LOOKUP(M3,'Amazon Assumptions'!2:2,'Amazon Assumptions'!47:47) -> 0.3674203494 | N27: =LOOKUP(N3,'Amazon Assumptions'!2:2,'Amazon Assumptions'!47:47) -> 0.3674203494 | O27: =LOOKUP(O3,'Amazon Assumptions'!2:2,'Amazon Assumptions'!47:47) -> 0.3674203494 | P27: =LOOKUP(P3,'Amazon Assumptions'!2:2,'Amazon Assumptions'!47:47) -> 0.3674203494 | Q27: =LOOKUP(Q3,'Amazon Assumptions'!2:2,'Amazon Assumptions'!47:47) -> 0.3674203494 | R27: =LOOKUP(R3,'Amazon Assumptions'!2:2,'Amazon Assumptions'!47:47) -> 0.3674203494 | S27: =LOOKUP(S3,'Amazon Assumptions'!2:2,'Amazon Assumptions'!47:47) -> 0.3674203494 | T27: =LOOKUP(T3,'Amazon Assumptions'!2:2,'Amazon Assumptions'!47:47) -> 0.3674203494 | U27: =LOOKUP(U3,'Amazon Assumptions'!2:2,'Amazon Assumptions'!47:47) -> 0.3674203494 | V27: =LOOKUP(V3,'Amazon Assumptions'!2:2,'Amazon Assumptions'!47:47) -> 0.3674203494 | W27: =LOOKUP(W3,'Amazon Assumptions'!2:2,'Amazon Assumptions'!47:47) -> 0.3674203494 | X27: =LOOKUP(X3,'Amazon Assumptions'!2:2,'Amazon Assumptions'!47:47) -> 0.3674203494 | Y27: =LOOKUP(Y3,'Amazon Assumptions'!2:2,'Amazon Assumptions'!47:47) -> 0.3674203494 | Z27: =LOOKUP(Z3,'Amazon Assumptions'!2:2,'Amazon Assumptions'!47:47) -> 0.3674203494 | AA27: =LOOKUP(AA3,'Amazon Assumptions'!2:2,'Amazon Assumptions'!47:47) -> 0.3674203494
B28: Taxes | H28: =H26*H27 -> 0 | I28: =I26*I27 -> 0 | J28: 0 | K28: 0 | L28: 0 | M28: 0 | N28: 0 | O28: 0 | P28: 0 | Q28: 0 | R28: 0 | S28: 0 | T28: 0 | U28: 0 | V28: 0 | W28: 0 | X28: 0 | Y28: 0 | Z28: 0 | AA28: 0
B30: EBITDA | H30: =H24 -> 0 | I30: =I24 -> 0 | J30: 0 | K30: 0 | L30: 0 | M30: 0 | N30: 0 | O30: 0 | P30: 0 | Q30: 0 | R30: 0 | S30: 0 | T30: 0 | U30: 0 | V30: 0 | W30: 0 | X30: 0 | Y30: 0 | Z30: 0 | AA30: 0
B31: Less: WC Changes | H31: =LOOKUP(H$3,'Amazon Model'!$4:$4,'Amazon Model'!268:268) ->  | I31: =LOOKUP(I$3,'Amazon Model'!$4:$4,'Amazon Model'!268:268) ->  | J31: =LOOKUP(J$3,'Amazon Model'!$4:$4,'Amazon Model'!268:268) ->  | K31: =LOOKUP(K$3,'Amazon Model'!$4:$4,'Amazon Model'!268:268) ->  | L31: =LOOKUP(L$3,'Amazon Model'!$4:$4,'Amazon Model'!268:268) ->  | M31: =LOOKUP(M$3,'Amazon Model'!$4:$4,'Amazon Model'!268:268) ->  | N31: =LOOKUP(N$3,'Amazon Model'!$4:$4,'Amazon Model'!268:268) ->  | O31: =LOOKUP(O$3,'Amazon Model'!$4:$4,'Amazon Model'!268:268) ->  | P31: =LOOKUP(P$3,'Amazon Model'!$4:$4,'Amazon Model'!268:268) ->  | Q31: =LOOKUP(Q$3,'Amazon Model'!$4:$4,'Amazon Model'!268:268) ->  | R31: =LOOKUP(R$3,'Amazon Model'!$4:$4,'Amazon Model'!268:268) ->  | S31: =LOOKUP(S$3,'Amazon Model'!$4:$4,'Amazon Model'!268:268) ->  | T31: =LOOKUP(T$3,'Amazon Model'!$4:$4,'Amazon Model'!268:268) ->  | U31: =LOOKUP(U$3,'Amazon Model'!$4:$4,'Amazon Model'!268:268) ->  | V31: =LOOKUP(V$3,'Amazon Model'!$4:$4,'Amazon Model'!268:268) ->  | W31: =LOOKUP(W$3,'Amazon Model'!$4:$4,'Amazon Model'!268:268) ->  | X31: =LOOKUP(X$3,'Amazon Model'!$4:$4,'Amazon Model'!268:268) ->  | Y31: =LOOKUP(Y$3,'Amazon Model'!$4:$4,'Amazon Model'!268:268) ->  | Z31: =LOOKUP(Z$3,'Amazon Model'!$4:$4,'Amazon Model'!268:268) ->  | AA31: =LOOKUP(AA$3,'Amazon Model'!$4:$4,'Amazon Model'!268:268) -> 
B32: Less: Capital Expenditures and Acquistion | H32: =LOOKUP(H$3,'Amazon Model'!$4:$4,'Amazon Model'!273:273)+LOOKUP(H$3,'Amazon Model'!$4:$4,'Amazon Model'!274:274) -> 0 | I32: =LOOKUP(I$3,'Amazon Model'!$4:$4,'Amazon Model'!273:273)+LOOKUP(I$3,'Amazon Model'!$4:$4,'Amazon Model'!274:274) -> 0 | J32: =LOOKUP(J$3,'Amazon Model'!$4:$4,'Amazon Model'!273:273)+LOOKUP(J$3,'Amazon Model'!$4:$4,'Amazon Model'!274:274) -> 0 | K32: =LOOKUP(K$3,'Amazon Model'!$4:$4,'Amazon Model'!273:273)+LOOKUP(K$3,'Amazon Model'!$4:$4,'Amazon Model'!274:274) -> 0 | L32: =LOOKUP(L$3,'Amazon Model'!$4:$4,'Amazon Model'!273:273)+LOOKUP(L$3,'Amazon Model'!$4:$4,'Amazon Model'!274:274) -> 0 | M32: =LOOKUP(M$3,'Amazon Model'!$4:$4,'Amazon Model'!273:273)+LOOKUP(M$3,'Amazon Model'!$4:$4,'Amazon Model'!274:274) -> 0 | N32: =LOOKUP(N$3,'Amazon Model'!$4:$4,'Amazon Model'!273:273)+LOOKUP(N$3,'Amazon Model'!$4:$4,'Amazon Model'!274:274) -> 0 | O32: =LOOKUP(O$3,'Amazon Model'!$4:$4,'Amazon Model'!273:273)+LOOKUP(O$3,'Amazon Model'!$4:$4,'Amazon Model'!274:274) -> 0 | P32: =LOOKUP(P$3,'Amazon Model'!$4:$4,'Amazon Model'!273:273)+LOOKUP(P$3,'Amazon Model'!$4:$4,'Amazon Model'!274:274) -> 0 | Q32: =LOOKUP(Q$3,'Amazon Model'!$4:$4,'Amazon Model'!273:273)+LOOKUP(Q$3,'Amazon Model'!$4:$4,'Amazon Model'!274:274) -> 0 | R32: =LOOKUP(R$3,'Amazon Model'!$4:$4,'Amazon Model'!273:273)+LOOKUP(R$3,'Amazon Model'!$4:$4,'Amazon Model'!274:274) -> 0 | S32: =LOOKUP(S$3,'Amazon Model'!$4:$4,'Amazon Model'!273:273)+LOOKUP(S$3,'Amazon Model'!$4:$4,'Amazon Model'!274:274) -> 0 | T32: =LOOKUP(T$3,'Amazon Model'!$4:$4,'Amazon Model'!273:273)+LOOKUP(T$3,'Amazon Model'!$4:$4,'Amazon Model'!274:274) -> 0 | U32: =LOOKUP(U$3,'Amazon Model'!$4:$4,'Amazon Model'!273:273)+LOOKUP(U$3,'Amazon Model'!$4:$4,'Amazon Model'!274:274) -> 0 | V32: =LOOKUP(V$3,'Amazon Model'!$4:$4,'Amazon Model'!273:273)+LOOKUP(V$3,'Amazon Model'!$4:$4,'Amazon Model'!274:274) -> 0 | W32: =LOOKUP(W$3,'Amazon Model'!$4:$4,'Amazon Model'!273:273)+LOOKUP(W$3,'Amazon Model'!$4:$4,'Amazon Model'!274:274) -> 0 | X32: =LOOKUP(X$3,'Amazon Model'!$4:$4,'Amazon Model'!273:273)+LOOKUP(X$3,'Amazon Model'!$4:$4,'Amazon Model'!274:274) -> 0 | Y32: =LOOKUP(Y$3,'Amazon Model'!$4:$4,'Amazon Model'!273:273)+LOOKUP(Y$3,'Amazon Model'!$4:$4,'Amazon Model'!274:274) -> 0 | Z32: =LOOKUP(Z$3,'Amazon Model'!$4:$4,'Amazon Model'!273:273)+LOOKUP(Z$3,'Amazon Model'!$4:$4,'Amazon Model'!274:274) -> 0 | AA32: =LOOKUP(AA$3,'Amazon Model'!$4:$4,'Amazon Model'!273:273)+LOOKUP(AA$3,'Amazon Model'!$4:$4,'Amazon Model'!274:274) -> 0
B33: Less: Taxes | H33: =H28 -> 0 | I33: =I28 -> 0 | J33: 0 | K33: 0 | L33: 0 | M33: 0 | N33: 0 | O33: 0 | P33: 0 | Q33: 0 | R33: 0 | S33: 0 | T33: 0 | U33: 0 | V33: 0 | W33: 0 | X33: 0 | Y33: 0 | Z33: 0 | AA33: 0
C34: Free Cash Flow | H34: =H30-H31-H32-H33 ->  | I34: =I30-I31-I32-I33 -> 
C36: Free Cash Flow over Explicit Period | H36: =IF(H4,H34) -> FALSE | I36: =IF(I4,I34) -> FALSE | J36: FALSE | K36: FALSE | L36: FALSE | M36: FALSE | N36: FALSE | O36: FALSE | P36: FALSE | Q36: FALSE | R36: FALSE | S36: FALSE | T36: FALSE | U36: FALSE | V36: FALSE | W36: FALSE | X36: FALSE | Y36: FALSE | Z36: FALSE | AA36: FALSE
C37: NPV of Explicit Cash Fllow | E37: =NPV(F37,36:36) -> 0 | F37: =E12 -> 0.09
C38: Including 1/2 year adjustment | E38: =E37*(1+F37)^0.5 -> 0
A40: Terminal Cash Flow
B41: Invested Capital | H41: =LOOKUP(H$3,'Amazon Model'!$4:$4,'Amazon Model'!323:323) -> 0 | I41: =LOOKUP(I$3,'Amazon Model'!$4:$4,'Amazon Model'!323:323) -> 0 | J41: =LOOKUP(J$3,'Amazon Model'!$4:$4,'Amazon Model'!323:323) -> 0 | K41: =LOOKUP(K$3,'Amazon Model'!$4:$4,'Amazon Model'!323:323) -> 0 | L41: =LOOKUP(L$3,'Amazon Model'!$4:$4,'Amazon Model'!323:323) -> 0 | M41: =LOOKUP(M$3,'Amazon Model'!$4:$4,'Amazon Model'!323:323) -> 0 | N41: =LOOKUP(N$3,'Amazon Model'!$4:$4,'Amazon Model'!323:323) -> 0 | O41: =LOOKUP(O$3,'Amazon Model'!$4:$4,'Amazon Model'!323:323) -> 0 | P41: =LOOKUP(P$3,'Amazon Model'!$4:$4,'Amazon Model'!323:323) -> 0 | Q41: =LOOKUP(Q$3,'Amazon Model'!$4:$4,'Amazon Model'!323:323) -> 0 | R41: =LOOKUP(R$3,'Amazon Model'!$4:$4,'Amazon Model'!323:323) -> 0 | S41: =LOOKUP(S$3,'Amazon Model'!$4:$4,'Amazon Model'!323:323) -> 0 | T41: =LOOKUP(T$3,'Amazon Model'!$4:$4,'Amazon Model'!323:323) -> 0 | U41: =LOOKUP(U$3,'Amazon Model'!$4:$4,'Amazon Model'!323:323) -> 0 | V41: =LOOKUP(V$3,'Amazon Model'!$4:$4,'Amazon Model'!323:323) -> 0 | W41: =LOOKUP(W$3,'Amazon Model'!$4:$4,'Amazon Model'!323:323) -> 0 | X41: =LOOKUP(X$3,'Amazon Model'!$4:$4,'Amazon Model'!323:323) -> 0 | Y41: =LOOKUP(Y$3,'Amazon Model'!$4:$4,'Amazon Model'!323:323) -> 0 | Z41: =LOOKUP(Z$3,'Amazon Model'!$4:$4,'Amazon Model'!323:323) -> 0 | AA41: =LOOKUP(AA$3,'Amazon Model'!$4:$4,'Amazon Model'!323:323) -> 0
B42: Stable ROIC | E42: =E15 -> 0.15 | H42: =$E$42 -> 0.15 | I42: =$E$42 -> 0.15 | J42: 0.15 | K42: 0.15 | L42: 0.15 | M42: 0.15 | N42: 0.15 | O42: 0.15 | P42: 0.15 | Q42: 0.15 | R42: 0.15 | S42: 0.15 | T42: 0.15 | U42: 0.15 | V42: 0.15 | W42: 0.15 | X42: 0.15 | Y42: 0.15 | Z42: 0.15 | AA42: 0.15
B43: NOPAT | H43: =H42*H41 -> 0 | I43: =I42*I41 -> 0 | J43: 0 | K43: 0 | L43: 0 | M43: 0 | N43: 0 | O43: 0 | P43: 0 | Q43: 0 | R43: 0 | S43: 0 | T43: 0 | U43: 0 | V43: 0 | W43: 0 | X43: 0 | Y43: 0 | Z43: 0 | AA43: 0
B44: EBIT = NOPAT/(1-t) | H44: =H43/(1-H27) -> 0 | I44: =I43/(1-I27) -> 0 | J44: 0 | K44: 0 | L44: 0 | M44: 0 | N44: 0 | O44: 0 | P44: 0 | Q44: 0 | R44: 0 | S44: 0 | T44: 0 | U44: 0 | V44: 0 | W44: 0 | X44: 0 | Y44: 0 | Z44: 0 | AA44: 0
B45: EBITDA = EBIT + Deprecaition | H45: =H44+H25 -> 0 | I45: =I44+I25 -> 0 | J45: 0 | K45: 0 | L45: 0 | M45: 0 | N45: 0 | O45: 0 | P45: 0 | Q45: 0 | R45: 0 | S45: 0 | T45: 0 | U45: 0 | V45: 0 | W45: 0 | X45: 0 | Y45: 0 | Z45: 0 | AA45: 0
B46: Stble EBITDA Applied | H46: =H30 -> 0 | I46: =I30 -> 0 | J46: 0 | K46: 0 | L46: 0 | M46: 0 | N46: 0 | O46: 0 | P46: 0 | Q46: 0 | R46: 0 | S46: 0 | T46: 0 | U46: 0 | V46: 0 | W46: 0 | X46: 0 | Y46: 0 | Z46: 0 | AA46: 0
B47: Stable Taxes | H47: =H44*H27 -> 0 | I47: =I44*I27 -> 0 | J47: 0 | K47: 0 | L47: 0 | M47: 0 | N47: 0 | O47: 0 | P47: 0 | Q47: 0 | R47: 0 | S47: 0 | T47: 0 | U47: 0 | V47: 0 | W47: 0 | X47: 0 | Y47: 0 | Z47: 0 | AA47: 0
B49: Stable Cap Exp to Deprecation | E49: =E19 -> 0 | H49: =$E$49 -> 0 | I49: =$E$49 -> 0 | J49: 0 | K49: 0 | L49: 0 | M49: 0 | N49: 0 | O49: 0 | P49: 0 | Q49: 0 | R49: 0 | S49: 0 | T49: 0 | U49: 0 | V49: 0 | W49: 0 | X49: 0 | Y49: 0 | Z49: 0 | AA49: 0
B50: Depreciation | H50: =H25 -> 0 | I50: =I25 -> 0 | J50: 0 | K50: 0 | L50: 0 | M50: 0 | N50: 0 | O50: 0 | P50: 0 | Q50: 0 | R50: 0 | S50: 0 | T50: 0 | U50: 0 | V50: 0 | W50: 0 | X50: 0 | Y50: 0 | Z50: 0 | AA50: 0
B51: Stable Captial Expenditures | H51: =H49*H50 -> 0 | I51: =I49*I50 -> 0 | J51: 0 | K51: 0 | L51: 0 | M51: 0 | N51: 0 | O51: 0 | P51: 0 | Q51: 0 | R51: 0 | S51: 0 | T51: 0 | U51: 0 | V51: 0 | W51: 0 | X51: 0 | Y51: 0 | Z51: 0 | AA51: 0
B53: Working Captial to EBITDA | E53: =E20 -> -1.6 | H53: =$E$53 -> -1.6 | I53: =$E$53 -> -1.6 | J53: -1.6 | K53: -1.6 | L53: -1.6 | M53: -1.6 | N53: -1.6 | O53: -1.6 | P53: -1.6 | Q53: -1.6 | R53: -1.6 | S53: -1.6 | T53: -1.6 | U53: -1.6 | V53: -1.6 | W53: -1.6 | X53: -1.6 | Y53: -1.6 | Z53: -1.6 | AA53: -1.6
B54: Stable Change in Working Capital | E54: =E21 -> 0.03846153846 | H54: =H53*H45*$E$54 -> 0 | I54: =I53*I45*$E$54 -> 0 | J54: 0 | K54: 0 | L54: 0 | M54: 0 | N54: 0 | O54: 0 | P54: 0 | Q54: 0 | R54: 0 | S54: 0 | T54: 0 | U54: 0 | V54: 0 | W54: 0 | X54: 0 | Y54: 0 | Z54: 0 | AA54: 0
B56: EBITDA | H56: =IF(H5,H46) -> FALSE | I56: =IF(I5,I46) -> FALSE | J56: FALSE | K56: FALSE | L56: FALSE | M56: FALSE | N56: FALSE | O56: FALSE | P56: FALSE | Q56: FALSE | R56: FALSE | S56: FALSE | T56: FALSE | U56: FALSE | V56: FALSE | W56: FALSE | X56: FALSE | Y56: FALSE | Z56: FALSE | AA56: FALSE
B57: Less: WC Change | H57: =IF(H5,H54) -> FALSE | I57: =IF(I5,I54) -> FALSE | J57: FALSE | K57: FALSE | L57: FALSE | M57: FALSE | N57: FALSE | O57: FALSE | P57: FALSE | Q57: FALSE | R57: FALSE | S57: FALSE | T57: FALSE | U57: FALSE | V57: FALSE | W57: FALSE | X57: FALSE | Y57: FALSE | Z57: FALSE | AA57: FALSE
B58: Less: Capital Expenditures | H58: =IF(H5,H51) -> FALSE | I58: =IF(I5,I51) -> FALSE | J58: FALSE | K58: FALSE | L58: FALSE | M58: FALSE | N58: FALSE | O58: FALSE | P58: FALSE | Q58: FALSE | R58: FALSE | S58: FALSE | T58: FALSE | U58: FALSE | V58: FALSE | W58: FALSE | X58: FALSE | Y58: FALSE | Z58: FALSE | AA58: FALSE
B59: Less: Taxes | H59: =IF(H5,H47) -> FALSE | I59: =IF(I5,I47) -> FALSE | J59: FALSE | K59: FALSE | L59: FALSE | M59: FALSE | N59: FALSE | O59: FALSE | P59: FALSE | Q59: FALSE | R59: FALSE | S59: FALSE | T59: FALSE | U59: FALSE | V59: FALSE | W59: FALSE | X59: FALSE | Y59: FALSE | Z59: FALSE | AA59: FALSE
C60: Stable Cash Flow | H60: =H56-H57-H58-H59 -> 0 | I60: =I56-I57-I58-I59 -> 0 | J60: 0 | K60: 0 | L60: 0 | M60: 0 | N60: 0 | O60: 0 | P60: 0 | Q60: 0 | R60: 0 | S60: 0 | T60: 0 | U60: 0 | V60: 0 | W60: 0 | X60: 0 | Y60: 0 | Z60: 0 | AA60: 0
A62: Terminal Value - Growth Method
B63: Growth Method ==> (1+g)/(WACC-g) | E63: =E13 -> 0.04 | F63: =E12 -> 0.09 | H63: =(1+$E$63)/($F$63-$E$63) -> 20.8 | I63: =(1+$E$63)/($F$63-$E$63) -> 20.8 | J63: 20.8 | K63: 20.8 | L63: 20.8 | M63: 20.8 | N63: 20.8 | O63: 20.8 | P63: 20.8 | Q63: 20.8 | R63: 20.8 | S63: 20.8 | T63: 20.8 | U63: 20.8 | V63: 20.8 | W63: 20.8 | X63: 20.8 | Y63: 20.8 | Z63: 20.8 | AA63: 20.8
B64: Terminal Value | H64: =H60*H63 -> 0 | I64: =I60*I63 -> 0 | J64: 0 | K64: 0 | L64: 0 | M64: 0 | N64: 0 | O64: 0 | P64: 0 | Q64: 0 | R64: 0 | S64: 0 | T64: 0 | U64: 0 | V64: 0 | W64: 0 | X64: 0 | Y64: 0 | Z64: 0 | AA64: 0
B65: PV of Terminal Value | E65: =NPV(F65,H64:AA64)*(1+E63)^0.5 -> 0 | F65: =F63 -> 0.09
B66: Add: NPV of Explicit Cash Flow | E66: =E38 -> 0
B67: Total Enterprise Value | E67: =E65+E66 -> 0
B69: Less: Net Debt | E69: =LOOKUP(E9-1,'Amazon Model'!$4:$4,'Amazon Model'!324:324) -> 
B70: Equity Value | E70: =E67-E69 -> 
B71: Shares | E71: =LOOKUP(E9-1,'Amazon Model'!4:4,'Amazon Model'!259:259) -> 474000
B72: Equity Value/Share | E72: =E70/E71 -> 
B74: EV/EBITDA Method ==> EV/EBITDA | E74: =E14 -> 14 | H74: =$E$74*H46*H5 -> 0 | I74: =$E$74*I46*I5 -> 0 | J74: 0 | K74: 0 | L74: 0 | M74: 0 | N74: 0 | O74: 0 | P74: 0 | Q74: 0 | R74: 0 | S74: 0 | T74: 0 | U74: 0 | V74: 0 | W74: 0 | X74: 0 | Y74: 0 | Z74: 0 | AA74: 0
B75: PV of Terminal Value | E75: =NPV(F75,H74:AA74)*(1+F75)^0.5 -> 0 | F75: =F65 -> 0.09
B76: Add: NPV of Explicit Cash Flow | E76: =E66 -> 0
B77: Total Enterprise Value | E77: =E75+E76 -> 0
B79: Less: Net Debt | E79: =E69 -> 
B80: Equity Value | E80: =E77-E79 -> 
B81: Shares | E81: =E71 -> 474000
B82: Equity Value/Share | E82: =E80/E81 -> 
B84: Value Driver Formula: Invested Capital * ROIC *(1-g/ROIC)/(WACC-g)
B85: Invested Capital | H85: =H41 -> 0 | I85: =I41 -> 0 | J85: 0 | K85: 0 | L85: 0 | M85: 0 | N85: 0 | O85: 0 | P85: 0 | Q85: 0 | R85: 0 | S85: 0 | T85: 0 | U85: 0 | V85: 0 | W85: 0 | X85: 0 | Y85: 0 | Z85: 0 | AA85: 0
B86: ROIC Earned | H86: =LOOKUP(H3,'Amazon Model'!4:4,'Amazon Model'!341:341) ->  | I86: =LOOKUP(I3,'Amazon Model'!4:4,'Amazon Model'!341:341) ->  | J86: =LOOKUP(J3,'Amazon Model'!4:4,'Amazon Model'!341:341) ->  | K86: =LOOKUP(K3,'Amazon Model'!4:4,'Amazon Model'!341:341) ->  | L86: =LOOKUP(L3,'Amazon Model'!4:4,'Amazon Model'!341:341) ->  | M86: =LOOKUP(M3,'Amazon Model'!4:4,'Amazon Model'!341:341) ->  | N86: =LOOKUP(N3,'Amazon Model'!4:4,'Amazon Model'!341:341) ->  | O86: =LOOKUP(O3,'Amazon Model'!4:4,'Amazon Model'!341:341) ->  | P86: =LOOKUP(P3,'Amazon Model'!4:4,'Amazon Model'!341:341) ->  | Q86: =LOOKUP(Q3,'Amazon Model'!4:4,'Amazon Model'!341:341) ->  | R86: =LOOKUP(R3,'Amazon Model'!4:4,'Amazon Model'!341:341) ->  | S86: =LOOKUP(S3,'Amazon Model'!4:4,'Amazon Model'!341:341) ->  | T86: =LOOKUP(T3,'Amazon Model'!4:4,'Amazon Model'!341:341) ->  | U86: =LOOKUP(U3,'Amazon Model'!4:4,'Amazon Model'!341:341) ->  | V86: =LOOKUP(V3,'Amazon Model'!4:4,'Amazon Model'!341:341) ->  | W86: =LOOKUP(W3,'Amazon Model'!4:4,'Amazon Model'!341:341) ->  | X86: =LOOKUP(X3,'Amazon Model'!4:4,'Amazon Model'!341:341) ->  | Y86: =LOOKUP(Y3,'Amazon Model'!4:4,'Amazon Model'!341:341) ->  | Z86: =LOOKUP(Z3,'Amazon Model'!4:4,'Amazon Model'!341:341) ->  | AA86: =LOOKUP(AA3,'Amazon Model'!4:4,'Amazon Model'!341:341) -> 
B87: NOPAT | H87: =H43 -> 0 | I87: =I43 -> 0 | J87: 0 | K87: 0 | L87: 0 | M87: 0 | N87: 0 | O87: 0 | P87: 0 | Q87: 0 | R87: 0 | S87: 0 | T87: 0 | U87: 0 | V87: 0 | W87: 0 | X87: 0 | Y87: 0 | Z87: 0 | AA87: 0
B88: Multiplier | E88: =(1-E13/E15)/(E12-E13) -> 14.66666667 | H88: =$E$88*H87*H5 -> 0 | I88: =$E$88*I87*I5 -> 0 | J88: 0 | K88: 0 | L88: 0 | M88: 0 | N88: 0 | O88: 0 | P88: 0 | Q88: 0 | R88: 0 | S88: 0 | T88: 0 | U88: 0 | V88: 0 | W88: 0 | X88: 0 | Y88: 0 | Z88: 0 | AA88: 0 | XFD88: =XFC88+1% -> 0.01
B89: PV of Terminal Value | E89: =NPV(F89,H88:AA88)*(1+F75)^0.5 -> 0 | F89: =F75 -> 0.09
B90: Add: NPV of Explicit Cash Flow | E90: =E66 -> 0
B91: Total Enterprise Value | E91: =E89+E90 -> 0
B93: Less: Net Debt | E93: =E79 -> 
B94: Equity Value | E94: =E80 -> 
B95: Shares | E95: =E81 -> 474000
B96: Equity Value/Share | E96: =E82 -> 
I98: Wacc
G99: =E72 ->  | H99: 0.05 | I99: =H99+1% -> 0.06 | J99: =I99+1% -> 0.07 | K99: =J99+1% -> 0.08
G100: 0.03
F101: G | G101: 0.04
G102: 0.05
G103: 0.06
H116: =E72 ->  | I116: =E82 -> 
G117: 0.05
G118: 0.06
G119: 0.07
G120: 0.08
G121: 0.09

Sheet Sensitivity and Presentation
D1: Scenario Number | F1: 1
H2: ='Amazon DCF'!E82 -> 
D4: WACC
D5: Terminal Growth
D6: Explicit Period
D7: Terminal EV/EBITDA
V8: Value Driver
E9: 1 | G9: 2 | I9: 3 | K9: 4 | M9: 5 | O9: 6 | P9: 7 | Q9: 8 | R9: 8 | T9: DCF Value Growth | U9: EV/EBITDA
E10: Sales Growth | G10: COGS Percent | I10: R&D Growth | K10: SG&A to Sales | M10: Cap Exp to Sales | O10: A/R to Sales | P10: Inventory to COGS | Q10: A/P to Expense | R10: Other Liabilities to Exp | T10: ='Amazon DCF'!I6 ->  | U10: ='Amazon DCF'!I7 -> 
D11: Base Case | E11: 1 | F11: =INDEX('Amazon Assumptions'!$C$60:$C$63,'Sensitivity and Presentation'!E11) -> Base Case | G11: 1 | H11: =INDEX('Amazon Assumptions'!$C$68:$C$71,'Sensitivity and Presentation'!G11) -> Base Case | I11: 1 | J11: =INDEX('Amazon Assumptions'!$C$76:$C$79,'Sensitivity and Presentation'!I11) -> Base Case | K11: 1 | L11: =INDEX('Amazon Assumptions'!$C$84:$C$87,'Sensitivity and Presentation'!K11) -> Base Case | M11: 1 | N11: =INDEX('Amazon Assumptions'!$C$92:$C$95,'Sensitivity and Presentation'!M11) -> Base Case | P11: 0.15 | Q11: 0.18 | R11: 0.07 | S11: 1
D12: Best Case | E12: 2 | F12: =INDEX('Amazon Assumptions'!$C$60:$C$63,'Sensitivity and Presentation'!E12) -> Case 1 - Higher Growth | G12: 2 | H12: =INDEX('Amazon Assumptions'!$C$68:$C$71,'Sensitivity and Presentation'!G12) -> Case 2 - Lower Cost/High Price | I12: 2 | J12: =INDEX('Amazon Assumptions'!$C$76:$C$79,'Sensitivity and Presentation'!I12) -> Case 2 - Lower Spending | K12: 2 | L12: =INDEX('Amazon Assumptions'!$C$84:$C$87,'Sensitivity and Presentation'!K12) -> Case 2 - Lower Cost | M12: 2 | N12: =INDEX('Amazon Assumptions'!$C$92:$C$95,'Sensitivity and Presentation'!M12) -> Case 2 - Lower Cap Exp | S12: 2
D13: Worst Case | E13: 3 | F13: =INDEX('Amazon Assumptions'!$C$60:$C$63,'Sensitivity and Presentation'!E13) -> Case 2 - Lower Growth | G13: 3 | H13: =INDEX('Amazon Assumptions'!$C$68:$C$71,'Sensitivity and Presentation'!G13) -> Case 3 - Higher Cost/Lower Price | I13: 3 | J13: =INDEX('Amazon Assumptions'!$C$76:$C$79,'Sensitivity and Presentation'!I13) -> Case 3 - Higher Spending | K13: 3 | L13: =INDEX('Amazon Assumptions'!$C$84:$C$87,'Sensitivity and Presentation'!K13) -> Case 3 - Higher Cost | M13: 3 | N13: =INDEX('Amazon Assumptions'!$C$92:$C$95,'Sensitivity and Presentation'!M13) -> Case 3 - Lower Cap Exp | S13: 3
B14: Best Case | C14: 1 | D14: =E10&" "&B14 -> Sales Growth Best Case | E14: =IF(E$9=$C14,E$12,E$11) -> 2 | F14: =INDEX('Amazon Assumptions'!$C$60:$C$63,'Sensitivity and Presentation'!E14) -> Case 1 - Higher Growth | G14: =IF(G$9=$C14,G$12,G$11) -> 1 | H14: =INDEX('Amazon Assumptions'!$C$68:$C$71,'Sensitivity and Presentation'!G14) -> Base Case | I14: =IF(I$9=$C14,I$12,I$11) -> 1 | J14: =INDEX('Amazon Assumptions'!$C$76:$C$79,'Sensitivity and Presentation'!I14) -> Base Case | K14: =IF(K$9=$C14,K$12,K$11) -> 1 | L14: =INDEX('Amazon Assumptions'!$C$84:$C$87,'Sensitivity and Presentation'!K14) -> Base Case | M14: =IF(M$9=$C14,M$12,M$11) -> 1 | N14: =INDEX('Amazon Assumptions'!$C$92:$C$95,'Sensitivity and Presentation'!M14) -> Base Case | S14: 4
C15: 2 | D15: =G10&" "&B14 -> COGS Percent Best Case | E15: =IF(E$9=$C15,E$12,E$11) -> 1 | F15: =INDEX('Amazon Assumptions'!$C$60:$C$63,'Sensitivity and Presentation'!E15) -> Base Case | G15: 2 | H15: =INDEX('Amazon Assumptions'!$C$68:$C$71,'Sensitivity and Presentation'!G15) -> Case 2 - Lower Cost/High Price | I15: 1 | J15: =INDEX('Amazon Assumptions'!$C$76:$C$79,'Sensitivity and Presentation'!I15) -> Base Case | K15: 1 | L15: =INDEX('Amazon Assumptions'!$C$84:$C$87,'Sensitivity and Presentation'!K15) -> Base Case | M15: 1 | N15: =INDEX('Amazon Assumptions'!$C$92:$C$95,'Sensitivity and Presentation'!M15) -> Base Case | S15: 5
C16: 3 | D16: =I10&" "&B14 -> R&D Growth Best Case | E16: 1 | F16: =INDEX('Amazon Assumptions'!$C$60:$C$63,'Sensitivity and Presentation'!E16) -> Base Case | G16: 1 | H16: =INDEX('Amazon Assumptions'!$C$68:$C$71,'Sensitivity and Presentation'!G16) -> Base Case | I16: 2 | J16: =INDEX('Amazon Assumptions'!$C$76:$C$79,'Sensitivity and Presentation'!I16) -> Case 2 - Lower Spending | K16: 1 | L16: =INDEX('Amazon Assumptions'!$C$84:$C$87,'Sensitivity and Presentation'!K16) -> Base Case | M16: 1 | N16: =INDEX('Amazon Assumptions'!$C$92:$C$95,'Sensitivity and Presentation'!M16) -> Base Case | S16: 6
C17: 4 | D17: =K10&" "&B14 -> SG&A to Sales Best Case | E17: 1 | F17: =INDEX('Amazon Assumptions'!$C$60:$C$63,'Sensitivity and Presentation'!E17) -> Base Case | G17: 1 | H17: =INDEX('Amazon Assumptions'!$C$68:$C$71,'Sensitivity and Presentation'!G17) -> Base Case | I17: 1 | J17: =INDEX('Amazon Assumptions'!$C$76:$C$79,'Sensitivity and Presentation'!I17) -> Base Case | K17: 2 | L17: =INDEX('Amazon Assumptions'!$C$84:$C$87,'Sensitivity and Presentation'!K17) -> Case 2 - Lower Cost | M17: 1 | N17: =INDEX('Amazon Assumptions'!$C$92:$C$95,'Sensitivity and Presentation'!M17) -> Base Case | S17: 7
C18: 5 | D18: =M10&" "&B14 -> Cap Exp to Sales Best Case | E18: 1 | F18: =INDEX('Amazon Assumptions'!$C$60:$C$63,'Sensitivity and Presentation'!E18) -> Base Case | G18: 1 | H18: =INDEX('Amazon Assumptions'!$C$68:$C$71,'Sensitivity and Presentation'!G18) -> Base Case | I18: 1 | J18: =INDEX('Amazon Assumptions'!$C$76:$C$79,'Sensitivity and Presentation'!I18) -> Base Case | K18: 1 | L18: =INDEX('Amazon Assumptions'!$C$84:$C$87,'Sensitivity and Presentation'!K18) -> Base Case | M18: 2 | N18: =INDEX('Amazon Assumptions'!$C$92:$C$95,'Sensitivity and Presentation'!M18) -> Case 2 - Lower Cap Exp | S18: 8
C19: 6 | D19: =O10&" "&B14 -> A/R to Sales Best Case | E19: 1 | F19: =INDEX('Amazon Assumptions'!$C$60:$C$63,'Sensitivity and Presentation'!E19) -> Base Case | G19: 1 | H19: =INDEX('Amazon Assumptions'!$C$68:$C$71,'Sensitivity and Presentation'!G19) -> Base Case | I19: 1 | J19: =INDEX('Amazon Assumptions'!$C$76:$C$79,'Sensitivity and Presentation'!I19) -> Base Case | K19: 1 | L19: =INDEX('Amazon Assumptions'!$C$84:$C$87,'Sensitivity and Presentation'!K19) -> Base Case | M19: 1 | N19: =INDEX('Amazon Assumptions'!$C$92:$C$95,'Sensitivity and Presentation'!M19) -> Base Case | S19: 9
C20: 7 | D20: =P10&" "&B14 -> Inventory to COGS Best Case | E20: 1 | F20: =INDEX('Amazon Assumptions'!$C$60:$C$63,'Sensitivity and Presentation'!E20) -> Base Case | G20: 1 | H20: =INDEX('Amazon Assumptions'!$C$68:$C$71,'Sensitivity and Presentation'!G20) -> Base Case | I20: 1 | J20: =INDEX('Amazon Assumptions'!$C$76:$C$79,'Sensitivity and Presentation'!I20) -> Base Case | K20: 1 | L20: =INDEX('Amazon Assumptions'!$C$84:$C$87,'Sensitivity and Presentation'!K20) -> Base Case | M20: 1 | N20: =INDEX('Amazon Assumptions'!$C$92:$C$95,'Sensitivity and Presentation'!M20) -> Base Case | S20: 10
C21: 8 | D21: =Q10&" "&B14 -> A/P to Expense Best Case | E21: 1 | F21: =INDEX('Amazon Assumptions'!$C$60:$C$63,'Sensitivity and Presentation'!E21) -> Base Case | G21: 1 | H21: =INDEX('Amazon Assumptions'!$C$68:$C$71,'Sensitivity and Presentation'!G21) -> Base Case | I21: 1 | J21: =INDEX('Amazon Assumptions'!$C$76:$C$79,'Sensitivity and Presentation'!I21) -> Base Case | K21: 1 | L21: =INDEX('Amazon Assumptions'!$C$84:$C$87,'Sensitivity and Presentation'!K21) -> Base Case | M21: 1 | N21: =INDEX('Amazon Assumptions'!$C$92:$C$95,'Sensitivity and Presentation'!M21) -> Base Case | S21: 11
B22: Worst Case | C22: 1 | D22: =E10&" "&B22 -> Sales Growth Worst Case | E22: =IF(E$9=$C22,E$13,E$11) -> 3 | F22: =INDEX('Amazon Assumptions'!$C$60:$C$63,'Sensitivity and Presentation'!E22) -> Case 2 - Lower Growth | G22: =IF(G$9=$C22,G$13,G$11) -> 1 | H22: =INDEX('Amazon Assumptions'!$C$68:$C$71,'Sensitivity and Presentation'!G22) -> Base Case | I22: =IF(I$9=$C22,I$13,I$11) -> 1 | J22: =INDEX('Amazon Assumptions'!$C$76:$C$79,'Sensitivity and Presentation'!I22) -> Base Case | K22: =IF(K$9=$C22,K$13,K$11) -> 1 | L22: =INDEX('Amazon Assumptions'!$C$84:$C$87,'Sensitivity and Presentation'!K22) -> Base Case | M22: =IF(M$9=$C22,M$13,M$11) -> 1 | N22: =INDEX('Amazon Assumptions'!$C$92:$C$95,'Sensitivity and Presentation'!M22) -> Base Case | S22: 12
C23: 2 | D23: =G10&B22 -> COGS Percent Worst Case | E23: =IF(E$9=$C23,E$13,E$11) -> 1 | F23: =INDEX('Amazon Assumptions'!$C$60:$C$63,'Sensitivity and Presentation'!E23) -> Base Case | G23: 3 | H23: =INDEX('Amazon Assumptions'!$C$68:$C$71,'Sensitivity and Presentation'!G23) -> Case 3 - Higher Cost/Lower Price | I23: 1 | J23: =INDEX('Amazon Assumptions'!$C$76:$C$79,'Sensitivity and Presentation'!I23) -> Base Case | K23: 1 | L23: =INDEX('Amazon Assumptions'!$C$84:$C$87,'Sensitivity and Presentation'!K23) -> Base Case | M23: 1 | N23: =INDEX('Amazon Assumptions'!$C$92:$C$95,'Sensitivity and Presentation'!M23) -> Base Case | S23: 13
C24: 3 | D24: =I10&B22 -> R&D Growth Worst Case | E24: 1 | F24: =INDEX('Amazon Assumptions'!$C$60:$C$63,'Sensitivity and Presentation'!E24) -> Base Case | G24: 1 | H24: =INDEX('Amazon Assumptions'!$C$68:$C$71,'Sensitivity and Presentation'!G24) -> Base Case | I24: 3 | J24: =INDEX('Amazon Assumptions'!$C$76:$C$79,'Sensitivity and Presentation'!I24) -> Case 3 - Higher Spending | K24: 1 | L24: =INDEX('Amazon Assumptions'!$C$84:$C$87,'Sensitivity and Presentation'!K24) -> Base Case | M24: 1 | N24: =INDEX('Amazon Assumptions'!$C$92:$C$95,'Sensitivity and Presentation'!M24) -> Base Case | S24: 14
C25: 4 | D25: =K10&B22 -> SG&A to Sales Worst Case | E25: 1 | F25: =INDEX('Amazon Assumptions'!$C$60:$C$63,'Sensitivity and Presentation'!E25) -> Base Case | G25: 1 | H25: =INDEX('Amazon Assumptions'!$C$68:$C$71,'Sensitivity and Presentation'!G25) -> Base Case | I25: 1 | J25: =INDEX('Amazon Assumptions'!$C$76:$C$79,'Sensitivity and Presentation'!I25) -> Base Case | K25: 3 | L25: =INDEX('Amazon Assumptions'!$C$84:$C$87,'Sensitivity and Presentation'!K25) -> Case 3 - Higher Cost | M25: 1 | N25: =INDEX('Amazon Assumptions'!$C$92:$C$95,'Sensitivity and Presentation'!M25) -> Base Case | S25: 15
C26: 5 | D26: =M10&B22 -> Cap Exp to Sales Worst Case | E26: 1 | F26: =INDEX('Amazon Assumptions'!$C$60:$C$63,'Sensitivity and Presentation'!E26) -> Base Case | G26: 1 | H26: =INDEX('Amazon Assumptions'!$C$68:$C$71,'Sensitivity and Presentation'!G26) -> Base Case | I26: 1 | J26: =INDEX('Amazon Assumptions'!$C$76:$C$79,'Sensitivity and Presentation'!I26) -> Base Case | K26: 1 | L26: =INDEX('Amazon Assumptions'!$C$84:$C$87,'Sensitivity and Presentation'!K26) -> Base Case | M26: 3 | N26: =INDEX('Amazon Assumptions'!$C$92:$C$95,'Sensitivity and Presentation'!M26) -> Case 3 - Lower Cap Exp | S26: 16
C27: 6 | D27: =D19 -> A/R to Sales Best Case | E27: 1 | F27: =INDEX('Amazon Assumptions'!$C$60:$C$63,'Sensitivity and Presentation'!E27) -> Base Case | G27: 1 | H27: =INDEX('Amazon Assumptions'!$C$68:$C$71,'Sensitivity and Presentation'!G27) -> Base Case | I27: 1 | J27: =INDEX('Amazon Assumptions'!$C$76:$C$79,'Sensitivity and Presentation'!I27) -> Base Case | K27: 1 | L27: =INDEX('Amazon Assumptions'!$C$84:$C$87,'Sensitivity and Presentation'!K27) -> Base Case | M27: 1 | N27: =INDEX('Amazon Assumptions'!$C$92:$C$95,'Sensitivity and Presentation'!M27) -> Base Case | S27: 17
C28: 7 | D28: =D20 -> Inventory to COGS Best Case | E28: 1 | F28: =INDEX('Amazon Assumptions'!$C$60:$C$63,'Sensitivity and Presentation'!E28) -> Base Case | G28: 1 | H28: =INDEX('Amazon Assumptions'!$C$68:$C$71,'Sensitivity and Presentation'!G28) -> Base Case | I28: 1 | J28: =INDEX('Amazon Assumptions'!$C$76:$C$79,'Sensitivity and Presentation'!I28) -> Base Case | K28: 1 | L28: =INDEX('Amazon Assumptions'!$C$84:$C$87,'Sensitivity and Presentation'!K28) -> Base Case | M28: 1 | N28: =INDEX('Amazon Assumptions'!$C$92:$C$95,'Sensitivity and Presentation'!M28) -> Base Case | S28: 18
C29: 8 | D29: =D21 -> A/P to Expense Best Case | E29: 1 | F29: =INDEX('Amazon Assumptions'!$C$60:$C$63,'Sensitivity and Presentation'!E29) -> Base Case | G29: 1 | H29: =INDEX('Amazon Assumptions'!$C$68:$C$71,'Sensitivity and Presentation'!G29) -> Base Case | I29: 1 | J29: =INDEX('Amazon Assumptions'!$C$76:$C$79,'Sensitivity and Presentation'!I29) -> Base Case | K29: 1 | L29: =INDEX('Amazon Assumptions'!$C$84:$C$87,'Sensitivity and Presentation'!K29) -> Base Case | M29: 1 | N29: =INDEX('Amazon Assumptions'!$C$92:$C$95,'Sensitivity and Presentation'!M29) -> Base Case | S29: 19
O32: =INDEX(O11:O29,$F$1) -> 0 | P32: 0.15 | Q32: 0.18 | R32: 0.07
F34: Best Vs Base | H34: Worst Versus Base
D35: Sales Growth | F35: =T14-$T$11 ->  | H35: =T22-$U$10 -> 
D36: COGS Percent | F36: =T15-$T$11 ->  | H36: =T23-$U$10 -> 
D37: R&D Growth | F37: =T16-$T$11 ->  | H37: =T24-$U$10 -> 
D38: SG&A to Sales | F38: =T17-$T$11 ->  | H38: =T25-$U$10 -> 
D39: Cap Exp to Sales | F39: =T18-$T$11 ->  | H39: =T26-$U$10 -> 

Sheet Forecast and Actual
B3: Row Number | F3: 10
B6: Year | F6: ='Amazon Assumptions'!I2 -> 2012 | G6: ='Amazon Assumptions'!J2 -> 2013 | H6: ='Amazon Assumptions'!K2 -> 2014 | I6: ='Amazon Assumptions'!L2 -> 2015 | J6: ='Amazon Assumptions'!M2 -> 2016 | K6: ='Amazon Assumptions'!N2 -> 2017 | L6: ='Amazon Assumptions'!O2 -> 2018 | M6: ='Amazon Assumptions'!P2 -> 2019 | N6: ='Amazon Assumptions'!Q2 -> 2020 | O6: ='Amazon Assumptions'!R2 -> 2021 | P6: ='Amazon Assumptions'!S2 -> 2022
B7: Historic Year | F7: ='Amazon Assumptions'!I4 -> TRUE | G7: ='Amazon Assumptions'!J4 -> TRUE | H7: ='Amazon Assumptions'!K4 -> TRUE | I7: ='Amazon Assumptions'!L4 -> TRUE | J7: ='Amazon Assumptions'!M4 -> TRUE | K7: ='Amazon Assumptions'!N4 -> FALSE | L7: ='Amazon Assumptions'!O4 -> FALSE | M7: ='Amazon Assumptions'!P4 -> FALSE | N7: ='Amazon Assumptions'!Q4 -> FALSE | O7: ='Amazon Assumptions'!R4 -> FALSE | P7: ='Amazon Assumptions'!S4 -> FALSE
F8: =F6 -> 2012 | G8: =G6 -> 2013 | H8: 2014 | I8: 2015 | J8: 2016 | K8: 2017 | L8: 2018 | M8: 2019 | N8: 2020 | O8: 2021 | P8: 2022
B9: =INDEX('Amazon Assumptions'!C:C,'Forecast and Actual'!$F$3) -> COGS Percent | F9: =INDEX('Amazon Assumptions'!I:I,'Forecast and Actual'!$F$3) -> 0.722540514 | G9: =INDEX('Amazon Assumptions'!J:J,'Forecast and Actual'!$F$3) -> 0.6901276024 | H9: =INDEX('Amazon Assumptions'!K:K,'Forecast and Actual'!$F$3) -> 0.6581638386 | I9: =INDEX('Amazon Assumptions'!L:L,'Forecast and Actual'!$F$3) -> 0.6167647883 | J9: =INDEX('Amazon Assumptions'!M:M,'Forecast and Actual'!$F$3) -> 0.5940142658 | K9: =INDEX('Amazon Assumptions'!N:N,'Forecast and Actual'!$F$3) -> 0.5830034635 | L9: =INDEX('Amazon Assumptions'!O:O,'Forecast and Actual'!$F$3) ->  | M9: =INDEX('Amazon Assumptions'!P:P,'Forecast and Actual'!$F$3) ->  | N9: =INDEX('Amazon Assumptions'!Q:Q,'Forecast and Actual'!$F$3) ->  | O9: =INDEX('Amazon Assumptions'!R:R,'Forecast and Actual'!$F$3) ->  | P9: =INDEX('Amazon Assumptions'!S:S,'Forecast and Actual'!$F$3) -> 
F11: =F8 -> 2012 | G11: =G8 -> 2013 | H11: 2014 | I11: 2015 | J11: 2016 | K11: 2017 | L11: 2018 | M11: 2019 | N11: 2020 | O11: 2021 | P11: 2022
D12: History | F12: =IF(F7,F9) -> 0.722540514 | G12: =IF(G7,G9) -> 0.6901276024 | H12: 0.6581638386 | I12: 0.6167647883 | J12: 0.5940142658 | K12: FALSE | L12: FALSE | M12: FALSE | N12: FALSE | O12: FALSE | P12: FALSE
D13: Projection | F13: =IF(NOT(F7),F9) -> FALSE | G13: =IF(NOT(G7),G9) -> FALSE | H13: FALSE | I13: FALSE | J13: FALSE | K13: 0.5830034635

Sheet L&G

Sheet AMZN
A1: Date | B1: Open | C1: High | D1: Low | E1: Close | F1: Adj Close | G1: Volume
A2: 1997-05-01 | B2: 2.4375 | C2: 2.5 | D2: 1.3125 | E2: 1.5 | F2: 1.5 | G2: 256516800
A3: 1997-06-01 | B3: 1.510417 | C3: 1.708333 | D3: 1.375 | E3: 1.541667 | F3: 1.541667 | G3: 53163600
A4: 1997-07-01 | B4: 1.541667 | C4: 2.572917 | D4: 1.510417 | E4: 2.395833 | F4: 2.395833 | G4: 108614400
A5: 1997-08-01 | B5: 2.34375 | C5: 2.416667 | D5: 1.9375 | E5: 2.338542 | F5: 2.338542 | G5: 31906800
A6: 1997-09-01 | B6: 2.34375 | C6: 4.8125 | D6: 2.3125 | E6: 4.338542 | F6: 4.338542 | G6: 107862000
A7: 1997-10-01 | B7: 4.4375 | C7: 5.5 | D7: 3.520833 | E7: 5.083333 | F7: 5.083333 | G7: 105187200
A8: 1997-11-01 | B8: 5.21875 | C8: 5.21875 | D8: 3.666667 | E8: 4.125 | F8: 4.125 | G8: 67797600
A9: 1997-12-01 | B9: 4.239583 | C9: 5.041667 | D9: 4.135417 | E9: 5.020833 | F9: 5.020833 | G9: 64982400
A10: 1998-01-01 | B10: 5 | C10: 5.34375 | D10: 4.145833 | E10: 4.916667 | F10: 4.916667 | G10: 112080000
A11: 1998-02-01 | B11: 4.947917 | C11: 6.635417 | D11: 4.770833 | E11: 6.416667 | F11: 6.416667 | G11: 130621200
A12: 1998-03-01 | B12: 6.322917 | C12: 7.354167 | D12: 5.833333 | E12: 7.1276 | F12: 7.1276 | G12: 206818800
A13: 1998-04-01 | B13: 7.104167 | C13: 8.333333 | D13: 6.427083 | E13: 7.645833 | F13: 7.645833 | G13: 354868800
A14: 1998-05-01 | B14: 7.729167 | C14: 7.989583 | D14: 6.645833 | E14: 7.34375 | F14: 7.34375 | G14: 174870000
A15: 1998-06-01 | B15: 7.333333 | C15: 17.458334 | D15: 6.875 | E15: 16.625 | F15: 16.625 | G15: 583878600
A16: 1998-07-01 | B16: 16.96875 | C16: 24.5 | D16: 15.708333 | E16: 18.479166 | F16: 18.479166 | G16: 663946800
A17: 1998-08-01 | B17: 18.291666 | C17: 22.916666 | D17: 13.854167 | E17: 13.958333 | F17: 13.958333 | G17: 440607600
A18: 1998-09-01 | B18: 12.6875 | C18: 20 | D18: 10.833333 | E18: 18.604166 | F18: 18.604166 | G18: 677835600
A19: 1998-10-01 | B19: 18 | C19: 21.635416 | D19: 13.333333 | E19: 21.072916 | F19: 21.072916 | G19: 504444600
A20: 1998-11-01 | B20: 21.354166 | C20: 38.854168 | D20: 20.125 | E20: 32 | F20: 32 | G20: 651789600
A21: 1998-12-01 | B21: 30.916666 | C21: 60.3125 | D21: 30.333334 | E21: 53.541668 | F21: 53.541668 | G21: 724218000
A22: 1999-01-01 | B22: 54.614582 | C22: 99.5625 | D22: 46.28125 | E22: 58.46875 | F22: 58.46875 | G22: 646348800
A23: 1999-02-01 | B23: 58.875 | C23: 65 | D23: 42.125 | E23: 64.0625 | F23: 64.0625 | G23: 318146000
A24: 1999-03-01 | B24: 63.5 | C24: 89 | D24: 57 | E24: 86.09375 | F24: 86.09375 | G24: 331010000
A25: 1999-04-01 | B25: 89.6875 | C25: 110.625 | D25: 75.5 | E25: 86.03125 | F25: 86.03125 | G25: 363285400
A26: 1999-05-01 | B26: 83.4375 | C26: 83.53125 | D26: 52.25 | E26: 59.375 | F26: 59.375 | G26: 303767800
A27: 1999-06-01 | B27: 55.75 | C27: 64.75 | D27: 44.875 | E27: 62.5625 | F27: 62.5625 | G27: 364747400
A28: 1999-07-01 | B28: 62.625 | C28: 71.25 | D28: 48.75 | E28: 50.03125 | F28: 50.03125 | G28: 388650400
A29: 1999-08-01 | B29: 49.1875 | C29: 67.78125 | D29: 41 | E29: 62.1875 | F29: 62.1875 | G29: 459085800
A30: 1999-09-01 | B30: 63.5 | C30: 85 | D30: 57.375 | E30: 79.9375 | F30: 79.9375 | G30: 321616800
A31: 1999-10-01 | B31: 77 | C31: 90 | D31: 65.875 | E31: 70.625 | F31: 70.625 | G31: 254311500
A32: 1999-11-01 | B32: 68.0625 | C32: 96.875 | D32: 61 | E32: 85.0625 | F32: 85.0625 | G32: 281070200
A33: 1999-12-01 | B33: 87.25 | C33: 113 | D33: 76 | E33: 76.125 | F33: 76.125 | G33: 246476100
A34: 2000-01-01 | B34: 81.5 | C34: 91.5 | D34: 58.4375 | E34: 64.5625 | F34: 64.5625 | G34: 262209000
A35: 2000-02-01 | B35: 67.5 | C35: 85.9375 | D35: 63.0625 | E35: 68.875 | F35: 68.875 | G35: 207457700
A36: 2000-03-01 | B36: 67.625 | C36: 75.25 | D36: 60 | E36: 67 | F36: 67 | G36: 156584600
A37: 2000-04-01 | B37: 65.4375 | C37: 68.625 | D37: 40.8125 | E37: 55.1875 | F37: 55.1875 | G37: 162012500
A38: 2000-05-01 | B38: 56 | C38: 62.375 | D38: 40.4375 | E38: 48.3125 | F38: 48.3125 | G38: 130688600
A39: 2000-06-01 | B39: 48.875 | C39: 58.125 | D39: 32.4687 | E39: 36.3125 | F39: 36.3125 | G39: 203140900
A40: 2000-07-01 | B40: 36.6875 | C40: 43.9375 | D40: 27.875 | E40: 30.125 | F40: 30.125 | G40: 198524600
A41: 2000-08-01 | B41: 30.625 | C41: 43.9687 | D41: 29.3125 | E41: 41.5 | F41: 41.5 | G41: 144464700
A42: 2000-09-01 | B42: 42.125 | C42: 49.625 | D42: 35.5 | E42: 38.4375 | F42: 38.4375 | G42: 133739700
A43: 2000-10-01 | B43: 38.1875 | C43: 38.4375 | D43: 19.375 | E43: 36.625 | F43: 36.625 | G43: 246733500
A44: 2000-11-01 | B44: 35.8125 | C44: 40.875 | D44: 22.125 | E44: 24.6875 | F44: 24.6875 | G44: 159338900
A45: 2000-12-01 | B45: 24.9375 | C45: 27.625 | D45: 14.875 | E45: 15.5625 | F45: 15.5625 | G45: 202112900
A46: 2001-01-01 | B46: 15.8125 | C46: 22.375 | D46: 13.5625 | E46: 17.3125 | F46: 17.3125 | G46: 210486800
A47: 2001-02-01 | B47: 17.1875 | C47: 17.1875 | D47: 9.9375 | E47: 10.1875 | F47: 10.1875 | G47: 167374100
A48: 2001-03-01 | B48: 9.875 | C48: 14 | D48: 9.5625 | E48: 10.23 | F48: 10.23 | G48: 167635900
A49: 2001-04-01 | B49: 10.33 | C49: 18.16 | D49: 8.1 | E49: 15.78 | F49: 15.78 | G49: 189780400
A50: 2001-05-01 | B50: 15.9 | C50: 17.6 | D50: 13.1 | E50: 16.690001 | F50: 16.690001 | G50: 144686700
A51: 2001-06-01 | B51: 17.219999 | C51: 17.92 | D51: 11.2 | E51: 14.15 | F51: 14.15 | G51: 136695900
A52: 2001-07-01 | B52: 14.1 | C52: 17.42 | D52: 11.07 | E52: 12.49 | F52: 12.49 | G52: 172078700
A53: 2001-08-01 | B53: 12.73 | C53: 12.86 | D53: 8.55 | E53: 8.94 | F53: 8.94 | G53: 100687300
A54: 2001-09-01 | B54: 8.95 | C54: 9.19 | D54: 5.67 | E54: 5.97 | F54: 5.97 | G54: 126843400
A55: 2001-10-01 | B55: 5.91 | C55: 9.99 | D55: 5.51 | E55: 6.98 | F55: 6.98 | G55: 169882800
A56: 2001-11-01 | B56: 7.08 | C56: 12.4 | D56: 6.6 | E56: 11.32 | F56: 11.32 | G56: 310965300
A57: 2001-12-01 | B57: 11.02 | C57: 12.8 | D57: 9.51 | E57: 10.82 | F57: 10.82 | G57: 212455500
A58: 2002-01-01 | B58: 10.93 | C58: 15.77 | D58: 9.03 | E58: 14.19 | F58: 14.19 | G58: 322739200
A59: 2002-02-01 | B59: 14.07 | C59: 14.75 | D59: 11.06 | E59: 14.1 | F59: 14.1 | G59: 163988900
A60: 2002-03-01 | B60: 14.13 | C60: 16.959999 | D60: 13.55 | E60: 14.3 | F60: 14.3 | G60: 164817800
A61: 2002-04-01 | B61: 14.28 | C61: 17.049999 | D61: 12.52 | E61: 16.690001 | F61: 16.690001 | G61: 158958600
A62: 2002-05-01 | B62: 16.549999 | C62: 20.4 | D62: 15.75 | E62: 18.23 | F62: 18.23 | G62: 154840500
A63: 2002-06-01 | B63: 18.309999 | C63: 19.16 | D63: 14.68 | E63: 16.25 | F63: 16.25 | G63: 142617800
A64: 2002-07-01 | B64: 16.17 | C64: 17.16 | D64: 12.26 | E64: 14.45 | F64: 14.45 | G64: 176592200
A65: 2002-08-01 | B65: 14.31 | C65: 15.99 | D65: 12.78 | E65: 14.94 | F65: 14.94 | G65: 115341600
A66: 2002-09-01 | B66: 14.71 | C66: 17.93 | D66: 14.24 | E66: 15.93 | F66: 15.93 | G66: 146027000
A67: 2002-10-01 | B67: 16.23 | C67: 20.26 | D67: 16.01 | E67: 19.360001 | F67: 19.360001 | G67: 203538600
A68: 2002-11-01 | B68: 19.219999 | C68: 24.5 | D68: 18.200001 | E68: 23.35 | F68: 23.35 | G68: 206336300
A69: 2002-12-01 | B69: 24.15 | C69: 25 | D69: 18.43 | E69: 18.889999 | F69: 18.889999 | G69: 155610600
A70: 2003-01-01 | B70: 19.190001 | C70: 23.280001 | D70: 18.549999 | E70: 21.85 | F70: 21.85 | G70: 169197200
A71: 2003-02-01 | B71: 21.940001 | C71: 22.5 | D71: 19.610001 | E71: 22.01 | F71: 22.01 | G71: 115941900
A72: 2003-03-01 | B72: 22.15 | C72: 28.040001 | D72: 21.360001 | E72: 26.030001 | F72: 26.030001 | G72: 164093600
A73: 2003-04-01 | B73: 25.549999 | C73: 29.190001 | D73: 24.129999 | E73: 28.690001 | F73: 28.690001 | G73: 219644300
A74: 2003-05-01 | B74: 28.68 | C74: 36.09 | D74: 28.15 | E74: 35.889999 | F74: 35.889999 | G74: 190833800
A75: 2003-06-01 | B75: 36.5 | C75: 37.240002 | D75: 32.830002 | E75: 36.32 | F75: 36.32 | G75: 171470800
A76: 2003-07-01 | B76: 36.330002 | C76: 43.099998 | D76: 34 | E76: 41.639999 | F76: 41.639999 | G76: 229239500
A77: 2003-08-01 | B77: 41.41 | C77: 46.950001 | D77: 38.279999 | E77: 46.32 | F77: 46.32 | G77: 150718900
A78: 2003-09-01 | B78: 46.52 | C78: 51.299999 | D78: 44.73 | E78: 48.43 | F78: 48.43 | G78: 202836400
A79: 2003-10-01 | B79: 48.369999 | C79: 61.150002 | D79: 47.509998 | E79: 54.43 | F79: 54.43 | G79: 288225300
A80: 2003-11-01 | B80: 54.799999 | C80: 57.490002 | D80: 47.669998 | E80: 53.970001 | F80: 53.970001 | G80: 181979000
A81: 2003-12-01 | B81: 54.400002 | C81: 54.939999 | D81: 47 | E81: 52.619999 | F81: 52.619999 | G81: 193675200
A82: 2004-01-01 | B82: 52.759998 | C82: 57.82 | D82: 48.599998 | E82: 50.400002 | F82: 50.400002 | G82: 217934700
A83: 2004-02-01 | B83: 50.650002 | C83: 50.650002 | D83: 42.23 | E83: 43.009998 | F83: 43.009998 | G83: 185747700
A84: 2004-03-01 | B84: 43.02 | C84: 45.060001 | D84: 39.150002 | E84: 43.279999 | F84: 43.279999 | G84: 154770500
A85: 2004-04-01 | B85: 43.450001 | C85: 49.099998 | D85: 43.299999 | E85: 43.599998 | F85: 43.599998 | G85: 162636600
A86: 2004-05-01 | B86: 43.48 | C86: 48.68 | D86: 40.549999 | E86: 48.5 | F86: 48.5 | G86: 150196500
A87: 2004-06-01 | B87: 47.869999 | C87: 54.700001 | D87: 47.700001 | E87: 54.400002 | F87: 54.400002 | G87: 161251200
A88: 2004-07-01 | B88: 53.799999 | C88: 54.040001 | D88: 37.380001 | E88: 38.919998 | F88: 38.919998 | G88: 202437000
A89: 2004-08-01 | B89: 38.450001 | C89: 40.830002 | D89: 34.849998 | E89: 38.139999 | F89: 38.139999 | G89: 180022400
A90: 2004-09-01 | B90: 38.23 | C90: 44.279999 | D90: 37.360001 | E90: 40.860001 | F90: 40.860001 | G90: 176176900
A91: 2004-10-01 | B91: 41.290001 | C91: 42.700001 | D91: 33 | E91: 34.130001 | F91: 34.130001 | G91: 208568400
A92: 2004-11-01 | B92: 34.220001 | C92: 41.5 | D92: 34.150002 | E92: 39.68 | F92: 39.68 | G92: 168474900
A93: 2004-12-01 | B93: 40 | C93: 45.68 | D93: 37.990002 | E93: 44.290001 | F93: 44.290001 | G93: 176014800
A94: 2005-01-01 | B94: 44.950001 | C94: 45.439999 | D94: 40.259998 | E94: 43.220001 | F94: 43.220001 | G94: 194935200
A95: 2005-02-01 | B95: 43 | C95: 43.540001 | D95: 33.200001 | E95: 35.18 | F95: 35.18 | G95: 218655100
A96: 2005-03-01 | B96: 35.060001 | C96: 36.43 | D96: 32.82 | E96: 34.27 | F96: 34.27 | G96: 119566600
A97: 2005-04-01 | B97: 34.630001 | C97: 35.34 | D97: 30.6 | E97: 32.360001 | F97: 32.360001 | G97: 162491300
A98: 2005-05-01 | B98: 32.299999 | C98: 36.040001 | D98: 32.099998 | E98: 35.509998 | F98: 35.509998 | G98: 116947800
A99: 2005-06-01 | B99: 35.57 | C99: 36.990002 | D99: 32.93 | E99: 33.09 | F99: 33.09 | G99: 106233600
A100: 2005-07-01 | B100: 33.240002 | C100: 45.810001 | D100: 32.790001 | E100: 45.150002 | F100: 45.150002 | G100: 182601100
A101: 2005-08-01 | B101: 44.880001 | C101: 46.970001 | D101: 41.91 | E101: 42.700001 | F101: 42.700001 | G101: 114751100
A102: 2005-09-01 | B102: 42.52 | C102: 45.84 | D102: 40.5 | E102: 45.299999 | F102: 45.299999 | G102: 104700400
A103: 2005-10-01 | B103: 45.330002 | C103: 47 | D103: 38.720001 | E103: 39.860001 | F103: 39.860001 | G103: 146980100
A104: 2005-11-01 | B104: 39.970001 | C104: 49.43 | D104: 39.650002 | E104: 48.459999 | F104: 48.459999 | G104: 216455300
A105: 2005-12-01 | B105: 48.880001 | C105: 50 | D105: 47.139999 | E105: 47.150002 | F105: 47.150002 | G105: 121167800
A106: 2006-01-01 | B106: 47.470001 | C106: 48.580002 | D106: 43.099998 | E106: 44.82 | F106: 44.82 | G106: 123410300
A107: 2006-02-01 | B107: 43.919998 | C107: 44.689999 | D107: 37.049999 | E107: 37.439999 | F107: 37.439999 | G107: 165544700
A108: 2006-03-01 | B108: 37.450001 | C108: 37.830002 | D108: 35.139999 | E108: 36.529999 | F108: 36.529999 | G108: 122178100
A109: 2006-04-01 | B109: 36.669998 | C109: 38.84 | D109: 35.009998 | E109: 35.209999 | F109: 35.209999 | G109: 106758600
A110: 2006-05-01 | B110: 35.189999 | C110: 36.5 | D110: 31.52 | E110: 34.610001 | F110: 34.610001 | G110: 146896000
A111: 2006-06-01 | B111: 34.630001 | C111: 38.84 | D111: 32.419998 | E111: 38.68 | F111: 38.68 | G111: 115117400
A112: 2006-07-01 | B112: 38.52 | C112: 38.619999 | D112: 25.959999 | E112: 26.889999 | F112: 26.889999 | G112: 228663400
A113: 2006-08-01 | B113: 26.549999 | C113: 30.99 | D113: 25.76 | E113: 30.83 | F113: 30.83 | G113: 159186800
A114: 2006-09-01 | B114: 30.85 | C114: 32.810001 | D114: 29.68 | E114: 32.119999 | F114: 32.119999 | G114: 146018700
A115: 2006-10-01 | B115: 31.98 | C115: 38.59 | D115: 30.58 | E115: 38.09 | F115: 38.09 | G115: 209485000
A116: 2006-11-01 | B116: 38.130001 | C116: 43.25 | D116: 36.869999 | E116: 40.34 | F116: 40.34 | G116: 146802400
A117: 2006-12-01 | B117: 40.259998 | C117: 40.639999 | D117: 37.700001 | E117: 39.459999 | F117: 39.459999 | G117: 121040700
A118: 2007-01-01 | B118: 38.68 | C118: 39.139999 | D118: 36.299999 | E118: 37.669998 | F118: 37.669998 | G118: 130435300
A119: 2007-02-01 | B119: 37.950001 | C119: 42 | D119: 36.68 | E119: 39.139999 | F119: 39.139999 | G119: 157975400
A120: 2007-03-01 | B120: 39.32 | C120: 40.240002 | D120: 37.040001 | E120: 39.790001 | F120: 39.790001 | G120: 142153100
A121: 2007-04-01 | B121: 39.849998 | C121: 63.84 | D121: 39.549999 | E121: 61.330002 | F121: 61.330002 | G121: 346287000
A122: 2007-05-01 | B122: 61.119999 | C122: 73.309998 | D122: 59.700001 | E122: 69.139999 | F122: 69.139999 | G122: 330242400
A123: 2007-06-01 | B123: 68.900002 | C123: 74.720001 | D123: 66.709999 | E123: 68.410004 | F123: 68.410004 | G123: 238788700
A124: 2007-07-01 | B124: 68.809998 | C124: 89 | D124: 68.010002 | E124: 78.540001 | F124: 78.540001 | G124: 264827800
A125: 2007-08-01 | B125: 78.099998 | C125: 80.800003 | D125: 70.050003 | E125: 79.910004 | F125: 79.910004 | G125: 175514000
A126: 2007-09-01 | B126: 79.900002 | C126: 94.260002 | D126: 79.730003 | E126: 93.150002 | F126: 93.150002 | G126: 122273200
A127: 2007-10-01 | B127: 93.419998 | C127: 101.089996 | D127: 83.269997 | E127: 89.150002 | F127: 89.150002 | G127: 231988500
A128: 2007-11-01 | B128: 87.75 | C128: 91.470001 | D128: 76.5 | E128: 90.559998 | F128: 90.559998 | G128: 180196500
A129: 2007-12-01 | B129: 90.029999 | C129: 95.940002 | D129: 83.860001 | E129: 92.639999 | F129: 92.639999 | G129: 127062200
A130: 2008-01-01 | B130: 95.349998 | C130: 97.43 | D130: 68.839996 | E130: 77.699997 | F130: 77.699997 | G130: 288335400
A131: 2008-02-01 | B131: 79.019997 | C131: 79.400002 | D131: 63.970001 | E131: 64.470001 | F131: 64.470001 | G131: 211217800
A132: 2008-03-01 | B132: 63.59 | C132: 76.93 | D132: 61.200001 | E132: 71.300003 | F132: 71.300003 | G132: 192685600
A133: 2008-04-01 | B133: 72.989998 | C133: 82.639999 | D133: 70.650002 | E133: 78.629997 | F133: 78.629997 | G133: 197849400
A134: 2008-05-01 | B134: 78.400002 | C134: 84.75 | D134: 71.559998 | E134: 81.620003 | F134: 81.620003 | G134: 152573200
A135: 2008-06-01 | B135: 81.150002 | C135: 84.879997 | D135: 72.620003 | E135: 73.330002 | F135: 73.330002 | G135: 152905700
A136: 2008-07-01 | B136: 72.239998 | C136: 82.379997 | D136: 62.990002 | E136: 76.339996 | F136: 76.339996 | G136: 215813300
A137: 2008-08-01 | B137: 76.360001 | C137: 91.75 | D137: 74.050003 | E137: 80.809998 | F137: 80.809998 | G137: 149044400
A138: 2008-09-01 | B138: 83.160004 | C138: 86.769997 | D138: 61.32 | E138: 72.760002 | F138: 72.760002 | G138: 192463400
A139: 2008-10-01 | B139: 71.779999 | C139: 71.989998 | D139: 43.310001 | E139: 57.240002 | F139: 57.240002 | G139: 332074700
A140: 2008-11-01 | B140: 56.349998 | C140: 58.73 | D140: 34.68 | E140: 42.700001 | F140: 42.700001 | G140: 228051500
A141: 2008-12-01 | B141: 42 | C141: 54.849998 | D141: 38.82 | E141: 51.279999 | F141: 51.279999 | G141: 206194300
A142: 2009-01-01 | B142: 51.349998 | C142: 59.740002 | D142: 47.630001 | E142: 58.82 | F142: 58.82 | G142: 204072300
A143: 2009-02-01 | B143: 58.57 | C143: 67.360001 | D143: 58.130001 | E143: 64.790001 | F143: 64.790001 | G143: 186780200
A144: 2009-03-01 | B144: 63.939999 | C144: 75.610001 | D144: 59.82 | E144: 73.440002 | F144: 73.440002 | G144: 227672300
A145: 2009-04-01 | B145: 73.019997 | C145: 86.68 | D145: 71.709999 | E145: 80.519997 | F145: 80.519997 | G145: 185032000
A146: 2009-05-01 | B146: 80.379997 | C146: 83.599998 | D146: 73.099998 | E146: 77.989998 | F146: 77.989998 | G146: 137603400
A147: 2009-06-01 | B147: 78.209999 | C147: 88.559998 | D147: 76.25 | E147: 83.660004 | F147: 83.660004 | G147: 152085400
A148: 2009-07-01 | B148: 84.419998 | C148: 94.400002 | D148: 75.410004 | E148: 85.760002 | F148: 85.760002 | G148: 175461400
A149: 2009-08-01 | B149: 86.559998 | C149: 88.199997 | D149: 80.25 | E149: 81.190002 | F149: 81.190002 | G149: 112622900
A150: 2009-09-01 | B150: 80.739998 | C150: 94.5 | D150: 77.510002 | E150: 93.360001 | F150: 93.360001 | G150: 128121800
A151: 2009-10-01 | B151: 92.5 | C151: 125.68 | D151: 88.269997 | E151: 118.809998 | F151: 118.809998 | G151: 268616400
A152: 2009-11-01 | B152: 118.660004 | C152: 136.080002 | D152: 116.25 | E152: 135.910004 | F152: 135.910004 | G152: 160305100
A153: 2009-12-01 | B153: 136.940002 | C153: 145.910004 | D153: 125.650002 | E153: 134.520004 | F153: 134.520004 | G153: 207471100
A154: 2010-01-01 | B154: 136.25 | C154: 136.610001 | D154: 118.120003 | E154: 125.410004 | F154: 125.410004 | G154: 230861000
A155: 2010-02-01 | B155: 123.18 | C155: 124.860001 | D155: 113.82 | E155: 118.400002 | F155: 118.400002 | G155: 210145800
A156: 2010-03-01 | B156: 118.699997 | C156: 138.190002 | D156: 117.529999 | E156: 135.770004 | F156: 135.770004 | G156: 158042600
A157: 2010-04-01 | B157: 135.800003 | C157: 151.089996 | D157: 130.779999 | E157: 137.100006 | F157: 137.100006 | G157: 173025100
A158: 2010-05-01 | B158: 137.199997 | C158: 139.440002 | D158: 117.519997 | E158: 125.459999 | F158: 125.459999 | G158: 140909900
A159: 2010-06-01 | B159: 124.970001 | C159: 129.149994 | D159: 106.010002 | E159: 109.260002 | F159: 109.260002 | G159: 133378500
A160: 2010-07-01 | B160: 108.900002 | C160: 124.879997 | D160: 105.800003 | E160: 117.889999 | F160: 117.889999 | G160: 175326200
A161: 2010-08-01 | B161: 119.150002 | C161: 130.809998 | D161: 117.57 | E161: 124.830002 | F161: 124.830002 | G161: 113419800
A162: 2010-09-01 | B162: 126.360001 | C162: 161.779999 | D162: 126.169998 | E162: 157.059998 | F162: 157.059998 | G162: 134321000
A163: 2010-10-01 | B163: 157.080002 | C163: 171.990005 | D163: 151.399994 | E163: 165.229996 | F163: 165.229996 | G163: 142883500
A164: 2010-11-01 | B164: 164.449997 | C164: 181.839996 | D164: 156.770004 | E164: 175.399994 | F164: 175.399994 | G164: 131011400
A165: 2010-12-01 | B165: 179.160004 | C165: 185.649994 | D165: 173.089996 | E165: 180 | F165: 180 | G165: 93661700
A166: 2011-01-01 | B166: 181.369995 | C166: 191.600006 | D166: 166.899994 | E166: 169.639999 | F166: 169.639999 | G166: 113611300
A167: 2011-02-01 | B167: 170.520004 | C167: 191.399994 | D167: 169.509995 | E167: 173.289993 | F167: 173.289993 | G167: 95776400
A168: 2011-03-01 | B168: 173.529999 | C168: 181.570007 | D168: 160.589996 | E168: 180.130005 | F168: 180.130005 | G168: 118979100
A169: 2011-04-01 | B169: 181.580002 | C169: 197.800003 | D169: 175.369995 | E169: 195.809998 | F169: 195.809998 | G169: 116749400
A170: 2011-05-01 | B170: 196.570007 | C170: 206.389999 | D170: 190.880005 | E170: 196.690002 | F170: 196.690002 | G170: 106274500
A171: 2011-06-01 | B171: 196.059998 | C171: 206.25 | D171: 181.589996 | E171: 204.490005 | F171: 204.490005 | G171: 95563700
A172: 2011-07-01 | B172: 205.550003 | C172: 227.199997 | D172: 203.610001 | E172: 222.520004 | F172: 222.520004 | G172: 92808500
A173: 2011-08-01 | B173: 225 | C173: 227.449997 | D173: 177.100006 | E173: 215.229996 | F173: 215.229996 | G173: 155194700
A174: 2011-09-01 | B174: 215.279999 | C174: 244 | D174: 204.470001 | E174: 216.229996 | F174: 216.229996 | G174: 143623300
A175: 2011-10-01 | B175: 217.009995 | C175: 246.710007 | D175: 196.509995 | E175: 213.509995 | F175: 213.509995 | G175: 159214400
A176: 2011-11-01 | B176: 208.110001 | C176: 222.350006 | D176: 181.509995 | E176: 192.289993 | F176: 192.289993 | G176: 136588100
A177: 2011-12-01 | B177: 191.850006 | C177: 199.660004 | D177: 166.970001 | E177: 173.100006 | F177: 173.100006 | G177: 125595200
A178: 2012-01-01 | B178: 175.889999 | C178: 196.5 | D178: 173.5 | E178: 194.440002 | F178: 194.440002 | G178: 110536900
A179: 2012-02-01 | B179: 173.809998 | C179: 193.570007 | D179: 172 | E179: 179.690002 | F179: 179.690002 | G179: 146580400
A180: 2012-03-01 | B180: 179.889999 | C180: 209.850006 | D180: 176.580002 | E180: 202.509995 | F180: 202.509995 | G180: 112975100
A181: 2012-04-01 | B181: 198.020004 | C181: 233.839996 | D181: 183.649994 | E181: 231.899994 | F181: 231.899994 | G181: 110535400
A182: 2012-05-01 | B182: 229.399994 | C182: 232.970001 | D182: 207.110001 | E182: 212.910004 | F182: 212.910004 | G182: 92774300
A183: 2012-06-01 | B183: 208.440002 | C183: 228.350006 | D183: 206.369995 | E183: 228.350006 | F183: 228.350006 | G183: 65745600
A184: 2012-07-01 | B184: 229.300003 | C184: 240.740005 | D184: 212.610001 | E184: 233.300003 | F184: 233.300003 | G184: 77340200
A185: 2012-08-01 | B185: 234.139999 | C185: 250 | D185: 228.660004 | E185: 248.270004 | F185: 248.270004 | G185: 60192400
A186: 2012-09-01 | B186: 248.270004 | C186: 264.109985 | D186: 244.660004 | E186: 254.320007 | F186: 254.320007 | G186: 63570500
A187: 2012-10-01 | B187: 255.399994 | C187: 261.899994 | D187: 222.919998 | E187: 232.889999 | F187: 232.889999 | G187: 81568500
A188: 2012-11-01 | B188: 234.229996 | C188: 252.649994 | D188: 218.179993 | E188: 252.050003 | F188: 252.050003 | G188: 67213600
A189: 2012-12-01 | B189: 252.539993 | C189: 263.109985 | D189: 242.75 | E189: 250.869995 | F189: 250.869995 | G189: 60871200
A190: 2013-01-01 | B190: 256.079987 | C190: 284.720001 | D190: 253.259995 | E190: 265.5 | F190: 265.5 | G190: 84226400
A191: 2013-02-01 | B191: 268.929993 | C191: 274.299988 | D191: 255.110001 | E191: 264.269989 | F191: 264.269989 | G191: 68661700
A192: 2013-03-01 | B192: 263.269989 | C192: 277.399994 | D192: 252.070007 | E192: 266.48999 | F192: 266.48999 | G192: 58505700
A193: 2013-04-01 | B193: 266.980011 | C193: 275.799988 | D193: 248.559998 | E193: 253.809998 | F193: 253.809998 | G193: 76916200
A194: 2013-05-01 | B194: 253.899994 | C194: 271.910004 | D194: 245.75 | E194: 269.200012 | F194: 269.200012 | G194: 59050500
A195: 2013-06-01 | B195: 268.959991 | C195: 283.339996 | D195: 262.950012 | E195: 277.690002 | F195: 277.690002 | G195: 58575800
A196: 2013-07-01 | B196: 279 | C196: 313.619995 | D196: 277.160004 | E196: 301.220001 | F196: 301.220001 | G196: 67536900
A197: 2013-08-01 | B197: 303.079987 | C197: 306.209991 | D197: 279.329987 | E197: 280.980011 | F197: 280.980011 | G197: 43773900
A198: 2013-09-01 | B198: 284.730011 | C198: 320.570007 | D198: 284.170013 | E198: 312.640015 | F198: 312.640015 | G198: 43468800
A199: 2013-10-01 | B199: 314.220001 | C199: 368.399994 | D199: 296.5 | E199: 364.029999 | F199: 364.029999 | G199: 77295400
A200: 2013-11-01 | B200: 365.630005 | C200: 394.100006 | D200: 341.880005 | E200: 393.619995 | F200: 393.619995 | G200: 54207700
... 50 more rows

Sheet S&P 500
A1: Date | B1: Open | C1: High | D1: Low | E1: Close | F1: Adj Close | G1: Volume
A2: 1950-01-01 | B2: 16.66 | C2: 17.09 | D2: 16.65 | E2: 17.049999 | F2: 17.049999 | G2: 42570000
A3: 1950-02-01 | B3: 17.049999 | C3: 17.35 | D3: 16.99 | E3: 17.219999 | F3: 17.219999 | G3: 33430000
A4: 1950-03-01 | B4: 17.24 | C4: 17.610001 | D4: 17.07 | E4: 17.290001 | F4: 17.290001 | G4: 40410000
A5: 1950-04-01 | B5: 17.34 | C5: 18.07 | D5: 17.34 | E5: 18.07 | F5: 18.07 | G5: 48250000
A6: 1950-05-01 | B6: 18.219999 | C6: 18.780001 | D6: 18.110001 | E6: 18.780001 | F6: 18.780001 | G6: 45080000
A7: 1950-06-01 | B7: 18.77 | C7: 19.4 | D7: 17.440001 | E7: 17.690001 | F7: 17.690001 | G7: 45660000
A8: 1950-07-01 | B8: 17.639999 | C8: 17.91 | D8: 16.68 | E8: 17.84 | F8: 17.84 | G8: 44570000
A9: 1950-08-01 | B9: 18.02 | C9: 18.82 | D9: 17.950001 | E9: 18.42 | F9: 18.42 | G9: 38900000
A10: 1950-09-01 | B10: 18.549999 | C10: 19.450001 | D10: 18.540001 | E10: 19.450001 | F10: 19.450001 | G10: 38590000
A11: 1950-10-01 | B11: 19.690001 | C11: 20.16 | D11: 19.530001 | E11: 19.530001 | F11: 19.530001 | G11: 48360000
A12: 1950-11-01 | B12: 19.559999 | C12: 20.32 | D12: 19.360001 | E12: 19.51 | F12: 19.51 | G12: 43180000
A13: 1950-12-01 | B13: 19.66 | C13: 20.43 | D13: 19 | E13: 20.41 | F13: 20.41 | G13: 60830000
A14: 1951-01-01 | B14: 20.77 | C14: 21.74 | D14: 20.690001 | E14: 21.66 | F14: 21.66 | G14: 70180000
A15: 1951-02-01 | B15: 21.77 | C15: 22.209999 | D15: 21.76 | E15: 21.799999 | F15: 21.799999 | G15: 41210000
A16: 1951-03-01 | B16: 21.85 | C16: 21.950001 | D16: 21.25 | E16: 21.4 | F16: 21.4 | G16: 35530000
A17: 1951-04-01 | B17: 21.32 | C17: 22.43 | D17: 21.26 | E17: 22.43 | F17: 22.43 | G17: 37790000
A18: 1951-05-01 | B18: 22.530001 | C18: 22.809999 | D18: 21.030001 | E18: 21.52 | F18: 21.52 | G18: 38440000
A19: 1951-06-01 | B19: 21.48 | C19: 22.049999 | D19: 20.959999 | E19: 20.959999 | F19: 20.959999 | G19: 36220000
A20: 1951-07-01 | B20: 21.1 | C20: 22.629999 | D20: 21.1 | E20: 22.4 | F20: 22.4 | G20: 27990000
A21: 1951-08-01 | B21: 22.51 | C21: 23.280001 | D21: 22.51 | E21: 23.280001 | F21: 23.280001 | G21: 33630000
A22: 1951-09-01 | B22: 23.280001 | C22: 23.709999 | D22: 23.26 | E22: 23.26 | F22: 23.26 | G22: 36420000
A23: 1951-10-01 | B23: 23.469999 | C23: 23.85 | D23: 22.450001 | E23: 22.940001 | F23: 22.940001 | G23: 42930000
A24: 1951-11-01 | B24: 23.1 | C24: 23.1 | D24: 22.299999 | E24: 22.879999 | F24: 22.879999 | G24: 29280000
A25: 1951-12-01 | B25: 22.940001 | C25: 23.77 | D25: 22.940001 | E25: 23.77 | F25: 23.77 | G25: 34610000
A26: 1952-01-01 | B26: 23.799999 | C26: 24.66 | D26: 23.74 | E26: 24.139999 | F26: 24.139999 | G26: 41560000
A27: 1952-02-01 | B27: 24.299999 | C27: 24.41 | D27: 23.09 | E27: 23.26 | F27: 23.26 | G27: 27190000
A28: 1952-03-01 | B28: 23.280001 | C28: 24.370001 | D28: 23.280001 | E28: 24.370001 | F28: 24.370001 | G28: 29500000
A29: 1952-04-01 | B29: 24.18 | C29: 24.18 | D29: 23.32 | E29: 23.32 | F29: 23.32 | G29: 28880000
A30: 1952-05-01 | B30: 23.17 | C30: 23.940001 | D30: 23.17 | E30: 23.860001 | F30: 23.860001 | G30: 24010000
A31: 1952-06-01 | B31: 23.799999 | C31: 24.959999 | D31: 23.780001 | E31: 24.959999 | F31: 24.959999 | G31: 25530000
A32: 1952-07-01 | B32: 25.120001 | C32: 25.4 | D32: 24.809999 | E32: 25.4 | F32: 25.4 | G32: 24100000
A33: 1952-08-01 | B33: 25.450001 | C33: 25.549999 | D33: 24.83 | E33: 25.030001 | F33: 25.030001 | G33: 20890000
A34: 1952-09-01 | B34: 25.15 | C34: 25.25 | D34: 24.450001 | E34: 24.540001 | F34: 24.540001 | G34: 24100000
A35: 1952-10-01 | B35: 24.48 | C35: 24.58 | D35: 23.799999 | E35: 24.52 | F35: 24.52 | G35: 25940000
A36: 1952-11-01 | B36: 24.6 | C36: 25.66 | D36: 24.6 | E36: 25.66 | F36: 25.66 | G36: 30210000
A37: 1952-12-01 | B37: 25.68 | C37: 26.59 | D37: 25.610001 | E37: 26.57 | F37: 26.57 | G37: 40480000
A38: 1953-01-01 | B38: 26.540001 | C38: 26.66 | D38: 25.860001 | E38: 26.379999 | F38: 26.379999 | G38: 34060000
A39: 1953-02-01 | B39: 26.51 | C39: 26.540001 | D39: 25.48 | E39: 25.9 | F39: 25.9 | G39: 30170000
A40: 1953-03-01 | B40: 25.93 | C40: 26.33 | D40: 25.290001 | E40: 25.290001 | F40: 25.290001 | G40: 42510000
A41: 1953-04-01 | B41: 25.25 | C41: 25.25 | D41: 24.190001 | E41: 24.620001 | F41: 24.620001 | G41: 34370000
A42: 1953-05-01 | B42: 24.73 | C42: 25.059999 | D42: 24.459999 | E42: 24.540001 | F42: 24.540001 | G42: 25730000
A43: 1953-06-01 | B43: 24.15 | C43: 24.219999 | D43: 23.540001 | E43: 24.139999 | F43: 24.139999 | G43: 26080000
A44: 1953-07-01 | B44: 24.24 | C44: 24.75 | D44: 24.07 | E44: 24.75 | F44: 24.75 | G44: 22240000
A45: 1953-08-01 | B45: 24.84 | C45: 24.84 | D45: 23.32 | E45: 23.32 | F45: 23.32 | G45: 23890000
A46: 1953-09-01 | B46: 23.42 | C46: 23.65 | D46: 22.709999 | E46: 23.35 | F46: 23.35 | G46: 27150000
A47: 1953-10-01 | B47: 23.49 | C47: 24.58 | D47: 23.389999 | E47: 24.540001 | F47: 24.540001 | G47: 25710000
A48: 1953-11-01 | B48: 24.66 | C48: 24.76 | D48: 24.25 | E48: 24.76 | F48: 24.76 | G48: 26640000
A49: 1953-12-01 | B49: 24.780001 | C49: 24.99 | D49: 24.549999 | E49: 24.809999 | F49: 24.809999 | G49: 36150000
A50: 1954-01-01 | B50: 24.950001 | C50: 26.09 | D50: 24.799999 | E50: 26.08 | F50: 26.08 | G50: 33420000
A51: 1954-02-01 | B51: 25.99 | C51: 26.299999 | D51: 25.809999 | E51: 26.15 | F51: 26.15 | G51: 33260000
A52: 1954-03-01 | B52: 26.25 | C52: 26.940001 | D52: 26.25 | E52: 26.940001 | F52: 26.940001 | G52: 44050000
A53: 1954-04-01 | B53: 27.17 | C53: 28.26 | D53: 27.01 | E53: 28.26 | F53: 28.26 | G53: 43500000
A54: 1954-05-01 | B54: 28.209999 | C54: 29.190001 | D54: 28.209999 | E54: 29.190001 | F54: 29.190001 | G54: 41900000
A55: 1954-06-01 | B55: 29.190001 | C55: 29.43 | D55: 28.15 | E55: 29.209999 | F55: 29.209999 | G55: 42230000
A56: 1954-07-01 | B56: 29.209999 | C56: 30.879999 | D56: 29.209999 | E56: 30.879999 | F56: 30.879999 | G56: 51840000
A57: 1954-08-01 | B57: 30.99 | C57: 31.209999 | D57: 29.83 | E57: 29.83 | F57: 29.83 | G57: 56900000
A58: 1954-09-01 | B58: 30.040001 | C58: 32.689999 | D58: 30.040001 | E58: 32.310001 | F58: 32.310001 | G58: 41220000
A59: 1954-10-01 | B59: 32.290001 | C59: 32.759998 | D59: 31.68 | E59: 31.68 | F59: 31.68 | G59: 44170000
A60: 1954-11-01 | B60: 31.790001 | C60: 34.549999 | D60: 31.790001 | E60: 34.240002 | F60: 34.240002 | G60: 63010000
A61: 1954-12-01 | B61: 33.990002 | C61: 35.98 | D61: 33.990002 | E61: 35.98 | F61: 35.98 | G61: 76480000
A62: 1955-01-01 | B62: 36.75 | C62: 36.75 | D62: 34.580002 | E62: 36.630001 | F62: 36.630001 | G62: 74650000
A63: 1955-02-01 | B63: 36.720001 | C63: 37.150002 | D63: 36.439999 | E63: 36.759998 | F63: 36.759998 | G63: 60810000
A64: 1955-03-01 | B64: 36.830002 | C64: 37.52 | D64: 34.959999 | E64: 36.580002 | F64: 36.580002 | G64: 65780000
A65: 1955-04-01 | B65: 36.950001 | C65: 38.32 | D65: 36.830002 | E65: 37.959999 | F65: 37.959999 | G65: 53790000
A66: 1955-05-01 | B66: 38.040001 | C66: 38.040001 | D66: 36.970001 | E66: 37.91 | F66: 37.91 | G66: 45450000
A67: 1955-06-01 | B67: 37.959999 | C67: 41.029999 | D67: 37.959999 | E67: 41.029999 | F67: 41.029999 | G67: 58120000
A68: 1955-07-01 | B68: 41.189999 | C68: 43.759998 | D68: 41.189999 | E68: 43.52 | F68: 43.52 | G68: 48470000
A69: 1955-08-01 | B69: 42.93 | C69: 43.18 | D69: 41.740002 | E69: 43.18 | F69: 43.18 | G69: 41800000
A70: 1955-09-01 | B70: 43.369999 | C70: 45.630001 | D70: 42.610001 | E70: 43.669998 | F70: 43.669998 | G70: 60080000
A71: 1955-10-01 | B71: 42.490002 | C71: 42.990002 | D71: 40.799999 | E71: 42.34 | F71: 42.34 | G71: 42150000
A72: 1955-11-01 | B72: 42.279999 | C72: 46.41 | D72: 42.279999 | E72: 45.509998 | F72: 45.509998 | G72: 46360000
A73: 1955-12-01 | B73: 45.349998 | C73: 45.889999 | D73: 44.950001 | E73: 45.48 | F73: 45.48 | G73: 50990000
A74: 1956-01-01 | B74: 45.16 | C74: 45.16 | D74: 43.110001 | E74: 43.82 | F74: 43.82 | G74: 47160000
A75: 1956-02-01 | B75: 44.029999 | C75: 45.43 | D75: 43.419998 | E75: 45.34 | F75: 45.34 | G75: 46370000
A76: 1956-03-01 | B76: 45.540001 | C76: 48.869999 | D76: 45.540001 | E76: 48.48 | F76: 48.48 | G76: 60310000
A77: 1956-04-01 | B77: 48.700001 | C77: 48.849998 | D77: 47.09 | E77: 48.380001 | F77: 48.380001 | G77: 54100000
A78: 1956-05-01 | B78: 48.16 | C78: 48.509998 | D78: 44.099998 | E78: 45.200001 | F78: 45.200001 | G78: 53210000
A79: 1956-06-01 | B79: 45.580002 | C79: 47.130001 | D79: 45.139999 | E79: 46.970001 | F79: 46.970001 | G79: 37180000
A80: 1956-07-01 | B80: 46.93 | C80: 49.48 | D80: 46.93 | E80: 49.389999 | F80: 49.389999 | G80: 45650000
A81: 1956-08-01 | B81: 49.619999 | C81: 49.639999 | D81: 46.939999 | E81: 47.509998 | F81: 47.509998 | G81: 44450000
A82: 1956-09-01 | B82: 47.889999 | C82: 48.099998 | D82: 45.349998 | E82: 45.349998 | F82: 45.349998 | G82: 37220000
A83: 1956-10-01 | B83: 44.700001 | C83: 47 | D83: 44.700001 | E83: 45.580002 | F83: 45.580002 | G83: 40300000
A84: 1956-11-01 | B84: 46.52 | C84: 47.599998 | D84: 44.380001 | E84: 45.080002 | F84: 45.080002 | G84: 43550000
A85: 1956-12-01 | B85: 45.98 | C85: 47.040001 | D85: 45.84 | E85: 46.669998 | F85: 46.669998 | G85: 46330000
A86: 1957-01-01 | B86: 46.200001 | C86: 46.66 | D86: 44.400002 | E86: 44.720001 | F86: 44.720001 | G86: 48140000
A87: 1957-02-01 | B87: 44.619999 | C87: 44.619999 | D87: 42.389999 | E87: 43.259998 | F87: 43.259998 | G87: 37530000
A88: 1957-03-01 | B88: 43.740002 | C88: 44.23 | D88: 43.740002 | E88: 44.110001 | F88: 44.110001 | G88: 35620000
A89: 1957-04-01 | B89: 44.139999 | C89: 45.740002 | D89: 44.139999 | E89: 45.740002 | F89: 45.740002 | G89: 48290000
A90: 1957-05-01 | B90: 46.02 | C90: 47.43 | D90: 46.02 | E90: 47.43 | F90: 47.43 | G90: 52560000
A91: 1957-06-01 | B91: 47.369999 | C91: 48.240002 | D91: 46.779999 | E91: 47.369999 | F91: 47.369999 | G91: 43470000
A92: 1957-07-01 | B92: 47.43 | C92: 49.130001 | D92: 47.43 | E92: 47.91 | F92: 47.91 | G92: 48230000
A93: 1957-08-01 | B93: 47.790001 | C93: 47.790001 | D93: 43.889999 | E93: 45.220001 | F93: 45.220001 | G93: 41390000
A94: 1957-09-01 | B94: 45.439999 | C94: 45.439999 | D94: 42.419998 | E94: 42.419998 | F94: 42.419998 | G94: 36890000
A95: 1957-10-01 | B95: 42.759998 | C95: 43.139999 | D95: 38.98 | E95: 41.060001 | F95: 41.060001 | G95: 63960000
A96: 1957-11-01 | B96: 40.439999 | C96: 41.720001 | D96: 39.439999 | E96: 41.720001 | F96: 41.720001 | G96: 48200000
A97: 1957-12-01 | B97: 41.360001 | C97: 41.540001 | D97: 39.380001 | E97: 39.990002 | F97: 39.990002 | G97: 54440000
A98: 1958-01-01 | B98: 40.330002 | C98: 41.880001 | D98: 40.330002 | E98: 41.700001 | F98: 41.700001 | G98: 49830000
A99: 1958-02-01 | B99: 42.040001 | C99: 42.459999 | D99: 40.610001 | E99: 40.84 | F99: 40.84 | G99: 40190000
A100: 1958-03-01 | B100: 41.130001 | C100: 42.580002 | D100: 41.130001 | E100: 42.099998 | F100: 42.099998 | G100: 46680000
A101: 1958-04-01 | B101: 41.93 | C101: 43.439999 | D101: 41.330002 | E101: 43.439999 | F101: 43.439999 | G101: 50270000
A102: 1958-05-01 | B102: 43.540001 | C102: 44.09 | D102: 43.119999 | E102: 44.09 | F102: 44.09 | G102: 54100000
A103: 1958-06-01 | B103: 44.310001 | C103: 45.34 | D103: 44.310001 | E103: 45.240002 | F103: 45.240002 | G103: 56610000
A104: 1958-07-01 | B104: 45.279999 | C104: 47.189999 | D104: 45.110001 | E104: 47.189999 | F104: 47.189999 | G104: 69430000
A105: 1958-08-01 | B105: 47.490002 | C105: 48.16 | D105: 47.220001 | E105: 47.75 | F105: 47.75 | G105: 62300000
A106: 1958-09-01 | B106: 48 | C106: 50.060001 | D106: 47.970001 | E106: 50.060001 | F106: 50.060001 | G106: 71940000
A107: 1958-10-01 | B107: 49.98 | C107: 51.619999 | D107: 49.98 | E107: 51.330002 | F107: 51.330002 | G107: 95020000
A108: 1958-11-01 | B108: 51.560001 | C108: 53.240002 | D108: 51.02 | E108: 52.48 | F108: 52.48 | G108: 74350000
A109: 1958-12-01 | B109: 52.689999 | C109: 55.209999 | D109: 52.459999 | E109: 55.209999 | F109: 55.209999 | G109: 75940000
A110: 1959-01-01 | B110: 55.439999 | C110: 56.040001 | D110: 54.889999 | E110: 55.450001 | F110: 55.450001 | G110: 83240000
A111: 1959-02-01 | B111: 55.209999 | C111: 55.52 | D111: 53.580002 | E111: 55.41 | F111: 55.41 | G111: 65790000
A112: 1959-03-01 | B112: 55.73 | C112: 56.669998 | D112: 55.439999 | E112: 55.439999 | F112: 55.439999 | G112: 82430000
A113: 1959-04-01 | B113: 55.689999 | C113: 58.169998 | D113: 55.689999 | E113: 57.59 | F113: 57.59 | G113: 75840000
A114: 1959-05-01 | B114: 57.650002 | C114: 58.68 | D114: 56.880001 | E114: 58.68 | F114: 58.68 | G114: 70950000
A115: 1959-06-01 | B115: 58.630001 | C115: 58.630001 | D115: 56.360001 | E115: 58.470001 | F115: 58.470001 | G115: 64310000
A116: 1959-07-01 | B116: 58.970001 | C116: 60.619999 | D116: 58.91 | E116: 60.509998 | F116: 60.509998 | G116: 70900000
A117: 1959-08-01 | B117: 60.709999 | C117: 60.709999 | D117: 58.27 | E117: 59.599998 | F117: 59.599998 | G117: 51050000
A118: 1959-09-01 | B118: 58.869999 | C118: 58.919998 | D118: 55.139999 | E118: 56.880001 | F118: 56.880001 | G118: 57500000
A119: 1959-10-01 | B119: 56.939999 | C119: 57.52 | D119: 56 | E119: 57.52 | F119: 57.52 | G119: 61330000
A120: 1959-11-01 | B120: 57.41 | C120: 58.279999 | D120: 56.220001 | E120: 58.279999 | F120: 58.279999 | G120: 64500000
A121: 1959-12-01 | B121: 58.700001 | C121: 59.889999 | D121: 58.599998 | E121: 59.889999 | F121: 59.889999 | G121: 72210000
A122: 1960-01-01 | B122: 59.91 | C122: 60.389999 | D122: 55.610001 | E122: 55.610001 | F122: 55.610001 | G122: 63920000
A123: 1960-02-01 | B123: 55.959999 | C123: 56.82 | D123: 54.73 | E123: 56.119999 | F123: 56.119999 | G123: 60500000
A124: 1960-03-01 | B124: 56.009998 | C124: 56.009998 | D124: 53.470001 | E124: 55.34 | F124: 55.34 | G124: 65710000
A125: 1960-04-01 | B125: 55.43 | C125: 56.59 | D125: 54.369999 | E125: 54.369999 | F125: 54.369999 | G125: 57300000
A126: 1960-05-01 | B126: 54.130001 | C126: 55.830002 | D126: 54.130001 | E126: 55.830002 | F126: 55.830002 | G126: 68790000
A127: 1960-06-01 | B127: 55.889999 | C127: 58 | D127: 55.889999 | E127: 56.919998 | F127: 56.919998 | G127: 76480000
A128: 1960-07-01 | B128: 57.060001 | C128: 57.380001 | D128: 54.169998 | E128: 55.509998 | F128: 55.509998 | G128: 53860000
A129: 1960-08-01 | B129: 55.529999 | C129: 58.07 | D129: 54.720001 | E129: 56.959999 | F129: 56.959999 | G129: 65330000
A130: 1960-09-01 | B130: 57.09 | C130: 57.09 | D130: 52.48 | E130: 53.52 | F130: 53.52 | G130: 60840000
A131: 1960-10-01 | B131: 53.360001 | C131: 54.860001 | D131: 52.200001 | E131: 53.389999 | F131: 53.389999 | G131: 54370000
A132: 1960-11-01 | B132: 53.939999 | C132: 56.43 | D132: 53.939999 | E132: 55.540001 | F132: 55.540001 | G132: 62010000
A133: 1960-12-01 | B133: 55.299999 | C133: 58.110001 | D133: 55.299999 | E133: 58.110001 | F133: 58.110001 | G133: 77330000
A134: 1961-01-01 | B134: 57.57 | C134: 61.970001 | D134: 57.57 | E134: 61.779999 | F134: 61.779999 | G134: 89010000
A135: 1961-02-01 | B135: 61.900002 | C135: 63.439999 | D135: 61.139999 | E135: 63.439999 | F135: 63.439999 | G135: 92730000
A136: 1961-03-01 | B136: 63.43 | C136: 65.059998 | D136: 63.380001 | E136: 65.059998 | F136: 65.059998 | G136: 115050000
A137: 1961-04-01 | B137: 65.599998 | C137: 68.68 | D137: 64.400002 | E137: 65.309998 | F137: 65.309998 | G137: 101760000
A138: 1961-05-01 | B138: 65.169998 | C138: 67.389999 | D138: 65.169998 | E138: 66.559998 | F138: 66.559998 | G138: 96940000
A139: 1961-06-01 | B139: 66.559998 | C139: 67.080002 | D139: 64.470001 | E139: 64.639999 | F139: 64.639999 | G139: 73090000
A140: 1961-07-01 | B140: 65.209999 | C140: 66.760002 | D140: 64.410004 | E140: 66.760002 | F140: 66.760002 | G140: 60840000
A141: 1961-08-01 | B141: 67.370003 | C141: 68.440002 | D141: 66.940002 | E141: 68.07 | F141: 68.07 | G141: 81490000
A142: 1961-09-01 | B142: 68.190002 | C142: 68.459999 | D142: 65.769997 | E142: 66.730003 | F142: 66.730003 | G142: 63820000
A143: 1961-10-01 | B143: 66.769997 | C143: 68.620003 | D143: 66.730003 | E143: 68.620003 | F143: 68.620003 | G143: 72980000
A144: 1961-11-01 | B144: 68.730003 | C144: 71.849998 | D144: 68.730003 | E144: 71.32 | F144: 71.32 | G144: 87770000
A145: 1961-12-01 | B145: 71.779999 | C145: 72.639999 | D145: 70.860001 | E145: 71.550003 | F145: 71.550003 | G145: 82380000
A146: 1962-01-01 | B146: 71.550003 | C146: 71.959999 | D146: 67.550003 | E146: 68.839996 | F146: 68.839996 | G146: 80790000
A147: 1962-02-01 | B147: 68.839996 | C147: 71.129997 | D147: 68.559998 | E147: 69.959999 | F147: 69.959999 | G147: 66130000
A148: 1962-03-01 | B148: 69.959999 | C148: 71.440002 | D148: 69.160004 | E148: 69.550003 | F148: 69.550003 | G148: 68440000
A149: 1962-04-01 | B149: 69.550003 | C149: 69.82 | D149: 64.949997 | E149: 65.239998 | F149: 65.239998 | G149: 65240000
A150: 1962-05-01 | B150: 65.239998 | C150: 66.93 | D150: 53.130001 | E150: 59.630001 | F150: 59.630001 | G150: 111030000
A151: 1962-06-01 | B151: 59.630001 | C151: 59.959999 | D151: 51.349998 | E151: 54.75 | F151: 54.75 | G151: 100160000
A152: 1962-07-01 | B152: 54.75 | C152: 58.669998 | D152: 54.470001 | E152: 58.23 | F152: 58.23 | G152: 74160000
A153: 1962-08-01 | B153: 58.23 | C153: 60.330002 | D153: 56.759998 | E153: 59.119999 | F153: 59.119999 | G153: 80400000
A154: 1962-09-01 | B154: 59.119999 | C154: 59.540001 | D154: 55.529999 | E154: 56.27 | F154: 56.27 | G154: 62890000
A155: 1962-10-01 | B155: 56.27 | C155: 57.830002 | D155: 52.549999 | E155: 56.52 | F155: 56.52 | G155: 78690000
A156: 1962-11-01 | B156: 56.52 | C156: 62.779999 | D156: 55.900002 | E156: 62.259998 | F156: 62.259998 | G156: 96020000
A157: 1962-12-01 | B157: 62.259998 | C157: 63.5 | D157: 61.279999 | E157: 63.099998 | F157: 63.099998 | G157: 80870000
A158: 1963-01-01 | B158: 63.099998 | C158: 66.589996 | D158: 62.32 | E158: 66.199997 | F158: 66.199997 | G158: 101970000
A159: 1963-02-01 | B159: 66.309998 | C159: 66.959999 | D159: 64.080002 | E159: 64.290001 | F159: 64.290001 | G159: 79120000
A160: 1963-03-01 | B160: 64.290001 | C160: 67.010002 | D160: 63.799999 | E160: 66.57 | F160: 66.57 | G160: 74760000
A161: 1963-04-01 | B161: 66.57 | C161: 70.18 | D161: 66.230003 | E161: 69.800003 | F161: 69.800003 | G161: 106290000
A162: 1963-05-01 | B162: 69.800003 | C162: 71.139999 | D162: 69.029999 | E162: 70.800003 | F162: 70.800003 | G162: 105070000
A163: 1963-06-01 | B163: 70.800003 | C163: 71.239998 | D163: 68.779999 | E163: 69.370003 | F163: 69.370003 | G163: 90580000
A164: 1963-07-01 | B164: 69.370003 | C164: 70.480003 | D164: 67.540001 | E164: 69.129997 | F164: 69.129997 | G164: 76310000
A165: 1963-08-01 | B165: 69.129997 | C165: 72.709999 | D165: 68.639999 | E165: 72.5 | F165: 72.5 | G165: 91650000
A166: 1963-09-01 | B166: 72.5 | C166: 73.870003 | D166: 71.279999 | E166: 71.699997 | F166: 71.699997 | G166: 106620000
A167: 1963-10-01 | B167: 71.699997 | C167: 75.18 | D167: 71.57 | E167: 74.010002 | F167: 74.010002 | G167: 122360000
A168: 1963-11-01 | B168: 74.010002 | C168: 74.440002 | D168: 69.480003 | E168: 73.230003 | F168: 73.230003 | G168: 93990000
A169: 1963-12-01 | B169: 73.230003 | C169: 75.360001 | D169: 73.019997 | E169: 75.019997 | F169: 75.019997 | G169: 98660000
A170: 1964-01-01 | B170: 75.019997 | C170: 77.779999 | D170: 74.82 | E170: 77.040001 | F170: 77.040001 | G170: 116620000
A171: 1964-02-01 | B171: 77.040001 | C171: 78.309998 | D171: 76.360001 | E171: 77.800003 | F171: 77.800003 | G171: 88110000
A172: 1964-03-01 | B172: 77.800003 | C172: 79.889999 | D172: 77.5 | E172: 78.980003 | F172: 78.980003 | G172: 113760000
A173: 1964-04-01 | B173: 78.980003 | C173: 81.199997 | D173: 78.669998 | E173: 79.459999 | F173: 79.459999 | G173: 123490000
A174: 1964-05-01 | B174: 79.459999 | C174: 81.809998 | D174: 79.459999 | E174: 80.370003 | F174: 80.370003 | G174: 99150000
A175: 1964-06-01 | B175: 80.370003 | C175: 82.099998 | D175: 78.150002 | E175: 81.690002 | F175: 81.690002 | G175: 96150000
A176: 1964-07-01 | B176: 81.690002 | C176: 84.330002 | D176: 81.459999 | E176: 83.18 | F176: 83.18 | G176: 102590000
A177: 1964-08-01 | B177: 83.18 | C177: 83.489998 | D177: 80.800003 | E177: 81.830002 | F177: 81.830002 | G177: 82280000
A178: 1964-09-01 | B178: 81.830002 | C178: 84.800003 | D178: 81.57 | E178: 84.18 | F178: 84.18 | G178: 109770000
A179: 1964-10-01 | B179: 84.18 | C179: 85.699997 | D179: 83.650002 | E179: 84.860001 | F179: 84.860001 | G179: 106550000
A180: 1964-11-01 | B180: 84.860001 | C180: 86.800003 | D180: 84.099998 | E180: 84.419998 | F180: 84.419998 | G180: 93640000
A181: 1964-12-01 | B181: 84.419998 | C181: 85.18 | D181: 82.650002 | E181: 84.75 | F181: 84.75 | G181: 104010000
A182: 1965-01-01 | B182: 84.75 | C182: 88.190002 | D182: 83.769997 | E182: 87.559998 | F182: 87.559998 | G182: 109130000
A183: 1965-02-01 | B183: 87.559998 | C183: 88.059998 | D183: 85.25 | E183: 87.43 | F183: 87.43 | G183: 112280000
A184: 1965-03-01 | B184: 87.43 | C184: 87.93 | D184: 85.650002 | E184: 86.160004 | F184: 86.160004 | G184: 124830000
A185: 1965-04-01 | B185: 86.160004 | C185: 89.639999 | D185: 85.870003 | E185: 89.110001 | F185: 89.110001 | G185: 119120000
A186: 1965-05-01 | B186: 89.110001 | C186: 90.68 | D186: 87.239998 | E186: 88.419998 | F186: 88.419998 | G186: 110190000
A187: 1965-06-01 | B187: 88.419998 | C187: 88.800003 | D187: 80.730003 | E187: 84.120003 | F187: 84.120003 | G187: 128160000
A188: 1965-07-01 | B188: 84.120003 | C188: 86.470001 | D188: 83.300003 | E188: 85.25 | F188: 85.25 | G188: 85150000
A189: 1965-08-01 | B189: 85.25 | C189: 87.790001 | D189: 84.800003 | E189: 87.169998 | F189: 87.169998 | G189: 109070000
A190: 1965-09-01 | B190: 87.169998 | C190: 91.129997 | D190: 86.690002 | E190: 89.959999 | F190: 89.959999 | G190: 155180000
A191: 1965-10-01 | B191: 89.959999 | C191: 93.190002 | D191: 89.300003 | E191: 92.419998 | F191: 92.419998 | G191: 164090000
A192: 1965-11-01 | B192: 92.419998 | C192: 93.300003 | D192: 90.809998 | E192: 91.610001 | F192: 91.610001 | G192: 147110000
A193: 1965-12-01 | B193: 91.610001 | C193: 93.07 | D193: 89.199997 | E193: 92.43 | F193: 92.43 | G193: 191050000
A194: 1966-01-01 | B194: 92.43 | C194: 94.639999 | D194: 91.629997 | E194: 92.879997 | F194: 92.879997 | G194: 182910000
A195: 1966-02-01 | B195: 92.879997 | C195: 94.720001 | D195: 90.43 | E195: 91.220001 | F195: 91.220001 | G195: 165790000
A196: 1966-03-01 | B196: 91.220001 | C196: 91.650002 | D196: 86.690002 | E196: 89.230003 | F196: 89.230003 | G196: 191360000
A197: 1966-04-01 | B197: 89.230003 | C197: 93.019997 | D197: 88.959999 | E197: 91.059998 | F197: 91.059998 | G197: 186160000
A198: 1966-05-01 | B198: 91.059998 | C198: 91.75 | D198: 83.18 | E198: 86.129997 | F198: 86.129997 | G198: 171290000
A199: 1966-06-01 | B199: 86.129997 | C199: 87.739998 | D199: 83.75 | E199: 84.739998 | F199: 84.739998 | G199: 140450000
A200: 1966-07-01 | B200: 84.739998 | C200: 88.190002 | D200: 83.050003 | E200: 83.599998 | F200: 83.599998 | G200: 119810000
... 618 more rows

Sheet Inflation and PE
U1: 3
A2: Drivers | E2: Nominal | F2: Real | H2: Begin with Nominal P/E | K2: 32.47 | U2: http://www.wsj.com/mdc/public/page/2_3021-peyield.html?mod=topnav_2_3002
B3: Inflation Rate | E3: 0.03 | F3: 0 | H3: Assumed ROE | K3: =E4 -> 0.15 | U3: https://ycharts.com/indicators/sp_500_pe_ratio
B4: Rate of Return | E4: 0.15 | F4: =(1+E4)/(1+E3)-1 -> 0.1165048544 | H4: Assumed BV | K4: 200 | U4: https://ycharts.com/indicators/pe10
B5: Cost of Capital | E5: 0.06621159447 | F5: =(1+E5)/(1+$E$3)-1 -> 0.03515688784 | H5: Earnings | K5: =K3*K4 -> 30 | U5: http://www.multpl.com/shiller-pe/table
B6: Growth | E6: 0.045 | F6: =(1+E6)/(1+$E$3)-1 -> 0.0145631068 | H6: Price | K6: =K5*K2 -> 974.1
B7: Payout | E7: =(1-E6/E4) -> 0.7 | F7: =(1-F6/F4) -> 0.875 | U7: =INDEX(U2:U5,U1) -> https://ycharts.com/indicators/pe10
B8: Investment Balance (Book Value) | E8: 27.24 | F8: =E8 -> 27.24 | H8: Real Earnings | K8: =K5/(1+E3) -> 29.12621359
H9: BV Adjustment | K9: =K4/(1+E3) -> 194.1747573
A10: PE Formula | E10: =(1-E6/E4)/(E5-E6) -> 33.00081948 | F10: =(1-F6/F4)/(F5-F6) -> 42.48855507 | H10: Total Adjustment | K10: =K4-K9+K5-K8 -> 6.699029126
H11: Adjusted Earnings | K11: =K5-K10 -> 23.30097087
H12: Adjusted P/E | K12: =K6/K11 -> 41.805125
B13: Computed P/E | E13: =F53 -> 0 | F13: =E10 -> 33.00081948
B14: Actual P/E | E14: =K12 -> 41.805125 | F14: 33
B15: Difference | E15: =E13-E14 -> -41.805125 | F15: =F14-F13 -> -0.000819475689
B17: Period | G17: 1 | H17: 2 | I17: 3 | J17: 4 | K17: 5 | L17: 6 | M17: 7 | N17: 8 | O17: 9 | P17: 10 | Q17: 11 | R17: 12 | S17: 13 | T17: 14 | U17: 15 | V17: 16 | W17: 17 | X17: 18 | Y17: 19 | Z17: 20 | AA17: 21 | AB17: 22 | AC17: 23 | AD17: 24 | AE17: 25 | AF17: 26 | AG17: 27 | AH17: 28 | AI17: 29 | AJ17: 30 | AK17: 31 | AL17: 32 | AM17: 33 | AN17: 34 | AO17: 35 | AP17: 36 | AQ17: 37 | AR17: 38 | AS17: 39 | AT17: 40 | AU17: 41 | AV17: 42 | AW17: 43 | AX17: 44 | AY17: 45 | AZ17: 46 | BA17: 47 | BB17: 48 | BC17: 49 | BD17: 50 | BE17: 51 | BF17: 52 | BG17: 53 | BH17: 54 | BI17: 55 | BJ17: 56 | BK17: 57 | BL17: 58 | BM17: 59 | BN17: 60 | BO17: 61 | BP17: 62 | BQ17: 63 | BR17: 64 | BS17: 65 | BT17: 66 | BU17: 67 | BV17: 68 | BW17: 69 | BX17: 70 | BY17: 71 | BZ17: 72 | CA17: 73 | CB17: 74 | CC17: 75 | CD17: 76 | CE17: 77 | CF17: 78 | CG17: 79 | CH17: 80 | CI17: 81 | CJ17: 82 | CK17: 83 | CL17: 84 | CM17: 85 | CN17: 86 | CO17: 87 | CP17: 88 | CQ17: 89 | CR17: 90 | CS17: 91 | CT17: 92 | CU17: 93 | CV17: 94 | CW17: 95 | CX17: 96 | CY17: 97 | CZ17: 98 | DA17: 99 | DB17: 100 | DC17: 101 | DD17: 102 | DE17: 103 | DF17: 104 | DG17: 105 | DH17: 106 | DI17: 107 | DJ17: 108 | DK17: 109 | DL17: 110 | DM17: 111 | DN17: 112 | DO17: 113 | DP17: 114 | DQ17: 115 | DR17: 116 | DS17: 117 | DT17: 118 | DU17: 119 | DV17: 120 | DW17: 121 | DX17: 122 | DY17: 123 | DZ17: 124 | EA17: 125 | EB17: 126 | EC17: 127 | ED17: 128 | EE17: 129 | EF17: 130 | EG17: 131 | EH17: 132 | EI17: 133 | EJ17: 134 | EK17: 135 | EL17: 136 | EM17: 137 | EN17: 138 | EO17: 139 | EP17: 140 | EQ17: 141 | ER17: 142 | ES17: 143 | ET17: 144 | EU17: 145 | EV17: 146 | EW17: 147 | EX17: 148 | EY17: 149 | EZ17: 150 | FA17: 151 | FB17: 152 | FC17: 153 | FD17: 154 | FE17: 155 | FF17: 156 | FG17: 157 | FH17: 158 | FI17: 159 | FJ17: 160 | FK17: 161 | FL17: 162 | FM17: 163 | FN17: 164 | FO17: 165 | FP17: 166 | FQ17: 167 | FR17: 168 | FS17: 169 | FT17: 170 | FU17: 171 | FV17: 172 | FW17: 173 | FX17: 174 | FY17: 175 | FZ17: 176 | GA17: 177 | GB17: 178 | GC17: 179 | GD17: 180 | GE17: 181 | GF17: 182 | GG17: 183 | GH17: 184 | GI17: 185 | GJ17: 186 | GK17: 187 | GL17: 188 | GM17: 189 | GN17: 190 | GO17: 191 | GP17: 192 | GQ17: 193 | GR17: 194 | GS17: 195 | GT17: 196 | GU17: 197 | GV17: 198 | GW17: 199 | GX17: 200
A19: Real Model
B20: Investment Balance
C21: Opening Balance | G21: =F24 -> 200 | H21: =G24 -> 202.9126214 | I21: 205.8676595 | J21: 208.8657322 | K21: 211.9074662 | L21: 214.9934973 | M21: 218.1244705 | N21: 221.3010405 | O21: 224.5238712 | P21: 227.7936363 | Q21: 231.1110193 | R21: 234.4767138 | S21: 237.8914232 | T21: 241.3558614 | U21: 244.8707526 | V21: 248.4368315 | W21: 252.0548436 | X21: 255.7255453 | Y21: 259.4497037 | Z21: 263.2280974 | AA21: 267.0615163 | AB21: 270.9507617 | AC21: 274.8966466 | AD21: 278.8999958 | AE21: 282.9616462 | AF21: 287.0824469 | AG21: 291.2632592 | AH21: 295.5049572 | AI21: 299.8084274 | AJ21: 304.1745696 | AK21: 308.6042963 | AL21: 313.0985336 | AM21: 317.658221 | AN21: 322.2843116 | AO21: 326.9777725 | AP21: 331.7395847 | AQ21: 336.5707437 | AR21: 341.4722594 | AS21: 346.4451564 | AT21: 351.4904742 | AU21: 356.6092675 | AV21: 361.8026063 | AW21: 367.0715763 | AX21: 372.4172789 | AY21: 377.8408315 | AZ21: 383.3433679 | BA21: 388.9260383 | BB21: 394.5900097 | BC21: 400.3364662 | BD21: 406.1666089 | BE21: 412.0816566 | BF21: 418.0828458 | BG21: 424.1714309 | BH21: 430.3486847 | BI21: 436.6158986 | BJ21: 442.9743826 | BK21: 449.4254658 | BL21: 455.9704969 | BM21: 462.6108439 | BN21: 469.347895 | BO21: 476.1830585 | BP21: 483.1177633 | BQ21: 490.1534589 | BR21: 497.291616 | BS21: 504.5337269 | BT21: =BS24 -> 511.8813055 | BU21: 519.3358876 | BV21: 526.8990316 | BW21: 534.5723185 | BX21: 542.3573522 | BY21: 550.2557603 | BZ21: 558.2691937 | CA21: 566.3993276 | CB21: 574.6478615 | CC21: 583.0165196 | CD21: 591.5070515 | CE21: 600.1212318 | CF21: 608.8608614 | CG21: 617.7277672 | CH21: 626.7238026 | CI21: 635.8508483 | CJ21: 645.1108121 | CK21: 654.5056297 | CL21: 664.0372651 | CM21: 673.7077107 | CN21: 683.5189881 | CO21: 693.4731481 | CP21: 703.5722716 | CQ21: 713.8184698 | CR21: 724.2138844 | CS21: 734.7606885 | CT21: 745.4610869 | CU21: 756.3173163 | CV21: 767.3316461 | CW21: 778.5063789 | CX21: 789.8438504 | CY21: 801.3464307 | CZ21: 813.0165244 | DA21: 824.8565709 | DB21: 836.8690452 | DC21: 849.0564585 | DD21: 861.4213584 | DE21: 873.9663296 | DF21: 886.6939946 | DG21: 899.6070139 | DH21: 912.7080869 | DI21: 925.9999523 | DJ21: 939.4853885 | DK21: 953.1672145 | DL21: 967.0482905 | DM21: 981.131518 | DN21: 995.4198411 | DO21: 1009.916247 | DP21: 1024.623765 | DQ21: 1039.54547 | DR21: 1054.684482 | DS21: 1070.043964 | DT21: 1085.627129 | DU21: 1101.437233 | DV21: 1117.477581 | DW21: 1133.751526 | DX21: 1150.262471 | DY21: 1167.013866 | DZ21: 1184.009214 | EA21: 1201.252066 | EB21: 1218.746028 | EC21: 1236.494757 | ED21: 1254.501962 | EE21: 1272.771408 | EF21: =EE24 -> 1291.306914 | EG21: 1310.112355 | EH21: 1329.191661 | EI21: 1348.548821 | EJ21: 1368.187881 | EK21: 1388.112947 | EL21: 1408.328185 | EM21: 1428.837818 | EN21: 1449.646136 | EO21: 1470.757488 | EP21: 1492.176286 | EQ21: 1513.907009 | ER21: 1535.954198 | ES21: 1558.322463 | ET21: 1581.016479 | EU21: 1604.040991 | EV21: 1627.400812 | EW21: 1651.100823 | EX21: 1675.145981 | EY21: 1699.541311 | EZ21: 1724.291912 | FA21: 1749.40296 | FB21: 1774.879702 | FC21: 1800.727464 | FD21: 1826.951651 | FE21: 1853.557743 | FF21: 1880.551302 | FG21: 1907.937972 | FH21: 1935.723476 | FI21: 1963.913624 | FJ21: 1992.514308 | FK21: 2021.531506 | FL21: 2050.971286 | FM21: 2080.839799 | FN21: 2111.143292 | FO21: 2141.888097 | FP21: 2173.080642 | FQ21: 2204.727447 | FR21: 2236.835129 | FS21: 2269.410398 | FT21: 2302.460064 | FU21: 2335.991035 | FV21: 2370.010322 | FW21: 2404.525036 | FX21: 2439.542391 | FY21: 2475.069707 | FZ21: 2511.114411 | GA21: 2547.684039 | GB21: 2584.786234 | GC21: 2622.428751 | GD21: 2660.619461 | GE21: 2699.366347 | GF21: 2738.677507 | GG21: 2778.56116 | GH21: 2819.025643 | GI21: 2860.079415 | GJ21: 2901.731057 | GK21: 2943.989276 | GL21: 2986.862906 | GM21: 3030.36091 | GN21: 3074.492379 | GO21: 3119.26654 | GP21: 3164.692752 | GQ21: 3210.78051 | GR21: =GQ24 -> 3257.53945 | GS21: 3304.979345 | GT21: 3353.110112 | GU21: 3401.941812 | GV21: 3451.484654 | GW21: 3501.748994 | GX21: 3552.745339
C22: Add: Income | E22: =F4 -> 0.1165048544 | G22: =$E$22*G21 -> 23.30097087 | H22: =$E$22*H21 -> 23.6403054 | I22: 23.98458169 | J22: 24.33387172 | K22: 24.68824849 | L22: 25.04778609 | M22: 25.41255967 | N22: 25.78264549 | O22: 26.15812091 | P22: 26.53906442 | Q22: 26.92555565 | R22: 27.31767539 | S22: 27.71550562 | T22: 28.11912949 | U22: 28.52863137 | V22: 28.94409688 | W22: 29.36561285 | X22: 29.79326741 | Y22: 30.22714994 | Z22: 30.66735116 | AA22: 31.11396307 | AB22: 31.56707903 | AC22: 32.02679378 | AD22: 32.49320339 | AE22: 32.96640539 | AF22: 33.44649867 | AG22: 33.9335836 | AH22: 34.427762 | AI22: 34.92913718 | AJ22: 35.43781393 | AK22: 35.9538986 | AL22: 36.47749907 | AM22: 37.00872478 | AN22: 37.54768679 | AO22: 38.09449776 | AP22: 38.649272 | AQ22: 39.21212548 | AR22: 39.78317585 | AS22: 40.36254249 | AT22: 40.95034651 | AU22: 41.54671078 | AV22: 42.15175996 | AW22: 42.76562054 | AX22: 43.38842084 | AY22: 44.02029105 | AZ22: 44.66136325 | BA22: 45.31177145 | BB22: 45.97165162 | BC22: 46.64114169 | BD22: 47.32038162 | BE22: 48.00951339 | BF22: 48.70868106 | BG22: 49.41803078 | BH22: 50.13771084 | BI22: 50.86787168 | BJ22: 51.60866593 | BK22: 52.36024844 | BL22: 53.12277633 | BM22: 53.896409 | BN22: 54.68130816 | BO22: 55.47763789 | BP22: 56.28556465 | BQ22: 57.10525734 | BR22: 57.9368873 | BS22: 58.78062838 | BT22: =$E$22*BT21 -> 59.63665695 | BU22: 60.50515195 | BV22: 61.38629494 | BW22: 62.28027011 | BX22: 63.18726434 | BY22: 64.10746722 | BZ22: 65.04107111 | CA22: 65.98827117 | CB22: 66.94926541 | CC22: 67.92425471 | CD22: 68.91344289 | CE22: 69.91703672 | CF22: 70.93524599 | CG22: 71.96828355 | CH22: 73.01636535 | CI22: 74.07971048 | CJ22: 75.15854122 | CK22: 76.25308308 | CL22: 77.36356487 | CM22: 78.49021873 | CN22: 79.63328017 | CO22: 80.79298813 | CP22: 81.96958504 | CQ22: 83.16331686 | CR22: 84.37443313 | CS22: 85.60318701 | CT22: 86.84983536 | CU22: 88.11463879 | CV22: 89.39786169 | CW22: 90.69977229 | CX22: 92.02064276 | CY22: 93.36074921 | CZ22: 94.72037177 | DA22: 96.09979466 | DB22: 97.49930624 | DC22: 98.91919905 | DD22: 100.3597699 | DE22: 101.82132 | DF22: 103.3041547 | DG22: 104.8085841 | DH22: 106.3349228 | DI22: 107.8834896 | DJ22: 109.4546084 | DK22: 111.0486075 | DL22: 112.6658202 | DM22: 114.3065846 | DN22: 115.9712436 | DO22: 117.6601452 | DP22: 119.3736425 | DQ22: 121.1120936 | DR22: 122.8758619 | DS22: 124.6653162 | DT22: 126.4808306 | DU22: 128.3227844 | DV22: 130.1915628 | DW22: 132.0875564 | DX22: 134.0111616 | DY22: 135.9627805 | DZ22: 137.942821 | EA22: 139.951697 | EB22: 141.9898285 | EC22: 144.0576416 | ED22: 146.1555684 | EE22: 148.2840475 | EF22: =$E$22*EF21 -> 150.443524 | EG22: 152.6344491 | EH22: 154.8572809 | EI22: 157.112484 | EJ22: 159.4005299 | EK22: 161.7218968 | EL22: 164.07707 | EM22: 166.4665419 | EN22: 168.890812 | EO22: 171.3503869 | EP22: 173.8457809 | EQ22: 176.3775156 | ER22: 178.9461202 | ES22: 181.5521316 | ET22: 184.1960947 | EU22: 186.8785621 | EV22: 189.6000946 | EW22: 192.361261 | EX22: 195.1626386 | EY22: 198.0048129 | EZ22: 200.8883781 | FA22: 203.8139371 | FB22: 206.7821012 | FC22: 209.793491 | FD22: 212.848736 | FE22: 215.9484749 | FF22: 219.0933556 | FG22: 222.2840355 | FH22: 225.5211817 | FI22: 228.8054707 | FJ22: 232.1375892 | FK22: 235.5182337 | FL22: 238.9481109 | FM22: 242.4279378 | FN22: 245.9584417 | FO22: 249.5403608 | FP22: 253.1744437 | FQ22: 256.8614502 | FR22: 260.6021509 | FS22: 264.3973279 | FT22: 268.2477744 | FU22: 272.1542954 | FV22: 276.1177075 | FW22: 280.1388391 | FX22: 284.2185309 | FY22: 288.3576358 | FZ22: 292.5570188 | GA22: 296.8175579 | GB22: 301.1401437 | GC22: 305.5256798 | GD22: 309.9750829 | GE22: 314.4892831 | GF22: 319.0692241 | GG22: 323.7158633 | GH22: 328.430172 | GI22: 333.2131357 | GJ22: 338.0657542 | GK22: 342.9890419 | GL22: 347.9840279 | GM22: 353.0517565 | GN22: 358.1932869 | GO22: 363.409694 | GP22: 368.7020682 | GQ22: 374.0715158 | GR22: =$E$22*GR21 -> 379.5191592 | GS22: 385.0461372 | GT22: 390.6536053 | GU22: 396.3427354 | GV22: 402.114717 | GW22: 407.9707566 | GX22: 413.9120783
C23: Less: Payouts | E23: =F7 -> 0.875 | G23: =G22*$E$23 -> 20.38834951 | H23: =H22*$E$23 -> 20.68526723 | I23: 20.98650898 | J23: 21.29213775 | K23: 21.60221743 | L23: 21.91681283 | M23: 22.23598971 | N23: 22.55981481 | O23: 22.8883558 | P23: 23.22168137 | Q23: 23.5598612 | R23: 23.90296597 | S23: 24.25106742 | T23: 24.6042383 | U23: 24.96255245 | V23: 25.32608477 | W23: 25.69491125 | X23: 26.06910898 | Y23: 26.4487562 | Z23: 26.83393226 | AA23: 27.22471768 | AB23: 27.62119415 | AC23: 28.02344455 | AD23: 28.43155297 | AE23: 28.84560471 | AF23: 29.26568633 | AG23: 29.69188565 | AH23: 30.12429175 | AI23: 30.56299503 | AJ23: 31.00808719 | AK23: 31.45966128 | AL23: 31.91781168 | AM23: 32.38263418 | AN23: 32.85422594 | AO23: 33.33268554 | AP23: 33.818113 | AQ23: 34.31060979 | AR23: 34.81027887 | AS23: 35.31722468 | AT23: 35.83155319 | AU23: 36.35337193 | AV23: 36.88278997 | AW23: 37.41991798 | AX23: 37.96486824 | AY23: 38.51775467 | AZ23: 39.07869284 | BA23: 39.64780002 | BB23: 40.22519517 | BC23: 40.81099898 | BD23: 41.40533392 | BE23: 42.00832422 | BF23: 42.62009593 | BG23: 43.24077694 | BH23: 43.87049699 | BI23: 44.50938772 | BJ23: 45.15758269 | BK23: 45.81521739 | BL23: 46.48242929 | BM23: 47.15935787 | BN23: 47.84614464 | BO23: 48.54293315 | BP23: 49.24986907 | BQ23: 49.96710017 | BR23: 50.69477639 | BS23: 51.43304983 | BT23: =BT22*$E$23 -> 52.18207483 | BU23: 52.94200796 | BV23: 53.71300808 | BW23: 54.49523635 | BX23: 55.2888563 | BY23: 56.09403381 | BZ23: 56.91093722 | CA23: 57.73973728 | CB23: 58.58060724 | CC23: 59.43372288 | CD23: 60.29926253 | CE23: 61.17740713 | CF23: 62.06834024 | CG23: 62.97224811 | CH23: 63.88931968 | CI23: 64.81974667 | CJ23: 65.76372356 | CK23: 66.72144769 | CL23: 67.69311926 | CM23: 68.67894139 | CN23: 69.67912014 | CO23: 70.69386461 | CP23: 71.72338691 | CQ23: 72.76790226 | CR23: 73.82762899 | CS23: 74.90278863 | CT23: 75.99360594 | CU23: 77.10030894 | CV23: 78.22312898 | CW23: 79.36230076 | CX23: 80.51806242 | CY23: 81.69065556 | CZ23: 82.8803253 | DA23: 84.08732033 | DB23: 85.31189296 | DC23: 86.55429916 | DD23: 87.81479867 | DE23: 89.09365496 | DF23: 90.39113537 | DG23: 91.70751113 | DH23: 93.04305741 | DI23: 94.39805339 | DJ23: 95.77278232 | DK23: 97.16753158 | DL23: 98.58259272 | DM23: 100.0182615 | DN23: 101.4748382 | DO23: 102.9526271 | DP23: 104.4519372 | DQ23: 105.9730819 | DR23: 107.5163792 | DS23: 109.0821517 | DT23: 110.6707267 | DU23: 112.2824364 | DV23: 113.9176175 | DW23: 115.5766119 | DX23: 117.2597664 | DY23: 118.9674329 | DZ23: 120.6999684 | EA23: 122.4577349 | EB23: 124.2411 | EC23: 126.0504364 | ED23: 127.8861223 | EE23: 129.7485416 | EF23: =EF22*$E$23 -> 131.6380835 | EG23: 133.5551429 | EH23: 135.5001207 | EI23: 137.4734235 | EJ23: 139.4754636 | EK23: 141.5066597 | EL23: 143.5674363 | EM23: 145.6582242 | EN23: 147.7794605 | EO23: 149.9315885 | EP23: 152.1150583 | EQ23: 154.3303261 | ER23: 156.5778551 | ES23: 158.8581152 | ET23: 161.1715829 | EU23: 163.5187418 | EV23: 165.9000827 | EW23: 168.3161034 | EX23: 170.7673087 | EY23: 173.2542113 | EZ23: 175.7773309 | FA23: 178.3371949 | FB23: 180.9343385 | FC23: 183.5693046 | FD23: 186.242644 | FE23: 188.9549155 | FF23: 191.7066862 | FG23: 194.4985311 | FH23: 197.331034 | FI23: 200.2047869 | FJ23: 203.1203906 | FK23: 206.0784545 | FL23: 209.0795971 | FM23: 212.1244456 | FN23: 215.2136365 | FO23: 218.3478157 | FP23: 221.5276383 | FQ23: 224.7537689 | FR23: 228.0268821 | FS23: 231.3476619 | FT23: 234.7168026 | FU23: 238.1350085 | FV23: 241.602994 | FW23: 245.1214842 | FX23: 248.6912146 | FY23: 252.3129313 | FZ23: 255.9873915 | GA23: 259.7153632 | GB23: 263.4976257 | GC23: 267.3349698 | GD23: 271.2281975 | GE23: 275.1781227 | GF23: 279.1855711 | GG23: 283.2513804 | GH23: 287.3764005 | GI23: 291.5614937 | GJ23: 295.8075349 | GK23: 300.1154116 | GL23: 304.4860244 | GM23: 308.9202869 | GN23: 313.419126 | GO23: 317.9834822 | GP23: 322.6143096 | GQ23: 327.3125763 | GR23: =GR22*$E$23 -> 332.0792643 | GS23: 336.9153701 | GT23: 341.8219046 | GU23: 346.7998935 | GV23: 351.8503774 | GW23: 356.974412 | GX23: 362.1730685
C24: Closing Balance | F24: =K4 -> 200 | G24: =G21+G22-G23 -> 202.9126214 | H24: =H21+H22-H23 -> 205.8676595 | I24: 208.8657322 | J24: 211.9074662 | K24: 214.9934973 | L24: 218.1244705 | M24: 221.3010405 | N24: 224.5238712 | O24: 227.7936363 | P24: 231.1110193 | Q24: 234.4767138 | R24: 237.8914232 | S24: 241.3558614 | T24: 244.8707526 | U24: 248.4368315 | V24: 252.0548436 | W24: 255.7255453 | X24: 259.4497037 | Y24: 263.2280974 | Z24: 267.0615163 | AA24: 270.9507617 | AB24: 274.8966466 | AC24: 278.8999958 | AD24: 282.9616462 | AE24: 287.0824469 | AF24: 291.2632592 | AG24: 295.5049572 | AH24: 299.8084274 | AI24: 304.1745696 | AJ24: 308.6042963 | AK24: 313.0985336 | AL24: 317.658221 | AM24: 322.2843116 | AN24: 326.9777725 | AO24: 331.7395847 | AP24: 336.5707437 | AQ24: 341.4722594 | AR24: 346.4451564 | AS24: 351.4904742 | AT24: 356.6092675 | AU24: 361.8026063 | AV24: 367.0715763 | AW24: 372.4172789 | AX24: 377.8408315 | AY24: 383.3433679 | AZ24: 388.9260383 | BA24: 394.5900097 | BB24: 400.3364662 | BC24: 406.1666089 | BD24: 412.0816566 | BE24: 418.0828458 | BF24: 424.1714309 | BG24: 430.3486847 | BH24: 436.6158986 | BI24: 442.9743826 | BJ24: 449.4254658 | BK24: 455.9704969 | BL24: 462.6108439 | BM24: 469.347895 | BN24: 476.1830585 | BO24: 483.1177633 | BP24: 490.1534589 | BQ24: 497.291616 | BR24: 504.5337269 | BS24: 511.8813055 | BT24: =BT21+BT22-BT23 -> 519.3358876 | BU24: 526.8990316 | BV24: 534.5723185 | BW24: 542.3573522 | BX24: 550.2557603 | BY24: 558.2691937 | BZ24: 566.3993276 | CA24: 574.6478615 | CB24: 583.0165196 | CC24: 591.5070515 | CD24: 600.1212318 | CE24: 608.8608614 | CF24: 617.7277672 | CG24: 626.7238026 | CH24: 635.8508483 | CI24: 645.1108121 | CJ24: 654.5056297 | CK24: 664.0372651 | CL24: 673.7077107 | CM24: 683.5189881 | CN24: 693.4731481 | CO24: 703.5722716 | CP24: 713.8184698 | CQ24: 724.2138844 | CR24: 734.7606885 | CS24: 745.4610869 | CT24: 756.3173163 | CU24: 767.3316461 | CV24: 778.5063789 | CW24: 789.8438504 | CX24: 801.3464307 | CY24: 813.0165244 | CZ24: 824.8565709 | DA24: 836.8690452 | DB24: 849.0564585 | DC24: 861.4213584 | DD24: 873.9663296 | DE24: 886.6939946 | DF24: 899.6070139 | DG24: 912.7080869 | DH24: 925.9999523 | DI24: 939.4853885 | DJ24: 953.1672145 | DK24: 967.0482905 | DL24: 981.131518 | DM24: 995.4198411 | DN24: 1009.916247 | DO24: 1024.623765 | DP24: 1039.54547 | DQ24: 1054.684482 | DR24: 1070.043964 | DS24: 1085.627129 | DT24: 1101.437233 | DU24: 1117.477581 | DV24: 1133.751526 | DW24: 1150.262471 | DX24: 1167.013866 | DY24: 1184.009214 | DZ24: 1201.252066 | EA24: 1218.746028 | EB24: 1236.494757 | EC24: 1254.501962 | ED24: 1272.771408 | EE24: 1291.306914 | EF24: =EF21+EF22-EF23 -> 1310.112355 | EG24: 1329.191661 | EH24: 1348.548821 | EI24: 1368.187881 | EJ24: 1388.112947 | EK24: 1408.328185 | EL24: 1428.837818 | EM24: 1449.646136 | EN24: 1470.757488 | EO24: 1492.176286 | EP24: 1513.907009 | EQ24: 1535.954198 | ER24: 1558.322463 | ES24: 1581.016479 | ET24: 1604.040991 | EU24: 1627.400812 | EV24: 1651.100823 | EW24: 1675.145981 | EX24: 1699.541311 | EY24: 1724.291912 | EZ24: 1749.40296 | FA24: 1774.879702 | FB24: 1800.727464 | FC24: 1826.951651 | FD24: 1853.557743 | FE24: 1880.551302 | FF24: 1907.937972 | FG24: 1935.723476 | FH24: 1963.913624 | FI24: 1992.514308 | FJ24: 2021.531506 | FK24: 2050.971286 | FL24: 2080.839799 | FM24: 2111.143292 | FN24: 2141.888097 | FO24: 2173.080642 | FP24: 2204.727447 | FQ24: 2236.835129 | FR24: 2269.410398 | FS24: 2302.460064 | FT24: 2335.991035 | FU24: 2370.010322 | FV24: 2404.525036 | FW24: 2439.542391 | FX24: 2475.069707 | FY24: 2511.114411 | FZ24: 2547.684039 | GA24: 2584.786234 | GB24: 2622.428751 | GC24: 2660.619461 | GD24: 2699.366347 | GE24: 2738.677507 | GF24: 2778.56116 | GG24: 2819.025643 | GH24: 2860.079415 | GI24: 2901.731057 | GJ24: 2943.989276 | GK24: 2986.862906 | GL24: 3030.36091 | GM24: 3074.492379 | GN24: 3119.26654 | GO24: 3164.692752 | GP24: 3210.78051 | GQ24: 3257.53945 | GR24: =GR21+GR22-GR23 -> 3304.979345 | GS24: 3353.110112 | GT24: 3401.941812 | GU24: 3451.484654 | GV24: 3501.748994 | GW24: 3552.745339 | GX24: 3604.484348
C26: NPV of Payouts | E26: =F5 -> 0.03515688784
C27: Forward Earnings Multiple
C29: Inflation Index | E29: =E3 -> 0.03
C30: Nominal Payout
C31: PV of Payout | E31: =E5 -> 0.06621159447 | F31: =NPV(E31,G30:GX30) -> 0
A33: Nominal Model
C35: Opening Balance | G35: =F38 -> 200 | H35: =G38 -> 209 | I35: 218.405 | J35: 228.233225 | K35: 238.5037201 | L35: 249.2363875 | M35: 260.452025 | N35: 272.1723661 | O35: 284.4201226 | P35: 297.2190281 | Q35: 310.5938843 | R35: 324.5706091 | S35: 339.1762866 | T35: 354.4392194 | U35: 370.3889843 | V35: 387.0564886 | W35: 404.4740306 | X35: 422.675362 | Y35: 441.6957533 | Z35: 461.5720622 | AA35: 482.342805 | AB35: 504.0482312 | AC35: 526.7304016 | AD35: 550.4332697 | AE35: 575.2027668 | AF35: 601.0868913 | AG35: 628.1358014 | AH35: 656.4019125 | AI35: 685.9399985 | AJ35: 716.8072985 | AK35: 749.0636269 | AL35: 782.7714901 | AM35: 817.9962072 | AN35: 854.8060365 | AO35: 893.2723081 | AP35: 933.469562 | AQ35: 975.4756923 | AR35: 1019.372098 | AS35: 1065.243843 | AT35: 1113.179816 | AU35: 1163.272908 | AV35: 1215.620188 | AW35: 1270.323097 | AX35: 1327.487636 | AY35: 1387.22458 | AZ35: 1449.649686 | BA35: 1514.883922 | BB35: 1583.053698 | BC35: 1654.291115 | BD35: 1728.734215 | BE35: 1806.527255 | BF35: 1887.820981 | BG35: 1972.772925 | BH35: 2061.547707 | BI35: 2154.317354 | BJ35: 2251.261634 | BK35: 2352.568408 | BL35: 2458.433986 | BM35: 2569.063516 | BN35: 2684.671374 | BO35: 2805.481586 | BP35: 2931.728257 | BQ35: 3063.656029 | BR35: 3201.52055 | BS35: 3345.588975 | BT35: =BS38 -> 3496.140479 | BU35: 3653.4668 | BV35: 3817.872806 | BW35: 3989.677082 | BX35: 4169.212551 | BY35: 4356.827116 | BZ35: 4552.884336 | CA35: 4757.764131 | CB35: 4971.863517 | CC35: 5195.597375 | CD35: 5429.399257 | CE35: 5673.722224 | CF35: 5929.039724 | CG35: 6195.846512 | CH35: 6474.659605 | CI35: 6766.019287 | CJ35: 7070.490155 | CK35: 7388.662212 | CL35: 7721.152011 | CM35: 8068.603852 | CN35: 8431.691025 | CO35: 8811.117121 | CP35: 9207.617392 | CQ35: 9621.960174 | CR35: 10054.94838 | CS35: 10507.42106 | CT35: 10980.25501 | CU35: 11474.36648 | CV35: 11990.71297 | CW35: 12530.29506 | CX35: 13094.15834 | CY35: 13683.39546 | CZ35: 14299.14826 | DA35: 14942.60993 | DB35: 15615.02737 | DC35: 16317.70361 | DD35: 17052.00027 | DE35: 17819.34028 | DF35: 18621.21059 | DG35: 19459.16507 | DH35: 20334.8275 | DI35: 21249.89474 | DJ35: 22206.14 | DK35: 23205.4163 | DL35: 24249.66003 | DM35: 25340.89473 | DN35: 26481.235 | DO35: 27672.89057 | DP35: 28918.17065 | DQ35: 30219.48833 | DR35: 31579.3653 | DS35: 33000.43674 | DT35: 34485.45639 | DU35: 36037.30193 | DV35: 37658.98052 | DW35: 39353.63464 | DX35: 41124.5482 | DY35: 42975.15287 | DZ35: 44909.03475 | EA35: 46929.94131 | EB35: 49041.78867 | EC35: 51248.66916 | ED35: 53554.85927 | EE35: 55964.82794 | EF35: =EE38 -> 58483.2452 | EG35: 61114.99123 | EH35: 63865.16584 | EI35: 66739.0983 | EJ35: 69742.35772 | EK35: 72880.76382 | EL35: 76160.39819 | EM35: 79587.61611 | EN35: 83169.05884 | EO35: 86911.66648 | EP35: 90822.69147 | EQ35: 94909.71259 | ER35: 99180.64966 | ES35: 103643.7789 | ET35: 108307.7489 | EU35: 113181.5976 | EV35: 118274.7695 | EW35: 123597.1342 | EX35: 129159.0052 | EY35: 134971.1604 | EZ35: 141044.8627 | FA35: 147391.8815 | FB35: 154024.5161 | FC35: 160955.6194 | FD35: 168198.6222 | FE35: 175767.5602 | FF35: 183677.1005 | FG35: 191942.57 | FH35: 200579.9856 | FI35: 209606.085 | FJ35: 219038.3588 | FK35: 228895.0849 | FL35: 239195.3638 | FM35: 249959.1551 | FN35: 261207.3171 | FO35: 272961.6464 | FP35: 285244.9205 | FQ35: 298080.9419 | FR35: 311494.5843 | FS35: 325511.8406 | FT35: 340159.8734 | FU35: 355467.0677 | FV35: 371463.0858 | FW35: 388178.9246 | FX35: 405646.9762 | FY35: 423901.0902 | FZ35: 442976.6392 | GA35: 462910.588 | GB35: 483741.5644 | GC35: 505509.9348 | GD35: 528257.8819 | GE35: 552029.4866 | GF35: 576870.8135 | GG35: 602830.0001 | GH35: 629957.3501 | GI35: 658305.4309 | GJ35: 687929.1752 | GK35: 718885.9881 | GL35: 751235.8576 | GM35: 785041.4712 | GN35: 820368.3374 | GO35: 857284.9126 | GP35: 895862.7336 | GQ35: 936176.5566 | GR35: =GQ38 -> 978304.5017 | GS35: 1022328.204 | GT35: 1068332.973 | GU35: 1116407.957 | GV35: 1166646.315 | GW35: 1219145.4 | GX35: 1274006.943
C36: Add: Income | E36: =E4 -> 0.15 | G36: =G35*$E$36 -> 30 | H36: =H35*$E$36 -> 31.35 | I36: 32.76075 | J36: 34.23498375 | K36: 35.77555802 | L36: 37.38545813 | M36: 39.06780375 | N36: 40.82585491 | O36: 42.66301839 | P36: 44.58285421 | Q36: 46.58908265 | R36: 48.68559137 | S36: 50.87644298 | T36: 53.16588292 | U36: 55.55834765 | V36: 58.05847329 | W36: 60.67110459 | X36: 63.4013043 | Y36: 66.25436299 | Z36: 69.23580933 | AA36: 72.35142075 | AB36: 75.60723468 | AC36: 79.00956024 | AD36: 82.56499045 | AE36: 86.28041502 | AF36: 90.1630337 | AG36: 94.22037021 | AH36: 98.46028687 | AI36: 102.8909998 | AJ36: 107.5210948 | AK36: 112.359544 | AL36: 117.4157235 | AM36: 122.6994311 | AN36: 128.2209055 | AO36: 133.9908462 | AP36: 140.0204343 | AQ36: 146.3213538 | AR36: 152.9058148 | AS36: 159.7865764 | AT36: 166.9769724 | AU36: 174.4909361 | AV36: 182.3430283 | AW36: 190.5484645 | AX36: 199.1231454 | AY36: 208.083687 | AZ36: 217.4474529 | BA36: 227.2325883 | BB36: 237.4580547 | BC36: 248.1436672 | BD36: 259.3101322 | BE36: 270.9790882 | BF36: 283.1731471 | BG36: 295.9159388 | BH36: 309.232156 | BI36: 323.147603 | BJ36: 337.6892452 | BK36: 352.8852612 | BL36: 368.765098 | BM36: 385.3595274 | BN36: 402.7007061 | BO36: 420.8222379 | BP36: 439.7592386 | BQ36: 459.5484043 | BR36: 480.2280825 | BS36: 501.8383462 | BT36: =BT35*$E$36 -> 524.4210718 | BU36: 548.02002 | BV36: 572.6809209 | BW36: 598.4515624 | BX36: 625.3818827 | BY36: 653.5240674 | BZ36: 682.9326504 | CA36: 713.6646197 | CB36: 745.7795276 | CC36: 779.3396063 | CD36: 814.4098886 | CE36: 851.0583336 | CF36: 889.3559586 | CG36: 929.3769767 | CH36: 971.1989407 | CI36: 1014.902893 | CJ36: 1060.573523 | CK36: 1108.299332 | CL36: 1158.172802 | CM36: 1210.290578 | CN36: 1264.753654 | CO36: 1321.667568 | CP36: 1381.142609 | CQ36: 1443.294026 | CR36: 1508.242257 | CS36: 1576.113159 | CT36: 1647.038251 | CU36: 1721.154972 | CV36: 1798.606946 | CW36: 1879.544259 | CX36: 1964.12375 | CY36: 2052.509319 | CZ36: 2144.872238 | DA36: 2241.391489 | DB36: 2342.254106 | DC36: 2447.655541 | DD36: 2557.80004 | DE36: 2672.901042 | DF36: 2793.181589 | DG36: 2918.874761 | DH36: 3050.224125 | DI36: 3187.48421 | DJ36: 3330.921 | DK36: 3480.812445 | DL36: 3637.449005 | DM36: 3801.13421 | DN36: 3972.185249 | DO36: 4150.933586 | DP36: 4337.725597 | DQ36: 4532.923249 | DR36: 4736.904795 | DS36: 4950.065511 | DT36: 5172.818459 | DU36: 5405.59529 | DV36: 5648.847078 | DW36: 5903.045196 | DX36: 6168.68223 | DY36: 6446.27293 | DZ36: 6736.355212 | EA36: 7039.491197 | EB36: 7356.268301 | EC36: 7687.300374 | ED36: 8033.228891 | EE36: 8394.724191 | EF36: =EF35*$E$36 -> 8772.48678 | EG36: 9167.248685 | EH36: 9579.774875 | EI36: 10010.86474 | EJ36: 10461.35366 | EK36: 10932.11457 | EL36: 11424.05973 | EM36: 11938.14242 | EN36: 12475.35883 | EO36: 13036.74997 | EP36: 13623.40372 | EQ36: 14236.45689 | ER36: 14877.09745 | ES36: 15546.56683 | ET36: 16246.16234 | EU36: 16977.23965 | EV36: 17741.21543 | EW36: 18539.57013 | EX36: 19373.85078 | EY36: 20245.67407 | EZ36: 21156.7294 | FA36: 22108.78222 | FB36: 23103.67742 | FC36: 24143.34291 | FD36: 25229.79334 | FE36: 26365.13404 | FF36: 27551.56507 | FG36: 28791.3855 | FH36: 30086.99784 | FI36: 31440.91275 | FJ36: 32855.75382 | FK36: 34334.26274 | FL36: 35879.30457 | FM36: 37493.87327 | FN36: 39181.09757 | FO36: 40944.24696 | FP36: 42786.73807 | FQ36: 44712.14129 | FR36: 46724.18764 | FS36: 48826.77609 | FT36: 51023.98101 | FU36: 53320.06016 | FV36: 55719.46286 | FW36: 58226.83869 | FX36: 60847.04643 | FY36: 63585.16352 | FZ36: 66446.49588 | GA36: 69436.5882 | GB36: 72561.23467 | GC36: 75826.49023 | GD36: 79238.68229 | GE36: 82804.42299 | GF36: 86530.62202 | GG36: 90424.50001 | GH36: 94493.60251 | GI36: 98745.81463 | GJ36: 103189.3763 | GK36: 107832.8982 | GL36: 112685.3786 | GM36: 117756.2207 | GN36: 123055.2506 | GO36: 128592.7369 | GP36: 134379.41 | GQ36: 140426.4835 | GR36: =GR35*$E$36 -> 146745.6753 | GS36: 153349.2306 | GT36: 160249.946 | GU36: 167461.1936 | GV36: 174996.9473 | GW36: 182871.8099 | GX36: 191101.0414
C37: Less: Payouts | E37: =E7 -> 0.7 | G37: =G36*$E$37 -> 21 | H37: =H36*$E$37 -> 21.945 | I37: 22.932525 | J37: 23.96448862 | K37: 25.04289061 | L37: 26.16982069 | M37: 27.34746262 | N37: 28.57809844 | O37: 29.86411287 | P37: 31.20799795 | Q37: 32.61235786 | R37: 34.07991396 | S37: 35.61351009 | T37: 37.21611804 | U37: 38.89084335 | V37: 40.6409313 | W37: 42.46977321 | X37: 44.38091301 | Y37: 46.37805409 | Z37: 48.46506653 | AA37: 50.64599452 | AB37: 52.92506428 | AC37: 55.30669217 | AD37: 57.79549331 | AE37: 60.39629051 | AF37: 63.11412359 | AG37: 65.95425915 | AH37: 68.92220081 | AI37: 72.02369985 | AJ37: 75.26476634 | AK37: 78.65168083 | AL37: 82.19100646 | AM37: 85.88960175 | AN37: 89.75463383 | AO37: 93.79359235 | AP37: 98.01430401 | AQ37: 102.4249477 | AR37: 107.0340703 | AS37: 111.8506035 | AT37: 116.8838807 | AU37: 122.1436553 | AV37: 127.6401198 | AW37: 133.3839252 | AX37: 139.3862018 | AY37: 145.6585809 | AZ37: 152.213217 | BA37: 159.0628118 | BB37: 166.2206383 | BC37: 173.700567 | BD37: 181.5170926 | BE37: 189.6853617 | BF37: 198.221203 | BG37: 207.1411571 | BH37: 216.4625092 | BI37: 226.2033221 | BJ37: 236.3824716 | BK37: 247.0196828 | BL37: 258.1355686 | BM37: 269.7516692 | BN37: 281.8904943 | BO37: 294.5755665 | BP37: 307.831467 | BQ37: 321.683883 | BR37: 336.1596578 | BS37: 351.2868423 | BT37: =BT36*$E$37 -> 367.0947503 | BU37: 383.614014 | BV37: 400.8766446 | BW37: 418.9160937 | BX37: 437.7673179 | BY37: 457.4668472 | BZ37: 478.0528553 | CA37: 499.5652338 | CB37: 522.0456693 | CC37: 545.5377244 | CD37: 570.086922 | CE37: 595.7408335 | CF37: 622.549171 | CG37: 650.5638837 | CH37: 679.8392585 | CI37: 710.4320251 | CJ37: 742.4014662 | CK37: 775.8095322 | CL37: 810.7209612 | CM37: 847.2034044 | CN37: 885.3275576 | CO37: 925.1672977 | CP37: 966.7998261 | CQ37: 1010.305818 | CR37: 1055.76958 | CS37: 1103.279211 | CT37: 1152.926776 | CU37: 1204.808481 | CV37: 1259.024862 | CW37: 1315.680981 | CX37: 1374.886625 | CY37: 1436.756523 | CZ37: 1501.410567 | DA37: 1568.974042 | DB37: 1639.577874 | DC37: 1713.358879 | DD37: 1790.460028 | DE37: 1871.030729 | DF37: 1955.227112 | DG37: 2043.212332 | DH37: 2135.156887 | DI37: 2231.238947 | DJ37: 2331.6447 | DK37: 2436.568711 | DL37: 2546.214303 | DM37: 2660.793947 | DN37: 2780.529675 | DO37: 2905.65351 | DP37: 3036.407918 | DQ37: 3173.046274 | DR37: 3315.833357 | DS37: 3465.045858 | DT37: 3620.972921 | DU37: 3783.916703 | DV37: 3954.192954 | DW37: 4132.131637 | DX37: 4318.077561 | DY37: 4512.391051 | DZ37: 4715.448648 | EA37: 4927.643838 | EB37: 5149.38781 | EC37: 5381.110262 | ED37: 5623.260224 | EE37: 5876.306934 | EF37: =EF36*$E$37 -> 6140.740746 | EG37: 6417.074079 | EH37: 6705.842413 | EI37: 7007.605321 | EJ37: 7322.947561 | EK37: 7652.480201 | EL37: 7996.84181 | EM37: 8356.699692 | EN37: 8732.751178 | EO37: 9125.724981 | EP37: 9536.382605 | EQ37: 9965.519822 | ER37: 10413.96821 | ES37: 10882.59678 | ET37: 11372.31364 | EU37: 11884.06775 | EV37: 12418.8508 | EW37: 12977.69909 | EX37: 13561.69555 | EY37: 14171.97185 | EZ37: 14809.71058 | FA37: 15476.14756 | FB37: 16172.5742 | FC37: 16900.34003 | FD37: 17660.85534 | FE37: 18455.59383 | FF37: 19286.09555 | FG37: 20153.96985 | FH37: 21060.89849 | FI37: 22008.63892 | FJ37: 22999.02767 | FK37: 24033.98392 | FL37: 25115.5132 | FM37: 26245.71129 | FN37: 27426.7683 | FO37: 28660.97287 | FP37: 29950.71665 | FQ37: 31298.4989 | FR37: 32706.93135 | FS37: 34178.74326 | FT37: 35716.78671 | FU37: 37324.04211 | FV37: 39003.624 | FW37: 40758.78708 | FX37: 42592.9325 | FY37: 44509.61447 | FZ37: 46512.54712 | GA37: 48605.61174 | GB37: 50792.86427 | GC37: 53078.54316 | GD37: 55467.0776 | GE37: 57963.09609 | GF37: 60571.43542 | GG37: 63297.15001 | GH37: 66145.52176 | GI37: 69122.07024 | GJ37: 72232.5634 | GK37: 75483.02875 | GL37: 78879.76505 | GM37: 82429.35447 | GN37: 86138.67543 | GO37: 90014.91582 | GP37: 94065.58703 | GQ37: 98298.53845 | GR37: =GR36*$E$37 -> 102721.9727 | GS37: 107344.4614 | GT37: 112174.9622 | GU37: 117222.8355 | GV37: 122497.8631 | GW37: 128010.267 | GX37: 133770.729
C38: Closing Balance | F38: =F24 -> 200 | G38: =G35+G36-G37 -> 209 | H38: =H35+H36-H37 -> 218.405 | I38: 228.233225 | J38: 238.5037201 | K38: 249.2363875 | L38: 260.452025 | M38: 272.1723661 | N38: 284.4201226 | O38: 297.2190281 | P38: 310.5938843 | Q38: 324.5706091 | R38: 339.1762866 | S38: 354.4392194 | T38: 370.3889843 | U38: 387.0564886 | V38: 404.4740306 | W38: 422.675362 | X38: 441.6957533 | Y38: 461.5720622 | Z38: 482.342805 | AA38: 504.0482312 | AB38: 526.7304016 | AC38: 550.4332697 | AD38: 575.2027668 | AE38: 601.0868913 | AF38: 628.1358014 | AG38: 656.4019125 | AH38: 685.9399985 | AI38: 716.8072985 | AJ38: 749.0636269 | AK38: 782.7714901 | AL38: 817.9962072 | AM38: 854.8060365 | AN38: 893.2723081 | AO38: 933.469562 | AP38: 975.4756923 | AQ38: 1019.372098 | AR38: 1065.243843 | AS38: 1113.179816 | AT38: 1163.272908 | AU38: 1215.620188 | AV38: 1270.323097 | AW38: 1327.487636 | AX38: 1387.22458 | AY38: 1449.649686 | AZ38: 1514.883922 | BA38: 1583.053698 | BB38: 1654.291115 | BC38: 1728.734215 | BD38: 1806.527255 | BE38: 1887.820981 | BF38: 1972.772925 | BG38: 2061.547707 | BH38: 2154.317354 | BI38: 2251.261634 | BJ38: 2352.568408 | BK38: 2458.433986 | BL38: 2569.063516 | BM38: 2684.671374 | BN38: 2805.481586 | BO38: 2931.728257 | BP38: 3063.656029 | BQ38: 3201.52055 | BR38: 3345.588975 | BS38: 3496.140479 | BT38: =BT35+BT36-BT37 -> 3653.4668 | BU38: 3817.872806 | BV38: 3989.677082 | BW38: 4169.212551 | BX38: 4356.827116 | BY38: 4552.884336 | BZ38: 4757.764131 | CA38: 4971.863517 | CB38: 5195.597375 | CC38: 5429.399257 | CD38: 5673.722224 | CE38: 5929.039724 | CF38: 6195.846512 | CG38: 6474.659605 | CH38: 6766.019287 | CI38: 7070.490155 | CJ38: 7388.662212 | CK38: 7721.152011 | CL38: 8068.603852 | CM38: 8431.691025 | CN38: 8811.117121 | CO38: 9207.617392 | CP38: 9621.960174 | CQ38: 10054.94838 | CR38: 10507.42106 | CS38: 10980.25501 | CT38: 11474.36648 | CU38: 11990.71297 | CV38: 12530.29506 | CW38: 13094.15834 | CX38: 13683.39546 | CY38: 14299.14826 | CZ38: 14942.60993 | DA38: 15615.02737 | DB38: 16317.70361 | DC38: 17052.00027 | DD38: 17819.34028 | DE38: 18621.21059 | DF38: 19459.16507 | DG38: 20334.8275 | DH38: 21249.89474 | DI38: 22206.14 | DJ38: 23205.4163 | DK38: 24249.66003 | DL38: 25340.89473 | DM38: 26481.235 | DN38: 27672.89057 | DO38: 28918.17065 | DP38: 30219.48833 | DQ38: 31579.3653 | DR38: 33000.43674 | DS38: 34485.45639 | DT38: 36037.30193 | DU38: 37658.98052 | DV38: 39353.63464 | DW38: 41124.5482 | DX38: 42975.15287 | DY38: 44909.03475 | DZ38: 46929.94131 | EA38: 49041.78867 | EB38: 51248.66916 | EC38: 53554.85927 | ED38: 55964.82794 | EE38: 58483.2452 | EF38: =EF35+EF36-EF37 -> 61114.99123 | EG38: 63865.16584 | EH38: 66739.0983 | EI38: 69742.35772 | EJ38: 72880.76382 | EK38: 76160.39819 | EL38: 79587.61611 | EM38: 83169.05884 | EN38: 86911.66648 | EO38: 90822.69147 | EP38: 94909.71259 | EQ38: 99180.64966 | ER38: 103643.7789 | ES38: 108307.7489 | ET38: 113181.5976 | EU38: 118274.7695 | EV38: 123597.1342 | EW38: 129159.0052 | EX38: 134971.1604 | EY38: 141044.8627 | EZ38: 147391.8815 | FA38: 154024.5161 | FB38: 160955.6194 | FC38: 168198.6222 | FD38: 175767.5602 | FE38: 183677.1005 | FF38: 191942.57 | FG38: 200579.9856 | FH38: 209606.085 | FI38: 219038.3588 | FJ38: 228895.0849 | FK38: 239195.3638 | FL38: 249959.1551 | FM38: 261207.3171 | FN38: 272961.6464 | FO38: 285244.9205 | FP38: 298080.9419 | FQ38: 311494.5843 | FR38: 325511.8406 | FS38: 340159.8734 | FT38: 355467.0677 | FU38: 371463.0858 | FV38: 388178.9246 | FW38: 405646.9762 | FX38: 423901.0902 | FY38: 442976.6392 | FZ38: 462910.588 | GA38: 483741.5644 | GB38: 505509.9348 | GC38: 528257.8819 | GD38: 552029.4866 | GE38: 576870.8135 | GF38: 602830.0001 | GG38: 629957.3501 | GH38: 658305.4309 | GI38: 687929.1752 | GJ38: 718885.9881 | GK38: 751235.8576 | GL38: 785041.4712 | GM38: 820368.3374 | GN38: 857284.9126 | GO38: 895862.7336 | GP38: 936176.5566 | GQ38: 978304.5017 | GR38: =GR35+GR36-GR37 -> 1022328.204 | GS38: 1068332.973 | GT38: 1116407.957 | GU38: 1166646.315 | GV38: 1219145.4 | GW38: 1274006.943 | GX38: 1331337.255
C41: NPV of Payouts | E41: =E5 -> 0.06621159447 | F41: =NPV(E41,G37:GX37) -> 972.2326206
C42: P/E Ratio Incorrect | F42: =F41/G36 -> 32.40775402
A44: Reconciliation
C45: Forward Earnings Multiple | F45: =F41/G36 -> 32.40775402
C46: Real Earnings | E46: =E3 -> 0.03
C47: P/E with Real Earnings
C49: Book Value Real | F49: =F38/(1+E3) -> 194.1747573
C50: Book Value Loss
C51: Adjusted Earnings from BV Loss
C53: Final Adjusted P/E
E59: 1952-01-01 | F59: 12.53 | H59: 2013-12-31 | I59: 24.86
E60: 1953-01-01 | F60: 13.01 | H60: 2014-01-31 | I60: 24.86
E61: 1954-01-01 | F61: 12 | H61: 2014-02-28 | I61: 24.59
E62: 1955-01-01 | F62: 15.99 | H62: 2014-03-31 | I62: 24.96
E63: 1956-01-01 | F63: 18.29 | H63: 2014-04-30 | I63: 24.79
E64: 1957-01-01 | F64: 16.72 | H64: 2014-05-31 | I64: 24.94
E65: 1958-01-01 | F65: 13.79 | H65: 2014-06-30 | I65: 25.56
E66: 1959-01-01 | F66: 17.98 | H66: 2014-07-31 | I66: 25.82
E67: 1960-01-01 | F67: 18.34 | H67: 2014-08-31 | I67: 25.62
E68: 1961-01-01 | F68: 18.47 | H68: 2014-09-30 | I68: 25.92
E69: 1962-01-01 | F69: 21.2 | H69: 2014-10-31 | I69: 25.16
E70: 1963-01-01 | F70: 19.26 | H70: 2014-11-30 | I70: 26.61
E71: 1964-01-01 | F71: 21.63 | H71: 2014-12-31 | I71: 26.79
E72: 1965-01-01 | F72: 23.27 | H72: 2015-01-31 | I72: 26.49
E73: 1966-01-01 | F73: 24.06 | H73: 2015-02-28 | I73: 27
E74: 1967-01-01 | F74: 20.43 | H74: 2015-03-31 | I74: 26.73
E75: 1968-01-01 | F75: 21.51 | H75: 2015-04-30 | I75: 26.79
E76: 1969-01-01 | F76: 21.19 | H76: 2015-05-31 | I76: 26.81
E77: 1970-01-01 | F77: 17.09 | H77: 2015-06-30 | I77: 26.5
E78: 1971-01-01 | F78: 16.46 | H78: 2015-07-31 | I78: 26.38
E79: 1972-01-01 | F79: 17.26 | H79: 2015-08-31 | I79: 25.69
E80: 1973-01-01 | F80: 18.71 | H80: 2015-09-30 | I80: 24.5
E81: 1974-01-01 | F81: 13.53 | H81: 2015-10-31 | I81: 25.49
E82: 1975-01-01 | F82: 8.92 | H82: 2015-11-30 | I82: 26.23
E83: 1976-01-01 | F83: 11.19 | H83: 2015-12-31 | I83: 25.97
E84: 1977-01-01 | F84: 11.44 | H84: 2016-01-31 | I84: 24.21
E85: 1978-01-01 | F85: 9.24 | H85: 2016-02-29 | I85: 24
E86: 1979-01-01 | F86: 9.26 | H86: 2016-03-31 | I86: 25.37
E87: 1980-01-01 | F87: 8.85 | H87: 2016-04-30 | I87: 25.92
E88: 1981-01-01 | F88: 9.26 | H88: 2016-05-31 | I88: 25.69
E89: 1982-01-01 | F89: 7.39 | H89: 2016-06-30 | I89: 25.84
E90: 1983-01-01 | F90: 8.76 | H90: 2016-07-31 | I90: 26.69
E91: 1984-01-01 | F91: 9.89 | H91: 2016-08-31 | I91: 26.95
E92: 1985-01-01 | F92: 10 | H92: 2016-09-30 | I92: 26.73
E93: 1986-01-01 | F93: 11.72 | H93: 2016-10-31 | I93: 26.53
E94: 1987-01-01 | F94: 14.92 | H94: 2016-11-30 | I94: 26.85
E95: 1988-01-01 | F95: 13.9 | H95: 2016-12-31 | I95: 27.87
E96: 1989-01-01 | F96: 15.09 | H96: 2017-01-31 | I96: 28.06
E97: 1990-01-01 | F97: 17.05 | H97: 2017-02-28 | I97: 28.66
E98: 1991-01-01 | F98: 15.61 | H98: 2017-03-31 | I98: 29.09
E99: 1992-01-01 | F99: 19.77 | H99: 2017-04-30 | I99: 28.9
E100: 1993-01-01 | F100: 20.32 | H100: 2017-05-31 | I100: 29.31
E101: 1994-01-01 | F101: 21.41 | H101: 2017-06-30 | I101: 29.75
E102: 1995-01-01 | F102: 20.22 | H102: 2017-07-31 | I102: 30
E103: 1996-01-01 | F103: 24.76 | H103: 2017-08-31 | I103: 29.99
E104: 1997-01-01 | F104: 28.33 | H104: 2017-09-30 | I104: 30.32
E105: 1998-01-01 | F105: 32.86 | H105: 2017-10-31 | I105: 31.15
E106: 1999-01-01 | F106: 40.57 | H106: 2017-11-30 | I106: 31.61
E107: 2000-01-01 | F107: 43.77 | H107: 2017-12-31 | I107: 32.48
E108: 2001-01-01 | F108: 36.98 | H108: 2018-01-31 | I108: 33.19
E109: 2002-01-01 | F109: 30.28
E110: 2003-01-01 | F110: 22.9
E111: 2004-01-01 | F111: 27.66
E112: 2005-01-01 | F112: 26.59
E113: 2006-01-01 | F113: 26.47
E114: 2007-01-01 | F114: 27.21
E115: 2008-01-01 | F115: 24.02
E116: 2009-01-01 | F116: 15.17
E117: 2010-01-01 | F117: 20.53
E118: 2011-01-01 | F118: 22.98
E119: 2012-01-01 | F119: 21.21
E120: 2013-01-01 | F120: 21.9
E121: 2014-01-01 | F121: 24.86
E122: 2015-01-01 | F122: 26.49
E123: 2016-01-01 | F123: 24.21
E124: 2017-01-01 | F124: 28.06
E125: 2018-01-01 | F125: 32.47

Sheet Simple Circular Reference
C2: Time | E2: 0 | F2: 1 | G2: 2 | H2: 3 | I2: 4
C4: Net Debt
D5: Opening Balance | F5: =E7 -> 1000 | G5: =F7 -> 989.7435897 | H5: =G7 -> 958.4483892 | I5: =H7 -> 971.7021528
D6: Less: Cash Flow | F6: =F19 -> 10.25641026 | G6: =G19 -> 31.29520053 | H6: =H19 -> -13.25376355 | I6: =I19 -> 52.73322294
D7: Closing Balance | E7: 1000 | F7: =F5-F6 -> 989.7435897 | G7: =G5-G6 -> 958.4483892 | H7: =H5-H6 -> 971.7021528 | I7: =I5-I6 -> 918.9689298
D8: Interest Rate | F8: 0.05 | G8: 0.05 | H8: 0.05 | I8: 0.05
D9: Interest Expense | F9: =interest_expense(F8,F5,F12) -> 49.74358974 | G9: =interest_expense(G8,G5,G12) -> 48.70479947 | H9: =interest_expense(H8,H5,H12) -> 48.25376355 | I9: =interest_expense(I8,I5,I12) -> 47.26677706
C11: Income Statement
D12: EBIT | F12: 60 | G12: 80 | H12: 35 | I12: 100
D13: Less: Interest Expense | F13: =F9 -> 49.74358974 | G13: =G9 -> 48.70479947 | H13: =H9 -> 48.25376355 | I13: =I9 -> 47.26677706
D14: Net Income | F14: =F12-F13 -> 10.25641026 | G14: =G12-G13 -> 31.29520053 | H14: =H12-H13 -> -13.25376355 | I14: =I12-I13 -> 52.73322294
C16: Cash Flow
D17: EBIT | F17: =F12 -> 60 | G17: 80 | H17: 35 | I17: 100
D18: Less: Interest Expense | F18: 49.74358974 | G18: 48.70479947 | H18: 48.25376355 | I18: 47.26677706
D19: Net Cash Flow | F19: =F17-F18 -> 10.25641026 | G19: =G17-G18 -> 31.29520053 | H19: =H17-H18 -> -13.25376355 | I19: =I17-I18 -> 52.73322294

Sheet Aflac Financials
E1: Jan Start | F1: TRUE
E2: First Month | F2: 1 | H2: 2012-01-01 | I2: 2013-01-01 | J2: 2014-01-01 | K2: 2015-01-01 | L2: 2016-01-01 | M2: 2017-01-01 | N2: =M3+1 -> 2018-01-01 | O2: =N3+1 -> 2019-01-01 | P2: 2020-01-01 | Q2: 2021-01-01 | R2: 2022-01-01 | S2: 2023-01-01 | T2: 2024-01-01 | U2: 2025-01-01 | V2: 2026-01-01 | W2: 2027-01-01
B3: Last Annual Date | E3: First Year | F3: 2012 | H3: 2012-12-31 | I3: 2013-12-31 | J3: 2014-12-31 | K3: 2015-12-31 | L3: 2016-12-31 | M3: 2017-12-31 | N3: =EDATE(N2,12)-1 -> 2018-12-31 | O3: =EDATE(O2,12)-1 -> 2019-12-31 | P3: 2020-12-31 | Q3: 2021-12-31 | R3: 2022-12-31 | S3: 2023-12-31 | T3: 2024-12-31 | U3: 2025-12-31 | V3: 2026-12-31 | W3: 2027-12-31
C4: Histoic Year | E4: Last Year | F4: 2016 | H4: TRUE | I4: TRUE | J4: TRUE | K4: TRUE | L4: TRUE | M4: FALSE
C5: Partial Historic Year | F5: 2016-12-31 | H5: FALSE | I5: FALSE | J5: FALSE | K5: FALSE | L5: FALSE | M5: TRUE
C6: Assumption Year | E6: Annual Row | F6: 2017 | H6: TRUE | I6: TRUE | J6: TRUE | K6: TRUE | L6: TRUE | M6: TRUE
A7: Profit and Loss | H7: =YEAR(H3) -> 2012 | I7: =YEAR(I3) -> 2013 | J7: 2014 | K7: 2015 | L7: 2016 | M7: 2017 | N7: 2018 | O7: 2019 | P7: 2020 | Q7: 2021 | R7: 2022 | S7: 2023 | T7: 2024 | U7: 2025 | V7: 2026 | W7: 2027
C8: View Ratios
C9: All values USD millions.
C10: Fiscal Year | H10: 2012 | I10: 2013 | J10: 2014 | K10: 2015 | L10: 2016 | M10: 2017
C11: Income Statement
D12: Premiums Earned | H12: 22150000 | I12: 20140000 | J12: 19070000 | K12: 17570000 | L12: 19230000 | M12: 18740000
D13: Total Investment Income | H13: 3470000 | I13: 3300000 | J13: 3320000 | K13: 3140000 | L13: 3280000 | M13: 3165000
D14: Realized Gains (Losses) | H14: 474000 | I14: 255000 | J14: 215000 | K14: 303000 | L14: 215000 | M14: 187000
D15: Other Operating Income | H15: 92000 | I15: 112000 | J15: 122000 | K15: 27000 | L15: 179000 | M15: 278000
D16: Total Sales/Revenue | H16: 26186000 | I16: 23807000 | J16: 22727000 | K16: 21040000 | L16: 22904000 | M16: 22370000
D17: Losses, Claims & Reserves | H17: 17340000 | I17: 15660000 | J17: 14850000 | K17: 13630000 | L17: 15020000 | M17: 15050000
D18: Losses, Benefits & Adjustments | H18: 15330000 | I18: 13810000 | J18: 12940000 | K18: 11750000 | L18: 12920000 | M18: 12430000
D19: Other Reserves | H19: 2010000 | I19: 1850000 | J19: 1910000 | K19: 1880000 | L19: 2100000
D20: Selling, General & Admin. Expenses | H20: 3460000 | I20: 3170000 | J20: 3070000 | K20: 2860000 | L20: 3070000 | M20: 2584000
D21: Other Operating Expense | H21: -154000 | I21: -326000 | J21: -31000 | K21: 10000 | L21: 255000 | M21: 120000
D22: Operating Income Before Interest Expense | H22: 5540000 | I22: 5303000 | J22: 4838000 | K22: 4540000 | L22: 4559000 | M22: 4616000
D23: Interest Expense, Net of Interest Capitalized | H23: 261000 | I23: 293000 | J23: 317000 | K23: 289000 | L23: 268000 | M23: 254000
D24: Operating Income After Interest Expense | H24: 5279000 | I24: 5010000 | J24: 4521000 | K24: 4251000 | L24: 4291000 | M24: 4362000
D25: Non-Operating Income (Expense) | H25: 0 | I25: 7000 | J25: 0 | K25: 0 | L25: 0 | M25: 0
D26: Unusual Expense | H26: 977000 | I26: 199000 | J26: 31000 | K26: 383000 | L26: 220000 | M26: 178000
D27: Other Reconciling Income | H27: -2000 | I27: 2000 | J27: 0 | K27: -8000 | L27: -999.75
D28: Pretax Income | H28: 4300000 | I28: 4820000 | J28: 4490000 | K28: 3860000 | L28: 4070000.25 | M28: 4178000
D29: Income Taxes | H29: 1440000 | I29: 1660000 | J29: 1540000 | K29: 1330000 | L29: 1410000 | M29: 1399000
D30: Equity in Affiliates | H30: 0 | I30: 0 | J30: 0 | K30: 0 | L30: 0 | M30: 0
D31: Other After Tax Income (Expense) | H31: 0 | I31: 0 | J31: 0 | K31: 0 | L31: 0 | M31: 0
D32: Reconciliation | H32: -10000 | I32: 0 | J32: 0 | K32: 0 | L32: 0.25
D33: Consolidated Net Income | H33: 2870000 | I33: 3160000 | J33: 2950000 | K33: 2530000 | L33: 2660000 | M33: 2779000
D34: Minority Interest Expense | H34: 0 | I34: 0 | J34: 0 | K34: 0 | L34: 0 | M34: 0
D35: Net Income | H35: 2870000 | I35: 3160000 | J35: 2950000 | K35: 2530000 | L35: 2660000 | M35: 2779000
D36: Extra Items & Gain/Loss Sale Of Assets | H36: 0 | I36: 0 | J36: 0 | K36: 0 | L36: 0 | M36: 0
D37: Cumulative Effect - Accounting Chg | H37: 0 | I37: 0 | J37: 0 | K37: 0 | L37: 0 | M37: 0
D38: Discontinued Operations | H38: 0 | I38: 0 | J38: 0 | K38: 0 | L38: 0 | M38: 0
D39: Net Income After Extraordinaries | H39: 2870000 | I39: 3160000 | J39: 2950000 | K39: 2530000 | L39: 2660000 | M39: 2772000
D40: Preferred Dividends | H40: 0 | I40: 0 | J40: 0 | K40: 0 | L40: 0 | M40: 0
D41: Net Income Available to Common | H41: 2870000 | I41: 3160000 | J41: 2950000 | K41: 2530000 | L41: 2660000 | M41: 2772000
D43: EPS (Basic) | H43: 6.140000187 | I43: 6.80000009 | J43: 6.539999973 | K43: 5.88000007 | L43: 6.45999983 | M43: 6.736821639
D44: Basic Shares Outstanding | H44: 466870 | I44: 464500 | J44: 451200 | K44: 430650 | L44: 411470 | M44: 411470
D45: EPS (Diluted) | H45: 6.109999958 | I45: 6.759999786 | J45: 6.500000134 | K45: 5.849999841 | L45: 6.419999991 | M45: 6.889999961
D46: Diluted Shares Outstanding | H46: 469290 | I46: 467410 | J46: 454000 | K46: 433170 | L46: 413920 | M46: 1610180
A48: Balance Sheet
B49: View Ratios
B50: All values USD millions. | H50: B:B | I50: C:C | J50: D:D | K50: E:E | L50: F:F
B51: Fiscal Year | H51: 2012 | I51: 2013 | J51: 2014 | K51: 2015 | L51: 2016 | M51: 2017
C52: Assets
D53: Cash Only | H53: 2040000 | I53: 2540000 | J53: 4660000 | K53: 4350000 | L53: 4860000 | M53: 4930000
D54: Total Investment Assets | H54: 116180000 | I54: 105920000 | J54: 102680000 | K54: 101550000 | L54: 111500000 | M54: 117560000
D55: Premium Balance Receivables | H55: 976000 | I55: 1780000 | J55: 1680000 | K55: 1510000 | L55: 1530000 | M55: 0
D56: Net Property, Plant & Equipment | H56: 564000 | I56: 481000 | J56: 429000 | K56: 427000 | L56: 433000 | M56: 439000
D57: Investment in Unconsolidated Subs. | H57: 0 | I57: 0 | J57: 0 | K57: 0 | L57: 0 | M57: 0
D58: Separate & Variable Account Assets | H58: 0 | I58: 0 | J58: 0 | K58: 0 | L58: 0 | M58: 0
D59: Deferred Charges | H59: 9660000 | I59: 8800000 | J59: 8270000.5 | K59: 8510000 | L59: 8990000 | M59: 8990000
D60: Tangible Other Assets | H60: 1680000 | I60: 1790000 | J60: 2040000 | K60: 1910000 | L60: 2500000 | M60: 2500000
D61: Intangible Assets | H61: 0 | I61: 0 | J61: 0 | K61: 0 | L61: 0 | M61: 0
D62: Other | H62: 6190000.25 | I62: 14403000 | J62: 12280999.5 | K62: 11663000 | L62: 10992000.25 | M62: 23791000
D63: Total Assets | H63: 137290000.2 | I63: 135714000 | J63: 132040000 | K63: 129920000 | L63: 140805000.2 | M63: 146720000
H64: 137290000.2 | I64: 135714000 | J64: 132040000 | K64: 129920000 | L64: 140805000.2 | M64: 146720000
C65: Liabilities & Shareholders' Equity | H65: 0 | I65: 0 | J65: 0 | K65: 0 | L65: 0
D66: Insurance Policy Liabilities (Insurance) | H66: 82660000 | I66: 83540000 | J66: 77900000 | K66: 81350000 | L66: 87070000 | M66: 91750000
D67: Unearned Premiums | H67: 2160000 | I67: 10640000 | J67: 8630000 | K67: 7860000 | L67: 6920000 | M67: 6260000
D68: Policy Claims | H68: 4030000.25 | I68: 3760000 | J68: 3630000 | K68: 3800000 | L68: 4050000.25 | M68: 4370000
D69: Other Insurance Liabilities | H69: 0 | I69: 0 | J69: 0 | K69: 0 | L69: 0 | M69: 0
D70: Total Debt | H70: 4350000 | I70: 4900000 | J70: 5280000 | K70: 4970000 | L70: 5360000 | M70: 5250000
D71: Capitalized Lease Obligations | H71: 0 | I71: 4000 | J71: 10000 | K71: 0 | L71: 15000 | M71: 0
D72: Provision for Risks & Charges | H72: 0 | I72: 0 | J72: 0 | K72: 0 | L72: 0 | M72: 0
D73: Deferred Taxes | H73: 3550000 | I73: 2760000 | J73: 0 | K73: 0 | L73: 0 | M73: 0
D74: Other Liabilities | H74: 24560000 | I74: 15490000 | J74: 18240000 | K74: 14230000 | L74: 16910000 | M74: 17110000
D75: Total Liabilities | H75: 121310000.2 | I75: 121094000 | J75: 113690000 | K75: 112210000 | L75: 120325000.2 | M75: 124740000
M76: 0
D77: Total Shareholders' Equity | H77: 15980000 | I77: 14620000 | J77: 18350000 | K77: 17710000 | L77: 20480000 | M77: 21980000
D78: Accumulated Minority Interest | H78: 0 | I78: 0 | J78: 0 | K78: 0 | L78: 0 | M78: 0
M79: 0
D80: Liabilities & Shareholders' Equity | H80: 137290000.2 | I80: 135714000 | J80: 132040000 | K80: 129920000 | L80: 140805000.2 | M80: 146720000
A83: Cash Flow
B84: View Ratios
B85: All values USD millions. | H85: B:B | I85: C:C | J85: D:D | K85: E:E | L85: F:F
B86: Fiscal Year | H86: 2012 | I86: 2013 | J86: 2014 | K86: 2015 | L86: 2016
D88: Capital Expenditures | H88: 0 | I88: 0 | J88: 0 | K88: 0 | L88: 0
D89: Net Assets from Acquisitions | H89: 0 | I89: 0 | J89: 0 | K89: -40000 | L89: 0
D90: Sale of Fixed Assets & Businesses | H90: 0 | I90: 0 | J90: 0 | K90: 0 | L90: 0
D91: Purchase/Sale of Investments | H91: -22910000 | I91: -11770000 | J91: -1050000 | K91: -3380000 | L91: -4620000
D92: Purchase of Investments | H92: -36080000 | I92: -31350000 | J92: -15180000 | K92: -9150000 | L92: -13090000
D93: Sale/Maturity of Investments | H93: 13180000 | I93: 19570000 | J93: 14130000 | K93: 5770000 | L93: 8470000
D95: Cash Dividends Paid - Total | H95: -603000 | I95: -635000 | J95: -654000 | K95: -656000 | L95: -658000
D96: Common Dividends | H96: -603000 | I96: -635000 | J96: -654000 | K96: -656000 | L96: -658000
D97: Preferred Dividends | H97: 0 | I97: 0 | J97: 0 | K97: 0 | L97: 0
D98: Cash Dividend Growth | H98: 0 | I98: -5.310000051e-05 | J98: -2.99000003e-05 | K98: -3.099999958e-06 | L98: -3.000000106e-06
D99: Change in Capital Stock | H99: -86000 | I99: -725000 | J99: -1180000 | K99: -1280000 | L99: -1380000
D100: Repurchase of Common & Preferred Stk. | H100: -118000 | I100: -813000 | J100: -1210000 | K100: -1320000 | L100: -1420000
D101: Sale of Common & Preferred Stock | H101: 32000 | I101: 88000 | J101: 33000 | K101: 36000 | L101: 46000
D102: Proceeds from Stock Options | H102: 32000 | I102: 88000 | J102: 33000 | K102: 36000 | L102: 46000
D103: Other Proceeds from Sale of Stock | H103: 0 | I103: 0 | J103: 0 | K103: 0 | L103: 0
D104: Issuance/Reduction of Debt, Net | H104: 1170000 | I104: 700000 | J104: 415000 | K104: -274000 | L104: 376000
D105: Change in Current Debt | H105: 0 | I105: 0 | J105: 0 | K105: 0 | L105: 0
D106: Change in Long-Term Debt | H106: 1170000 | I106: 700000 | J106: 415000 | K106: -274000 | L106: 376000
D107: Issuance of Long-Term Debt | H107: 1510000 | I107: 700000 | J107: 750000 | K107: 998000 | L107: 986000
D108: Reduction in Long-Term Debt | H108: -341000 | I108: 0 | J108: -335000 | K108: -1270000 | L108: -610000
A110: Assumptions | E110: History | F110: Applied
C111: Premium Growth
C112: Investment Income/Investments
C113: Other Income Growth | E113: =AVERAGEIF($6:$6,TRUE,113:113) -> 1.14213815 | F113: 0 | I113: =IF(I6,IFERROR(I15/H15-1,0),$F$113) -> 0.2173913043 | J113: =IF(J6,IFERROR(J15/I15-1,0),$F$113) -> 0.08928571429 | K113: -0.7786885246 | L113: 5.62962963 | M113: 0.5530726257 | N113: 0 | O113: 0 | P113: 0 | Q113: 0 | R113: 0 | S113: 0 | T113: 0 | U113: 0 | V113: 0 | W113: 0
C114: Net Claims to Net Premiums | E114: =AVERAGEIF($6:$6,TRUE,114:114) -> 0.6767099402 | F114: 0.67 | H114: =IF(H6,H18/H12,$F$114) -> 0.6920993228 | I114: =IF(I6,I18/I12,$F$114) -> 0.6857000993 | J114: 0.6785527006 | K114: 0.6687535572 | L114: 0.6718668747 | M114: 0.6632870864 | N114: 0.67 | O114: 0.67 | P114: 0.67 | Q114: 0.67 | R114: 0.67 | S114: 0.67 | T114: 0.67 | U114: 0.67 | V114: 0.67 | W114: 0.67
C115: Realized Gains to Investments | E115: =AVERAGEIF($6:$6,TRUE,115:115) -> 0.002513986229 | F115: 0.0025 | H115: =IF(H6,H14/H54,$F$115) -> 0.004079876054 | I115: =IF(I6,I14/I54,$F$115) -> 0.002407477341 | J115: 0.002093883911 | K115: 0.002983751846 | L115: 0.001928251121 | M115: 0.001590677101 | N115: 0.0025 | O115: 0.0025 | P115: 0.0025 | Q115: 0.0025 | R115: 0.0025 | S115: 0.0025 | T115: 0.0025 | U115: 0.0025 | V115: 0.0025 | W115: 0.0025
C116: Other Reserves as Percent of Premiums | E116: =AVERAGEIF($4:$4,TRUE,116:116) -> 0.09979283489 | F116: 0.1 | H116: =IF(H4,H19/H12,$F$116) -> 0.09074492099 | I116: =IF(I4,I19/I12,$F$116) -> 0.09185700099 | J116: 0.1001573152 | K116: 0.1070005692 | L116: 0.1092043682 | M116: 0.1 | N116: 0.1 | O116: 0.1 | P116: 0.1 | Q116: 0.1 | R116: 0.1 | S116: 0.1 | T116: 0.1 | U116: 0.1 | V116: 0.1 | W116: 0.1
C117: Selling, General & Admin. Expenses/Premiums
C118: Other Operating Expenses | E118: =AVERAGEIF($6:$6,TRUE,118:118) -> -21000 | F118: 120000 | H118: =IF(H6,H21,$F$118) -> -154000 | I118: =IF(I6,I21,$F$118) -> -326000 | J118: -31000 | K118: 10000 | L118: 255000 | M118: 120000 | N118: 120000 | O118: 120000 | P118: 120000 | Q118: 120000 | R118: 120000 | S118: 120000 | T118: 120000 | U118: 120000 | V118: 120000 | W118: 120000
C119: Other Expense Growth | I119: =IFERROR(I118/H118-1,0) -> 1.116883117 | J119: =IFERROR(J118/I118-1,0) -> -0.9049079755 | K119: =IFERROR(K118/J118-1,0) -> -1.322580645 | L119: =IFERROR(L118/K118-1,0) -> 24.5 | M119: =IFERROR(M118/L118-1,0) -> -0.5294117647
C121: Interest Expense to Debt | E121: =AVERAGEIF($6:$6,TRUE,121:121) -> 0.05606060715 | F121: 0.05 | H121: =IF(H6,H23/H70,$F$121) -> 0.06 | I121: =IF(I6,I23/I70,$F$121) -> 0.05979591837 | J121: 0.06003787879 | K121: 0.05814889336 | L121: 0.05 | M121: 0.04838095238 | N121: 0.05 | O121: 0.05 | P121: 0.05 | Q121: 0.05 | R121: 0.05 | S121: 0.05 | T121: 0.05 | U121: 0.05 | V121: 0.05 | W121: 0.05
C122: Unusual Expense net of Other Income | E122: =AVERAGEIF($6:$6,TRUE,122:122) -> 331666.625 | F122: 300000 | H122: =IF(H6,H26-H25-H27,$F$122) -> 979000 | I122: =IF(I6,I26-I25-I27,$F$122) -> 190000 | J122: 31000 | K122: 391000 | L122: 220999.75 | M122: 178000 | N122: 300000 | O122: 300000 | P122: 300000 | Q122: 300000 | R122: 300000 | S122: 300000 | T122: 300000 | U122: 300000 | V122: 300000 | W122: 300000
